Workbook

Sheet Sample Report (hidden)
A2: Date
A3: Hen
A4: Program
A5: Start at 999999
A6: Sequence component 1 | B6: Time 1 | C6: Seqeunce Component 2 | D6: Time 2 | E6: Seqeunce Component 3 | F6: Time 3 | G6: Correct 0 = No 1=Yes | J6: Seqeunce | K6: Time
A7: 12 | B7: 7 | C7: 12 | D7: 42 | E7: 13 | F7: 18 | G7: if 77 new line, if 31 or 41 = yes new line on 77, | J7: =string of Seqeunce compponent 1, 2 & 3 | K7: =time 3
A8: This continues until ther is a 1 on its own to indicate start of summary data
J9: 10-19 =1
A10: Summary Data | J10: 20-29 =2
A11: Correct | B11: Incorrect | C11: Rft | D11: total | E11: Av Correct | F11: Av Incorrect | G11: Percent correct | H11: Time | J11: in this example the seqeunce would be 111
A12: 40 | B12: 33 | C12: 40 | D12: 73 | E12: 23.95 | F12: 15 | G12: 54 | H12: 806

Sheet Summary
A2: Day | B2: Date | C2: Average Response Rate | D2: Target % | E2: RF for non correct sequence | F2: U Value | K2: Block 1 | L2: Block 2 | M2: Block 3 | N2: Block 4 | O2: Block 5 | P2: Block 6
A3: 1 | B3: ='!M117A20.Gus'!B2:C2 -> <date> | C3: =('!M117A20.Gus'!F132/60)/'!M117A20.Gus'!Q3 -> 2.397883598 | D3: ='!M117A20.Gus'!N20/'!M117A20.Gus'!Q3 -> 0 | E3: =SUM('!M117A20.Gus'!L20:Q20)/'!M117A20.Gus'!Q3 -> 1.301587302 | F3: ='!M117A20.Gus'!Q16 -> 0.1726486784 | J3: Average Response Rate | K3: =AVERAGE(C3:C7) -> 2.296219318 | L3: =AVERAGE(C8:C12) -> 2.449924438 | M3: =AVERAGE(C13:C17) -> 2.389935624 | N3: =AVERAGE(C18:C22) -> 2.04611904 | O3: =AVERAGE(C23:C27) -> 2.456880291 | P3: =AVERAGE(C28:C32) -> 2.634548708
A4: 2 | B4: ='!M118B30.Gus'!B2:C2 -> <date> | C4: =('!M118B30.Gus'!F138/60)/'!M118B30.Gus'!Q3 -> 3.021085859 | D4: ='!M118B30.Gus'!N20/'!M118B30.Gus'!Q3 -> 0 | E4: =SUM('!M118B30.Gus'!L20:Q20)/'!M118B30.Gus'!Q3 -> 1.181818182 | F4: ='!M118B30.Gus'!Q16 -> 0.1601258157 | J4: Target % | K4: =AVERAGE(D3:D7) -> 0 | L4: =AVERAGE(D8:D12) -> 0 | M4: =AVERAGE(D13:D17) -> 0 | N4: =AVERAGE(D18:D22) -> 0.001342281879 | O4: =AVERAGE(D23:D27) -> 0 | P4: =AVERAGE(D28:D32) -> 0.001324503311
A5: 3 | B5: ='!M119B40.Gus'!B2:C2 -> <date> | C5: =('!M119B40.Gus'!F143/60)/'!M119B40.Gus'!Q3 -> 2.912652068 | D5: ='!M119B40.Gus'!N20/'!M119B40.Gus'!Q3 -> 0 | E5: =SUM('!M119B40.Gus'!L20:Q20)/'!M119B40.Gus'!Q3 -> 1.95620438 | F5: ='!M119B40.Gus'!Q16 -> 0.1861511096 | J5: CCRF | K5: =AVERAGE(E3:E7) -> 1.521189689 | L5: =AVERAGE(E8:E12) -> 1.81575884 | M5: =AVERAGE(E13:E17) -> 1.665713993 | N5: =AVERAGE(E18:E22) -> 1.815309684 | O5: =AVERAGE(E23:E27) -> 1.215469179 | P5: =AVERAGE(E28:E32) -> 1.801375575
A6: 4 | B6: ='!M120A30.Gus'!B2:C2 -> <date> | C6: =('!M120A30.Gus'!F150/60)/'!M120A30.Gus'!Q3 -> 0 | D6: ='!M120A30.Gus'!N20/'!M120A30.Gus'!Q3 -> 0 | E6: =SUM('!M120A30.Gus'!L20:Q20)/'!M120A30.Gus'!Q3 -> 1.875 | F6: ='!M120A30.Gus'!Q16 -> 0.1913850301 | J6: U Value | K6: =AVERAGE(F3:F7) -> 0.1764041098 | L6: =AVERAGE(F8:F12) -> 0.1576677204 | M6: =AVERAGE(F13:F17) -> 0.1706448515 | N6: =AVERAGE(F18:F22) -> 0.1760741295 | O6: =AVERAGE(F23:F27) -> 0.1448812546 | P6: =AVERAGE(F28:F32) -> 0.1289907028
A7: 5 | B7: ='!M121A00.Gus'!B2:C2 -> <date> | C7: =('!M121A00.Gus'!F133/60)/'!M121A00.Gus'!Q3 -> 3.149475066 | D7: ='!M121A00.Gus'!N20/'!M121A00.Gus'!Q3 -> 0 | E7: =SUM('!M121A00.Gus'!L20:Q20)/'!M121A00.Gus'!Q3 -> 1.291338583 | F7: ='!M121A00.Gus'!Q16 -> 0.171709915
A8: 6 | B8: ='!M122950.Gus'!B2:C2 -> <date> | C8: =('!M122950.Gus'!F148/60)/'!M122950.Gus'!Q3 -> 2.804929577 | D8: ='!M122950.Gus'!N20/'!M122950.Gus'!Q3 -> 0 | E8: =SUM('!M122950.Gus'!L20:Q20)/'!M122950.Gus'!Q3 -> 1.894366197 | F8: ='!M122950.Gus'!Q16 -> 0.1511827668
A9: 7 | B9: ='!M123B00.Gus'!B2:C2 -> <date> | C9: =('!M123B00.Gus'!F176/60)/'!M123B00.Gus'!Q3 -> 2.349313725 | D9: ='!M123B00.Gus'!N20/'!M123B00.Gus'!Q3 -> 0 | E9: =SUM('!M123B00.Gus'!L20:Q20)/'!M123B00.Gus'!Q3 -> 1.641176471 | F9: ='!M123B00.Gus'!Q16 -> 0.1651026495 | G9: =K3 -> 2.296219318 | H9: =L3 -> 2.449924438 | I9: 2.389935624 | J9: 2.04611904 | K9: 2.456880291 | L9: 2.634548708 | M9: =K4 -> 0 | N9: =L4 -> 0 | O9: 0 | P9: 0.001342281879 | Q9: 0 | R9: 0.001324503311 | S9: =K6 -> 0.1764041098 | T9: =L6 -> 0.1576677204 | U9: 0.1706448515 | V9: 0.1760741295 | W9: 0.1448812546 | X9: 0.1289907028
A10: 8 | B10: ='!M124B10.Gus'!B2:C2 -> <date> | C10: =('!M124B10.Gus'!F181/60)/'!M124B10.Gus'!Q3 -> 2.278 | D10: ='!M124B10.Gus'!N20/'!M124B10.Gus'!Q3 -> 0 | E10: =SUM('!M124B10.Gus'!L20:Q20)/'!M124B10.Gus'!Q3 -> 1.6 | F10: ='!M124B10.Gus'!Q16 -> 0.1461221725
A11: 9 | B11: ='!M125B00.Gus'!B2:C2 -> <date> | C11: =('!M125B00.Gus'!F169/60)/'!M125B00.Gus'!Q3 -> 2.446114519 | D11: ='!M125B00.Gus'!N20/'!M125B00.Gus'!Q3 -> 0 | E11: =SUM('!M125B00.Gus'!L20:Q20)/'!M125B00.Gus'!Q3 -> 1.693251534 | F11: ='!M125B00.Gus'!Q16 -> 0.1568454419
A12: 10 | B12: ='!M126A30.Gus'!B2:C2 -> <date> | C12: =('!M126A30.Gus'!F122/60)/'!M126A30.Gus'!Q3 -> 2.371264368 | D12: ='!M126A30.Gus'!N20/'!M126A30.Gus'!Q3 -> 0 | E12: =SUM('!M126A30.Gus'!L20:Q20)/'!M126A30.Gus'!Q3 -> 2.25 | F12: ='!M126A30.Gus'!Q16 -> 0.1690855713
A13: 11 | B13: ='!M127950.Gus'!B2:C2 -> <date> | C13: =('!M127950.Gus'!F147/60)/'!M127950.Gus'!Q3 -> 2.835579196 | D13: ='!M127950.Gus'!N20/'!M127950.Gus'!Q3 -> 0 | E13: =SUM('!M127950.Gus'!L20:Q20)/'!M127950.Gus'!Q3 -> 1.907801418 | F13: ='!M127950.Gus'!Q16 -> 0.170638384
A14: 12 | B14: ='!M128B20.Gus'!B2:C2 -> <date> | C14: =('!M128B20.Gus'!F187/60)/'!M128B20.Gus'!Q3 -> 2.168498168 | D14: ='!M128B20.Gus'!N20/'!M128B20.Gus'!Q3 -> 0 | E14: =SUM('!M128B20.Gus'!L20:Q20)/'!M128B20.Gus'!Q3 -> 1.554945055 | F14: ='!M128B20.Gus'!Q16 -> 0.1712027792
A15: 13 | B15: ='!M129B10.Gus'!B2:C2 -> <date> | C15: =('!M129B10.Gus'!F179/60)/'!M129B10.Gus'!Q3 -> 2.30539499 | D15: ='!M129B10.Gus'!N20/'!M129B10.Gus'!Q3 -> 0 | E15: =SUM('!M129B10.Gus'!L20:Q20)/'!M129B10.Gus'!Q3 -> 1.61849711 | F15: ='!M129B10.Gus'!Q16 -> 0.1790718656
A16: 14 | B16: ='!M130B00.Gus'!B2:C2 -> <date> | C16: =('!M130B00.Gus'!F184/60)/'!M130B00.Gus'!Q3 -> 2.243820225 | D16: ='!M130B00.Gus'!N20/'!M130B00.Gus'!Q3 -> 0 | E16: =SUM('!M130B00.Gus'!L20:Q20)/'!M130B00.Gus'!Q3 -> 1.578651685 | F16: ='!M130B00.Gus'!Q16 -> 0.1673539233
A17: 15 | B17: ='!M131A40.Gus'!B2:C2 -> <date> | C17: =('!M131A40.Gus'!F172/60)/'!M131A40.Gus'!Q3 -> 2.396385542 | D17: ='!M131A40.Gus'!N20/'!M131A40.Gus'!Q3 -> 0 | E17: =SUM('!M131A40.Gus'!L20:Q20)/'!M131A40.Gus'!Q3 -> 1.668674699 | F17: ='!M131A40.Gus'!Q16 -> 0.1649573052
A18: 16 | B18: ='!M201A40.Gus'!B2:C2 -> <date> | C18: =('!M201A40.Gus'!F155/60)/'!M201A40.Gus'!Q3 -> 2.677181208 | D18: ='!M201A40.Gus'!N20/'!M201A40.Gus'!Q3 -> 0.006711409396 | E18: =SUM('!M201A40.Gus'!L20:Q20)/'!M201A40.Gus'!Q3 -> 1.832214765 | F18: ='!M201A40.Gus'!Q16 -> 0.1441680984
A19: 17 | B19: ='!M202B40.Gus'!B2:C2 -> <date> | C19: =('!M202B40.Gus'!F154/60)/'!M202B40.Gus'!Q3 -> 2.694594595 | D19: ='!M202B40.Gus'!N20/'!M202B40.Gus'!Q3 -> 0 | E19: =SUM('!M202B40.Gus'!L20:Q20)/'!M202B40.Gus'!Q3 -> 1.155405405 | F19: ='!M202B40.Gus'!Q16 -> 0.139975702
A20: 18 | B20: ='!M204B40.Gus'!B2:C2 -> <date> | C20: =('!M204B40.Gus'!F168/60)/'!M204B40.Gus'!Q3 -> 2.467901235 | D20: ='!M204B40.Gus'!N20/'!M204B40.Gus'!Q3 -> 0 | E20: =SUM('!M204B40.Gus'!L20:Q20)/'!M204B40.Gus'!Q3 -> 1.086419753 | F20: ='!M204B40.Gus'!Q16 -> 0.163090157
A21: 19 | B21: ='!M205B30.Gus'!B2:C2 -> <date> | C21: =('!M205B30.Gus'!F80/60)/'!M205B30.Gus'!Q3 -> 0 | D21: ='!M205B30.Gus'!N20/'!M205B30.Gus'!Q3 -> 0 | E21: =SUM('!M205B30.Gus'!L20:Q20)/'!M205B30.Gus'!Q3 -> 3.337837838 | F21: ='!M205B30.Gus'!Q16 -> 0.2723978097
A22: 20 | B22: ='!M206B50.Gus'!B2:C2 -> <date> | C22: =('!M206B50.Gus'!F173/60)/'!M206B50.Gus'!Q3 -> 2.390918164 | D22: ='!M206B50.Gus'!N20/'!M206B50.Gus'!Q3 -> 0 | E22: =SUM('!M206B50.Gus'!L20:Q20)/'!M206B50.Gus'!Q3 -> 1.664670659 | F22: ='!M206B50.Gus'!Q16 -> 0.1607388804
A23: 21 | B23: ='!M207A10.Gus'!B2:C2 -> <date> | C23: =('!M207A10.Gus'!F164/60)/'!M207A10.Gus'!Q3 -> 2.512025316 | D23: ='!M207A10.Gus'!N20/'!M207A10.Gus'!Q3 -> 0 | E23: =SUM('!M207A10.Gus'!L20:Q20)/'!M207A10.Gus'!Q3 -> 1.107594937 | F23: ='!M207A10.Gus'!Q16 -> 0.1583880714
A24: 22 | B24: ='!M208B30.Gus'!B2:C2 -> <date> | C24: =('!M208B30.Gus'!F184/60)/'!M208B30.Gus'!Q3 -> 2.241947566 | D24: ='!M208B30.Gus'!N20/'!M208B30.Gus'!Q3 -> 0 | E24: =SUM('!M208B30.Gus'!L20:Q20)/'!M208B30.Gus'!Q3 -> 1.016853933 | F24: ='!M208B30.Gus'!Q16 -> 0.1345676208
A25: 23 | B25: ='!M209A40.Gus'!B2:C2 -> <date> | C25: =('!M209A40.Gus'!F166/60)/'!M209A40.Gus'!Q3 -> 2.500104167 | D25: ='!M209A40.Gus'!N20/'!M209A40.Gus'!Q3 -> 0 | E25: =SUM('!M209A40.Gus'!L20:Q20)/'!M209A40.Gus'!Q3 -> 1.09375 | F25: ='!M209A40.Gus'!Q16 -> 0.1620042004
A26: 24 | B26: ='!M210B40.Gus'!B2:C2 -> <date> | C26: =('!M210B40.Gus'!F168/60)/'!M210B40.Gus'!Q3 -> 2.432921811 | D26: ='!M210B40.Gus'!N20/'!M210B40.Gus'!Q3 -> 0 | E26: =SUM('!M210B40.Gus'!L20:Q20)/'!M210B40.Gus'!Q3 -> 1.086419753 | F26: ='!M210B40.Gus'!Q16 -> 0.1381036831
A27: 25 | B27: ='!M211A20.Gus'!B2:C2 -> <date> | C27: =('!M211A20.Gus'!F160/60)/'!M211A20.Gus'!Q3 -> 2.597402597 | D27: ='!M211A20.Gus'!N20/'!M211A20.Gus'!Q3 -> 0 | E27: =SUM('!M211A20.Gus'!L20:Q20)/'!M211A20.Gus'!Q3 -> 1.772727273 | F27: ='!M211A20.Gus'!Q16 -> 0.1313426972
A28: 26 | B28: ='!M212A10.Gus'!B2:C2 -> <date> | C28: =('!M212A10.Gus'!F172/60)/'!M212A10.Gus'!Q3 -> 2.38935743 | D28: ='!M212A10.Gus'!N20/'!M212A10.Gus'!Q3 -> 0 | E28: =SUM('!M212A10.Gus'!L20:Q20)/'!M212A10.Gus'!Q3 -> 1.668674699 | F28: ='!M212A10.Gus'!Q16 -> 0.1243442473
A29: 27 | B29: ='!M213B30.Gus'!B2:C2 -> <date> | C29: =('!M213B30.Gus'!F157/60)/'!M213B30.Gus'!Q3 -> 2.643046358 | D29: ='!M213B30.Gus'!N20/'!M213B30.Gus'!Q3 -> 0 | E29: =SUM('!M213B30.Gus'!L20:Q20)/'!M213B30.Gus'!Q3 -> 1.801324503 | F29: ='!M213B30.Gus'!Q16 -> 0.1256201875
A30: 28 | B30: ='!M214A30.Gus'!B2:C2 -> <date> | C30: =('!M214A30.Gus'!F160/60)/'!M214A30.Gus'!Q3 -> 2.591341991 | D30: ='!M214A30.Gus'!N20/'!M214A30.Gus'!Q3 -> 0 | E30: =SUM('!M214A30.Gus'!L20:Q20)/'!M214A30.Gus'!Q3 -> 1.772727273 | F30: ='!M214A30.Gus'!Q16 -> 0.1179173127
A31: 29 | B31: ='!M215A30.Gus'!B2:C2 -> <date> | C31: =('!M215A30.Gus'!F143/60)/'!M215A30.Gus'!Q3 -> 2.901094891 | D31: ='!M215A30.Gus'!N20/'!M215A30.Gus'!Q3 -> 0 | E31: =SUM('!M215A30.Gus'!L20:Q20)/'!M215A30.Gus'!Q3 -> 1.95620438 | F31: ='!M215A30.Gus'!Q16 -> 0.1345997258
A32: 30 | B32: ='!M216A00.Gus'!B2:C2 -> <date> | C32: =('!M216A00.Gus'!F157/60)/'!M216A00.Gus'!Q3 -> 2.64790287 | D32: ='!M216A00.Gus'!N20/'!M216A00.Gus'!Q3 -> 0.006622516556 | E32: =SUM('!M216A00.Gus'!L20:Q20)/'!M216A00.Gus'!Q3 -> 1.80794702 | F32: ='!M216A00.Gus'!Q16 -> 0.1424720405
B33: ='!M217B10.Gus'!B2:C2 -> <date> | C33: =('!M217B10.Gus'!F180/60)/'!M217B10.Gus'!Q3 -> 2.293773946 | D33: ='!M217B10.Gus'!N20/'!M217B10.Gus'!Q3 -> 0 | E33: =SUM('!M217B10.Gus'!L20:Q20)/'!M217B10.Gus'!Q3 -> 1.034482759 | F33: ='!M217B10.Gus'!Q16 -> 0.135376487

Sheet Start
F1: Use Folder 51 | H1: Auto Clean Up | J1: Correct sequence
F2: FALSE | H2: TRUE | J2: 211
A4: Working with Folder | G4: Process All/Or Pick A number: ALL or an integer
A5: F:\Possum Chapter\Raw Data\Gus\Phase 1 Any\ | G5: ALL
A6: Filenames:
A7: !M211A20.Gus | G7: Paint Cells
A8: !M212A10.Gus | G8: FALSE
A9: !M213B30.Gus
A10: !M214A30.Gus
A11: !M215A30.Gus
A12: !M216A00.Gus
A13: !M217B10.Gus
A14: !M117A20.Gus
A15: !M118B30.Gus
A16: !M119B40.Gus
A17: !M120A30.Gus
A18: !M121A00.Gus
A19: !M122950.Gus
A20: !M123B00.Gus
A21: !M124B10.Gus
A22: !M125B00.Gus
A23: !M126A30.Gus
A24: !M127950.Gus
A25: !M128B20.Gus
A26: !M129B10.Gus
A27: !M130B00.Gus
A28: !M131A40.Gus
A29: !M201A40.Gus
A30: !M202B40.Gus
A31: !M204B40.Gus
A32: !M205B30.Gus
A33: !M206B50.Gus
A34: !M207A10.Gus
A35: !M208B30.Gus
A36: !M209A40.Gus
A37: !M210B40.Gus

Sheet !M117A20.Gus
A1: Report for:!M117A20.Gus
A2: Date: | B2: <date>
A3: Hen: | B3: <hen> | F3: Correct Sequence | G3: =Start!J2 -> 211 | P3: Total Sequences in Data | Q3: =4994-COUNTBLANK(L7:L5000) -> 126 | V3: Total Sequences in Block Data | W3: =COUNTA(L7:L27) -> 21 | AA3: Total Sequences in Block Data | AB3: =COUNTA(L28:L48) -> 21 | AF3: Total Sequences in Block Data | AG3: =COUNTA(L49:L69) -> 21 | AK3: Total Sequences in Block Data | AL3: =COUNTA(L70:L90) -> 21 | AP3: Total Sequences in Block Data | AQ3: =COUNTA(L91:L111) -> 21 | AU3: Total Sequences in Block Data | AV3: =COUNTA(L112:L132) -> 21
P4: Total Sequences in Summary | Q4: =SUM(O7:O14) -> 126 | V4: Total Sequences in Block Summary | W4: =SUM(U7:U14) -> 21 | AA4: Total Sequences in Block Summary | AB4: =SUM(Z7:Z14) -> 21 | AF4: Total Sequences in Block Summary | AG4: =SUM(AE7:AE14) -> 21 | AK4: Total Sequences in Block Summary | AL4: =SUM(AJ7:AJ14) -> 21 | AP4: Total Sequences in Block Summary | AQ4: =SUM(AO7:AO14) -> 21 | AU4: Total Sequences in Block Summary | AV4: =SUM(AT7:AT14) -> 21
T5: Block 1 | Y5: Block 2 | AD5: Block 3 | AI5: Block 4 | AN5: Block 5 | AS5: Block 6
A6: Sequence Component 1 | B6: Time 1 | C6: Sequence Component 2 | D6: Time 2 | E6: Sequence Component 3 | F6: Time 3 | G6: Sequence Component 4 | H6: Time 4 | I6: Sequence Component 5 | J6: Time 5 | K6: Correct? 0=No 1=Yes | L6: Sequence | N6: Frequency | P6: Relative Frequency | Q6: Variability | T6: Frequency | V6: Relative Frequency | W6: Variability | Y6: Frequency | AA6: Relative Frequency | AB6: Variability | AD6: Frequency | AF6: Relative Frequency | AG6: Variability | AI6: Frequency | AK6: Relative Frequency | AL6: Variability | AN6: Frequency | AP6: Relative Frequency | AQ6: Variability | AS6: Frequency | AU6: Relative Frequency | AV6: Variability
A7: 21 | B7: 85 | C7: 22 | D7: 92 | E7: 24 | F7: 102 | K7: 0 | L7: 222 | N7: 111 | O7: =COUNTIF($L$7:$L$500,N7) -> 0 | P7: =O7/$Q$4 -> 0 | Q7: =IF(P7=0,0,(P7*((LOG(P7))/LOG(2)))) -> 0 | T7: =N7 -> 111 | U7: =COUNTIF(L7:L27,T7) -> 0 | V7: =U7/(W4-U11) -> 0 | W7: =IF(V7=0,0,(V7*((LOG(V7))/LOG(2)))) -> 0 | Y7: =N7 -> 111 | Z7: =COUNTIF(L28:L48,Y7) -> 0 | AA7: =Z7/(AB4-Z11) -> 0 | AB7: =IF(AA7=0,0,(AA7*((LOG(AA7))/LOG(2)))) -> 0 | AD7: =N7 -> 111 | AE7: =COUNTIF(L49:L69,AD7) -> 0 | AF7: =AE7/(AG4-AE11) -> 0 | AG7: =IF(AF7=0,0,(AF7*((LOG(AF7))/LOG(2)))) -> 0 | AI7: =N7 -> 111 | AJ7: =COUNTIF(L70:L90,AI7) -> 0 | AK7: =AJ7/(AL4-AJ11) -> 0 | AL7: =IF(AK7=0,0,(AK7*((LOG(AK7))/LOG(2)))) -> 0 | AN7: =N7 -> 111 | AO7: =COUNTIF(L91:L111,AN7) -> 0 | AP7: =AO7/(AQ4-AO11) -> 0 | AQ7: =IF(AP7=0,0,(AP7*((LOG(AP7))/LOG(2)))) -> 0 | AS7: =N7 -> 111 | AT7: =COUNTIF(L112:L132,AS7) -> 0 | AU7: =AT7/(AV4-AT11) -> 0 | AV7: =IF(AU7=0,0,(AU7*((LOG(AU7))/LOG(2)))) -> 0
A8: 21 | B8: 211 | C8: 22 | D8: 224 | E8: 24 | F8: 233 | K8: 0 | L8: 222 | N8: 112 | O8: =COUNTIF($L$7:$L$500,N8) -> 4 | P8: =O8/$Q$4 -> 0.03174603175 | Q8: =IF(P8=0,0,(P8*((LOG(P8))/LOG(2)))) -> -0.1580088865 | T8: =N8 -> 112 | U8: =COUNTIF(L7:L27,T8) -> 1 | V8: =U8/(W4-U11) -> 0.04761904762 | W8: =IF(V8=0,0,(V8*((LOG(V8))/LOG(2)))) -> -0.2091579725 | Y8: =N8 -> 112 | Z8: =COUNTIF(L28:L48,Y8) -> 0 | AA8: =Z8/(AB4-Z11) -> 0 | AB8: =IF(AA8=0,0,(AA8*((LOG(AA8))/LOG(2)))) -> 0 | AD8: =N8 -> 112 | AE8: =COUNTIF(L49:L69,AD8) -> 1 | AF8: =AE8/(AG4-AE11) -> 0.04761904762 | AG8: =IF(AF8=0,0,(AF8*((LOG(AF8))/LOG(2)))) -> -0.2091579725 | AI8: =N8 -> 112 | AJ8: =COUNTIF(L70:L90,AI8) -> 0 | AK8: =AJ8/(AL4-AJ11) -> 0 | AL8: =IF(AK8=0,0,(AK8*((LOG(AK8))/LOG(2)))) -> 0 | AN8: =N8 -> 112 | AO8: =COUNTIF(L91:L111,AN8) -> 1 | AP8: =AO8/(AQ4-AO11) -> 0.04761904762 | AQ8: =IF(AP8=0,0,(AP8*((LOG(AP8))/LOG(2)))) -> -0.2091579725 | AS8: =N8 -> 112 | AT8: =COUNTIF(L112:L132,AS8) -> 1 | AU8: =AT8/(AV4-AT11) -> 0.04761904762 | AV8: =IF(AU8=0,0,(AU8*((LOG(AU8))/LOG(2)))) -> -0.2091579725
A9: 21 | B9: 330 | C9: 22 | D9: 335 | E9: 24 | F9: 339 | K9: 0 | L9: 222 | N9: 121 | O9: =COUNTIF($L$7:$L$500,N9) -> 0 | P9: =O9/$Q$4 -> 0 | Q9: =IF(P9=0,0,(P9*((LOG(P9))/LOG(2)))) -> 0 | T9: =N9 -> 121 | U9: =COUNTIF(L7:L27,T9) -> 0 | V9: =U9/(W4-U11) -> 0 | W9: =IF(V9=0,0,(V9*((LOG(V9))/LOG(2)))) -> 0 | Y9: =N9 -> 121 | Z9: =COUNTIF(L28:L48,Y9) -> 0 | AA9: =Z9/(AB4-Z11) -> 0 | AB9: =IF(AA9=0,0,(AA9*((LOG(AA9))/LOG(2)))) -> 0 | AD9: =N9 -> 121 | AE9: =COUNTIF(L49:L69,AD9) -> 0 | AF9: =AE9/(AG4-AE11) -> 0 | AG9: =IF(AF9=0,0,(AF9*((LOG(AF9))/LOG(2)))) -> 0 | AI9: =N9 -> 121 | AJ9: =COUNTIF(L70:L90,AI9) -> 0 | AK9: =AJ9/(AL4-AJ11) -> 0 | AL9: =IF(AK9=0,0,(AK9*((LOG(AK9))/LOG(2)))) -> 0 | AN9: =N9 -> 121 | AO9: =COUNTIF(L91:L111,AN9) -> 0 | AP9: =AO9/(AQ4-AO11) -> 0 | AQ9: =IF(AP9=0,0,(AP9*((LOG(AP9))/LOG(2)))) -> 0 | AS9: =N9 -> 121 | AT9: =COUNTIF(L112:L132,AS9) -> 0 | AU9: =AT9/(AV4-AT11) -> 0 | AV9: =IF(AU9=0,0,(AU9*((LOG(AU9))/LOG(2)))) -> 0
A10: 12 | B10: 435 | C10: 24 | D10: 442 | E10: 24 | F10: 448 | K10: 0 | L10: 122 | N10: 122 | O10: =COUNTIF($L$7:$L$500,N10) -> 72 | P10: =O10/$Q$4 -> 0.5714285714 | Q10: =IF(P10=0,0,(P10*((LOG(P10))/LOG(2)))) -> -0.4613456697 | T10: =N10 -> 122 | U10: =COUNTIF(L7:L27,T10) -> 11 | V10: =U10/(W4-U11) -> 0.5238095238 | W10: =IF(V10=0,0,(V10*((LOG(V10))/LOG(2)))) -> -0.4886544688 | Y10: =N10 -> 122 | Z10: =COUNTIF(L28:L48,Y10) -> 9 | AA10: =Z10/(AB4-Z11) -> 0.4285714286 | AB10: =IF(AA10=0,0,(AA10*((LOG(AA10))/LOG(2)))) -> -0.5238824663 | AD10: =N10 -> 122 | AE10: =COUNTIF(L49:L69,AD10) -> 12 | AF10: =AE10/(AG4-AE11) -> 0.5714285714 | AG10: =IF(AF10=0,0,(AF10*((LOG(AF10))/LOG(2)))) -> -0.4613456697 | AI10: =N10 -> 122 | AJ10: =COUNTIF(L70:L90,AI10) -> 13 | AK10: =AJ10/(AL4-AJ11) -> 0.619047619 | AL10: =IF(AK10=0,0,(AK10*((LOG(AK10))/LOG(2)))) -> -0.4283052457 | AN10: =N10 -> 122 | AO10: =COUNTIF(L91:L111,AN10) -> 12 | AP10: =AO10/(AQ4-AO11) -> 0.5714285714 | AQ10: =IF(AP10=0,0,(AP10*((LOG(AP10))/LOG(2)))) -> -0.4613456697 | AS10: =N10 -> 122 | AT10: =COUNTIF(L112:L132,AS10) -> 15 | AU10: =AT10/(AV4-AT11) -> 0.7142857143 | AV10: =IF(AU10=0,0,(AU10*((LOG(AU10))/LOG(2)))) -> -0.346733448
A11: 12 | B11: 542 | C11: 24 | D11: 550 | E11: 24 | F11: 553 | K11: 0 | L11: 122 | N11: 211 | O11: =COUNTIF($L$7:$L$500,N11) -> 0 | P11: =O11/$Q$4 -> 0 | Q11: =IF(P11=0,0,(P11*((LOG(P11))/LOG(2)))) -> 0 | T11: =N11 -> 211 | U11: =COUNTIF(L7:L27,T11) -> 0 | Y11: =N11 -> 211 | Z11: =COUNTIF(L28:L48,Y11) -> 0 | AD11: =N11 -> 211 | AE11: =COUNTIF(L49:L69,AD11) -> 0 | AI11: =N11 -> 211 | AJ11: =COUNTIF(L70:L90,AI11) -> 0 | AN11: =N11 -> 211 | AO11: =COUNTIF(L91:L111,AN11) -> 0 | AS11: =N11 -> 211 | AT11: =COUNTIF(L112:L132,AS11) -> 0
A12: 12 | B12: 647 | C12: 24 | D12: 658 | E12: 24 | F12: 671 | K12: 0 | L12: 122 | N12: 212 | O12: =COUNTIF($L$7:$L$500,N12) -> 1 | P12: =O12/$Q$4 -> 0.007936507937 | Q12: =IF(P12=0,0,(P12*((LOG(P12))/LOG(2)))) -> -0.05537523749 | T12: =N12 -> 212 | U12: =COUNTIF(L7:L27,T12) -> 0 | V12: =U12/(W4-U11) -> 0 | W12: =IF(V12=0,0,(V12*((LOG(V12))/LOG(2)))) -> 0 | Y12: =N12 -> 212 | Z12: =COUNTIF(L28:L48,Y12) -> 1 | AA12: =Z12/(AB4-Z11) -> 0.04761904762 | AB12: =IF(AA12=0,0,(AA12*((LOG(AA12))/LOG(2)))) -> -0.2091579725 | AD12: =N12 -> 212 | AE12: =COUNTIF(L49:L69,AD12) -> 0 | AF12: =AE12/(AG4-AE11) -> 0 | AG12: =IF(AF12=0,0,(AF12*((LOG(AF12))/LOG(2)))) -> 0 | AI12: =N12 -> 212 | AJ12: =COUNTIF(L70:L90,AI12) -> 0 | AK12: =AJ12/(AL4-AJ11) -> 0 | AL12: =IF(AK12=0,0,(AK12*((LOG(AK12))/LOG(2)))) -> 0 | AN12: =N12 -> 212 | AO12: =COUNTIF(L91:L111,AN12) -> 0 | AP12: =AO12/(AQ4-AO11) -> 0 | AQ12: =IF(AP12=0,0,(AP12*((LOG(AP12))/LOG(2)))) -> 0 | AS12: =N12 -> 212 | AT12: =COUNTIF(L112:L132,AS12) -> 0 | AU12: =AT12/(AV4-AT11) -> 0 | AV12: =IF(AU12=0,0,(AU12*((LOG(AU12))/LOG(2)))) -> 0
A13: 12 | B13: 771 | C13: 24 | D13: 784 | E13: 24 | F13: 791 | K13: 0 | L13: 122 | N13: 221 | O13: =COUNTIF($L$7:$L$500,N13) -> 0 | P13: =O13/$Q$4 -> 0 | Q13: =IF(P13=0,0,(P13*((LOG(P13))/LOG(2)))) -> 0 | T13: =N13 -> 221 | U13: =COUNTIF(L7:L27,T13) -> 0 | V13: =U13/(W4-U11) -> 0 | W13: =IF(V13=0,0,(V13*((LOG(V13))/LOG(2)))) -> 0 | Y13: =N13 -> 221 | Z13: =COUNTIF(L28:L48,Y13) -> 0 | AA13: =Z13/(AB4-Z11) -> 0 | AB13: =IF(AA13=0,0,(AA13*((LOG(AA13))/LOG(2)))) -> 0 | AD13: =N13 -> 221 | AE13: =COUNTIF(L49:L69,AD13) -> 0 | AF13: =AE13/(AG4-AE11) -> 0 | AG13: =IF(AF13=0,0,(AF13*((LOG(AF13))/LOG(2)))) -> 0 | AI13: =N13 -> 221 | AJ13: =COUNTIF(L70:L90,AI13) -> 0 | AK13: =AJ13/(AL4-AJ11) -> 0 | AL13: =IF(AK13=0,0,(AK13*((LOG(AK13))/LOG(2)))) -> 0 | AN13: =N13 -> 221 | AO13: =COUNTIF(L91:L111,AN13) -> 0 | AP13: =AO13/(AQ4-AO11) -> 0 | AQ13: =IF(AP13=0,0,(AP13*((LOG(AP13))/LOG(2)))) -> 0 | AS13: =N13 -> 221 | AT13: =COUNTIF(L112:L132,AS13) -> 0 | AU13: =AT13/(AV4-AT11) -> 0 | AV13: =IF(AU13=0,0,(AU13*((LOG(AU13))/LOG(2)))) -> 0
A14: 12 | B14: 888 | C14: 24 | D14: 897 | E14: 24 | F14: 928 | K14: 0 | L14: 122 | N14: 222 | O14: =COUNTIF($L$7:$L$500,N14) -> 49 | P14: =O14/$Q$4 -> 0.3888888889 | Q14: =IF(P14=0,0,(P14*((LOG(P14))/LOG(2)))) -> -0.5298883642 | T14: =N14 -> 222 | U14: =COUNTIF(L7:L27,T14) -> 9 | V14: =U14/(W4-U11) -> 0.4285714286 | W14: =IF(V14=0,0,(V14*((LOG(V14))/LOG(2)))) -> -0.5238824663 | Y14: =N14 -> 222 | Z14: =COUNTIF(L28:L48,Y14) -> 11 | AA14: =Z14/(AB4-Z11) -> 0.5238095238 | AB14: =IF(AA14=0,0,(AA14*((LOG(AA14))/LOG(2)))) -> -0.4886544688 | AD14: =N14 -> 222 | AE14: =COUNTIF(L49:L69,AD14) -> 8 | AF14: =AE14/(AG4-AE11) -> 0.380952381 | AG14: =IF(AF14=0,0,(AF14*((LOG(AF14))/LOG(2)))) -> -0.5304066372 | AI14: =N14 -> 222 | AJ14: =COUNTIF(L70:L90,AI14) -> 8 | AK14: =AJ14/(AL4-AJ11) -> 0.380952381 | AL14: =IF(AK14=0,0,(AK14*((LOG(AK14))/LOG(2)))) -> -0.5304066372 | AN14: =N14 -> 222 | AO14: =COUNTIF(L91:L111,AN14) -> 8 | AP14: =AO14/(AQ4-AO11) -> 0.380952381 | AQ14: =IF(AP14=0,0,(AP14*((LOG(AP14))/LOG(2)))) -> -0.5304066372 | AS14: =N14 -> 222 | AT14: =COUNTIF(L112:L132,AS14) -> 5 | AU14: =AT14/(AV4-AT11) -> 0.2380952381 | AV14: =IF(AU14=0,0,(AU14*((LOG(AU14))/LOG(2)))) -> -0.49294984
A15: 12 | B15: 1022 | C15: 24 | D15: 1036 | E15: 24 | F15: 1049 | K15: 0 | L15: 122 | P15: =SUM(P7:P14) -> 1 | Q15: =-SUM(Q7:Q14) -> 1.204618158 | V15: =SUM(V7:V14) -> 1 | W15: =-SUM(W7:W14) -> 1.221694908 | AA15: =SUM(AA7:AA14) -> 1 | AB15: =-SUM(AB7:AB14) -> 1.221694908 | AF15: =SUM(AF7:AF14) -> 1 | AG15: =-SUM(AG7:AG14) -> 1.20091028 | AK15: =SUM(AK7:AK14) -> 1 | AL15: =-SUM(AL7:AL14) -> 0.958711883 | AP15: =SUM(AP7:AP14) -> 1 | AQ15: =-SUM(AQ7:AQ14) -> 1.20091028 | AU15: =SUM(AU7:AU14) -> 1 | AV15: =-SUM(AV7:AV14) -> 1.04884126
A16: 12 | B16: 1141 | C16: 13 | D16: 1145 | E16: 24 | F16: 1153 | K16: 0 | L16: 112 | P16: U= | Q16: =Q15/(LOG(Q4)/LOG(2)) -> 0.1726486784 | V16: U1= | W16: =W15/(LOG(W4)/LOG(2)) -> 0.2781435835 | AA16: U2= | AB16: =AB15/(LOG(AB4)/LOG(2)) -> 0.2781435835 | AF16: U3= | AG16: =AG15/(LOG(AG4)/LOG(2)) -> 0.273411542 | AK16: U4= | AL16: =AL15/(LOG(AL4)/LOG(2)) -> 0.2182701728 | AP16: U5= | AQ16: =AQ15/(LOG(AQ4)/LOG(2)) -> 0.273411542 | AU16: U6= | AV16: =AV15/(LOG(AV4)/LOG(2)) -> 0.2387899506
A17: 21 | B17: 1340 | C17: 22 | D17: 1347 | E17: 24 | F17: 1354 | K17: 0 | L17: 222
A18: 21 | B18: 1462 | C18: 22 | D18: 1471 | E18: 24 | F18: 1480 | K18: 0 | L18: 222
A19: 21 | B19: 1587 | C19: 22 | D19: 1592 | E19: 24 | F19: 1600 | K19: 0 | L19: 222 | N19: Total Target Seq
A20: 12 | B20: 1693 | C20: 24 | D20: 1711 | E20: 24 | F20: 1715 | K20: 0 | L20: 122 | N20: =COUNTIF(L7:L132,G3) -> 0 | P20: 21 | Q20: 21 | R20: 21 | S20: 21 | T20: 21 | U20: 21
A21: 12 | B21: 1806 | C21: 24 | D21: 1823 | E21: 24 | F21: 1836 | K21: 0 | L21: 122 | P21: % of reinforcement given in 6 equal intervals based on number of trials
A22: 21 | B22: 1942 | C22: 22 | D22: 1949 | E22: 24 | F22: 1956 | K22: 0 | L22: 222 | P22: %_1 | Q22: %_2 | R22: %_3 | S22: %_4 | T22: %_5 | U22: %_6
A23: 21 | B23: 2064 | C23: 22 | D23: 2071 | E23: 24 | F23: 2079 | K23: 0 | L23: 222 | O23: target sequence | P23: =$G$3 -> 211 | Q23: =$G$3 -> 211 | R23: =$G$3 -> 211 | S23: =$G$3 -> 211 | T23: =$G$3 -> 211 | U23: =$G$3 -> 211
A24: 12 | B24: 2216 | C24: 24 | D24: 2230 | E24: 24 | F24: 2239 | K24: 0 | L24: 122 | O24: total reinforcement | P24: =U11 -> 0 | Q24: =Z11 -> 0 | R24: =AE11 -> 0 | S24: =AJ11 -> 0 | T24: =AO11 -> 0 | U24: =AT11 -> 0
A25: 21 | B25: 2339 | C25: 22 | D25: 2345 | E25: 24 | F25: 2349 | K25: 0 | L25: 222 | O25: % target
A26: 12 | B26: 2440 | C26: 24 | D26: 2457 | E26: 24 | F26: 2464 | K26: 0 | L26: 122 | O26: CCRF
A27: 12 | B27: 2556 | C27: 24 | D27: 2570 | E27: 24 | F27: 2574 | K27: 0 | L27: 122 | O27: % CCRf
A28: 12 | B28: 2693 | C28: 24 | D28: 2722 | E28: 24 | F28: 2729 | K28: 0 | L28: 122 | O28: average response rate | P28: =F27/P20 -> 122.5714286 | Q28: =(F48-F27)/Q20 -> 158.952381 | R28: =(F69-F48)/R20 -> 126.8571429 | S28: =(F90-F69)/S20 -> 185.1904762 | T28: =(F111-F90)/T20 -> 134.2380952 | U28: =(F132-F111)/U20 -> 135.4285714
A29: 21 | B29: 2941 | C29: 22 | D29: 2948 | E29: 24 | F29: 2955 | K29: 0 | L29: 222
A30: 21 | B30: 3060 | C30: 22 | D30: 3066 | E30: 24 | F30: 3076 | K30: 0 | L30: 222
A31: 21 | B31: 3388 | C31: 22 | D31: 3402 | E31: 24 | F31: 3410 | K31: 0 | L31: 222
A32: 12 | B32: 3505 | C32: 24 | D32: 3517 | E32: 24 | F32: 3540 | K32: 0 | L32: 122
A33: 12 | B33: 3643 | C33: 24 | D33: 3650 | E33: 24 | F33: 3656 | K33: 0 | L33: 122
A34: 21 | B34: 3803 | C34: 22 | D34: 3811 | E34: 24 | F34: 3820 | K34: 0 | L34: 222
A35: 12 | B35: 3916 | C35: 24 | D35: 3930 | E35: 24 | F35: 3932 | K35: 0 | L35: 122
A36: 21 | B36: 4036 | C36: 22 | D36: 4042 | E36: 24 | F36: 4048 | K36: 0 | L36: 222
A37: 21 | B37: 4146 | C37: 22 | D37: 4158 | E37: 24 | F37: 4175 | K37: 0 | L37: 222
A38: 21 | B38: 4279 | C38: 22 | D38: 4286 | E38: 24 | F38: 4294 | K38: 0 | L38: 222
A39: 21 | B39: 4723 | C39: 22 | D39: 4731 | E39: 24 | F39: 4748 | K39: 0 | L39: 222
A40: 12 | B40: 4841 | C40: 24 | D40: 4857 | E40: 24 | F40: 4863 | K40: 0 | L40: 122
A41: 21 | B41: 4973 | C41: 22 | D41: 4987 | E41: 24 | F41: 5003 | K41: 0 | L41: 222
A42: 12 | B42: 5097 | C42: 24 | D42: 5105 | E42: 24 | F42: 5110 | K42: 0 | L42: 122
A43: 21 | B43: 5218 | C43: 22 | D43: 5222 | E43: 24 | F43: 5238 | K43: 0 | L43: 222
A44: 12 | B44: 5336 | C44: 24 | D44: 5342 | E44: 24 | F44: 5349 | K44: 0 | L44: 122
A45: 12 | B45: 5504 | C45: 24 | D45: 5521 | E45: 24 | F45: 5540 | K45: 0 | L45: 122
A46: 12 | B46: 5640 | C46: 24 | D46: 5648 | E46: 24 | F46: 5653 | K46: 0 | L46: 122
A47: 21 | B47: 5746 | C47: 11 | D47: 5749 | E47: 22 | F47: 5758 | K47: 0 | L47: 212
A48: 21 | B48: 5891 | C48: 22 | D48: 5902 | E48: 24 | F48: 5912 | K48: 0 | L48: 222
A49: 12 | B49: 6010 | C49: 24 | D49: 6019 | E49: 24 | F49: 6023 | K49: 0 | L49: 122
A50: 12 | B50: 6122 | C50: 24 | D50: 6128 | E50: 24 | F50: 6132 | K50: 0 | L50: 122
A51: 12 | B51: 6232 | C51: 24 | D51: 6239 | E51: 24 | F51: 6242 | K51: 0 | L51: 122
A52: 12 | B52: 6337 | C52: 24 | D52: 6346 | E52: 24 | F52: 6353 | K52: 0 | L52: 122
A53: 12 | B53: 6456 | C53: 24 | D53: 6461 | E53: 24 | F53: 6466 | K53: 0 | L53: 122
A54: 12 | B54: 6560 | C54: 24 | D54: 6575 | E54: 24 | F54: 6605 | K54: 0 | L54: 122
A55: 12 | B55: 6697 | C55: 24 | D55: 6707 | E55: 24 | F55: 6713 | K55: 0 | L55: 122
A56: 12 | B56: 6847 | C56: 24 | D56: 6852 | E56: 24 | F56: 6861 | K56: 0 | L56: 122
A57: 21 | B57: 7044 | C57: 22 | D57: 7056 | E57: 24 | F57: 7068 | K57: 0 | L57: 222
A58: 21 | B58: 7161 | C58: 22 | D58: 7174 | E58: 24 | F58: 7181 | K58: 0 | L58: 222
A59: 21 | B59: 7293 | C59: 22 | D59: 7309 | E59: 24 | F59: 7333 | K59: 0 | L59: 222
A60: 21 | B60: 7439 | C60: 22 | D60: 7443 | E60: 24 | F60: 7447 | K60: 0 | L60: 222
A61: 12 | B61: 7539 | C61: 13 | D61: 7546 | E61: 24 | F61: 7557 | K61: 0 | L61: 112
A62: 12 | B62: 7691 | C62: 24 | D62: 7705 | E62: 24 | F62: 7712 | K62: 0 | L62: 122
A63: 12 | B63: 7805 | C63: 24 | D63: 7814 | E63: 24 | F63: 7822 | K63: 0 | L63: 122
A64: 21 | B64: 7943 | C64: 22 | D64: 7983 | E64: 24 | F64: 7992 | K64: 0 | L64: 222
A65: 21 | B65: 8090 | C65: 22 | D65: 8102 | E65: 24 | F65: 8112 | K65: 0 | L65: 222
A66: 12 | B66: 8204 | C66: 24 | D66: 8213 | E66: 24 | F66: 8218 | K66: 0 | L66: 122
A67: 12 | B67: 8321 | C67: 24 | D67: 8328 | E67: 24 | F67: 8335 | K67: 0 | L67: 122
A68: 21 | B68: 8442 | C68: 22 | D68: 8448 | E68: 24 | F68: 8456 | K68: 0 | L68: 222
A69: 21 | B69: 8559 | C69: 22 | D69: 8566 | E69: 24 | F69: 8576 | K69: 0 | L69: 222
A70: 21 | B70: 8675 | C70: 22 | D70: 8684 | E70: 24 | F70: 8689 | K70: 0 | L70: 222
A71: 12 | B71: 8789 | C71: 24 | D71: 8795 | E71: 24 | F71: 8800 | K71: 0 | L71: 122
A72: 21 | B72: 8904 | C72: 22 | D72: 8911 | E72: 24 | F72: 8937 | K72: 0 | L72: 222
A73: 12 | B73: 9032 | C73: 24 | D73: 9039 | E73: 24 | F73: 9050 | K73: 0 | L73: 122
A74: 12 | B74: 9316 | C74: 24 | D74: 9343 | E74: 24 | F74: 9356 | K74: 0 | L74: 122
A75: 21 | B75: 9523 | C75: 22 | D75: 9525 | E75: 24 | F75: 9529 | K75: 0 | L75: 222
A76: 12 | B76: 9622 | C76: 24 | D76: 9635 | E76: 24 | F76: 9644 | K76: 0 | L76: 122
A77: 21 | B77: 9748 | C77: 22 | D77: 9755 | E77: 24 | F77: 9766 | K77: 0 | L77: 222
A78: 12 | B78: 10192 | C78: 24 | D78: 10200 | E78: 24 | F78: 10210 | K78: 0 | L78: 122
A79: 12 | B79: 10311 | C79: 24 | D79: 10318 | E79: 24 | F79: 10328 | K79: 0 | L79: 122
A80: 21 | B80: 10435 | C80: 22 | D80: 10449 | E80: 24 | F80: 10455 | K80: 0 | L80: 222
A81: 12 | B81: 10650 | C81: 24 | D81: 10680 | E81: 24 | F81: 10687 | K81: 0 | L81: 122
A82: 12 | B82: 10781 | C82: 24 | D82: 10786 | E82: 24 | F82: 10792 | K82: 0 | L82: 122
A83: 12 | B83: 11168 | C83: 24 | D83: 11186 | E83: 24 | F83: 11205 | K83: 0 | L83: 122
A84: 21 | B84: 11589 | C84: 22 | D84: 11602 | E84: 24 | F84: 11608 | K84: 0 | L84: 222
A85: 21 | B85: 11829 | C85: 22 | D85: 11837 | E85: 24 | F85: 11848 | K85: 0 | L85: 222
A86: 12 | B86: 11942 | C86: 24 | D86: 11948 | E86: 24 | F86: 11957 | K86: 0 | L86: 122
A87: 12 | B87: 12088 | C87: 24 | D87: 12113 | E87: 24 | F87: 12133 | K87: 0 | L87: 122
A88: 12 | B88: 12228 | C88: 24 | D88: 12230 | E88: 24 | F88: 12234 | K88: 0 | L88: 122
A89: 21 | B89: 12342 | C89: 22 | D89: 12348 | E89: 24 | F89: 12354 | K89: 0 | L89: 222
A90: 12 | B90: 12446 | C90: 24 | D90: 12456 | E90: 24 | F90: 12465 | K90: 0 | L90: 122
A91: 12 | B91: 12564 | C91: 24 | D91: 12569 | E91: 24 | F91: 12574 | K91: 0 | L91: 122
A92: 21 | B92: 12675 | C92: 22 | D92: 12681 | E92: 24 | F92: 12688 | K92: 0 | L92: 222
A93: 12 | B93: 12884 | C93: 24 | D93: 12918 | E93: 24 | F93: 12925 | K93: 0 | L93: 122
A94: 12 | B94: 13020 | C94: 24 | D94: 13026 | E94: 24 | F94: 13029 | K94: 0 | L94: 122
A95: 21 | B95: 13130 | C95: 22 | D95: 13142 | E95: 24 | F95: 13149 | K95: 0 | L95: 222
A96: 12 | B96: 13241 | C96: 24 | D96: 13251 | E96: 24 | F96: 13263 | K96: 0 | L96: 122
A97: 12 | B97: 13356 | C97: 24 | D97: 13366 | E97: 24 | F97: 13372 | K97: 0 | L97: 122
A98: 12 | B98: 13464 | C98: 24 | D98: 13472 | E98: 24 | F98: 13475 | K98: 0 | L98: 122
A99: 21 | B99: 13616 | C99: 22 | D99: 13628 | E99: 24 | F99: 13637 | K99: 0 | L99: 222
A100: 21 | B100: 13738 | C100: 22 | D100: 13748 | E100: 24 | F100: 13770 | K100: 0 | L100: 222
A101: 12 | B101: 13866 | C101: 24 | D101: 13877 | E101: 24 | F101: 13879 | K101: 0 | L101: 122
A102: 21 | B102: 13985 | C102: 22 | D102: 13992 | E102: 24 | F102: 13999 | K102: 0 | L102: 222
A103: 12 | B103: 14093 | C103: 24 | D103: 14106 | E103: 24 | F103: 14115 | K103: 0 | L103: 122
A104: 21 | B104: 14220 | C104: 22 | D104: 14227 | E104: 24 | F104: 14233 | K104: 0 | L104: 222
A105: 21 | B105: 14340 | C105: 22 | D105: 14347 | E105: 24 | F105: 14353 | K105: 0 | L105: 222
A106: 12 | B106: 14446 | C106: 24 | D106: 14451 | E106: 24 | F106: 14457 | K106: 0 | L106: 122
A107: 12 | B107: 14697 | C107: 24 | D107: 14718 | E107: 24 | F107: 14732 | K107: 0 | L107: 122
A108: 21 | B108: 14841 | C108: 22 | D108: 14853 | E108: 24 | F108: 14869 | K108: 0 | L108: 222
A109: 12 | B109: 15031 | C109: 13 | D109: 15043 | E109: 24 | F109: 15057 | K109: 0 | L109: 112
A110: 12 | B110: 15154 | C110: 24 | D110: 15160 | E110: 24 | F110: 15173 | K110: 0 | L110: 122
A111: 12 | B111: 15266 | C111: 24 | D111: 15275 | E111: 24 | F111: 15284 | K111: 0 | L111: 122
A112: 21 | B112: 15393 | C112: 22 | D112: 15399 | E112: 24 | F112: 15406 | K112: 0 | L112: 222
A113: 21 | B113: 15593 | C113: 22 | D113: 15615 | E113: 24 | F113: 15627 | K113: 0 | L113: 222
A114: 12 | B114: 15720 | C114: 24 | D114: 15733 | E114: 24 | F114: 15749 | K114: 0 | L114: 122
A115: 12 | B115: 15846 | C115: 24 | D115: 15851 | E115: 24 | F115: 15861 | K115: 0 | L115: 122
A116: 12 | B116: 15958 | C116: 24 | D116: 15965 | E116: 24 | F116: 15969 | K116: 0 | L116: 122
A117: 12 | B117: 16063 | C117: 24 | D117: 16070 | E117: 24 | F117: 16079 | K117: 0 | L117: 122
A118: 12 | B118: 16180 | C118: 24 | D118: 16186 | E118: 24 | F118: 16188 | K118: 0 | L118: 122
A119: 12 | B119: 16280 | C119: 24 | D119: 16287 | E119: 24 | F119: 16291 | K119: 0 | L119: 122
A120: 12 | B120: 16391 | C120: 24 | D120: 16397 | E120: 24 | F120: 16426 | K120: 0 | L120: 122
A121: 21 | B121: 16623 | C121: 22 | D121: 16640 | E121: 24 | F121: 16647 | K121: 0 | L121: 222
A122: 12 | B122: 16886 | C122: 13 | D122: 16897 | E122: 24 | F122: 16910 | K122: 0 | L122: 112
A123: 12 | B123: 17003 | C123: 24 | D123: 17012 | E123: 24 | F123: 17020 | K123: 0 | L123: 122
A124: 12 | B124: 17130 | C124: 24 | D124: 17161 | E124: 24 | F124: 17174 | K124: 0 | L124: 122
A125: 12 | B125: 17273 | C125: 24 | D125: 17280 | E125: 24 | F125: 17287 | K125: 0 | L125: 122
A126: 12 | B126: 17386 | C126: 24 | D126: 17397 | E126: 24 | F126: 17401 | K126: 0 | L126: 122
A127: 12 | B127: 17503 | C127: 24 | D127: 17507 | E127: 24 | F127: 17513 | K127: 0 | L127: 122
A128: 12 | B128: 17609 | C128: 24 | D128: 17625 | E128: 24 | F128: 17633 | K128: 0 | L128: 122
A129: 12 | B129: 17747 | C129: 24 | D129: 17787 | E129: 24 | F129: 17799 | K129: 0 | L129: 122
A130: 21 | B130: 17891 | C130: 22 | D130: 17897 | E130: 24 | F130: 17907 | K130: 0 | L130: 222
A131: 12 | B131: 18003 | C131: 24 | D131: 18010 | E131: 24 | F131: 18014 | K131: 0 | L131: 122
A132: 21 | B132: 18112 | C132: 22 | D132: 18120 | E132: 24 | F132: 18128 | K132: 0 | L132: 222

Sheet !M118B30.Gus
A1: Report for:!M118B30.Gus
A2: Date: | B2: <date>
A3: Hen: | B3: <hen> | F3: Correct Sequence | G3: =Start!J2 -> 211 | P3: Total Sequences in Data | Q3: =4994-COUNTBLANK(L7:L5000) -> 132 | V3: Total Sequences in Block Data | W3: =COUNTA(L7:L28) -> 22 | AA3: Total Sequences in Block Data | AB3: =COUNTA(L29:L50) -> 22 | AF3: Total Sequences in Block Data | AG3: =COUNTA(L51:L72) -> 22 | AK3: Total Sequences in Block Data | AL3: =COUNTA(L73:L94) -> 22 | AP3: Total Sequences in Block Data | AQ3: =COUNTA(L95:L116) -> 22 | AU3: Total Sequences in Block Data | AV3: =COUNTA(L117:L138) -> 22
P4: Total Sequences in Summary | Q4: =SUM(O7:O14) -> 132 | V4: Total Sequences in Block Summary | W4: =SUM(U7:U14) -> 22 | AA4: Total Sequences in Block Summary | AB4: =SUM(Z7:Z14) -> 22 | AF4: Total Sequences in Block Summary | AG4: =SUM(AE7:AE14) -> 22 | AK4: Total Sequences in Block Summary | AL4: =SUM(AJ7:AJ14) -> 22 | AP4: Total Sequences in Block Summary | AQ4: =SUM(AO7:AO14) -> 22 | AU4: Total Sequences in Block Summary | AV4: =SUM(AT7:AT14) -> 22
T5: Block 1 | Y5: Block 2 | AD5: Block 3 | AI5: Block 4 | AN5: Block 5 | AS5: Block 6
A6: Sequence Component 1 | B6: Time 1 | C6: Sequence Component 2 | D6: Time 2 | E6: Sequence Component 3 | F6: Time 3 | G6: Sequence Component 4 | H6: Time 4 | I6: Sequence Component 5 | J6: Time 5 | K6: Correct? 0=No 1=Yes | L6: Sequence | N6: Frequency | P6: Relative Frequency | Q6: Variability | T6: Frequency | V6: Relative Frequency | W6: Variability | Y6: Frequency | AA6: Relative Frequency | AB6: Variability | AD6: Frequency | AF6: Relative Frequency | AG6: Variability | AI6: Frequency | AK6: Relative Frequency | AL6: Variability | AN6: Frequency | AP6: Relative Frequency | AQ6: Variability | AS6: Frequency | AU6: Relative Frequency | AV6: Variability
A7: 21 | B7: 84 | C7: 22 | D7: 87 | E7: 24 | F7: 94 | K7: 0 | L7: 222 | N7: 111 | O7: =COUNTIF($L$7:$L$500,N7) -> 0 | P7: =O7/$Q$4 -> 0 | Q7: =IF(P7=0,0,(P7*((LOG(P7))/LOG(2)))) -> 0 | T7: =N7 -> 111 | U7: =COUNTIF(L7:L28,T7) -> 0 | V7: =U7/(W4-U11) -> 0 | W7: =IF(V7=0,0,(V7*((LOG(V7))/LOG(2)))) -> 0 | Y7: =N7 -> 111 | Z7: =COUNTIF(L29:L50,Y7) -> 0 | AA7: =Z7/(AB4-Z11) -> 0 | AB7: =IF(AA7=0,0,(AA7*((LOG(AA7))/LOG(2)))) -> 0 | AD7: =N7 -> 111 | AE7: =COUNTIF(L51:L72,AD7) -> 0 | AF7: =AE7/(AG4-AE11) -> 0 | AG7: =IF(AF7=0,0,(AF7*((LOG(AF7))/LOG(2)))) -> 0 | AI7: =N7 -> 111 | AJ7: =COUNTIF(L73:L94,AI7) -> 0 | AK7: =AJ7/(AL4-AJ11) -> 0 | AL7: =IF(AK7=0,0,(AK7*((LOG(AK7))/LOG(2)))) -> 0 | AN7: =N7 -> 111 | AO7: =COUNTIF(L95:L116,AN7) -> 0 | AP7: =AO7/(AQ4-AO11) -> 0 | AQ7: =IF(AP7=0,0,(AP7*((LOG(AP7))/LOG(2)))) -> 0 | AS7: =N7 -> 111 | AT7: =COUNTIF(L117:L138,AS7) -> 0 | AU7: =AT7/(AV4-AT11) -> 0 | AV7: =IF(AU7=0,0,(AU7*((LOG(AU7))/LOG(2)))) -> 0
A8: 21 | B8: 336 | C8: 22 | D8: 343 | E8: 24 | F8: 350 | K8: 0 | L8: 222 | N8: 112 | O8: =COUNTIF($L$7:$L$500,N8) -> 2 | P8: =O8/$Q$4 -> 0.01515151515 | Q8: =IF(P8=0,0,(P8*((LOG(P8))/LOG(2)))) -> -0.09158172908 | T8: =N8 -> 112 | U8: =COUNTIF(L7:L28,T8) -> 1 | V8: =U8/(W4-U11) -> 0.04545454545 | W8: =IF(V8=0,0,(V8*((LOG(V8))/LOG(2)))) -> -0.2027014372 | Y8: =N8 -> 112 | Z8: =COUNTIF(L29:L50,Y8) -> 0 | AA8: =Z8/(AB4-Z11) -> 0 | AB8: =IF(AA8=0,0,(AA8*((LOG(AA8))/LOG(2)))) -> 0 | AD8: =N8 -> 112 | AE8: =COUNTIF(L51:L72,AD8) -> 0 | AF8: =AE8/(AG4-AE11) -> 0 | AG8: =IF(AF8=0,0,(AF8*((LOG(AF8))/LOG(2)))) -> 0 | AI8: =N8 -> 112 | AJ8: =COUNTIF(L73:L94,AI8) -> 0 | AK8: =AJ8/(AL4-AJ11) -> 0 | AL8: =IF(AK8=0,0,(AK8*((LOG(AK8))/LOG(2)))) -> 0 | AN8: =N8 -> 112 | AO8: =COUNTIF(L95:L116,AN8) -> 0 | AP8: =AO8/(AQ4-AO11) -> 0 | AQ8: =IF(AP8=0,0,(AP8*((LOG(AP8))/LOG(2)))) -> 0 | AS8: =N8 -> 112 | AT8: =COUNTIF(L117:L138,AS8) -> 1 | AU8: =AT8/(AV4-AT11) -> 0.04545454545 | AV8: =IF(AU8=0,0,(AU8*((LOG(AU8))/LOG(2)))) -> -0.2027014372
A9: 21 | B9: 822 | C9: 22 | D9: 832 | E9: 24 | F9: 843 | K9: 0 | L9: 222 | N9: 121 | O9: =COUNTIF($L$7:$L$500,N9) -> 0 | P9: =O9/$Q$4 -> 0 | Q9: =IF(P9=0,0,(P9*((LOG(P9))/LOG(2)))) -> 0 | T9: =N9 -> 121 | U9: =COUNTIF(L7:L28,T9) -> 0 | V9: =U9/(W4-U11) -> 0 | W9: =IF(V9=0,0,(V9*((LOG(V9))/LOG(2)))) -> 0 | Y9: =N9 -> 121 | Z9: =COUNTIF(L29:L50,Y9) -> 0 | AA9: =Z9/(AB4-Z11) -> 0 | AB9: =IF(AA9=0,0,(AA9*((LOG(AA9))/LOG(2)))) -> 0 | AD9: =N9 -> 121 | AE9: =COUNTIF(L51:L72,AD9) -> 0 | AF9: =AE9/(AG4-AE11) -> 0 | AG9: =IF(AF9=0,0,(AF9*((LOG(AF9))/LOG(2)))) -> 0 | AI9: =N9 -> 121 | AJ9: =COUNTIF(L73:L94,AI9) -> 0 | AK9: =AJ9/(AL4-AJ11) -> 0 | AL9: =IF(AK9=0,0,(AK9*((LOG(AK9))/LOG(2)))) -> 0 | AN9: =N9 -> 121 | AO9: =COUNTIF(L95:L116,AN9) -> 0 | AP9: =AO9/(AQ4-AO11) -> 0 | AQ9: =IF(AP9=0,0,(AP9*((LOG(AP9))/LOG(2)))) -> 0 | AS9: =N9 -> 121 | AT9: =COUNTIF(L117:L138,AS9) -> 0 | AU9: =AT9/(AV4-AT11) -> 0 | AV9: =IF(AU9=0,0,(AU9*((LOG(AU9))/LOG(2)))) -> 0
A10: 21 | B10: 937 | C10: 22 | D10: 941 | E10: 24 | F10: 949 | K10: 0 | L10: 222 | N10: 122 | O10: =COUNTIF($L$7:$L$500,N10) -> 77 | P10: =O10/$Q$4 -> 0.5833333333 | Q10: =IF(P10=0,0,(P10*((LOG(P10))/LOG(2)))) -> -0.4536044209 | T10: =N10 -> 122 | U10: =COUNTIF(L7:L28,T10) -> 10 | V10: =U10/(W4-U11) -> 0.4545454545 | W10: =IF(V10=0,0,(V10*((LOG(V10))/LOG(2)))) -> -0.5170470562 | Y10: =N10 -> 122 | Z10: =COUNTIF(L29:L50,Y10) -> 12 | AA10: =Z10/(AB4-Z11) -> 0.5454545455 | AB10: =IF(AA10=0,0,(AA10*((LOG(AA10))/LOG(2)))) -> -0.4769831552 | AD10: =N10 -> 122 | AE10: =COUNTIF(L51:L72,AD10) -> 14 | AF10: =AE10/(AG4-AE11) -> 0.6363636364 | AG10: =IF(AF10=0,0,(AF10*((LOG(AF10))/LOG(2)))) -> -0.4149578978 | AI10: =N10 -> 122 | AJ10: =COUNTIF(L73:L94,AI10) -> 12 | AK10: =AJ10/(AL4-AJ11) -> 0.5454545455 | AL10: =IF(AK10=0,0,(AK10*((LOG(AK10))/LOG(2)))) -> -0.4769831552 | AN10: =N10 -> 122 | AO10: =COUNTIF(L95:L116,AN10) -> 15 | AP10: =AO10/(AQ4-AO11) -> 0.6818181818 | AQ10: =IF(AP10=0,0,(AP10*((LOG(AP10))/LOG(2)))) -> -0.3767325157 | AS10: =N10 -> 122 | AT10: =COUNTIF(L117:L138,AS10) -> 14 | AU10: =AT10/(AV4-AT11) -> 0.6363636364 | AV10: =IF(AU10=0,0,(AU10*((LOG(AU10))/LOG(2)))) -> -0.4149578978
A11: 12 | B11: 1042 | C11: 24 | D11: 1058 | E11: 24 | F11: 1065 | K11: 0 | L11: 122 | N11: 211 | O11: =COUNTIF($L$7:$L$500,N11) -> 0 | P11: =O11/$Q$4 -> 0 | Q11: =IF(P11=0,0,(P11*((LOG(P11))/LOG(2)))) -> 0 | T11: =N11 -> 211 | U11: =COUNTIF(L7:L28,T11) -> 0 | Y11: =N11 -> 211 | Z11: =COUNTIF(L29:L50,Y11) -> 0 | AD11: =N11 -> 211 | AE11: =COUNTIF(L51:L72,AD11) -> 0 | AI11: =N11 -> 211 | AJ11: =COUNTIF(L73:L94,AI11) -> 0 | AN11: =N11 -> 211 | AO11: =COUNTIF(L95:L116,AN11) -> 0 | AS11: =N11 -> 211 | AT11: =COUNTIF(L117:L138,AS11) -> 0
A12: 12 | B12: 1158 | C12: 24 | D12: 1168 | E12: 24 | F12: 1174 | K12: 0 | L12: 122 | N12: 212 | O12: =COUNTIF($L$7:$L$500,N12) -> 1 | P12: =O12/$Q$4 -> 0.007575757576 | Q12: =IF(P12=0,0,(P12*((LOG(P12))/LOG(2)))) -> -0.05336662212 | T12: =N12 -> 212 | U12: =COUNTIF(L7:L28,T12) -> 0 | V12: =U12/(W4-U11) -> 0 | W12: =IF(V12=0,0,(V12*((LOG(V12))/LOG(2)))) -> 0 | Y12: =N12 -> 212 | Z12: =COUNTIF(L29:L50,Y12) -> 0 | AA12: =Z12/(AB4-Z11) -> 0 | AB12: =IF(AA12=0,0,(AA12*((LOG(AA12))/LOG(2)))) -> 0 | AD12: =N12 -> 212 | AE12: =COUNTIF(L51:L72,AD12) -> 0 | AF12: =AE12/(AG4-AE11) -> 0 | AG12: =IF(AF12=0,0,(AF12*((LOG(AF12))/LOG(2)))) -> 0 | AI12: =N12 -> 212 | AJ12: =COUNTIF(L73:L94,AI12) -> 0 | AK12: =AJ12/(AL4-AJ11) -> 0 | AL12: =IF(AK12=0,0,(AK12*((LOG(AK12))/LOG(2)))) -> 0 | AN12: =N12 -> 212 | AO12: =COUNTIF(L95:L116,AN12) -> 1 | AP12: =AO12/(AQ4-AO11) -> 0.04545454545 | AQ12: =IF(AP12=0,0,(AP12*((LOG(AP12))/LOG(2)))) -> -0.2027014372 | AS12: =N12 -> 212 | AT12: =COUNTIF(L117:L138,AS12) -> 0 | AU12: =AT12/(AV4-AT11) -> 0 | AV12: =IF(AU12=0,0,(AU12*((LOG(AU12))/LOG(2)))) -> 0
A13: 21 | B13: 1278 | C13: 22 | D13: 1284 | E13: 24 | F13: 1292 | K13: 0 | L13: 222 | N13: 221 | O13: =COUNTIF($L$7:$L$500,N13) -> 0 | P13: =O13/$Q$4 -> 0 | Q13: =IF(P13=0,0,(P13*((LOG(P13))/LOG(2)))) -> 0 | T13: =N13 -> 221 | U13: =COUNTIF(L7:L28,T13) -> 0 | V13: =U13/(W4-U11) -> 0 | W13: =IF(V13=0,0,(V13*((LOG(V13))/LOG(2)))) -> 0 | Y13: =N13 -> 221 | Z13: =COUNTIF(L29:L50,Y13) -> 0 | AA13: =Z13/(AB4-Z11) -> 0 | AB13: =IF(AA13=0,0,(AA13*((LOG(AA13))/LOG(2)))) -> 0 | AD13: =N13 -> 221 | AE13: =COUNTIF(L51:L72,AD13) -> 0 | AF13: =AE13/(AG4-AE11) -> 0 | AG13: =IF(AF13=0,0,(AF13*((LOG(AF13))/LOG(2)))) -> 0 | AI13: =N13 -> 221 | AJ13: =COUNTIF(L73:L94,AI13) -> 0 | AK13: =AJ13/(AL4-AJ11) -> 0 | AL13: =IF(AK13=0,0,(AK13*((LOG(AK13))/LOG(2)))) -> 0 | AN13: =N13 -> 221 | AO13: =COUNTIF(L95:L116,AN13) -> 0 | AP13: =AO13/(AQ4-AO11) -> 0 | AQ13: =IF(AP13=0,0,(AP13*((LOG(AP13))/LOG(2)))) -> 0 | AS13: =N13 -> 221 | AT13: =COUNTIF(L117:L138,AS13) -> 0 | AU13: =AT13/(AV4-AT11) -> 0 | AV13: =IF(AU13=0,0,(AU13*((LOG(AU13))/LOG(2)))) -> 0
A14: 21 | B14: 1869 | C14: 22 | D14: 1877 | E14: 24 | F14: 1885 | K14: 0 | L14: 222 | N14: 222 | O14: =COUNTIF($L$7:$L$500,N14) -> 52 | P14: =O14/$Q$4 -> 0.3939393939 | Q14: =IF(P14=0,0,(P14*((LOG(P14))/LOG(2)))) -> -0.5294365823 | T14: =N14 -> 222 | U14: =COUNTIF(L7:L28,T14) -> 11 | V14: =U14/(W4-U11) -> 0.5 | W14: =IF(V14=0,0,(V14*((LOG(V14))/LOG(2)))) -> -0.5 | Y14: =N14 -> 222 | Z14: =COUNTIF(L29:L50,Y14) -> 10 | AA14: =Z14/(AB4-Z11) -> 0.4545454545 | AB14: =IF(AA14=0,0,(AA14*((LOG(AA14))/LOG(2)))) -> -0.5170470562 | AD14: =N14 -> 222 | AE14: =COUNTIF(L51:L72,AD14) -> 8 | AF14: =AE14/(AG4-AE11) -> 0.3636363636 | AG14: =IF(AF14=0,0,(AF14*((LOG(AF14))/LOG(2)))) -> -0.5307024068 | AI14: =N14 -> 222 | AJ14: =COUNTIF(L73:L94,AI14) -> 10 | AK14: =AJ14/(AL4-AJ11) -> 0.4545454545 | AL14: =IF(AK14=0,0,(AK14*((LOG(AK14))/LOG(2)))) -> -0.5170470562 | AN14: =N14 -> 222 | AO14: =COUNTIF(L95:L116,AN14) -> 6 | AP14: =AO14/(AQ4-AO11) -> 0.2727272727 | AQ14: =IF(AP14=0,0,(AP14*((LOG(AP14))/LOG(2)))) -> -0.5112188503 | AS14: =N14 -> 222 | AT14: =COUNTIF(L117:L138,AS14) -> 7 | AU14: =AT14/(AV4-AT11) -> 0.3181818182 | AV14: =IF(AU14=0,0,(AU14*((LOG(AU14))/LOG(2)))) -> -0.5256607671
A15: 21 | B15: 1987 | C15: 22 | D15: 1992 | E15: 24 | F15: 1999 | K15: 0 | L15: 222 | P15: =SUM(P7:P14) -> 1 | Q15: =-SUM(Q7:Q14) -> 1.127989354 | V15: =SUM(V7:V14) -> 1 | W15: =-SUM(W7:W14) -> 1.219748493 | AA15: =SUM(AA7:AA14) -> 1 | AB15: =-SUM(AB7:AB14) -> 0.9940302115 | AF15: =SUM(AF7:AF14) -> 1 | AG15: =-SUM(AG7:AG14) -> 0.9456603046 | AK15: =SUM(AK7:AK14) -> 1 | AL15: =-SUM(AL7:AL14) -> 0.9940302115 | AP15: =SUM(AP7:AP14) -> 1 | AQ15: =-SUM(AQ7:AQ14) -> 1.090652803 | AU15: =SUM(AU7:AU14) -> 1 | AV15: =-SUM(AV7:AV14) -> 1.143320102
A16: 12 | B16: 2094 | C16: 24 | D16: 2107 | E16: 24 | F16: 2116 | K16: 0 | L16: 122 | P16: U= | Q16: =Q15/(LOG(Q4)/LOG(2)) -> 0.1601258157 | V16: U1= | W16: =W15/(LOG(W4)/LOG(2)) -> 0.2735210668 | AA16: U2= | AB16: =AB15/(LOG(AB4)/LOG(2)) -> 0.222905136 | AF16: U3= | AG16: =AG15/(LOG(AG4)/LOG(2)) -> 0.2120584831 | AK16: U4= | AL16: =AL15/(LOG(AL4)/LOG(2)) -> 0.222905136 | AP16: U5= | AQ16: =AQ15/(LOG(AQ4)/LOG(2)) -> 0.2445721555 | AU16: U6= | AV16: =AV15/(LOG(AV4)/LOG(2)) -> 0.256382472
A17: 12 | B17: 2210 | C17: 24 | D17: 2222 | E17: 24 | F17: 2230 | K17: 0 | L17: 122
A18: 12 | B18: 2328 | C18: 24 | D18: 2334 | E18: 24 | F18: 2340 | K18: 0 | L18: 122
A19: 12 | B19: 2438 | C19: 24 | D19: 2449 | E19: 24 | F19: 2457 | K19: 0 | L19: 122 | N19: Total Target Seq
A20: 12 | B20: 2548 | C20: 13 | D20: 2555 | E20: 24 | F20: 2567 | K20: 0 | L20: 112 | N20: =COUNTIF(L7:L138,G3) -> 0 | P20: 22 | Q20: 22 | R20: 22 | S20: 22 | T20: 22 | U20: 22
A21: 21 | B21: 2668 | C21: 22 | D21: 2676 | E21: 24 | F21: 2682 | K21: 0 | L21: 222 | P21: % of reinforcement given in 6 equal intervals based on number of trials
A22: 12 | B22: 2781 | C22: 24 | D22: 2790 | E22: 24 | F22: 2798 | K22: 0 | L22: 122 | P22: %_1 | Q22: %_2 | R22: %_3 | S22: %_4 | T22: %_5 | U22: %_6
A23: 21 | B23: 3074 | C23: 22 | D23: 3088 | E23: 24 | F23: 3101 | K23: 0 | L23: 222 | O23: target sequence | P23: =$G$3 -> 211 | Q23: =$G$3 -> 211 | R23: =$G$3 -> 211 | S23: =$G$3 -> 211 | T23: =$G$3 -> 211 | U23: =$G$3 -> 211
A24: 21 | B24: 3208 | C24: 22 | D24: 3232 | E24: 24 | F24: 3240 | K24: 0 | L24: 222 | O24: total reinforcement | P24: =U11 -> 0 | Q24: =Z11 -> 0 | R24: =AE11 -> 0 | S24: =AJ11 -> 0 | T24: =AO11 -> 0 | U24: =AT11 -> 0
A25: 12 | B25: 3341 | C25: 24 | D25: 3349 | E25: 24 | F25: 3356 | K25: 0 | L25: 122 | O25: % target
A26: 12 | B26: 3451 | C26: 24 | D26: 3458 | E26: 24 | F26: 3466 | K26: 0 | L26: 122 | O26: CCRF
A27: 21 | B27: 4081 | C27: 22 | D27: 4087 | E27: 24 | F27: 4093 | K27: 0 | L27: 222 | O27: % CCRf
A28: 12 | B28: 4188 | C28: 24 | D28: 4195 | E28: 24 | F28: 4206 | K28: 0 | L28: 122 | O28: average response rate | P28: =F28/P20 -> 191.1818182 | Q28: =(F50-F28)/Q20 -> 223.1818182 | R28: =(F72-F50)/R20 -> 217.9090909 | S28: =(F94-F72)/S20 -> 177.1818182 | T28: =(F116-F94)/T20 -> 135.3181818 | U28: =(F138-F116)/U20 -> 142.8181818
A29: 21 | B29: 4774 | C29: 22 | D29: 4783 | E29: 24 | F29: 4799 | K29: 0 | L29: 222
A30: 21 | B30: 5311 | C30: 22 | D30: 5318 | E30: 24 | F30: 5325 | K30: 0 | L30: 222
A31: 21 | B31: 5443 | C31: 22 | D31: 5452 | E31: 24 | F31: 5459 | K31: 0 | L31: 222
A32: 12 | B32: 5554 | C32: 24 | D32: 5561 | E32: 24 | F32: 5565 | K32: 0 | L32: 122
A33: 12 | B33: 5665 | C33: 24 | D33: 5675 | E33: 24 | F33: 5682 | K33: 0 | L33: 122
A34: 12 | B34: 5780 | C34: 24 | D34: 5785 | E34: 24 | F34: 5793 | K34: 0 | L34: 122
A35: 12 | B35: 5889 | C35: 24 | D35: 5896 | E35: 24 | F35: 5902 | K35: 0 | L35: 122
A36: 12 | B36: 5998 | C36: 24 | D36: 6004 | E36: 24 | F36: 6011 | K36: 0 | L36: 122
A37: 21 | B37: 6493 | C37: 22 | D37: 6497 | E37: 24 | F37: 6502 | K37: 0 | L37: 222
A38: 21 | B38: 6608 | C38: 22 | D38: 6612 | E38: 24 | F38: 6618 | K38: 0 | L38: 222
A39: 12 | B39: 6716 | C39: 24 | D39: 6723 | E39: 24 | F39: 6730 | K39: 0 | L39: 122
A40: 12 | B40: 6826 | C40: 24 | D40: 6830 | E40: 24 | F40: 6837 | K40: 0 | L40: 122
A41: 21 | B41: 6938 | C41: 22 | D41: 6943 | E41: 24 | F41: 6950 | K41: 0 | L41: 222
A42: 21 | B42: 7613 | C42: 22 | D42: 7619 | E42: 24 | F42: 7638 | K42: 0 | L42: 222
A43: 12 | B43: 7734 | C43: 24 | D43: 7740 | E43: 24 | F43: 7748 | K43: 0 | L43: 122
A44: 12 | B44: 7847 | C44: 24 | D44: 7853 | E44: 24 | F44: 7865 | K44: 0 | L44: 122
A45: 12 | B45: 7965 | C45: 24 | D45: 7972 | E45: 24 | F45: 7982 | K45: 0 | L45: 122
A46: 12 | B46: 8475 | C46: 24 | D46: 8491 | E46: 24 | F46: 8496 | K46: 0 | L46: 122
A47: 21 | B47: 8754 | C47: 22 | D47: 8761 | E47: 24 | F47: 8779 | K47: 0 | L47: 222
A48: 12 | B48: 8875 | C48: 24 | D48: 8884 | E48: 24 | F48: 8889 | K48: 0 | L48: 122
A49: 21 | B49: 8994 | C49: 22 | D49: 8999 | E49: 24 | F49: 9002 | K49: 0 | L49: 222
A50: 21 | B50: 9109 | C50: 22 | D50: 9111 | E50: 24 | F50: 9116 | K50: 0 | L50: 222
A51: 21 | B51: 9219 | C51: 22 | D51: 9231 | E51: 24 | F51: 9237 | K51: 0 | L51: 222
A52: 21 | B52: 9337 | C52: 22 | D52: 9344 | E52: 24 | F52: 9350 | K52: 0 | L52: 222
A53: 21 | B53: 9455 | C53: 22 | D53: 9465 | E53: 24 | F53: 9480 | K53: 0 | L53: 222
A54: 12 | B54: 9576 | C54: 24 | D54: 9582 | E54: 24 | F54: 9586 | K54: 0 | L54: 122
A55: 12 | B55: 9870 | C55: 24 | D55: 9889 | E55: 24 | F55: 9898 | K55: 0 | L55: 122
A56: 21 | B56: 10431 | C56: 22 | D56: 10440 | E56: 24 | F56: 10456 | K56: 0 | L56: 222
A57: 12 | B57: 11014 | C57: 24 | D57: 11023 | E57: 24 | F57: 11032 | K57: 0 | L57: 122
A58: 12 | B58: 11129 | C58: 24 | D58: 11134 | E58: 24 | F58: 11138 | K58: 0 | L58: 122
A59: 12 | B59: 11240 | C59: 24 | D59: 11242 | E59: 24 | F59: 11248 | K59: 0 | L59: 122
A60: 12 | B60: 11734 | C60: 24 | D60: 11756 | E60: 24 | F60: 11771 | K60: 0 | L60: 122
A61: 12 | B61: 11863 | C61: 24 | D61: 11879 | E61: 24 | F61: 11884 | K61: 0 | L61: 122
A62: 21 | B62: 11990 | C62: 22 | D62: 12006 | E62: 24 | F62: 12012 | K62: 0 | L62: 222
A63: 12 | B63: 12109 | C63: 24 | D63: 12114 | E63: 24 | F63: 12131 | K63: 0 | L63: 122
A64: 12 | B64: 12231 | C64: 24 | D64: 12242 | E64: 24 | F64: 12248 | K64: 0 | L64: 122
A65: 12 | B65: 12343 | C65: 24 | D65: 12354 | E65: 24 | F65: 12359 | K65: 0 | L65: 122
A66: 21 | B66: 12463 | C66: 22 | D66: 12479 | E66: 24 | F66: 12489 | K66: 0 | L66: 222
A67: 12 | B67: 12583 | C67: 24 | D67: 12593 | E67: 24 | F67: 12602 | K67: 0 | L67: 122
A68: 12 | B68: 12702 | C68: 24 | D68: 12709 | E68: 24 | F68: 12717 | K68: 0 | L68: 122
A69: 21 | B69: 13353 | C69: 22 | D69: 13359 | E69: 24 | F69: 13365 | K69: 0 | L69: 222
A70: 12 | B70: 13484 | C70: 24 | D70: 13495 | E70: 24 | F70: 13502 | K70: 0 | L70: 122
A71: 21 | B71: 13777 | C71: 22 | D71: 13780 | E71: 24 | F71: 13794 | K71: 0 | L71: 222
A72: 12 | B72: 13898 | C72: 24 | D72: 13905 | E72: 24 | F72: 13910 | K72: 0 | L72: 122
A73: 12 | B73: 14009 | C73: 24 | D73: 14018 | E73: 24 | F73: 14024 | K73: 0 | L73: 122
A74: 12 | B74: 14118 | C74: 24 | D74: 14127 | E74: 24 | F74: 14131 | K74: 0 | L74: 122
A75: 21 | B75: 14325 | C75: 22 | D75: 14333 | E75: 24 | F75: 14339 | K75: 0 | L75: 222
A76: 21 | B76: 14443 | C76: 22 | D76: 14449 | E76: 24 | F76: 14455 | K76: 0 | L76: 222
A77: 12 | B77: 14554 | C77: 24 | D77: 14558 | E77: 24 | F77: 14567 | K77: 0 | L77: 122
A78: 12 | B78: 14747 | C78: 24 | D78: 14759 | E78: 24 | F78: 14765 | K78: 0 | L78: 122
A79: 21 | B79: 14944 | C79: 22 | D79: 14957 | E79: 24 | F79: 14968 | K79: 0 | L79: 222
A80: 21 | B80: 15069 | C80: 22 | D80: 15084 | E80: 24 | F80: 15091 | K80: 0 | L80: 222
A81: 21 | B81: 15227 | C81: 22 | D81: 15242 | E81: 24 | F81: 15250 | K81: 0 | L81: 222
A82: 21 | B82: 15462 | C82: 22 | D82: 15469 | E82: 24 | F82: 15475 | K82: 0 | L82: 222
A83: 12 | B83: 15577 | C83: 24 | D83: 15579 | E83: 24 | F83: 15588 | K83: 0 | L83: 122
A84: 12 | B84: 15682 | C84: 24 | D84: 15692 | E84: 24 | F84: 15696 | K84: 0 | L84: 122
A85: 12 | B85: 15788 | C85: 24 | D85: 15803 | E85: 24 | F85: 15813 | K85: 0 | L85: 122
A86: 12 | B86: 15908 | C86: 24 | D86: 15914 | E86: 24 | F86: 15919 | K86: 0 | L86: 122
A87: 12 | B87: 16418 | C87: 24 | D87: 16436 | E87: 24 | F87: 16443 | K87: 0 | L87: 122
A88: 12 | B88: 16545 | C88: 24 | D88: 16552 | E88: 24 | F88: 16557 | K88: 0 | L88: 122
A89: 12 | B89: 16649 | C89: 24 | D89: 16658 | E89: 24 | F89: 16668 | K89: 0 | L89: 122
A90: 21 | B90: 17085 | C90: 22 | D90: 17094 | E90: 24 | F90: 17101 | K90: 0 | L90: 222
A91: 21 | B91: 17330 | C91: 22 | D91: 17344 | E91: 24 | F91: 17351 | K91: 0 | L91: 222
A92: 12 | B92: 17541 | C92: 24 | D92: 17566 | E92: 24 | F92: 17572 | K92: 0 | L92: 122
A93: 21 | B93: 17675 | C93: 22 | D93: 17687 | E93: 24 | F93: 17692 | K93: 0 | L93: 222
A94: 21 | B94: 17793 | C94: 22 | D94: 17802 | E94: 24 | F94: 17808 | K94: 0 | L94: 222
A95: 12 | B95: 17901 | C95: 24 | D95: 17905 | E95: 24 | F95: 17911 | K95: 0 | L95: 122
A96: 12 | B96: 18006 | C96: 24 | D96: 18016 | E96: 24 | F96: 18020 | K96: 0 | L96: 122
A97: 21 | B97: 18119 | C97: 22 | D97: 18124 | E97: 24 | F97: 18130 | K97: 0 | L97: 222
A98: 21 | B98: 18315 | C98: 22 | D98: 18321 | E98: 24 | F98: 18338 | K98: 0 | L98: 222
A99: 12 | B99: 18437 | C99: 24 | D99: 18446 | E99: 24 | F99: 18454 | K99: 0 | L99: 122
A100: 12 | B100: 18551 | C100: 24 | D100: 18556 | E100: 24 | F100: 18565 | K100: 0 | L100: 122
A101: 12 | B101: 18656 | C101: 24 | D101: 18665 | E101: 24 | F101: 18676 | K101: 0 | L101: 122
A102: 12 | B102: 18773 | C102: 24 | D102: 18781 | E102: 24 | F102: 18788 | K102: 0 | L102: 122
A103: 12 | B103: 18886 | C103: 24 | D103: 18894 | E103: 24 | F103: 18898 | K103: 0 | L103: 122
A104: 12 | B104: 18990 | C104: 24 | D104: 18994 | E104: 24 | F104: 18999 | K104: 0 | L104: 122
A105: 12 | B105: 19090 | C105: 24 | D105: 19104 | E105: 24 | F105: 19110 | K105: 0 | L105: 122
A106: 21 | B106: 19334 | C106: 22 | D106: 19341 | E106: 24 | F106: 19351 | K106: 0 | L106: 222
A107: 12 | B107: 19446 | C107: 24 | D107: 19453 | E107: 24 | F107: 19460 | K107: 0 | L107: 122
A108: 12 | B108: 19559 | C108: 24 | D108: 19567 | E108: 24 | F108: 19585 | K108: 0 | L108: 122
A109: 12 | B109: 19678 | C109: 24 | D109: 19687 | E109: 24 | F109: 19698 | K109: 0 | L109: 122
A110: 21 | B110: 19810 | C110: 22 | D110: 19816 | E110: 24 | F110: 19835 | K110: 0 | L110: 222
A111: 12 | B111: 19930 | C111: 24 | D111: 19938 | E111: 24 | F111: 19944 | K111: 0 | L111: 122
A112: 12 | B112: 20042 | C112: 24 | D112: 20044 | E112: 24 | F112: 20049 | K112: 0 | L112: 122
A113: 12 | B113: 20311 | C113: 24 | D113: 20345 | E113: 24 | F113: 20355 | K113: 0 | L113: 122
A114: 21 | B114: 20504 | C114: 22 | D114: 20511 | E114: 24 | F114: 20522 | K114: 0 | L114: 222
A115: 21 | B115: 20615 | C115: 11 | D115: 20627 | E115: 22 | F115: 20635 | K115: 0 | L115: 212
A116: 21 | B116: 20740 | C116: 22 | D116: 20779 | E116: 24 | F116: 20785 | K116: 0 | L116: 222
A117: 12 | B117: 20940 | C117: 24 | D117: 20963 | E117: 24 | F117: 20969 | K117: 0 | L117: 122
A118: 21 | B118: 21075 | C118: 22 | D118: 21089 | E118: 24 | F118: 21095 | K118: 0 | L118: 222
A119: 12 | B119: 21195 | C119: 24 | D119: 21199 | E119: 24 | F119: 21208 | K119: 0 | L119: 122
A120: 21 | B120: 21314 | C120: 22 | D120: 21320 | E120: 24 | F120: 21331 | K120: 0 | L120: 222
A121: 21 | B121: 21436 | C121: 22 | D121: 21439 | E121: 24 | F121: 21447 | K121: 0 | L121: 222
A122: 12 | B122: 21548 | C122: 24 | D122: 21560 | E122: 24 | F122: 21568 | K122: 0 | L122: 122
A123: 12 | B123: 21663 | C123: 24 | D123: 21671 | E123: 24 | F123: 21674 | K123: 0 | L123: 122
A124: 12 | B124: 21767 | C124: 24 | D124: 21772 | E124: 24 | F124: 21787 | K124: 0 | L124: 122
A125: 12 | B125: 22044 | C125: 13 | D125: 22052 | E125: 24 | F125: 22075 | K125: 0 | L125: 112
A126: 21 | B126: 22358 | C126: 22 | D126: 22367 | E126: 24 | F126: 22373 | K126: 0 | L126: 222
A127: 12 | B127: 22466 | C127: 24 | D127: 22477 | E127: 24 | F127: 22483 | K127: 0 | L127: 122
A128: 12 | B128: 22580 | C128: 24 | D128: 22585 | E128: 24 | F128: 22600 | K128: 0 | L128: 122
A129: 21 | B129: 22699 | C129: 22 | D129: 22705 | E129: 24 | F129: 22725 | K129: 0 | L129: 222
A130: 12 | B130: 22818 | C130: 24 | D130: 22830 | E130: 24 | F130: 22840 | K130: 0 | L130: 122
A131: 21 | B131: 22942 | C131: 22 | D131: 22948 | E131: 24 | F131: 22955 | K131: 0 | L131: 222
A132: 12 | B132: 23050 | C132: 24 | D132: 23059 | E132: 24 | F132: 23067 | K132: 0 | L132: 122
A133: 12 | B133: 23163 | C133: 24 | D133: 23181 | E133: 24 | F133: 23191 | K133: 0 | L133: 122
A134: 12 | B134: 23431 | C134: 24 | D134: 23458 | E134: 24 | F134: 23467 | K134: 0 | L134: 122
A135: 12 | B135: 23566 | C135: 24 | D135: 23571 | E135: 24 | F135: 23577 | K135: 0 | L135: 122
A136: 21 | B136: 23685 | C136: 22 | D136: 23690 | E136: 24 | F136: 23696 | K136: 0 | L136: 222
A137: 12 | B137: 23792 | C137: 24 | D137: 23799 | E137: 24 | F137: 23808 | K137: 0 | L137: 122
A138: 12 | B138: 23912 | C138: 24 | D138: 23921 | E138: 24 | F138: 23927 | L138: 122

Sheet !M119B40.Gus
A1: Report for:!M119B40.Gus
A2: Date: | B2: <date>
A3: Hen: | B3: <hen> | F3: Correct Sequence | G3: =Start!J2 -> 211 | P3: Total Sequences in Data | Q3: =4994-COUNTBLANK(L7:L5000) -> 137 | V3: Total Sequences in Block Data | W3: =COUNTA(L7:L29) -> 23 | AA3: Total Sequences in Block Data | AB3: =COUNTA(L30:L52) -> 23 | AF3: Total Sequences in Block Data | AG3: =COUNTA(L53:L74) -> 22 | AK3: Total Sequences in Block Data | AL3: =COUNTA(L75:L97) -> 23 | AP3: Total Sequences in Block Data | AQ3: =COUNTA(L98:L120) -> 23 | AU3: Total Sequences in Block Data | AV3: =COUNTA(L121:L143) -> 23
P4: Total Sequences in Summary | Q4: =SUM(O7:O14) -> 137 | V4: Total Sequences in Block Summary | W4: =SUM(U7:U14) -> 23 | AA4: Total Sequences in Block Summary | AB4: =SUM(Z7:Z14) -> 23 | AF4: Total Sequences in Block Summary | AG4: =SUM(AE7:AE14) -> 22 | AK4: Total Sequences in Block Summary | AL4: =SUM(AJ7:AJ14) -> 23 | AP4: Total Sequences in Block Summary | AQ4: =SUM(AO7:AO14) -> 23 | AU4: Total Sequences in Block Summary | AV4: =SUM(AT7:AT14) -> 23
T5: Block 1 | Y5: Block 2 | AD5: Block 3 | AI5: Block 4 | AN5: Block 5 | AS5: Block 6
A6: Sequence Component 1 | B6: Time 1 | C6: Sequence Component 2 | D6: Time 2 | E6: Sequence Component 3 | F6: Time 3 | G6: Sequence Component 4 | H6: Time 4 | I6: Sequence Component 5 | J6: Time 5 | K6: Correct? 0=No 1=Yes | L6: Sequence | N6: Frequency | P6: Relative Frequency | Q6: Variability | T6: Frequency | V6: Relative Frequency | W6: Variability | Y6: Frequency | AA6: Relative Frequency | AB6: Variability | AD6: Frequency | AF6: Relative Frequency | AG6: Variability | AI6: Frequency | AK6: Relative Frequency | AL6: Variability | AN6: Frequency | AP6: Relative Frequency | AQ6: Variability | AS6: Frequency | AU6: Relative Frequency | AV6: Variability
A7: 21 | B7: 15 | C7: 22 | D7: 21 | E7: 24 | F7: 28 | K7: 0 | L7: 222 | N7: 111 | O7: =COUNTIF($L$7:$L$500,N7) -> 0 | P7: =O7/$Q$4 -> 0 | Q7: =IF(P7=0,0,(P7*((LOG(P7))/LOG(2)))) -> 0 | T7: =N7 -> 111 | U7: =COUNTIF(L7:L29,T7) -> 0 | V7: =U7/(W4-U11) -> 0 | W7: =IF(V7=0,0,(V7*((LOG(V7))/LOG(2)))) -> 0 | Y7: =N7 -> 111 | Z7: =COUNTIF(L30:L52,Y7) -> 0 | AA7: =Z7/(AB4-Z11) -> 0 | AB7: =IF(AA7=0,0,(AA7*((LOG(AA7))/LOG(2)))) -> 0 | AD7: =N7 -> 111 | AE7: =COUNTIF(L53:L74,AD7) -> 0 | AF7: =AE7/(AG4-AE11) -> 0 | AG7: =IF(AF7=0,0,(AF7*((LOG(AF7))/LOG(2)))) -> 0 | AI7: =N7 -> 111 | AJ7: =COUNTIF(L75:L97,AI7) -> 0 | AK7: =AJ7/(AL4-AJ11) -> 0 | AL7: =IF(AK7=0,0,(AK7*((LOG(AK7))/LOG(2)))) -> 0 | AN7: =N7 -> 111 | AO7: =COUNTIF(L98:L120,AN7) -> 0 | AP7: =AO7/(AQ4-AO11) -> 0 | AQ7: =IF(AP7=0,0,(AP7*((LOG(AP7))/LOG(2)))) -> 0 | AS7: =N7 -> 111 | AT7: =COUNTIF(L121:L143,AS7) -> 0 | AU7: =AT7/(AV4-AT11) -> 0 | AV7: =IF(AU7=0,0,(AU7*((LOG(AU7))/LOG(2)))) -> 0
A8: 21 | B8: 133 | C8: 22 | D8: 141 | E8: 24 | F8: 149 | K8: 0 | L8: 222 | N8: 112 | O8: =COUNTIF($L$7:$L$500,N8) -> 6 | P8: =O8/$Q$4 -> 0.04379562044 | Q8: =IF(P8=0,0,(P8*((LOG(P8))/LOG(2)))) -> -0.1976526824 | T8: =N8 -> 112 | U8: =COUNTIF(L7:L29,T8) -> 1 | V8: =U8/(W4-U11) -> 0.04347826087 | W8: =IF(V8=0,0,(V8*((LOG(V8))/LOG(2)))) -> -0.1966766068 | Y8: =N8 -> 112 | Z8: =COUNTIF(L30:L52,Y8) -> 2 | AA8: =Z8/(AB4-Z11) -> 0.08695652174 | AB8: =IF(AA8=0,0,(AA8*((LOG(AA8))/LOG(2)))) -> -0.3063966918 | AD8: =N8 -> 112 | AE8: =COUNTIF(L53:L74,AD8) -> 2 | AF8: =AE8/(AG4-AE11) -> 0.09090909091 | AG8: =IF(AF8=0,0,(AF8*((LOG(AF8))/LOG(2)))) -> -0.3144937835 | AI8: =N8 -> 112 | AJ8: =COUNTIF(L75:L97,AI8) -> 0 | AK8: =AJ8/(AL4-AJ11) -> 0 | AL8: =IF(AK8=0,0,(AK8*((LOG(AK8))/LOG(2)))) -> 0 | AN8: =N8 -> 112 | AO8: =COUNTIF(L98:L120,AN8) -> 1 | AP8: =AO8/(AQ4-AO11) -> 0.04347826087 | AQ8: =IF(AP8=0,0,(AP8*((LOG(AP8))/LOG(2)))) -> -0.1966766068 | AS8: =N8 -> 112 | AT8: =COUNTIF(L121:L143,AS8) -> 0 | AU8: =AT8/(AV4-AT11) -> 0 | AV8: =IF(AU8=0,0,(AU8*((LOG(AU8))/LOG(2)))) -> 0
A9: 21 | B9: 523 | C9: 22 | D9: 528 | E9: 24 | F9: 534 | K9: 0 | L9: 222 | N9: 121 | O9: =COUNTIF($L$7:$L$500,N9) -> 1 | P9: =O9/$Q$4 -> 0.007299270073 | Q9: =IF(P9=0,0,(P9*((LOG(P9))/LOG(2)))) -> -0.05181045316 | T9: =N9 -> 121 | U9: =COUNTIF(L7:L29,T9) -> 1 | V9: =U9/(W4-U11) -> 0.04347826087 | W9: =IF(V9=0,0,(V9*((LOG(V9))/LOG(2)))) -> -0.1966766068 | Y9: =N9 -> 121 | Z9: =COUNTIF(L30:L52,Y9) -> 0 | AA9: =Z9/(AB4-Z11) -> 0 | AB9: =IF(AA9=0,0,(AA9*((LOG(AA9))/LOG(2)))) -> 0 | AD9: =N9 -> 121 | AE9: =COUNTIF(L53:L74,AD9) -> 0 | AF9: =AE9/(AG4-AE11) -> 0 | AG9: =IF(AF9=0,0,(AF9*((LOG(AF9))/LOG(2)))) -> 0 | AI9: =N9 -> 121 | AJ9: =COUNTIF(L75:L97,AI9) -> 0 | AK9: =AJ9/(AL4-AJ11) -> 0 | AL9: =IF(AK9=0,0,(AK9*((LOG(AK9))/LOG(2)))) -> 0 | AN9: =N9 -> 121 | AO9: =COUNTIF(L98:L120,AN9) -> 0 | AP9: =AO9/(AQ4-AO11) -> 0 | AQ9: =IF(AP9=0,0,(AP9*((LOG(AP9))/LOG(2)))) -> 0 | AS9: =N9 -> 121 | AT9: =COUNTIF(L121:L143,AS9) -> 0 | AU9: =AT9/(AV4-AT11) -> 0 | AV9: =IF(AU9=0,0,(AU9*((LOG(AU9))/LOG(2)))) -> 0
A10: 21 | B10: 638 | C10: 22 | D10: 642 | E10: 24 | F10: 648 | K10: 0 | L10: 222 | N10: 122 | O10: =COUNTIF($L$7:$L$500,N10) -> 69 | P10: =O10/$Q$4 -> 0.503649635 | Q10: =IF(P10=0,0,(P10*((LOG(P10))/LOG(2)))) -> -0.4983651548 | T10: =N10 -> 122 | U10: =COUNTIF(L7:L29,T10) -> 10 | V10: =U10/(W4-U11) -> 0.4347826087 | W10: =IF(V10=0,0,(V10*((LOG(V10))/LOG(2)))) -> -0.5224495049 | Y10: =N10 -> 122 | Z10: =COUNTIF(L30:L52,Y10) -> 10 | AA10: =Z10/(AB4-Z11) -> 0.4347826087 | AB10: =IF(AA10=0,0,(AA10*((LOG(AA10))/LOG(2)))) -> -0.5224495049 | AD10: =N10 -> 122 | AE10: =COUNTIF(L53:L74,AD10) -> 14 | AF10: =AE10/(AG4-AE11) -> 0.6363636364 | AG10: =IF(AF10=0,0,(AF10*((LOG(AF10))/LOG(2)))) -> -0.4149578978 | AI10: =N10 -> 122 | AJ10: =COUNTIF(L75:L97,AI10) -> 15 | AK10: =AJ10/(AL4-AJ11) -> 0.652173913 | AL10: =IF(AK10=0,0,(AK10*((LOG(AK10))/LOG(2)))) -> -0.4021769742 | AN10: =N10 -> 122 | AO10: =COUNTIF(L98:L120,AN10) -> 10 | AP10: =AO10/(AQ4-AO11) -> 0.4347826087 | AQ10: =IF(AP10=0,0,(AP10*((LOG(AP10))/LOG(2)))) -> -0.5224495049 | AS10: =N10 -> 122 | AT10: =COUNTIF(L121:L143,AS10) -> 10 | AU10: =AT10/(AV4-AT11) -> 0.4347826087 | AV10: =IF(AU10=0,0,(AU10*((LOG(AU10))/LOG(2)))) -> -0.5224495049
A11: 21 | B11: 748 | C11: 22 | D11: 754 | E11: 24 | F11: 758 | K11: 0 | L11: 222 | N11: 211 | O11: =COUNTIF($L$7:$L$500,N11) -> 0 | P11: =O11/$Q$4 -> 0 | Q11: =IF(P11=0,0,(P11*((LOG(P11))/LOG(2)))) -> 0 | T11: =N11 -> 211 | U11: =COUNTIF(L7:L29,T11) -> 0 | Y11: =N11 -> 211 | Z11: =COUNTIF(L30:L52,Y11) -> 0 | AD11: =N11 -> 211 | AE11: =COUNTIF(L53:L74,AD11) -> 0 | AI11: =N11 -> 211 | AJ11: =COUNTIF(L75:L97,AI11) -> 0 | AN11: =N11 -> 211 | AO11: =COUNTIF(L98:L120,AN11) -> 0 | AS11: =N11 -> 211 | AT11: =COUNTIF(L121:L143,AS11) -> 0
A12: 12 | B12: 857 | C12: 24 | D12: 865 | E12: 24 | F12: 872 | K12: 0 | L12: 122 | N12: 212 | O12: =COUNTIF($L$7:$L$500,N12) -> 1 | P12: =O12/$Q$4 -> 0.007299270073 | Q12: =IF(P12=0,0,(P12*((LOG(P12))/LOG(2)))) -> -0.05181045316 | T12: =N12 -> 212 | U12: =COUNTIF(L7:L29,T12) -> 0 | V12: =U12/(W4-U11) -> 0 | W12: =IF(V12=0,0,(V12*((LOG(V12))/LOG(2)))) -> 0 | Y12: =N12 -> 212 | Z12: =COUNTIF(L30:L52,Y12) -> 0 | AA12: =Z12/(AB4-Z11) -> 0 | AB12: =IF(AA12=0,0,(AA12*((LOG(AA12))/LOG(2)))) -> 0 | AD12: =N12 -> 212 | AE12: =COUNTIF(L53:L74,AD12) -> 0 | AF12: =AE12/(AG4-AE11) -> 0 | AG12: =IF(AF12=0,0,(AF12*((LOG(AF12))/LOG(2)))) -> 0 | AI12: =N12 -> 212 | AJ12: =COUNTIF(L75:L97,AI12) -> 0 | AK12: =AJ12/(AL4-AJ11) -> 0 | AL12: =IF(AK12=0,0,(AK12*((LOG(AK12))/LOG(2)))) -> 0 | AN12: =N12 -> 212 | AO12: =COUNTIF(L98:L120,AN12) -> 0 | AP12: =AO12/(AQ4-AO11) -> 0 | AQ12: =IF(AP12=0,0,(AP12*((LOG(AP12))/LOG(2)))) -> 0 | AS12: =N12 -> 212 | AT12: =COUNTIF(L121:L143,AS12) -> 1 | AU12: =AT12/(AV4-AT11) -> 0.04347826087 | AV12: =IF(AU12=0,0,(AU12*((LOG(AU12))/LOG(2)))) -> -0.1966766068
A13: 21 | B13: 1381 | C13: 22 | D13: 1389 | E13: 24 | F13: 1399 | K13: 0 | L13: 222 | N13: 221 | O13: =COUNTIF($L$7:$L$500,N13) -> 0 | P13: =O13/$Q$4 -> 0 | Q13: =IF(P13=0,0,(P13*((LOG(P13))/LOG(2)))) -> 0 | T13: =N13 -> 221 | U13: =COUNTIF(L7:L29,T13) -> 0 | V13: =U13/(W4-U11) -> 0 | W13: =IF(V13=0,0,(V13*((LOG(V13))/LOG(2)))) -> 0 | Y13: =N13 -> 221 | Z13: =COUNTIF(L30:L52,Y13) -> 0 | AA13: =Z13/(AB4-Z11) -> 0 | AB13: =IF(AA13=0,0,(AA13*((LOG(AA13))/LOG(2)))) -> 0 | AD13: =N13 -> 221 | AE13: =COUNTIF(L53:L74,AD13) -> 0 | AF13: =AE13/(AG4-AE11) -> 0 | AG13: =IF(AF13=0,0,(AF13*((LOG(AF13))/LOG(2)))) -> 0 | AI13: =N13 -> 221 | AJ13: =COUNTIF(L75:L97,AI13) -> 0 | AK13: =AJ13/(AL4-AJ11) -> 0 | AL13: =IF(AK13=0,0,(AK13*((LOG(AK13))/LOG(2)))) -> 0 | AN13: =N13 -> 221 | AO13: =COUNTIF(L98:L120,AN13) -> 0 | AP13: =AO13/(AQ4-AO11) -> 0 | AQ13: =IF(AP13=0,0,(AP13*((LOG(AP13))/LOG(2)))) -> 0 | AS13: =N13 -> 221 | AT13: =COUNTIF(L121:L143,AS13) -> 0 | AU13: =AT13/(AV4-AT11) -> 0 | AV13: =IF(AU13=0,0,(AU13*((LOG(AU13))/LOG(2)))) -> 0
A14: 21 | B14: 1501 | C14: 22 | D14: 1506 | E14: 24 | F14: 1511 | K14: 0 | L14: 222 | N14: 222 | O14: =COUNTIF($L$7:$L$500,N14) -> 60 | P14: =O14/$Q$4 -> 0.4379562044 | Q14: =IF(P14=0,0,(P14*((LOG(P14))/LOG(2)))) -> -0.5216678047 | T14: =N14 -> 222 | U14: =COUNTIF(L7:L29,T14) -> 11 | V14: =U14/(W4-U11) -> 0.4782608696 | W14: =IF(V14=0,0,(V14*((LOG(V14))/LOG(2)))) -> -0.5089319005 | Y14: =N14 -> 222 | Z14: =COUNTIF(L30:L52,Y14) -> 11 | AA14: =Z14/(AB4-Z11) -> 0.4782608696 | AB14: =IF(AA14=0,0,(AA14*((LOG(AA14))/LOG(2)))) -> -0.5089319005 | AD14: =N14 -> 222 | AE14: =COUNTIF(L53:L74,AD14) -> 6 | AF14: =AE14/(AG4-AE11) -> 0.2727272727 | AG14: =IF(AF14=0,0,(AF14*((LOG(AF14))/LOG(2)))) -> -0.5112188503 | AI14: =N14 -> 222 | AJ14: =COUNTIF(L75:L97,AI14) -> 8 | AK14: =AJ14/(AL4-AJ11) -> 0.347826087 | AL14: =IF(AK14=0,0,(AK14*((LOG(AK14))/LOG(2)))) -> -0.5299345934 | AN14: =N14 -> 222 | AO14: =COUNTIF(L98:L120,AN14) -> 12 | AP14: =AO14/(AQ4-AO11) -> 0.5217391304 | AQ14: =IF(AP14=0,0,(AP14*((LOG(AP14))/LOG(2)))) -> -0.4897040637 | AS14: =N14 -> 222 | AT14: =COUNTIF(L121:L143,AS14) -> 12 | AU14: =AT14/(AV4-AT11) -> 0.5217391304 | AV14: =IF(AU14=0,0,(AU14*((LOG(AU14))/LOG(2)))) -> -0.4897040637
A15: 12 | B15: 1605 | C15: 24 | D15: 1611 | E15: 13 | F15: 1617 | K15: 0 | L15: 121 | P15: =SUM(P7:P14) -> 1 | Q15: =-SUM(Q7:Q14) -> 1.321306548 | V15: =SUM(V7:V14) -> 1 | W15: =-SUM(W7:W14) -> 1.424734619 | AA15: =SUM(AA7:AA14) -> 1 | AB15: =-SUM(AB7:AB14) -> 1.337778097 | AF15: =SUM(AF7:AF14) -> 1 | AG15: =-SUM(AG7:AG14) -> 1.240670532 | AK15: =SUM(AK7:AK14) -> 1 | AL15: =-SUM(AL7:AL14) -> 0.9321115676 | AP15: =SUM(AP7:AP14) -> 1 | AQ15: =-SUM(AQ7:AQ14) -> 1.208830175 | AU15: =SUM(AU7:AU14) -> 1 | AV15: =-SUM(AV7:AV14) -> 1.208830175
A16: 12 | B16: 1711 | C16: 13 | D16: 1717 | E16: 24 | F16: 1722 | K16: 0 | L16: 112 | P16: U= | Q16: =Q15/(LOG(Q4)/LOG(2)) -> 0.1861511096 | V16: U1= | W16: =W15/(LOG(W4)/LOG(2)) -> 0.3149585731 | AA16: U2= | AB16: =AB15/(LOG(AB4)/LOG(2)) -> 0.2957355531 | AF16: U3= | AG16: =AG15/(LOG(AG4)/LOG(2)) -> 0.2782127046 | AK16: U4= | AL16: =AL15/(LOG(AL4)/LOG(2)) -> 0.2060569915 | AP16: U5= | AQ16: =AQ15/(LOG(AQ4)/LOG(2)) -> 0.2672297157 | AU16: U6= | AV16: =AV15/(LOG(AV4)/LOG(2)) -> 0.2672297157
A17: 12 | B17: 1816 | C17: 24 | D17: 1829 | E17: 24 | F17: 1834 | K17: 0 | L17: 122
A18: 12 | B18: 2451 | C18: 24 | D18: 2464 | E18: 24 | F18: 2469 | K18: 0 | L18: 122
A19: 21 | B19: 2571 | C19: 22 | D19: 2586 | E19: 24 | F19: 2592 | K19: 0 | L19: 222 | N19: Total Target Seq
A20: 21 | B20: 2696 | C20: 22 | D20: 2710 | E20: 24 | F20: 2716 | K20: 0 | L20: 222 | N20: =COUNTIF(L7:L143,G3) -> 0 | P20: 23 | Q20: 23 | R20: 22 | S20: 23 | T20: 23 | U20: 23
A21: 12 | B21: 2813 | C21: 24 | D21: 2821 | E21: 24 | F21: 2825 | K21: 0 | L21: 122 | P21: % of reinforcement given in 6 equal intervals based on number of trials
A22: 21 | B22: 2924 | C22: 22 | D22: 2933 | E22: 24 | F22: 2937 | K22: 0 | L22: 222 | P22: %_1 | Q22: %_2 | R22: %_3 | S22: %_4 | T22: %_5 | U22: %_6
A23: 12 | B23: 3116 | C23: 24 | D23: 3137 | E23: 24 | F23: 3144 | K23: 0 | L23: 122 | O23: target sequence | P23: =$G$3 -> 211 | Q23: =$G$3 -> 211 | R23: =$G$3 -> 211 | S23: =$G$3 -> 211 | T23: =$G$3 -> 211 | U23: =$G$3 -> 211
A24: 21 | B24: 3250 | C24: 22 | D24: 3256 | E24: 24 | F24: 3262 | K24: 0 | L24: 222 | O24: total reinforcement | P24: =U11 -> 0 | Q24: =Z11 -> 0 | R24: =AE11 -> 0 | S24: =AJ11 -> 0 | T24: =AO11 -> 0 | U24: =AT11 -> 0
A25: 12 | B25: 3356 | C25: 24 | D25: 3367 | E25: 24 | F25: 3372 | K25: 0 | L25: 122 | O25: % target
A26: 12 | B26: 3471 | C26: 24 | D26: 3476 | E26: 24 | F26: 3482 | K26: 0 | L26: 122 | O26: CCRF
A27: 12 | B27: 3579 | C27: 24 | D27: 3584 | E27: 24 | F27: 3592 | K27: 0 | L27: 122 | O27: % CCRf
A28: 12 | B28: 3691 | C28: 24 | D28: 3698 | E28: 24 | F28: 3704 | K28: 0 | L28: 122 | O28: average response rate | P28: =F29/P20 -> 165.9130435 | Q28: =(F52-F29)/Q20 -> 204.6956522 | R28: =(F74-F52)/R20 -> 206.5909091 | S28: =(F97-F74)/S20 -> 193.0434783 | T28: =(F120-F97)/T20 -> 134.7391304 | U28: =(F143-F120)/U20 -> 144.9565217
A29: 12 | B29: 3798 | C29: 24 | D29: 3809 | E29: 24 | F29: 3816 | K29: 0 | L29: 122
A30: 12 | B30: 3909 | C30: 13 | D30: 3914 | E30: 24 | F30: 3921 | K30: 0 | L30: 112
A31: 12 | B31: 4014 | C31: 24 | D31: 4023 | E31: 24 | F31: 4041 | K31: 0 | L31: 122
A32: 12 | B32: 4133 | C32: 24 | D32: 4138 | E32: 24 | F32: 4142 | K32: 0 | L32: 122
A33: 12 | B33: 4237 | C33: 24 | D33: 4242 | E33: 24 | F33: 4252 | K33: 0 | L33: 122
A34: 21 | B34: 4356 | C34: 22 | D34: 4360 | E34: 24 | F34: 4366 | K34: 0 | L34: 222
A35: 12 | B35: 4820 | C35: 24 | D35: 4834 | E35: 24 | F35: 4841 | K35: 0 | L35: 122
A36: 21 | B36: 4949 | C36: 22 | D36: 4960 | E36: 24 | F36: 4966 | K36: 0 | L36: 222
A37: 21 | B37: 5069 | C37: 22 | D37: 5076 | E37: 24 | F37: 5083 | K37: 0 | L37: 222
A38: 12 | B38: 5185 | C38: 24 | D38: 5193 | E38: 24 | F38: 5201 | K38: 0 | L38: 122
A39: 12 | B39: 5295 | C39: 24 | D39: 5305 | E39: 24 | F39: 5313 | K39: 0 | L39: 122
A40: 21 | B40: 5408 | C40: 22 | D40: 5419 | E40: 24 | F40: 5430 | K40: 0 | L40: 222
A41: 21 | B41: 5528 | C41: 22 | D41: 5540 | E41: 24 | F41: 5547 | K41: 0 | L41: 222
A42: 21 | B42: 5660 | C42: 22 | D42: 5667 | E42: 24 | F42: 5673 | K42: 0 | L42: 222
A43: 12 | B43: 5765 | C43: 13 | D43: 5774 | E43: 24 | F43: 5777 | K43: 0 | L43: 112
A44: 12 | B44: 5869 | C44: 24 | D44: 5877 | E44: 24 | F44: 5881 | K44: 0 | L44: 122
A45: 21 | B45: 6635 | C45: 22 | D45: 6642 | E45: 24 | F45: 6647 | K45: 0 | L45: 222
A46: 12 | B46: 6962 | C46: 24 | D46: 6990 | E46: 24 | F46: 6995 | K46: 0 | L46: 122
A47: 21 | B47: 7098 | C47: 22 | D47: 7117 | E47: 24 | F47: 7123 | K47: 0 | L47: 222
A48: 21 | B48: 7225 | C48: 22 | D48: 7232 | E48: 24 | F48: 7239 | K48: 0 | L48: 222
A49: 21 | B49: 7762 | C49: 22 | D49: 7769 | E49: 24 | F49: 7775 | K49: 0 | L49: 222
A50: 21 | B50: 7871 | C50: 22 | D50: 7877 | E50: 24 | F50: 7880 | K50: 0 | L50: 222
A51: 12 | B51: 7975 | C51: 24 | D51: 7983 | E51: 24 | F51: 7986 | K51: 0 | L51: 122
A52: 12 | B52: 8502 | C52: 24 | D52: 8517 | E52: 24 | F52: 8524 | K52: 0 | L52: 122
A53: 21 | B53: 9092 | C53: 22 | D53: 9114 | E53: 24 | F53: 9122 | K53: 0 | L53: 222
A54: 12 | B54: 9331 | C54: 24 | D54: 9350 | E54: 24 | F54: 9357 | K54: 0 | L54: 122
A55: 12 | B55: 9613 | C55: 13 | D55: 9623 | E55: 24 | F55: 9633 | K55: 0 | L55: 112
A56: 12 | B56: 9982 | C56: 24 | D56: 9995 | E56: 24 | F56: 10001 | K56: 0 | L56: 122
A57: 12 | B57: 10289 | C57: 24 | D57: 10309 | E57: 24 | F57: 10316 | K57: 0 | L57: 122
A58: 21 | B58: 10419 | C58: 22 | D58: 10437 | E58: 24 | F58: 10443 | K58: 0 | L58: 222
A59: 12 | B59: 10535 | C59: 24 | D59: 10543 | E59: 24 | F59: 10559 | K59: 0 | L59: 122
A60: 12 | B60: 10658 | C60: 24 | D60: 10665 | E60: 24 | F60: 10683 | K60: 0 | L60: 122
A61: 12 | B61: 10779 | C61: 24 | D61: 10787 | E61: 24 | F61: 10795 | K61: 0 | L61: 122
A62: 12 | B62: 11156 | C62: 24 | D62: 11242 | E62: 24 | F62: 11250 | K62: 0 | L62: 122
A63: 21 | B63: 11351 | C63: 22 | D63: 11367 | E63: 24 | F63: 11373 | K63: 0 | L63: 222
A64: 12 | B64: 11467 | C64: 13 | D64: 11473 | E64: 24 | F64: 11477 | K64: 0 | L64: 112
A65: 12 | B65: 11576 | C65: 24 | D65: 11582 | E65: 24 | F65: 11591 | K65: 0 | L65: 122
A66: 21 | B66: 11689 | C66: 22 | D66: 11701 | E66: 24 | F66: 11708 | K66: 0 | L66: 222
A67: 12 | B67: 11810 | C67: 24 | D67: 11819 | E67: 24 | F67: 11831 | K67: 0 | L67: 122
A68: 12 | B68: 12015 | C68: 24 | D68: 12043 | E68: 24 | F68: 12056 | K68: 0 | L68: 122
A69: 12 | B69: 12152 | C69: 24 | D69: 12159 | E69: 24 | F69: 12162 | K69: 0 | L69: 122
A70: 21 | B70: 12266 | C70: 22 | D70: 12278 | E70: 24 | F70: 12285 | K70: 0 | L70: 222
A71: 12 | B71: 12384 | C71: 24 | D71: 12391 | E71: 24 | F71: 12396 | K71: 0 | L71: 122
A72: 21 | B72: 12822 | C72: 22 | D72: 12834 | E72: 24 | F72: 12851 | K72: 0 | L72: 222
A73: 12 | B73: 12943 | C73: 24 | D73: 12953 | E73: 24 | F73: 12957 | K73: 0 | L73: 122
A74: 12 | B74: 13048 | C74: 24 | D74: 13055 | E74: 24 | F74: 13069 | K74: 0 | L74: 122
A75: 12 | B75: 13169 | C75: 24 | D75: 13176 | E75: 24 | F75: 13181 | K75: 0 | L75: 122
A76: 12 | B76: 13278 | C76: 24 | D76: 13284 | E76: 24 | F76: 13290 | K76: 0 | L76: 122
A77: 12 | B77: 13657 | C77: 24 | D77: 13671 | E77: 24 | F77: 13678 | K77: 0 | L77: 122
A78: 12 | B78: 13906 | C78: 24 | D78: 13924 | E78: 24 | F78: 13931 | K78: 0 | L78: 122
A79: 12 | B79: 14026 | C79: 24 | D79: 14036 | E79: 24 | F79: 14042 | K79: 0 | L79: 122
A80: 12 | B80: 14143 | C80: 24 | D80: 14159 | E80: 24 | F80: 14165 | K80: 0 | L80: 122
A81: 12 | B81: 14268 | C81: 24 | D81: 14273 | E81: 24 | F81: 14279 | K81: 0 | L81: 122
A82: 12 | B82: 14583 | C82: 24 | D82: 14594 | E82: 24 | F82: 14613 | K82: 0 | L82: 122
A83: 12 | B83: 14949 | C83: 24 | D83: 14958 | E83: 24 | F83: 14964 | K83: 0 | L83: 122
A84: 21 | B84: 15058 | C84: 22 | D84: 15069 | E84: 24 | F84: 15073 | K84: 0 | L84: 222
A85: 21 | B85: 15175 | C85: 22 | D85: 15181 | E85: 24 | F85: 15186 | K85: 0 | L85: 222
A86: 12 | B86: 15281 | C86: 24 | D86: 15293 | E86: 24 | F86: 15299 | K86: 0 | L86: 122
A87: 12 | B87: 15397 | C87: 24 | D87: 15404 | E87: 24 | F87: 15412 | K87: 0 | L87: 122
A88: 21 | B88: 15516 | C88: 22 | D88: 15522 | E88: 24 | F88: 15527 | K88: 0 | L88: 222
A89: 12 | B89: 15627 | C89: 24 | D89: 15635 | E89: 24 | F89: 15642 | K89: 0 | L89: 122
A90: 21 | B90: 15748 | C90: 22 | D90: 15758 | E90: 24 | F90: 15764 | K90: 0 | L90: 222
A91: 12 | B91: 15862 | C91: 24 | D91: 15867 | E91: 24 | F91: 15872 | K91: 0 | L91: 122
A92: 21 | B92: 15974 | C92: 22 | D92: 15984 | E92: 24 | F92: 16000 | K92: 0 | L92: 222
A93: 21 | B93: 16095 | C93: 22 | D93: 16101 | E93: 24 | F93: 16110 | K93: 0 | L93: 222
A94: 12 | B94: 16334 | C94: 24 | D94: 16360 | E94: 24 | F94: 16366 | K94: 0 | L94: 122
A95: 12 | B95: 16798 | C95: 24 | D95: 16812 | E95: 24 | F95: 16818 | K95: 0 | L95: 122
A96: 21 | B96: 17223 | C96: 22 | D96: 17230 | E96: 24 | F96: 17237 | K96: 0 | L96: 222
A97: 21 | B97: 17493 | C97: 22 | D97: 17499 | E97: 24 | F97: 17509 | K97: 0 | L97: 222
A98: 21 | B98: 17794 | C98: 22 | D98: 17800 | E98: 24 | F98: 17813 | K98: 0 | L98: 222
A99: 21 | B99: 17924 | C99: 22 | D99: 17934 | E99: 24 | F99: 17938 | K99: 0 | L99: 222
A100: 12 | B100: 18032 | C100: 24 | D100: 18041 | E100: 24 | F100: 18047 | K100: 0 | L100: 122
A101: 12 | B101: 18139 | C101: 13 | D101: 18148 | E101: 24 | F101: 18154 | K101: 0 | L101: 112
A102: 21 | B102: 18259 | C102: 22 | D102: 18270 | E102: 24 | F102: 18278 | K102: 0 | L102: 222
A103: 21 | B103: 18383 | C103: 22 | D103: 18388 | E103: 24 | F103: 18394 | K103: 0 | L103: 222
A104: 21 | B104: 18725 | C104: 22 | D104: 18731 | E104: 24 | F104: 18752 | K104: 0 | L104: 222
A105: 21 | B105: 18849 | C105: 22 | D105: 18854 | E105: 24 | F105: 18866 | K105: 0 | L105: 222
A106: 12 | B106: 18961 | C106: 24 | D106: 18969 | E106: 24 | F106: 18981 | K106: 0 | L106: 122
A107: 21 | B107: 19079 | C107: 22 | D107: 19083 | E107: 24 | F107: 19089 | K107: 0 | L107: 222
A108: 12 | B108: 19182 | C108: 24 | D108: 19195 | E108: 24 | F108: 19197 | K108: 0 | L108: 122
A109: 12 | B109: 19300 | C109: 24 | D109: 19321 | E109: 24 | F109: 19328 | K109: 0 | L109: 122
A110: 12 | B110: 19424 | C110: 24 | D110: 19431 | E110: 24 | F110: 19437 | K110: 0 | L110: 122
A111: 21 | B111: 19541 | C111: 22 | D111: 19550 | E111: 24 | F111: 19556 | K111: 0 | L111: 222
A112: 12 | B112: 19686 | C112: 24 | D112: 19702 | E112: 24 | F112: 19721 | K112: 0 | L112: 122
A113: 21 | B113: 19817 | C113: 22 | D113: 19822 | E113: 24 | F113: 19827 | K113: 0 | L113: 222
A114: 12 | B114: 19924 | C114: 24 | D114: 19929 | E114: 24 | F114: 19937 | K114: 0 | L114: 122
A115: 12 | B115: 20036 | C115: 24 | D115: 20046 | E115: 24 | F115: 20048 | K115: 0 | L115: 122
A116: 12 | B116: 20142 | C116: 24 | D116: 20151 | E116: 24 | F116: 20155 | K116: 0 | L116: 122
A117: 21 | B117: 20251 | C117: 22 | D117: 20258 | E117: 24 | F117: 20264 | K117: 0 | L117: 222
A118: 12 | B118: 20358 | C118: 24 | D118: 20370 | E118: 24 | F118: 20374 | K118: 0 | L118: 122
A119: 21 | B119: 20473 | C119: 22 | D119: 20487 | E119: 24 | F119: 20494 | K119: 0 | L119: 222
A120: 21 | B120: 20595 | C120: 22 | D120: 20602 | E120: 24 | F120: 20608 | K120: 0 | L120: 222
A121: 21 | B121: 20716 | C121: 22 | D121: 20723 | E121: 24 | F121: 20738 | K121: 0 | L121: 222
A122: 12 | B122: 20838 | C122: 24 | D122: 20845 | E122: 24 | F122: 20855 | K122: 0 | L122: 122
A123: 21 | B123: 20958 | C123: 22 | D123: 20964 | E123: 24 | F123: 20969 | K123: 0 | L123: 222
A124: 12 | B124: 21068 | C124: 24 | D124: 21082 | E124: 24 | F124: 21087 | K124: 0 | L124: 122
A125: 21 | B125: 21185 | C125: 22 | D125: 21190 | E125: 24 | F125: 21197 | K125: 0 | L125: 222
A126: 12 | B126: 21293 | C126: 24 | D126: 21313 | E126: 24 | F126: 21317 | K126: 0 | L126: 122
A127: 12 | B127: 21562 | C127: 24 | D127: 21573 | E127: 24 | F127: 21578 | K127: 0 | L127: 122
A128: 12 | B128: 21675 | C128: 24 | D128: 21686 | E128: 24 | F128: 21697 | K128: 0 | L128: 122
A129: 21 | B129: 21801 | C129: 22 | D129: 21809 | E129: 24 | F129: 21815 | K129: 0 | L129: 222
A130: 12 | B130: 21915 | C130: 24 | D130: 21920 | E130: 24 | F130: 21926 | K130: 0 | L130: 122
A131: 21 | B131: 22024 | C131: 22 | D131: 22036 | E131: 24 | F131: 22042 | K131: 0 | L131: 222
A132: 12 | B132: 22302 | C132: 24 | D132: 22317 | E132: 24 | F132: 22336 | K132: 0 | L132: 122
A133: 12 | B133: 22427 | C133: 24 | D133: 22436 | E133: 24 | F133: 22446 | K133: 0 | L133: 122
A134: 21 | B134: 22551 | C134: 22 | D134: 22556 | E134: 24 | F134: 22564 | K134: 0 | L134: 222
A135: 21 | B135: 22781 | C135: 22 | D135: 22788 | E135: 24 | F135: 22798 | K135: 0 | L135: 222
A136: 21 | B136: 22894 | C136: 22 | D136: 22901 | E136: 24 | F136: 22905 | K136: 0 | L136: 222
A137: 21 | B137: 23011 | C137: 22 | D137: 23016 | E137: 24 | F137: 23024 | K137: 0 | L137: 222
A138: 21 | B138: 23157 | C138: 22 | D138: 23160 | E138: 24 | F138: 23167 | K138: 0 | L138: 222
A139: 21 | B139: 23504 | C139: 22 | D139: 23510 | E139: 24 | F139: 23531 | K139: 0 | L139: 222
A140: 12 | B140: 23624 | C140: 24 | D140: 23640 | E140: 24 | F140: 23642 | K140: 0 | L140: 122
A141: 21 | B141: 23738 | C141: 11 | D141: 23742 | E141: 22 | F141: 23749 | K141: 0 | L141: 212
A142: 12 | B142: 23756 | C142: 24 | D142: 23786 | E142: 24 | F142: 23802 | K142: 0 | L142: 122
A143: 21 | B143: 23927 | C143: 22 | D143: 23933 | E143: 24 | F143: 23942 | L143: 222

Sheet !M120A30.Gus
A1: Report for:!M120A30.Gus
A2: Date: | B2: <date>
A3: Hen: | B3: <hen> | F3: Correct Sequence | G3: =Start!J2 -> 211 | P3: Total Sequences in Data | Q3: =4994-COUNTBLANK(L7:L5000) -> 144 | V3: Total Sequences in Block Data | W3: =COUNTA(L7:L30) -> 24 | AA3: Total Sequences in Block Data | AB3: =COUNTA(L31:L54) -> 24 | AF3: Total Sequences in Block Data | AG3: =COUNTA(L55:L78) -> 24 | AK3: Total Sequences in Block Data | AL3: =COUNTA(L79:L102) -> 24 | AP3: Total Sequences in Block Data | AQ3: =COUNTA(L103:L126) -> 24 | AU3: Total Sequences in Block Data | AV3: =COUNTA(L127:L150) -> 24
P4: Total Sequences in Summary | Q4: =SUM(O7:O14) -> 144 | V4: Total Sequences in Block Summary | W4: =SUM(U7:U14) -> 24 | AA4: Total Sequences in Block Summary | AB4: =SUM(Z7:Z14) -> 24 | AF4: Total Sequences in Block Summary | AG4: =SUM(AE7:AE14) -> 24 | AK4: Total Sequences in Block Summary | AL4: =SUM(AJ7:AJ14) -> 24 | AP4: Total Sequences in Block Summary | AQ4: =SUM(AO7:AO14) -> 24 | AU4: Total Sequences in Block Summary | AV4: =SUM(AT7:AT14) -> 24
T5: Block 1 | Y5: Block 2 | AD5: Block 3 | AI5: Block 4 | AN5: Block 5 | AS5: Block 6
A6: Sequence Component 1 | B6: Time 1 | C6: Sequence Component 2 | D6: Time 2 | E6: Sequence Component 3 | F6: Time 3 | G6: Sequence Component 4 | H6: Time 4 | I6: Sequence Component 5 | J6: Time 5 | K6: Correct? 0=No 1=Yes | L6: Sequence | N6: Frequency | P6: Relative Frequency | Q6: Variability | T6: Frequency | V6: Relative Frequency | W6: Variability | Y6: Frequency | AA6: Relative Frequency | AB6: Variability | AD6: Frequency | AF6: Relative Frequency | AG6: Variability | AI6: Frequency | AK6: Relative Frequency | AL6: Variability | AN6: Frequency | AP6: Relative Frequency | AQ6: Variability | AS6: Frequency | AU6: Relative Frequency | AV6: Variability
A7: 21 | B7: 0 | C7: 22 | D7: 0 | E7: 24 | F7: 0 | K7: 0 | L7: 222 | N7: 111 | O7: =COUNTIF($L$7:$L$500,N7) -> 3 | P7: =O7/$Q$4 -> 0.02083333333 | Q7: =IF(P7=0,0,(P7*((LOG(P7))/LOG(2)))) -> -0.1163533854 | T7: =N7 -> 111 | U7: =COUNTIF(L7:L30,T7) -> 0 | V7: =U7/(W4-U11) -> 0 | W7: =IF(V7=0,0,(V7*((LOG(V7))/LOG(2)))) -> 0 | Y7: =N7 -> 111 | Z7: =COUNTIF(L31:L54,Y7) -> 1 | AA7: =Z7/(AB4-Z11) -> 0.04166666667 | AB7: =IF(AA7=0,0,(AA7*((LOG(AA7))/LOG(2)))) -> -0.1910401042 | AD7: =N7 -> 111 | AE7: =COUNTIF(L55:L78,AD7) -> 1 | AF7: =AE7/(AG4-AE11) -> 0.04166666667 | AG7: =IF(AF7=0,0,(AF7*((LOG(AF7))/LOG(2)))) -> -0.1910401042 | AI7: =N7 -> 111 | AJ7: =COUNTIF(L79:L102,AI7) -> 0 | AK7: =AJ7/(AL4-AJ11) -> 0 | AL7: =IF(AK7=0,0,(AK7*((LOG(AK7))/LOG(2)))) -> 0 | AN7: =N7 -> 111 | AO7: =COUNTIF(L103:L126,AN7) -> 0 | AP7: =AO7/(AQ4-AO11) -> 0 | AQ7: =IF(AP7=0,0,(AP7*((LOG(AP7))/LOG(2)))) -> 0 | AS7: =N7 -> 111 | AT7: =COUNTIF(L127:L150,AS7) -> 1 | AU7: =AT7/(AV4-AT11) -> 0.04166666667 | AV7: =IF(AU7=0,0,(AU7*((LOG(AU7))/LOG(2)))) -> -0.1910401042
A8: 21 | B8: 0 | C8: 22 | D8: 0 | E8: 24 | F8: 0 | K8: 0 | L8: 222 | N8: 112 | O8: =COUNTIF($L$7:$L$500,N8) -> 6 | P8: =O8/$Q$4 -> 0.04166666667 | Q8: =IF(P8=0,0,(P8*((LOG(P8))/LOG(2)))) -> -0.1910401042 | T8: =N8 -> 112 | U8: =COUNTIF(L7:L30,T8) -> 0 | V8: =U8/(W4-U11) -> 0 | W8: =IF(V8=0,0,(V8*((LOG(V8))/LOG(2)))) -> 0 | Y8: =N8 -> 112 | Z8: =COUNTIF(L31:L54,Y8) -> 0 | AA8: =Z8/(AB4-Z11) -> 0 | AB8: =IF(AA8=0,0,(AA8*((LOG(AA8))/LOG(2)))) -> 0 | AD8: =N8 -> 112 | AE8: =COUNTIF(L55:L78,AD8) -> 4 | AF8: =AE8/(AG4-AE11) -> 0.1666666667 | AG8: =IF(AF8=0,0,(AF8*((LOG(AF8))/LOG(2)))) -> -0.4308270835 | AI8: =N8 -> 112 | AJ8: =COUNTIF(L79:L102,AI8) -> 1 | AK8: =AJ8/(AL4-AJ11) -> 0.04166666667 | AL8: =IF(AK8=0,0,(AK8*((LOG(AK8))/LOG(2)))) -> -0.1910401042 | AN8: =N8 -> 112 | AO8: =COUNTIF(L103:L126,AN8) -> 0 | AP8: =AO8/(AQ4-AO11) -> 0 | AQ8: =IF(AP8=0,0,(AP8*((LOG(AP8))/LOG(2)))) -> 0 | AS8: =N8 -> 112 | AT8: =COUNTIF(L127:L150,AS8) -> 1 | AU8: =AT8/(AV4-AT11) -> 0.04166666667 | AV8: =IF(AU8=0,0,(AU8*((LOG(AU8))/LOG(2)))) -> -0.1910401042
A9: 12 | B9: 0 | C9: 24 | D9: 0 | E9: 24 | F9: 0 | K9: 0 | L9: 122 | N9: 121 | O9: =COUNTIF($L$7:$L$500,N9) -> 1 | P9: =O9/$Q$4 -> 0.006944444444 | Q9: =IF(P9=0,0,(P9*((LOG(P9))/LOG(2)))) -> -0.04979114584 | T9: =N9 -> 121 | U9: =COUNTIF(L7:L30,T9) -> 0 | V9: =U9/(W4-U11) -> 0 | W9: =IF(V9=0,0,(V9*((LOG(V9))/LOG(2)))) -> 0 | Y9: =N9 -> 121 | Z9: =COUNTIF(L31:L54,Y9) -> 0 | AA9: =Z9/(AB4-Z11) -> 0 | AB9: =IF(AA9=0,0,(AA9*((LOG(AA9))/LOG(2)))) -> 0 | AD9: =N9 -> 121 | AE9: =COUNTIF(L55:L78,AD9) -> 0 | AF9: =AE9/(AG4-AE11) -> 0 | AG9: =IF(AF9=0,0,(AF9*((LOG(AF9))/LOG(2)))) -> 0 | AI9: =N9 -> 121 | AJ9: =COUNTIF(L79:L102,AI9) -> 0 | AK9: =AJ9/(AL4-AJ11) -> 0 | AL9: =IF(AK9=0,0,(AK9*((LOG(AK9))/LOG(2)))) -> 0 | AN9: =N9 -> 121 | AO9: =COUNTIF(L103:L126,AN9) -> 0 | AP9: =AO9/(AQ4-AO11) -> 0 | AQ9: =IF(AP9=0,0,(AP9*((LOG(AP9))/LOG(2)))) -> 0 | AS9: =N9 -> 121 | AT9: =COUNTIF(L127:L150,AS9) -> 1 | AU9: =AT9/(AV4-AT11) -> 0.04166666667 | AV9: =IF(AU9=0,0,(AU9*((LOG(AU9))/LOG(2)))) -> -0.1910401042
A10: 12 | B10: 0 | C10: 24 | D10: 0 | E10: 24 | F10: 0 | K10: 0 | L10: 122 | N10: 122 | O10: =COUNTIF($L$7:$L$500,N10) -> 58 | P10: =O10/$Q$4 -> 0.4027777778 | Q10: =IF(P10=0,0,(P10*((LOG(P10))/LOG(2)))) -> -0.5284218914 | T10: =N10 -> 122 | U10: =COUNTIF(L7:L30,T10) -> 17 | V10: =U10/(W4-U11) -> 0.7083333333 | W10: =IF(V10=0,0,(V10*((LOG(V10))/LOG(2)))) -> -0.3523955921 | Y10: =N10 -> 122 | Z10: =COUNTIF(L31:L54,Y10) -> 11 | AA10: =Z10/(AB4-Z11) -> 0.4583333333 | AB10: =IF(AA10=0,0,(AA10*((LOG(AA10))/LOG(2)))) -> -0.515868321 | AD10: =N10 -> 122 | AE10: =COUNTIF(L55:L78,AD10) -> 9 | AF10: =AE10/(AG4-AE11) -> 0.375 | AG10: =IF(AF10=0,0,(AF10*((LOG(AF10))/LOG(2)))) -> -0.5306390622 | AI10: =N10 -> 122 | AJ10: =COUNTIF(L79:L102,AI10) -> 12 | AK10: =AJ10/(AL4-AJ11) -> 0.5 | AL10: =IF(AK10=0,0,(AK10*((LOG(AK10))/LOG(2)))) -> -0.5 | AN10: =N10 -> 122 | AO10: =COUNTIF(L103:L126,AN10) -> 3 | AP10: =AO10/(AQ4-AO11) -> 0.125 | AQ10: =IF(AP10=0,0,(AP10*((LOG(AP10))/LOG(2)))) -> -0.375 | AS10: =N10 -> 122 | AT10: =COUNTIF(L127:L150,AS10) -> 6 | AU10: =AT10/(AV4-AT11) -> 0.25 | AV10: =IF(AU10=0,0,(AU10*((LOG(AU10))/LOG(2)))) -> -0.5
A11: 12 | B11: 0 | C11: 24 | D11: 0 | E11: 24 | F11: 0 | K11: 0 | L11: 122 | N11: 211 | O11: =COUNTIF($L$7:$L$500,N11) -> 0 | P11: =O11/$Q$4 -> 0 | Q11: =IF(P11=0,0,(P11*((LOG(P11))/LOG(2)))) -> 0 | T11: =N11 -> 211 | U11: =COUNTIF(L7:L30,T11) -> 0 | Y11: =N11 -> 211 | Z11: =COUNTIF(L31:L54,Y11) -> 0 | AD11: =N11 -> 211 | AE11: =COUNTIF(L55:L78,AD11) -> 0 | AI11: =N11 -> 211 | AJ11: =COUNTIF(L79:L102,AI11) -> 0 | AN11: =N11 -> 211 | AO11: =COUNTIF(L103:L126,AN11) -> 0 | AS11: =N11 -> 211 | AT11: =COUNTIF(L127:L150,AS11) -> 0
A12: 12 | B12: 0 | C12: 24 | D12: 0 | E12: 24 | F12: 0 | K12: 0 | L12: 122 | N12: 212 | O12: =COUNTIF($L$7:$L$500,N12) -> 0 | P12: =O12/$Q$4 -> 0 | Q12: =IF(P12=0,0,(P12*((LOG(P12))/LOG(2)))) -> 0 | T12: =N12 -> 212 | U12: =COUNTIF(L7:L30,T12) -> 0 | V12: =U12/(W4-U11) -> 0 | W12: =IF(V12=0,0,(V12*((LOG(V12))/LOG(2)))) -> 0 | Y12: =N12 -> 212 | Z12: =COUNTIF(L31:L54,Y12) -> 0 | AA12: =Z12/(AB4-Z11) -> 0 | AB12: =IF(AA12=0,0,(AA12*((LOG(AA12))/LOG(2)))) -> 0 | AD12: =N12 -> 212 | AE12: =COUNTIF(L55:L78,AD12) -> 0 | AF12: =AE12/(AG4-AE11) -> 0 | AG12: =IF(AF12=0,0,(AF12*((LOG(AF12))/LOG(2)))) -> 0 | AI12: =N12 -> 212 | AJ12: =COUNTIF(L79:L102,AI12) -> 0 | AK12: =AJ12/(AL4-AJ11) -> 0 | AL12: =IF(AK12=0,0,(AK12*((LOG(AK12))/LOG(2)))) -> 0 | AN12: =N12 -> 212 | AO12: =COUNTIF(L103:L126,AN12) -> 0 | AP12: =AO12/(AQ4-AO11) -> 0 | AQ12: =IF(AP12=0,0,(AP12*((LOG(AP12))/LOG(2)))) -> 0 | AS12: =N12 -> 212 | AT12: =COUNTIF(L127:L150,AS12) -> 0 | AU12: =AT12/(AV4-AT11) -> 0 | AV12: =IF(AU12=0,0,(AU12*((LOG(AU12))/LOG(2)))) -> 0
A13: 12 | B13: 0 | C13: 24 | D13: 0 | E13: 24 | F13: 0 | K13: 0 | L13: 122 | N13: 221 | O13: =COUNTIF($L$7:$L$500,N13) -> 0 | P13: =O13/$Q$4 -> 0 | Q13: =IF(P13=0,0,(P13*((LOG(P13))/LOG(2)))) -> 0 | T13: =N13 -> 221 | U13: =COUNTIF(L7:L30,T13) -> 0 | V13: =U13/(W4-U11) -> 0 | W13: =IF(V13=0,0,(V13*((LOG(V13))/LOG(2)))) -> 0 | Y13: =N13 -> 221 | Z13: =COUNTIF(L31:L54,Y13) -> 0 | AA13: =Z13/(AB4-Z11) -> 0 | AB13: =IF(AA13=0,0,(AA13*((LOG(AA13))/LOG(2)))) -> 0 | AD13: =N13 -> 221 | AE13: =COUNTIF(L55:L78,AD13) -> 0 | AF13: =AE13/(AG4-AE11) -> 0 | AG13: =IF(AF13=0,0,(AF13*((LOG(AF13))/LOG(2)))) -> 0 | AI13: =N13 -> 221 | AJ13: =COUNTIF(L79:L102,AI13) -> 0 | AK13: =AJ13/(AL4-AJ11) -> 0 | AL13: =IF(AK13=0,0,(AK13*((LOG(AK13))/LOG(2)))) -> 0 | AN13: =N13 -> 221 | AO13: =COUNTIF(L103:L126,AN13) -> 0 | AP13: =AO13/(AQ4-AO11) -> 0 | AQ13: =IF(AP13=0,0,(AP13*((LOG(AP13))/LOG(2)))) -> 0 | AS13: =N13 -> 221 | AT13: =COUNTIF(L127:L150,AS13) -> 0 | AU13: =AT13/(AV4-AT11) -> 0 | AV13: =IF(AU13=0,0,(AU13*((LOG(AU13))/LOG(2)))) -> 0
A14: 21 | B14: 0 | C14: 22 | D14: 0 | E14: 24 | F14: 0 | K14: 0 | L14: 222 | N14: 222 | O14: =COUNTIF($L$7:$L$500,N14) -> 76 | P14: =O14/$Q$4 -> 0.5277777778 | Q14: =IF(P14=0,0,(P14*((LOG(P14))/LOG(2)))) -> -0.4866097853 | T14: =N14 -> 222 | U14: =COUNTIF(L7:L30,T14) -> 7 | V14: =U14/(W4-U11) -> 0.2916666667 | W14: =IF(V14=0,0,(V14*((LOG(V14))/LOG(2)))) -> -0.5184688771 | Y14: =N14 -> 222 | Z14: =COUNTIF(L31:L54,Y14) -> 12 | AA14: =Z14/(AB4-Z11) -> 0.5 | AB14: =IF(AA14=0,0,(AA14*((LOG(AA14))/LOG(2)))) -> -0.5 | AD14: =N14 -> 222 | AE14: =COUNTIF(L55:L78,AD14) -> 10 | AF14: =AE14/(AG4-AE11) -> 0.4166666667 | AG14: =IF(AF14=0,0,(AF14*((LOG(AF14))/LOG(2)))) -> -0.5262643358 | AI14: =N14 -> 222 | AJ14: =COUNTIF(L79:L102,AI14) -> 11 | AK14: =AJ14/(AL4-AJ11) -> 0.4583333333 | AL14: =IF(AK14=0,0,(AK14*((LOG(AK14))/LOG(2)))) -> -0.515868321 | AN14: =N14 -> 222 | AO14: =COUNTIF(L103:L126,AN14) -> 21 | AP14: =AO14/(AQ4-AO11) -> 0.875 | AQ14: =IF(AP14=0,0,(AP14*((LOG(AP14))/LOG(2)))) -> -0.1685644432 | AS14: =N14 -> 222 | AT14: =COUNTIF(L127:L150,AS14) -> 15 | AU14: =AT14/(AV4-AT11) -> 0.625 | AV14: =IF(AU14=0,0,(AU14*((LOG(AU14))/LOG(2)))) -> -0.4237949407
A15: 12 | B15: 0 | C15: 24 | D15: 0 | E15: 24 | F15: 0 | K15: 0 | L15: 122 | P15: =SUM(P7:P14) -> 1 | Q15: =-SUM(Q7:Q14) -> 1.372216312 | V15: =SUM(V7:V14) -> 1 | W15: =-SUM(W7:W14) -> 0.8708644692 | AA15: =SUM(AA7:AA14) -> 1 | AB15: =-SUM(AB7:AB14) -> 1.206908425 | AF15: =SUM(AF7:AF14) -> 1 | AG15: =-SUM(AG7:AG14) -> 1.678770586 | AK15: =SUM(AK7:AK14) -> 1 | AL15: =-SUM(AL7:AL14) -> 1.206908425 | AP15: =SUM(AP7:AP14) -> 1 | AQ15: =-SUM(AQ7:AQ14) -> 0.5435644432 | AU15: =SUM(AU7:AU14) -> 1 | AV15: =-SUM(AV7:AV14) -> 1.496915253
A16: 12 | B16: 0 | C16: 24 | D16: 0 | E16: 24 | F16: 0 | K16: 0 | L16: 122 | P16: U= | Q16: =Q15/(LOG(Q4)/LOG(2)) -> 0.1913850301 | V16: U1= | W16: =W15/(LOG(W4)/LOG(2)) -> 0.1899392785 | AA16: U2= | AB16: =AB15/(LOG(AB4)/LOG(2)) -> 0.2632319076 | AF16: U3= | AG16: =AG15/(LOG(AG4)/LOG(2)) -> 0.36614707 | AK16: U4= | AL16: =AL15/(LOG(AL4)/LOG(2)) -> 0.2632319076 | AP16: U5= | AQ16: =AQ15/(LOG(AQ4)/LOG(2)) -> 0.118553738 | AU16: U6= | AV16: =AV15/(LOG(AV4)/LOG(2)) -> 0.3264836415
A17: 12 | B17: 0 | C17: 24 | D17: 0 | E17: 24 | F17: 0 | K17: 0 | L17: 122
A18: 12 | B18: 0 | C18: 24 | D18: 0 | E18: 24 | F18: 0 | K18: 0 | L18: 122
A19: 12 | B19: 0 | C19: 24 | D19: 0 | E19: 24 | F19: 0 | K19: 0 | L19: 122 | N19: Total Target Seq
A20: 21 | B20: 0 | C20: 22 | D20: 0 | E20: 24 | F20: 0 | K20: 0 | L20: 222 | N20: =COUNTIF(L7:L150,G3) -> 0 | P20: 24 | Q20: 24 | R20: 24 | S20: 24 | T20: 24 | U20: 24
A21: 12 | B21: 0 | C21: 24 | D21: 0 | E21: 24 | F21: 0 | K21: 0 | L21: 122 | P21: % of reinforcement given in 6 equal intervals based on number of trials
A22: 12 | B22: 0 | C22: 24 | D22: 0 | E22: 24 | F22: 0 | K22: 0 | L22: 122 | P22: %_1 | Q22: %_2 | R22: %_3 | S22: %_4 | T22: %_5 | U22: %_6
A23: 12 | B23: 0 | C23: 24 | D23: 0 | E23: 24 | F23: 0 | K23: 0 | L23: 122 | O23: target sequence | P23: =$G$3 -> 211 | Q23: =$G$3 -> 211 | R23: =$G$3 -> 211 | S23: =$G$3 -> 211 | T23: =$G$3 -> 211 | U23: =$G$3 -> 211
A24: 21 | B24: 0 | C24: 22 | D24: 0 | E24: 24 | F24: 0 | K24: 0 | L24: 222 | O24: total reinforcement | P24: =U11 -> 0 | Q24: =Z11 -> 0 | R24: =AE11 -> 0 | S24: =AJ11 -> 0 | T24: =AO11 -> 0 | U24: =AT11 -> 0
A25: 21 | B25: 0 | C25: 22 | D25: 0 | E25: 24 | F25: 0 | K25: 0 | L25: 222 | O25: % target
A26: 12 | B26: 0 | C26: 24 | D26: 0 | E26: 24 | F26: 0 | K26: 0 | L26: 122 | O26: CCRF
A27: 12 | B27: 0 | C27: 24 | D27: 0 | E27: 24 | F27: 0 | K27: 0 | L27: 122 | O27: % CCRf
A28: 12 | B28: 0 | C28: 24 | D28: 0 | E28: 24 | F28: 0 | K28: 0 | L28: 122 | O28: average response rate | P28: =F30/P20 -> 0 | Q28: =(F54-F30)/Q20 -> 0 | R28: =(F78-F54)/R20 -> 0 | S28: =(F102-F78)/S20 -> 0 | T28: =(F126-F102)/T20 -> 0 | U28: =(F150-F126)/U20 -> 0
A29: 12 | B29: 0 | C29: 24 | D29: 0 | E29: 24 | F29: 0 | K29: 0 | L29: 122
A30: 21 | B30: 0 | C30: 22 | D30: 0 | E30: 24 | F30: 0 | K30: 0 | L30: 222
A31: 12 | B31: 0 | C31: 24 | D31: 0 | E31: 24 | F31: 0 | K31: 0 | L31: 122
A32: 12 | B32: 0 | C32: 24 | D32: 0 | E32: 24 | F32: 0 | K32: 0 | L32: 122
A33: 21 | B33: 0 | C33: 22 | D33: 0 | E33: 24 | F33: 0 | K33: 0 | L33: 222
A34: 21 | B34: 0 | C34: 22 | D34: 0 | E34: 24 | F34: 0 | K34: 0 | L34: 222
A35: 21 | B35: 0 | C35: 22 | D35: 0 | E35: 24 | F35: 0 | K35: 0 | L35: 222
A36: 12 | B36: 0 | C36: 24 | D36: 0 | E36: 24 | F36: 0 | K36: 0 | L36: 122
A37: 12 | B37: 0 | C37: 24 | D37: 0 | E37: 24 | F37: 0 | K37: 0 | L37: 122
A38: 12 | B38: 0 | C38: 24 | D38: 0 | E38: 24 | F38: 0 | K38: 0 | L38: 122
A39: 12 | B39: 0 | C39: 24 | D39: 0 | E39: 24 | F39: 0 | K39: 0 | L39: 122
A40: 21 | B40: 0 | C40: 22 | D40: 0 | E40: 24 | F40: 0 | K40: 0 | L40: 222
A41: 21 | B41: 0 | C41: 22 | D41: 0 | E41: 24 | F41: 0 | K41: 0 | L41: 222
A42: 12 | B42: 0 | C42: 24 | D42: 0 | E42: 24 | F42: 0 | K42: 0 | L42: 122
A43: 21 | B43: 0 | C43: 22 | D43: 0 | E43: 24 | F43: 0 | K43: 0 | L43: 222
A44: 21 | B44: 0 | C44: 22 | D44: 0 | E44: 24 | F44: 0 | K44: 0 | L44: 222
A45: 12 | B45: 0 | C45: 24 | D45: 0 | E45: 24 | F45: 0 | K45: 0 | L45: 122
A46: 12 | B46: 0 | C46: 24 | D46: 0 | E46: 24 | F46: 0 | K46: 0 | L46: 122
A47: 21 | B47: 0 | C47: 22 | D47: 0 | E47: 24 | F47: 0 | K47: 0 | L47: 222
A48: 21 | B48: 0 | C48: 22 | D48: 0 | E48: 24 | F48: 0 | K48: 0 | L48: 222
A49: 12 | B49: 0 | C49: 24 | D49: 0 | E49: 24 | F49: 0 | K49: 0 | L49: 122
A50: 21 | B50: 0 | C50: 22 | D50: 0 | E50: 24 | F50: 0 | K50: 0 | L50: 222
A51: 12 | B51: 0 | C51: 24 | D51: 0 | E51: 24 | F51: 0 | K51: 0 | L51: 122
A52: 21 | B52: 0 | C52: 22 | D52: 0 | E52: 24 | F52: 0 | K52: 0 | L52: 222
A53: 21 | B53: 0 | C53: 22 | D53: 0 | E53: 24 | F53: 0 | K53: 0 | L53: 222
A54: 12 | B54: 0 | C54: 13 | D54: 0 | E54: 13 | F54: 0 | K54: 0 | L54: 111
A55: 21 | B55: 0 | C55: 22 | D55: 0 | E55: 24 | F55: 0 | K55: 0 | L55: 222
A56: 21 | B56: 0 | C56: 22 | D56: 0 | E56: 24 | F56: 0 | K56: 0 | L56: 222
A57: 12 | B57: 0 | C57: 24 | D57: 0 | E57: 24 | F57: 0 | K57: 0 | L57: 122
A58: 12 | B58: 0 | C58: 24 | D58: 0 | E58: 24 | F58: 0 | K58: 0 | L58: 122
A59: 12 | B59: 0 | C59: 13 | D59: 0 | E59: 24 | F59: 0 | K59: 0 | L59: 112
A60: 12 | B60: 0 | C60: 24 | D60: 0 | E60: 24 | F60: 0 | K60: 0 | L60: 122
A61: 12 | B61: 0 | C61: 13 | D61: 0 | E61: 24 | F61: 0 | K61: 0 | L61: 112
A62: 12 | B62: 0 | C62: 24 | D62: 0 | E62: 24 | F62: 0 | K62: 0 | L62: 122
A63: 21 | B63: 0 | C63: 22 | D63: 0 | E63: 24 | F63: 0 | K63: 0 | L63: 222
A64: 12 | B64: 0 | C64: 24 | D64: 0 | E64: 24 | F64: 0 | K64: 0 | L64: 122
A65: 12 | B65: 0 | C65: 24 | D65: 0 | E65: 24 | F65: 0 | K65: 0 | L65: 122
A66: 12 | B66: 0 | C66: 13 | D66: 0 | E66: 13 | F66: 0 | K66: 0 | L66: 111
A67: 12 | B67: 0 | C67: 13 | D67: 0 | E67: 24 | F67: 0 | K67: 0 | L67: 112
A68: 21 | B68: 0 | C68: 22 | D68: 0 | E68: 24 | F68: 0 | K68: 0 | L68: 222
A69: 21 | B69: 0 | C69: 22 | D69: 0 | E69: 24 | F69: 0 | K69: 0 | L69: 222
A70: 21 | B70: 0 | C70: 22 | D70: 0 | E70: 24 | F70: 0 | K70: 0 | L70: 222
A71: 12 | B71: 0 | C71: 24 | D71: 0 | E71: 24 | F71: 0 | K71: 0 | L71: 122
A72: 12 | B72: 0 | C72: 13 | D72: 0 | E72: 24 | F72: 0 | K72: 0 | L72: 112
A73: 21 | B73: 0 | C73: 22 | D73: 0 | E73: 24 | F73: 0 | K73: 0 | L73: 222
A74: 12 | B74: 0 | C74: 24 | D74: 0 | E74: 24 | F74: 0 | K74: 0 | L74: 122
A75: 21 | B75: 0 | C75: 22 | D75: 0 | E75: 24 | F75: 0 | K75: 0 | L75: 222
A76: 12 | B76: 0 | C76: 24 | D76: 0 | E76: 24 | F76: 0 | K76: 0 | L76: 122
A77: 21 | B77: 0 | C77: 22 | D77: 0 | E77: 24 | F77: 0 | K77: 0 | L77: 222
A78: 21 | B78: 0 | C78: 22 | D78: 0 | E78: 24 | F78: 0 | K78: 0 | L78: 222
A79: 21 | B79: 0 | C79: 22 | D79: 0 | E79: 24 | F79: 0 | K79: 0 | L79: 222
A80: 12 | B80: 0 | C80: 24 | D80: 0 | E80: 24 | F80: 0 | K80: 0 | L80: 122
A81: 21 | B81: 0 | C81: 22 | D81: 0 | E81: 24 | F81: 0 | K81: 0 | L81: 222
A82: 21 | B82: 0 | C82: 22 | D82: 0 | E82: 24 | F82: 0 | K82: 0 | L82: 222
A83: 21 | B83: 0 | C83: 22 | D83: 0 | E83: 24 | F83: 0 | K83: 0 | L83: 222
A84: 12 | B84: 0 | C84: 24 | D84: 0 | E84: 24 | F84: 0 | K84: 0 | L84: 122
A85: 21 | B85: 0 | C85: 22 | D85: 0 | E85: 24 | F85: 0 | K85: 0 | L85: 222
A86: 21 | B86: 0 | C86: 22 | D86: 0 | E86: 24 | F86: 0 | K86: 0 | L86: 222
A87: 12 | B87: 0 | C87: 24 | D87: 0 | E87: 24 | F87: 0 | K87: 0 | L87: 122
A88: 12 | B88: 0 | C88: 24 | D88: 0 | E88: 24 | F88: 0 | K88: 0 | L88: 122
A89: 12 | B89: 0 | C89: 24 | D89: 0 | E89: 24 | F89: 0 | K89: 0 | L89: 122
A90: 21 | B90: 0 | C90: 22 | D90: 0 | E90: 24 | F90: 0 | K90: 0 | L90: 222
A91: 12 | B91: 0 | C91: 24 | D91: 0 | E91: 24 | F91: 0 | K91: 0 | L91: 122
A92: 21 | B92: 0 | C92: 22 | D92: 0 | E92: 24 | F92: 0 | K92: 0 | L92: 222
A93: 12 | B93: 0 | C93: 24 | D93: 0 | E93: 24 | F93: 0 | K93: 0 | L93: 122
A94: 21 | B94: 0 | C94: 22 | D94: 0 | E94: 24 | F94: 0 | K94: 0 | L94: 222
A95: 12 | B95: 0 | C95: 24 | D95: 0 | E95: 24 | F95: 0 | K95: 0 | L95: 122
A96: 12 | B96: 0 | C96: 24 | D96: 0 | E96: 24 | F96: 0 | K96: 0 | L96: 122
A97: 12 | B97: 0 | C97: 24 | D97: 0 | E97: 24 | F97: 0 | K97: 0 | L97: 122
A98: 21 | B98: 0 | C98: 22 | D98: 0 | E98: 24 | F98: 0 | K98: 0 | L98: 222
A99: 12 | B99: 0 | C99: 24 | D99: 0 | E99: 24 | F99: 0 | K99: 0 | L99: 122
A100: 12 | B100: 0 | C100: 13 | D100: 0 | E100: 24 | F100: 0 | K100: 0 | L100: 112
A101: 21 | B101: 0 | C101: 22 | D101: 0 | E101: 24 | F101: 0 | K101: 0 | L101: 222
A102: 12 | B102: 0 | C102: 24 | D102: 0 | E102: 24 | F102: 0 | K102: 0 | L102: 122
A103: 21 | B103: 0 | C103: 22 | D103: 0 | E103: 24 | F103: 0 | K103: 0 | L103: 222
A104: 12 | B104: 0 | C104: 24 | D104: 0 | E104: 24 | F104: 0 | K104: 0 | L104: 122
A105: 21 | B105: 0 | C105: 22 | D105: 0 | E105: 24 | F105: 0 | K105: 0 | L105: 222
A106: 21 | B106: 0 | C106: 22 | D106: 0 | E106: 24 | F106: 0 | K106: 0 | L106: 222
A107: 21 | B107: 0 | C107: 22 | D107: 0 | E107: 24 | F107: 0 | K107: 0 | L107: 222
A108: 21 | B108: 0 | C108: 22 | D108: 0 | E108: 24 | F108: 0 | K108: 0 | L108: 222
A109: 21 | B109: 0 | C109: 22 | D109: 0 | E109: 24 | F109: 0 | K109: 0 | L109: 222
A110: 21 | B110: 0 | C110: 22 | D110: 0 | E110: 24 | F110: 0 | K110: 0 | L110: 222
A111: 12 | B111: 0 | C111: 24 | D111: 0 | E111: 24 | F111: 0 | K111: 0 | L111: 122
A112: 21 | B112: 0 | C112: 22 | D112: 0 | E112: 24 | F112: 0 | K112: 0 | L112: 222
A113: 21 | B113: 0 | C113: 22 | D113: 0 | E113: 24 | F113: 0 | K113: 0 | L113: 222
A114: 21 | B114: 0 | C114: 22 | D114: 0 | E114: 24 | F114: 0 | K114: 0 | L114: 222
A115: 21 | B115: 0 | C115: 22 | D115: 0 | E115: 24 | F115: 0 | K115: 0 | L115: 222
A116: 21 | B116: 0 | C116: 22 | D116: 0 | E116: 24 | F116: 0 | K116: 0 | L116: 222
A117: 12 | B117: 0 | C117: 24 | D117: 0 | E117: 24 | F117: 0 | K117: 0 | L117: 122
A118: 21 | B118: 0 | C118: 22 | D118: 0 | E118: 24 | F118: 0 | K118: 0 | L118: 222
A119: 21 | B119: 0 | C119: 22 | D119: 0 | E119: 24 | F119: 0 | K119: 0 | L119: 222
A120: 21 | B120: 0 | C120: 22 | D120: 0 | E120: 24 | F120: 0 | K120: 0 | L120: 222
A121: 21 | B121: 0 | C121: 22 | D121: 0 | E121: 24 | F121: 0 | K121: 0 | L121: 222
A122: 21 | B122: 0 | C122: 22 | D122: 0 | E122: 24 | F122: 0 | K122: 0 | L122: 222
A123: 21 | B123: 0 | C123: 22 | D123: 0 | E123: 24 | F123: 0 | K123: 0 | L123: 222
A124: 21 | B124: 0 | C124: 22 | D124: 0 | E124: 24 | F124: 0 | K124: 0 | L124: 222
A125: 21 | B125: 0 | C125: 22 | D125: 0 | E125: 24 | F125: 0 | K125: 0 | L125: 222
A126: 21 | B126: 0 | C126: 22 | D126: 0 | E126: 24 | F126: 0 | K126: 0 | L126: 222
A127: 21 | B127: 0 | C127: 22 | D127: 0 | E127: 24 | F127: 0 | K127: 0 | L127: 222
A128: 21 | B128: 0 | C128: 22 | D128: 0 | E128: 24 | F128: 0 | K128: 0 | L128: 222
A129: 21 | B129: 0 | C129: 22 | D129: 0 | E129: 24 | F129: 0 | K129: 0 | L129: 222
A130: 21 | B130: 0 | C130: 22 | D130: 0 | E130: 24 | F130: 0 | K130: 0 | L130: 222
A131: 12 | B131: 0 | C131: 24 | D131: 0 | E131: 24 | F131: 0 | K131: 0 | L131: 122
A132: 21 | B132: 0 | C132: 22 | D132: 0 | E132: 24 | F132: 0 | K132: 0 | L132: 222
A133: 21 | B133: 0 | C133: 22 | D133: 0 | E133: 24 | F133: 0 | K133: 0 | L133: 222
A134: 21 | B134: 0 | C134: 22 | D134: 0 | E134: 24 | F134: 0 | K134: 0 | L134: 222
A135: 21 | B135: 0 | C135: 22 | D135: 0 | E135: 24 | F135: 0 | K135: 0 | L135: 222
A136: 12 | B136: 0 | C136: 24 | D136: 0 | E136: 24 | F136: 0 | K136: 0 | L136: 122
A137: 12 | B137: 0 | C137: 24 | D137: 0 | E137: 24 | F137: 0 | K137: 0 | L137: 122
A138: 21 | B138: 0 | C138: 22 | D138: 0 | E138: 24 | F138: 0 | K138: 0 | L138: 222
A139: 21 | B139: 0 | C139: 22 | D139: 0 | E139: 24 | F139: 0 | K139: 0 | L139: 222
A140: 21 | B140: 0 | C140: 22 | D140: 0 | E140: 24 | F140: 0 | K140: 0 | L140: 222
A141: 21 | B141: 0 | C141: 22 | D141: 0 | E141: 24 | F141: 0 | K141: 0 | L141: 222
A142: 21 | B142: 0 | C142: 22 | D142: 0 | E142: 24 | F142: 0 | K142: 0 | L142: 222
A143: 12 | B143: 0 | C143: 24 | D143: 0 | E143: 24 | F143: 0 | K143: 0 | L143: 122
A144: 21 | B144: 0 | C144: 22 | D144: 0 | E144: 24 | F144: 0 | K144: 0 | L144: 222
A145: 12 | B145: 0 | C145: 24 | D145: 0 | E145: 24 | F145: 0 | K145: 0 | L145: 122
A146: 21 | B146: 0 | C146: 22 | D146: 0 | E146: 24 | F146: 0 | K146: 0 | L146: 222
A147: 12 | B147: 0 | C147: 13 | D147: 0 | E147: 24 | F147: 0 | K147: 0 | L147: 112
A148: 12 | B148: 0 | C148: 24 | D148: 0 | E148: 13 | F148: 0 | K148: 0 | L148: 121
A149: 12 | B149: 0 | C149: 24 | D149: 0 | E149: 24 | F149: 0 | K149: 0 | L149: 122
A150: 12 | B150: 0 | C150: 13 | D150: 0 | E150: 13 | F150: 0 | K150: 0 | L150: 111

Sheet !M121A00.Gus
A1: Report for:!M121A00.Gus
A2: Date: | B2: <date>
A3: Hen: | B3: <hen> | F3: Correct Sequence | G3: =Start!J2 -> 211 | P3: Total Sequences in Data | Q3: =4994-COUNTBLANK(L7:L5000) -> 127 | V3: Total Sequences in Block Data | W3: =COUNTA(L7:L27) -> 21 | AA3: Total Sequences in Block Data | AB3: =COUNTA(L28:L48) -> 21 | AF3: Total Sequences in Block Data | AG3: =COUNTA(L49:L70) -> 22 | AK3: Total Sequences in Block Data | AL3: =COUNTA(L71:L91) -> 21 | AP3: Total Sequences in Block Data | AQ3: =COUNTA(L92:L112) -> 21 | AU3: Total Sequences in Block Data | AV3: =COUNTA(L113:L133) -> 21
P4: Total Sequences in Summary | Q4: =SUM(O7:O14) -> 127 | V4: Total Sequences in Block Summary | W4: =SUM(U7:U14) -> 21 | AA4: Total Sequences in Block Summary | AB4: =SUM(Z7:Z14) -> 21 | AF4: Total Sequences in Block Summary | AG4: =SUM(AE7:AE14) -> 22 | AK4: Total Sequences in Block Summary | AL4: =SUM(AJ7:AJ14) -> 21 | AP4: Total Sequences in Block Summary | AQ4: =SUM(AO7:AO14) -> 21 | AU4: Total Sequences in Block Summary | AV4: =SUM(AT7:AT14) -> 21
T5: Block 1 | Y5: Block 2 | AD5: Block 3 | AI5: Block 4 | AN5: Block 5 | AS5: Block 6
A6: Sequence Component 1 | B6: Time 1 | C6: Sequence Component 2 | D6: Time 2 | E6: Sequence Component 3 | F6: Time 3 | G6: Sequence Component 4 | H6: Time 4 | I6: Sequence Component 5 | J6: Time 5 | K6: Correct? 0=No 1=Yes | L6: Sequence | N6: Frequency | P6: Relative Frequency | Q6: Variability | T6: Frequency | V6: Relative Frequency | W6: Variability | Y6: Frequency | AA6: Relative Frequency | AB6: Variability | AD6: Frequency | AF6: Relative Frequency | AG6: Variability | AI6: Frequency | AK6: Relative Frequency | AL6: Variability | AN6: Frequency | AP6: Relative Frequency | AQ6: Variability | AS6: Frequency | AU6: Relative Frequency | AV6: Variability
A7: 21 | B7: 17 | C7: 22 | D7: 25 | E7: 24 | F7: 32 | K7: 0 | L7: 222 | N7: 111 | O7: =COUNTIF($L$7:$L$500,N7) -> 0 | P7: =O7/$Q$4 -> 0 | Q7: =IF(P7=0,0,(P7*((LOG(P7))/LOG(2)))) -> 0 | T7: =N7 -> 111 | U7: =COUNTIF(L7:L27,T7) -> 0 | V7: =U7/(W4-U11) -> 0 | W7: =IF(V7=0,0,(V7*((LOG(V7))/LOG(2)))) -> 0 | Y7: =N7 -> 111 | Z7: =COUNTIF(L28:L48,Y7) -> 0 | AA7: =Z7/(AB4-Z11) -> 0 | AB7: =IF(AA7=0,0,(AA7*((LOG(AA7))/LOG(2)))) -> 0 | AD7: =N7 -> 111 | AE7: =COUNTIF(L49:L70,AD7) -> 0 | AF7: =AE7/(AG4-AE11) -> 0 | AG7: =IF(AF7=0,0,(AF7*((LOG(AF7))/LOG(2)))) -> 0 | AI7: =N7 -> 111 | AJ7: =COUNTIF(L71:L91,AI7) -> 0 | AK7: =AJ7/(AL4-AJ11) -> 0 | AL7: =IF(AK7=0,0,(AK7*((LOG(AK7))/LOG(2)))) -> 0 | AN7: =N7 -> 111 | AO7: =COUNTIF(L92:L112,AN7) -> 0 | AP7: =AO7/(AQ4-AO11) -> 0 | AQ7: =IF(AP7=0,0,(AP7*((LOG(AP7))/LOG(2)))) -> 0 | AS7: =N7 -> 111 | AT7: =COUNTIF(L113:L133,AS7) -> 0 | AU7: =AT7/(AV4-AT11) -> 0 | AV7: =IF(AU7=0,0,(AU7*((LOG(AU7))/LOG(2)))) -> 0
A8: 12 | B8: 132 | C8: 24 | D8: 140 | E8: 24 | F8: 145 | K8: 0 | L8: 122 | N8: 112 | O8: =COUNTIF($L$7:$L$500,N8) -> 5 | P8: =O8/$Q$4 -> 0.03937007874 | Q8: =IF(P8=0,0,(P8*((LOG(P8))/LOG(2)))) -> -0.1837305745 | T8: =N8 -> 112 | U8: =COUNTIF(L7:L27,T8) -> 2 | V8: =U8/(W4-U11) -> 0.09523809524 | W8: =IF(V8=0,0,(V8*((LOG(V8))/LOG(2)))) -> -0.3230778498 | Y8: =N8 -> 112 | Z8: =COUNTIF(L28:L48,Y8) -> 2 | AA8: =Z8/(AB4-Z11) -> 0.09523809524 | AB8: =IF(AA8=0,0,(AA8*((LOG(AA8))/LOG(2)))) -> -0.3230778498 | AD8: =N8 -> 112 | AE8: =COUNTIF(L49:L70,AD8) -> 1 | AF8: =AE8/(AG4-AE11) -> 0.04545454545 | AG8: =IF(AF8=0,0,(AF8*((LOG(AF8))/LOG(2)))) -> -0.2027014372 | AI8: =N8 -> 112 | AJ8: =COUNTIF(L71:L91,AI8) -> 0 | AK8: =AJ8/(AL4-AJ11) -> 0 | AL8: =IF(AK8=0,0,(AK8*((LOG(AK8))/LOG(2)))) -> 0 | AN8: =N8 -> 112 | AO8: =COUNTIF(L92:L112,AN8) -> 0 | AP8: =AO8/(AQ4-AO11) -> 0 | AQ8: =IF(AP8=0,0,(AP8*((LOG(AP8))/LOG(2)))) -> 0 | AS8: =N8 -> 112 | AT8: =COUNTIF(L113:L133,AS8) -> 0 | AU8: =AT8/(AV4-AT11) -> 0 | AV8: =IF(AU8=0,0,(AU8*((LOG(AU8))/LOG(2)))) -> 0
A9: 12 | B9: 244 | C9: 24 | D9: 258 | E9: 24 | F9: 263 | K9: 0 | L9: 122 | N9: 121 | O9: =COUNTIF($L$7:$L$500,N9) -> 0 | P9: =O9/$Q$4 -> 0 | Q9: =IF(P9=0,0,(P9*((LOG(P9))/LOG(2)))) -> 0 | T9: =N9 -> 121 | U9: =COUNTIF(L7:L27,T9) -> 0 | V9: =U9/(W4-U11) -> 0 | W9: =IF(V9=0,0,(V9*((LOG(V9))/LOG(2)))) -> 0 | Y9: =N9 -> 121 | Z9: =COUNTIF(L28:L48,Y9) -> 0 | AA9: =Z9/(AB4-Z11) -> 0 | AB9: =IF(AA9=0,0,(AA9*((LOG(AA9))/LOG(2)))) -> 0 | AD9: =N9 -> 121 | AE9: =COUNTIF(L49:L70,AD9) -> 0 | AF9: =AE9/(AG4-AE11) -> 0 | AG9: =IF(AF9=0,0,(AF9*((LOG(AF9))/LOG(2)))) -> 0 | AI9: =N9 -> 121 | AJ9: =COUNTIF(L71:L91,AI9) -> 0 | AK9: =AJ9/(AL4-AJ11) -> 0 | AL9: =IF(AK9=0,0,(AK9*((LOG(AK9))/LOG(2)))) -> 0 | AN9: =N9 -> 121 | AO9: =COUNTIF(L92:L112,AN9) -> 0 | AP9: =AO9/(AQ4-AO11) -> 0 | AQ9: =IF(AP9=0,0,(AP9*((LOG(AP9))/LOG(2)))) -> 0 | AS9: =N9 -> 121 | AT9: =COUNTIF(L113:L133,AS9) -> 0 | AU9: =AT9/(AV4-AT11) -> 0 | AV9: =IF(AU9=0,0,(AU9*((LOG(AU9))/LOG(2)))) -> 0
A10: 21 | B10: 372 | C10: 22 | D10: 394 | E10: 24 | F10: 400 | K10: 0 | L10: 222 | N10: 122 | O10: =COUNTIF($L$7:$L$500,N10) -> 61 | P10: =O10/$Q$4 -> 0.4803149606 | Q10: =IF(P10=0,0,(P10*((LOG(P10))/LOG(2)))) -> -0.5081479394 | T10: =N10 -> 122 | U10: =COUNTIF(L7:L27,T10) -> 14 | V10: =U10/(W4-U11) -> 0.6666666667 | W10: =IF(V10=0,0,(V10*((LOG(V10))/LOG(2)))) -> -0.3899750005 | Y10: =N10 -> 122 | Z10: =COUNTIF(L28:L48,Y10) -> 10 | AA10: =Z10/(AB4-Z11) -> 0.4761904762 | AB10: =IF(AA10=0,0,(AA10*((LOG(AA10))/LOG(2)))) -> -0.5097092038 | AD10: =N10 -> 122 | AE10: =COUNTIF(L49:L70,AD10) -> 12 | AF10: =AE10/(AG4-AE11) -> 0.5454545455 | AG10: =IF(AF10=0,0,(AF10*((LOG(AF10))/LOG(2)))) -> -0.4769831552 | AI10: =N10 -> 122 | AJ10: =COUNTIF(L71:L91,AI10) -> 10 | AK10: =AJ10/(AL4-AJ11) -> 0.4761904762 | AL10: =IF(AK10=0,0,(AK10*((LOG(AK10))/LOG(2)))) -> -0.5097092038 | AN10: =N10 -> 122 | AO10: =COUNTIF(L92:L112,AN10) -> 9 | AP10: =AO10/(AQ4-AO11) -> 0.4285714286 | AQ10: =IF(AP10=0,0,(AP10*((LOG(AP10))/LOG(2)))) -> -0.5238824663 | AS10: =N10 -> 122 | AT10: =COUNTIF(L113:L133,AS10) -> 6 | AU10: =AT10/(AV4-AT11) -> 0.2857142857 | AV10: =IF(AU10=0,0,(AU10*((LOG(AU10))/LOG(2)))) -> -0.5163871206
A11: 12 | B11: 500 | C11: 24 | D11: 515 | E11: 24 | F11: 522 | K11: 0 | L11: 122 | N11: 211 | O11: =COUNTIF($L$7:$L$500,N11) -> 0 | P11: =O11/$Q$4 -> 0 | Q11: =IF(P11=0,0,(P11*((LOG(P11))/LOG(2)))) -> 0 | T11: =N11 -> 211 | U11: =COUNTIF(L7:L27,T11) -> 0 | Y11: =N11 -> 211 | Z11: =COUNTIF(L28:L48,Y11) -> 0 | AD11: =N11 -> 211 | AE11: =COUNTIF(L49:L70,AD11) -> 0 | AI11: =N11 -> 211 | AJ11: =COUNTIF(L71:L91,AI11) -> 0 | AN11: =N11 -> 211 | AO11: =COUNTIF(L92:L112,AN11) -> 0 | AS11: =N11 -> 211 | AT11: =COUNTIF(L113:L133,AS11) -> 0
A12: 12 | B12: 620 | C12: 24 | D12: 643 | E12: 24 | F12: 648 | K12: 0 | L12: 122 | N12: 212 | O12: =COUNTIF($L$7:$L$500,N12) -> 0 | P12: =O12/$Q$4 -> 0 | Q12: =IF(P12=0,0,(P12*((LOG(P12))/LOG(2)))) -> 0 | T12: =N12 -> 212 | U12: =COUNTIF(L7:L27,T12) -> 0 | V12: =U12/(W4-U11) -> 0 | W12: =IF(V12=0,0,(V12*((LOG(V12))/LOG(2)))) -> 0 | Y12: =N12 -> 212 | Z12: =COUNTIF(L28:L48,Y12) -> 0 | AA12: =Z12/(AB4-Z11) -> 0 | AB12: =IF(AA12=0,0,(AA12*((LOG(AA12))/LOG(2)))) -> 0 | AD12: =N12 -> 212 | AE12: =COUNTIF(L49:L70,AD12) -> 0 | AF12: =AE12/(AG4-AE11) -> 0 | AG12: =IF(AF12=0,0,(AF12*((LOG(AF12))/LOG(2)))) -> 0 | AI12: =N12 -> 212 | AJ12: =COUNTIF(L71:L91,AI12) -> 0 | AK12: =AJ12/(AL4-AJ11) -> 0 | AL12: =IF(AK12=0,0,(AK12*((LOG(AK12))/LOG(2)))) -> 0 | AN12: =N12 -> 212 | AO12: =COUNTIF(L92:L112,AN12) -> 0 | AP12: =AO12/(AQ4-AO11) -> 0 | AQ12: =IF(AP12=0,0,(AP12*((LOG(AP12))/LOG(2)))) -> 0 | AS12: =N12 -> 212 | AT12: =COUNTIF(L113:L133,AS12) -> 0 | AU12: =AT12/(AV4-AT11) -> 0 | AV12: =IF(AU12=0,0,(AU12*((LOG(AU12))/LOG(2)))) -> 0
A13: 12 | B13: 766 | C13: 24 | D13: 775 | E13: 24 | F13: 782 | K13: 0 | L13: 122 | N13: 221 | O13: =COUNTIF($L$7:$L$500,N13) -> 0 | P13: =O13/$Q$4 -> 0 | Q13: =IF(P13=0,0,(P13*((LOG(P13))/LOG(2)))) -> 0 | T13: =N13 -> 221 | U13: =COUNTIF(L7:L27,T13) -> 0 | V13: =U13/(W4-U11) -> 0 | W13: =IF(V13=0,0,(V13*((LOG(V13))/LOG(2)))) -> 0 | Y13: =N13 -> 221 | Z13: =COUNTIF(L28:L48,Y13) -> 0 | AA13: =Z13/(AB4-Z11) -> 0 | AB13: =IF(AA13=0,0,(AA13*((LOG(AA13))/LOG(2)))) -> 0 | AD13: =N13 -> 221 | AE13: =COUNTIF(L49:L70,AD13) -> 0 | AF13: =AE13/(AG4-AE11) -> 0 | AG13: =IF(AF13=0,0,(AF13*((LOG(AF13))/LOG(2)))) -> 0 | AI13: =N13 -> 221 | AJ13: =COUNTIF(L71:L91,AI13) -> 0 | AK13: =AJ13/(AL4-AJ11) -> 0 | AL13: =IF(AK13=0,0,(AK13*((LOG(AK13))/LOG(2)))) -> 0 | AN13: =N13 -> 221 | AO13: =COUNTIF(L92:L112,AN13) -> 0 | AP13: =AO13/(AQ4-AO11) -> 0 | AQ13: =IF(AP13=0,0,(AP13*((LOG(AP13))/LOG(2)))) -> 0 | AS13: =N13 -> 221 | AT13: =COUNTIF(L113:L133,AS13) -> 0 | AU13: =AT13/(AV4-AT11) -> 0 | AV13: =IF(AU13=0,0,(AU13*((LOG(AU13))/LOG(2)))) -> 0
A14: 12 | B14: 1113 | C14: 24 | D14: 1125 | E14: 24 | F14: 1131 | K14: 0 | L14: 122 | N14: 222 | O14: =COUNTIF($L$7:$L$500,N14) -> 61 | P14: =O14/$Q$4 -> 0.4803149606 | Q14: =IF(P14=0,0,(P14*((LOG(P14))/LOG(2)))) -> -0.5081479394 | T14: =N14 -> 222 | U14: =COUNTIF(L7:L27,T14) -> 5 | V14: =U14/(W4-U11) -> 0.2380952381 | W14: =IF(V14=0,0,(V14*((LOG(V14))/LOG(2)))) -> -0.49294984 | Y14: =N14 -> 222 | Z14: =COUNTIF(L28:L48,Y14) -> 9 | AA14: =Z14/(AB4-Z11) -> 0.4285714286 | AB14: =IF(AA14=0,0,(AA14*((LOG(AA14))/LOG(2)))) -> -0.5238824663 | AD14: =N14 -> 222 | AE14: =COUNTIF(L49:L70,AD14) -> 9 | AF14: =AE14/(AG4-AE11) -> 0.4090909091 | AG14: =IF(AF14=0,0,(AF14*((LOG(AF14))/LOG(2)))) -> -0.5275254343 | AI14: =N14 -> 222 | AJ14: =COUNTIF(L71:L91,AI14) -> 11 | AK14: =AJ14/(AL4-AJ11) -> 0.5238095238 | AL14: =IF(AK14=0,0,(AK14*((LOG(AK14))/LOG(2)))) -> -0.4886544688 | AN14: =N14 -> 222 | AO14: =COUNTIF(L92:L112,AN14) -> 12 | AP14: =AO14/(AQ4-AO11) -> 0.5714285714 | AQ14: =IF(AP14=0,0,(AP14*((LOG(AP14))/LOG(2)))) -> -0.4613456697 | AS14: =N14 -> 222 | AT14: =COUNTIF(L113:L133,AS14) -> 15 | AU14: =AT14/(AV4-AT11) -> 0.7142857143 | AV14: =IF(AU14=0,0,(AU14*((LOG(AU14))/LOG(2)))) -> -0.346733448
A15: 21 | B15: 1244 | C15: 22 | D15: 1251 | E15: 24 | F15: 1257 | K15: 0 | L15: 222 | P15: =SUM(P7:P14) -> 1 | Q15: =-SUM(Q7:Q14) -> 1.200026453 | V15: =SUM(V7:V14) -> 1 | W15: =-SUM(W7:W14) -> 1.20600269 | AA15: =SUM(AA7:AA14) -> 1 | AB15: =-SUM(AB7:AB14) -> 1.35666952 | AF15: =SUM(AF7:AF14) -> 1 | AG15: =-SUM(AG7:AG14) -> 1.207210027 | AK15: =SUM(AK7:AK14) -> 1 | AL15: =-SUM(AL7:AL14) -> 0.9983636726 | AP15: =SUM(AP7:AP14) -> 1 | AQ15: =-SUM(AQ7:AQ14) -> 0.985228136 | AU15: =SUM(AU7:AU14) -> 1 | AV15: =-SUM(AV7:AV14) -> 0.8631205686
A16: 21 | B16: 1363 | C16: 22 | D16: 1368 | E16: 24 | F16: 1373 | K16: 0 | L16: 222 | P16: U= | Q16: =Q15/(LOG(Q4)/LOG(2)) -> 0.171709915 | V16: U1= | W16: =W15/(LOG(W4)/LOG(2)) -> 0.2745709324 | AA16: U2= | AB16: =AB15/(LOG(AB4)/LOG(2)) -> 0.308873287 | AF16: U3= | AG16: =AG15/(LOG(AG4)/LOG(2)) -> 0.270709393 | AK16: U4= | AL16: =AL15/(LOG(AL4)/LOG(2)) -> 0.2272977056 | AP16: U5= | AQ16: =AQ15/(LOG(AQ4)/LOG(2)) -> 0.2243071348 | AU16: U6= | AV16: =AV15/(LOG(AV4)/LOG(2)) -> 0.1965068745
A17: 12 | B17: 1474 | C17: 24 | D17: 1483 | E17: 24 | F17: 1485 | K17: 0 | L17: 122
A18: 12 | B18: 1577 | C18: 13 | D18: 1586 | E18: 24 | F18: 1594 | K18: 0 | L18: 112
A19: 12 | B19: 1692 | C19: 24 | D19: 1707 | E19: 24 | F19: 1710 | K19: 0 | L19: 122 | N19: Total Target Seq
A20: 12 | B20: 1886 | C20: 24 | D20: 1919 | E20: 24 | F20: 1926 | K20: 0 | L20: 122 | N20: =COUNTIF(L7:L133,G3) -> 0 | P20: 21 | Q20: 21 | R20: 22 | S20: 21 | T20: 21 | U20: 21
A21: 12 | B21: 2020 | C21: 24 | D21: 2027 | E21: 24 | F21: 2031 | K21: 0 | L21: 122 | P21: % of reinforcement given in 6 equal intervals based on number of trials
A22: 12 | B22: 2125 | C22: 24 | D22: 2144 | E22: 24 | F22: 2150 | K22: 0 | L22: 122 | P22: %_1 | Q22: %_2 | R22: %_3 | S22: %_4 | T22: %_5 | U22: %_6
A23: 12 | B23: 2251 | C23: 24 | D23: 2261 | E23: 24 | F23: 2266 | K23: 0 | L23: 122 | O23: target sequence | P23: =$G$3 -> 211 | Q23: =$G$3 -> 211 | R23: =$G$3 -> 211 | S23: =$G$3 -> 211 | T23: =$G$3 -> 211 | U23: =$G$3 -> 211
A24: 12 | B24: 2365 | C24: 24 | D24: 2375 | E24: 24 | F24: 2379 | K24: 0 | L24: 122 | O24: total reinforcement | P24: =U11 -> 0 | Q24: =Z11 -> 0 | R24: =AE11 -> 0 | S24: =AJ11 -> 0 | T24: =AO11 -> 0 | U24: =AT11 -> 0
A25: 21 | B25: 2487 | C25: 22 | D25: 2493 | E25: 24 | F25: 2498 | K25: 0 | L25: 222 | O25: % target
A26: 12 | B26: 2598 | C26: 24 | D26: 2609 | E26: 24 | F26: 2614 | K26: 0 | L26: 122 | O26: CCRF
A27: 12 | B27: 2706 | C27: 13 | D27: 2712 | E27: 24 | F27: 2720 | K27: 0 | L27: 112 | O27: % CCRf
A28: 12 | B28: 2813 | C28: 24 | D28: 2827 | E28: 24 | F28: 2840 | K28: 0 | L28: 122 | O28: average response rate | P28: =F27/P20 -> 129.5238095 | Q28: =(F48-F27)/Q20 -> 164.1904762 | R28: =(F70-F48)/R20 -> 178.9090909 | S28: =(F91-F70)/S20 -> 294.3333333 | T28: =(F112-F91)/T20 -> 149.2380952 | U28: =(F133-F112)/U20 -> 218.0952381
A29: 12 | B29: 2959 | C29: 24 | D29: 2966 | E29: 24 | F29: 2972 | K29: 0 | L29: 122
A30: 21 | B30: 3077 | C30: 22 | D30: 3079 | E30: 24 | F30: 3085 | K30: 0 | L30: 222
A31: 12 | B31: 3192 | C31: 24 | D31: 3200 | E31: 24 | F31: 3207 | K31: 0 | L31: 122
A32: 21 | B32: 3481 | C32: 22 | D32: 3487 | E32: 24 | F32: 3494 | K32: 0 | L32: 222
A33: 12 | B33: 3590 | C33: 24 | D33: 3599 | E33: 24 | F33: 3602 | K33: 0 | L33: 122
A34: 12 | B34: 3695 | C34: 13 | D34: 3710 | E34: 24 | F34: 3725 | K34: 0 | L34: 112
A35: 21 | B35: 3830 | C35: 22 | D35: 3836 | E35: 24 | F35: 3841 | K35: 0 | L35: 222
A36: 12 | B36: 4223 | C36: 24 | D36: 4237 | E36: 24 | F36: 4241 | K36: 0 | L36: 122
A37: 21 | B37: 4513 | C37: 22 | D37: 4520 | E37: 24 | F37: 4528 | K37: 0 | L37: 222
A38: 12 | B38: 4622 | C38: 24 | D38: 4635 | E38: 24 | F38: 4642 | K38: 0 | L38: 122
A39: 21 | B39: 4745 | C39: 22 | D39: 4751 | E39: 24 | F39: 4757 | K39: 0 | L39: 222
A40: 12 | B40: 4854 | C40: 24 | D40: 4861 | E40: 24 | F40: 4868 | K40: 0 | L40: 122
A41: 12 | B41: 4959 | C41: 13 | D41: 4969 | E41: 24 | F41: 4980 | K41: 0 | L41: 112
A42: 21 | B42: 5332 | C42: 22 | D42: 5366 | E42: 24 | F42: 5373 | K42: 0 | L42: 222
A43: 12 | B43: 5468 | C43: 24 | D43: 5475 | E43: 24 | F43: 5479 | K43: 0 | L43: 122
A44: 21 | B44: 5582 | C44: 22 | D44: 5586 | E44: 24 | F44: 5591 | K44: 0 | L44: 222
A45: 12 | B45: 5690 | C45: 24 | D45: 5696 | E45: 24 | F45: 5704 | K45: 0 | L45: 122
A46: 21 | B46: 5908 | C46: 22 | D46: 5914 | E46: 24 | F46: 5935 | K46: 0 | L46: 222
A47: 21 | B47: 6038 | C47: 22 | D47: 6043 | E47: 24 | F47: 6056 | K47: 0 | L47: 222
A48: 12 | B48: 6150 | C48: 24 | D48: 6162 | E48: 24 | F48: 6168 | K48: 0 | L48: 122
A49: 21 | B49: 6273 | C49: 22 | D49: 6279 | E49: 24 | F49: 6286 | K49: 0 | L49: 222
A50: 21 | B50: 6390 | C50: 22 | D50: 6396 | E50: 24 | F50: 6402 | K50: 0 | L50: 222
A51: 21 | B51: 6645 | C51: 22 | D51: 6650 | E51: 24 | F51: 6666 | K51: 0 | L51: 222
A52: 12 | B52: 6887 | C52: 24 | D52: 6903 | E52: 24 | F52: 6917 | K52: 0 | L52: 122
A53: 21 | B53: 7027 | C53: 22 | D53: 7032 | E53: 24 | F53: 7041 | K53: 0 | L53: 222
A54: 12 | B54: 7136 | C54: 24 | D54: 7144 | E54: 24 | F54: 7150 | K54: 0 | L54: 122
A55: 21 | B55: 7256 | C55: 22 | D55: 7261 | E55: 24 | F55: 7267 | K55: 0 | L55: 222
A56: 12 | B56: 7365 | C56: 24 | D56: 7371 | E56: 24 | F56: 7380 | K56: 0 | L56: 122
A57: 12 | B57: 7824 | C57: 24 | D57: 7842 | E57: 24 | F57: 7848 | K57: 0 | L57: 122
A58: 21 | B58: 7959 | C58: 22 | D58: 7977 | E58: 24 | F58: 7985 | K58: 0 | L58: 222
A59: 12 | B59: 8113 | C59: 13 | D59: 8116 | E59: 24 | F59: 8121 | K59: 0 | L59: 112
A60: 21 | B60: 8219 | C60: 22 | D60: 8225 | E60: 24 | F60: 8232 | K60: 0 | L60: 222
A61: 12 | B61: 8324 | C61: 24 | D61: 8338 | E61: 24 | F61: 8344 | K61: 0 | L61: 122
A62: 12 | B62: 8438 | C62: 24 | D62: 8449 | E62: 24 | F62: 8464 | K62: 0 | L62: 122
A63: 12 | B63: 8837 | C63: 24 | D63: 8851 | E63: 24 | F63: 8857 | K63: 0 | L63: 122
A64: 12 | B64: 9230 | C64: 24 | D64: 9244 | E64: 24 | F64: 9251 | K64: 0 | L64: 122
A65: 12 | B65: 9350 | C65: 24 | D65: 9356 | E65: 24 | F65: 9364 | K65: 0 | L65: 122
A66: 12 | B66: 9457 | C66: 24 | D66: 9475 | E66: 24 | F66: 9485 | K66: 0 | L66: 122
A67: 21 | B67: 9595 | C67: 22 | D67: 9603 | E67: 24 | F67: 9607 | K67: 0 | L67: 222
A68: 12 | B68: 9713 | C68: 24 | D68: 9730 | E68: 24 | F68: 9736 | K68: 0 | L68: 122
A69: 21 | B69: 9840 | C69: 22 | D69: 9842 | E69: 24 | F69: 9851 | K69: 0 | L69: 222
A70: 12 | B70: 10064 | C70: 24 | D70: 10098 | E70: 24 | F70: 10104 | K70: 0 | L70: 122
A71: 21 | B71: 10209 | C71: 22 | D71: 10212 | E71: 24 | F71: 10216 | K71: 0 | L71: 222
A72: 12 | B72: 10701 | C72: 24 | D72: 10722 | E72: 24 | F72: 10728 | K72: 0 | L72: 122
A73: 12 | B73: 10827 | C73: 24 | D73: 10831 | E73: 24 | F73: 10840 | K73: 0 | L73: 122
A74: 12 | B74: 10934 | C74: 24 | D74: 10949 | E74: 24 | F74: 10954 | K74: 0 | L74: 122
A75: 21 | B75: 11057 | C75: 22 | D75: 11062 | E75: 24 | F75: 11075 | K75: 0 | L75: 222
A76: 21 | B76: 11182 | C76: 22 | D76: 11196 | E76: 24 | F76: 11209 | K76: 0 | L76: 222
A77: 12 | B77: 11642 | C77: 24 | D77: 11654 | E77: 24 | F77: 11661 | K77: 0 | L77: 122
A78: 12 | B78: 12068 | C78: 24 | D78: 12083 | E78: 24 | F78: 12089 | K78: 0 | L78: 122
A79: 12 | B79: 12587 | C79: 24 | D79: 12610 | E79: 24 | F79: 12616 | K79: 0 | L79: 122
A80: 12 | B80: 12979 | C80: 24 | D80: 12996 | E80: 24 | F80: 13001 | K80: 0 | L80: 122
A81: 21 | B81: 13505 | C81: 22 | D81: 13532 | E81: 24 | F81: 13539 | K81: 0 | L81: 222
A82: 21 | B82: 13816 | C82: 22 | D82: 13822 | E82: 24 | F82: 13837 | K82: 0 | L82: 222
A83: 21 | B83: 13939 | C83: 22 | D83: 13950 | E83: 24 | F83: 13957 | K83: 0 | L83: 222
A84: 21 | B84: 14076 | C84: 22 | D84: 14083 | E84: 24 | F84: 14099 | K84: 0 | L84: 222
A85: 21 | B85: 14452 | C85: 22 | D85: 14460 | E85: 24 | F85: 14485 | K85: 0 | L85: 222
A86: 12 | B86: 14579 | C86: 24 | D86: 14585 | E86: 24 | F86: 14599 | K86: 0 | L86: 122
A87: 12 | B87: 14702 | C87: 24 | D87: 14707 | E87: 24 | F87: 14714 | K87: 0 | L87: 122
A88: 21 | B88: 15142 | C88: 22 | D88: 15148 | E88: 24 | F88: 15158 | K88: 0 | L88: 222
A89: 21 | B89: 15264 | C89: 22 | D89: 15268 | E89: 24 | F89: 15274 | K89: 0 | L89: 222
A90: 12 | B90: 15815 | C90: 24 | D90: 15826 | E90: 24 | F90: 15835 | K90: 0 | L90: 122
A91: 21 | B91: 16273 | C91: 22 | D91: 16279 | E91: 24 | F91: 16285 | K91: 0 | L91: 222
A92: 12 | B92: 16385 | C92: 24 | D92: 16392 | E92: 24 | F92: 16398 | K92: 0 | L92: 122
A93: 21 | B93: 16501 | C93: 22 | D93: 16509 | E93: 24 | F93: 16515 | K93: 0 | L93: 222
A94: 21 | B94: 16618 | C94: 22 | D94: 16630 | E94: 24 | F94: 16638 | K94: 0 | L94: 222
A95: 21 | B95: 16741 | C95: 22 | D95: 16745 | E95: 24 | F95: 16755 | K95: 0 | L95: 222
A96: 21 | B96: 17313 | C96: 22 | D96: 17327 | E96: 24 | F96: 17348 | K96: 0 | L96: 222
A97: 21 | B97: 17451 | C97: 22 | D97: 17459 | E97: 24 | F97: 17463 | K97: 0 | L97: 222
A98: 12 | B98: 17558 | C98: 24 | D98: 17565 | E98: 24 | F98: 17574 | K98: 0 | L98: 122
A99: 21 | B99: 17675 | C99: 22 | D99: 17682 | E99: 24 | F99: 17689 | K99: 0 | L99: 222
A100: 21 | B100: 17796 | C100: 22 | D100: 17802 | E100: 24 | F100: 17807 | K100: 0 | L100: 222
A101: 12 | B101: 17899 | C101: 24 | D101: 17909 | E101: 24 | F101: 17947 | K101: 0 | L101: 122
A102: 12 | B102: 18045 | C102: 24 | D102: 18053 | E102: 24 | F102: 18076 | K102: 0 | L102: 122
A103: 12 | B103: 18170 | C103: 24 | D103: 18179 | E103: 24 | F103: 18186 | K103: 0 | L103: 122
A104: 21 | B104: 18463 | C104: 22 | D104: 18472 | E104: 24 | F104: 18477 | K104: 0 | L104: 222
A105: 21 | B105: 18580 | C105: 22 | D105: 18592 | E105: 24 | F105: 18598 | K105: 0 | L105: 222
A106: 12 | B106: 18693 | C106: 24 | D106: 18715 | E106: 24 | F106: 18721 | K106: 0 | L106: 122
A107: 12 | B107: 18813 | C107: 24 | D107: 18823 | E107: 24 | F107: 18830 | K107: 0 | L107: 122
A108: 21 | B108: 18935 | C108: 22 | D108: 18945 | E108: 24 | F108: 18952 | K108: 0 | L108: 222
A109: 21 | B109: 19053 | C109: 22 | D109: 19059 | E109: 24 | F109: 19072 | K109: 0 | L109: 222
A110: 21 | B110: 19175 | C110: 22 | D110: 19192 | E110: 24 | F110: 19198 | K110: 0 | L110: 222
A111: 12 | B111: 19292 | C111: 24 | D111: 19300 | E111: 24 | F111: 19311 | K111: 0 | L111: 122
A112: 12 | B112: 19404 | C112: 24 | D112: 19414 | E112: 24 | F112: 19419 | K112: 0 | L112: 122
A113: 12 | B113: 19516 | C113: 24 | D113: 19521 | E113: 24 | F113: 19527 | K113: 0 | L113: 122
A114: 21 | B114: 19628 | C114: 22 | D114: 19639 | E114: 24 | F114: 19650 | K114: 0 | L114: 222
A115: 21 | B115: 19972 | C115: 22 | D115: 19980 | E115: 24 | F115: 19986 | K115: 0 | L115: 222
A116: 21 | B116: 20462 | C116: 22 | D116: 20471 | E116: 24 | F116: 20485 | K116: 0 | L116: 222
A117: 21 | B117: 20804 | C117: 22 | D117: 20811 | E117: 24 | F117: 20817 | K117: 0 | L117: 222
A118: 21 | B118: 20925 | C118: 22 | D118: 20935 | E118: 24 | F118: 20941 | K118: 0 | L118: 222
A119: 12 | B119: 21033 | C119: 24 | D119: 21041 | E119: 24 | F119: 21045 | K119: 0 | L119: 122
A120: 12 | B120: 21145 | C120: 24 | D120: 21151 | E120: 24 | F120: 21163 | K120: 0 | L120: 122
A121: 21 | B121: 21389 | C121: 22 | D121: 21409 | E121: 24 | F121: 21426 | K121: 0 | L121: 222
A122: 21 | B122: 21987 | C122: 22 | D122: 21993 | E122: 24 | F122: 21999 | K122: 0 | L122: 222
A123: 21 | B123: 22610 | C123: 22 | D123: 22618 | E123: 24 | F123: 22626 | K123: 0 | L123: 222
A124: 21 | B124: 22844 | C124: 22 | D124: 22855 | E124: 24 | F124: 22865 | K124: 0 | L124: 222
A125: 21 | B125: 22966 | C125: 22 | D125: 22980 | E125: 24 | F125: 23003 | K125: 0 | L125: 222
A126: 21 | B126: 23106 | C126: 22 | D126: 23122 | E126: 24 | F126: 23129 | K126: 0 | L126: 222
A127: 21 | B127: 23232 | C127: 22 | D127: 23238 | E127: 24 | F127: 23241 | K127: 0 | L127: 222
A128: 12 | B128: 23334 | C128: 24 | D128: 23342 | E128: 24 | F128: 23348 | K128: 0 | L128: 122
A129: 21 | B129: 23516 | C129: 22 | D129: 23524 | E129: 24 | F129: 23531 | K129: 0 | L129: 222
A130: 12 | B130: 23629 | C130: 24 | D130: 23634 | E130: 24 | F130: 23642 | K130: 0 | L130: 122
A131: 21 | B131: 23745 | C131: 22 | D131: 23748 | E131: 24 | F131: 23768 | K131: 0 | L131: 222
A132: 21 | B132: 23871 | C132: 22 | D132: 23880 | E132: 24 | F132: 23886 | K132: 0 | L132: 222
A133: 12 | B133: 23978 | C133: 24 | D133: 23993 | E133: 24 | F133: 23999 | L133: 122

Sheet !M122950.Gus
A1: Report for:!M122950.Gus
A2: Date: | B2: <date>
A3: Hen: | B3: <hen> | F3: Correct Sequence | G3: =Start!J2 -> 211 | P3: Total Sequences in Data | Q3: =4994-COUNTBLANK(L7:L5000) -> 142 | V3: Total Sequences in Block Data | W3: =COUNTA(L7:L30) -> 24 | AA3: Total Sequences in Block Data | AB3: =COUNTA(L31:L53) -> 23 | AF3: Total Sequences in Block Data | AG3: =COUNTA(L54:L77) -> 24 | AK3: Total Sequences in Block Data | AL3: =COUNTA(L78:L101) -> 24 | AP3: Total Sequences in Block Data | AQ3: =COUNTA(L102:L124) -> 23 | AU3: Total Sequences in Block Data | AV3: =COUNTA(L125:L148) -> 24
P4: Total Sequences in Summary | Q4: =SUM(O7:O14) -> 142 | V4: Total Sequences in Block Summary | W4: =SUM(U7:U14) -> 24 | AA4: Total Sequences in Block Summary | AB4: =SUM(Z7:Z14) -> 23 | AF4: Total Sequences in Block Summary | AG4: =SUM(AE7:AE14) -> 24 | AK4: Total Sequences in Block Summary | AL4: =SUM(AJ7:AJ14) -> 24 | AP4: Total Sequences in Block Summary | AQ4: =SUM(AO7:AO14) -> 23 | AU4: Total Sequences in Block Summary | AV4: =SUM(AT7:AT14) -> 24
T5: Block 1 | Y5: Block 2 | AD5: Block 3 | AI5: Block 4 | AN5: Block 5 | AS5: Block 6
A6: Sequence Component 1 | B6: Time 1 | C6: Sequence Component 2 | D6: Time 2 | E6: Sequence Component 3 | F6: Time 3 | G6: Sequence Component 4 | H6: Time 4 | I6: Sequence Component 5 | J6: Time 5 | K6: Correct? 0=No 1=Yes | L6: Sequence | N6: Frequency | P6: Relative Frequency | Q6: Variability | T6: Frequency | V6: Relative Frequency | W6: Variability | Y6: Frequency | AA6: Relative Frequency | AB6: Variability | AD6: Frequency | AF6: Relative Frequency | AG6: Variability | AI6: Frequency | AK6: Relative Frequency | AL6: Variability | AN6: Frequency | AP6: Relative Frequency | AQ6: Variability | AS6: Frequency | AU6: Relative Frequency | AV6: Variability
A7: 21 | B7: 10 | C7: 22 | D7: 12 | E7: 24 | F7: 20 | K7: 0 | L7: 222 | N7: 111 | O7: =COUNTIF($L$7:$L$500,N7) -> 0 | P7: =O7/$Q$4 -> 0 | Q7: =IF(P7=0,0,(P7*((LOG(P7))/LOG(2)))) -> 0 | T7: =N7 -> 111 | U7: =COUNTIF(L7:L30,T7) -> 0 | V7: =U7/(W4-U11) -> 0 | W7: =IF(V7=0,0,(V7*((LOG(V7))/LOG(2)))) -> 0 | Y7: =N7 -> 111 | Z7: =COUNTIF(L31:L53,Y7) -> 0 | AA7: =Z7/(AB4-Z11) -> 0 | AB7: =IF(AA7=0,0,(AA7*((LOG(AA7))/LOG(2)))) -> 0 | AD7: =N7 -> 111 | AE7: =COUNTIF(L54:L77,AD7) -> 0 | AF7: =AE7/(AG4-AE11) -> 0 | AG7: =IF(AF7=0,0,(AF7*((LOG(AF7))/LOG(2)))) -> 0 | AI7: =N7 -> 111 | AJ7: =COUNTIF(L78:L101,AI7) -> 0 | AK7: =AJ7/(AL4-AJ11) -> 0 | AL7: =IF(AK7=0,0,(AK7*((LOG(AK7))/LOG(2)))) -> 0 | AN7: =N7 -> 111 | AO7: =COUNTIF(L102:L124,AN7) -> 0 | AP7: =AO7/(AQ4-AO11) -> 0 | AQ7: =IF(AP7=0,0,(AP7*((LOG(AP7))/LOG(2)))) -> 0 | AS7: =N7 -> 111 | AT7: =COUNTIF(L125:L148,AS7) -> 0 | AU7: =AT7/(AV4-AT11) -> 0 | AV7: =IF(AU7=0,0,(AU7*((LOG(AU7))/LOG(2)))) -> 0
A8: 21 | B8: 119 | C8: 22 | D8: 122 | E8: 24 | F8: 128 | K8: 0 | L8: 222 | N8: 112 | O8: =COUNTIF($L$7:$L$500,N8) -> 2 | P8: =O8/$Q$4 -> 0.01408450704 | Q8: =IF(P8=0,0,(P8*((LOG(P8))/LOG(2)))) -> -0.08661615661 | T8: =N8 -> 112 | U8: =COUNTIF(L7:L30,T8) -> 0 | V8: =U8/(W4-U11) -> 0 | W8: =IF(V8=0,0,(V8*((LOG(V8))/LOG(2)))) -> 0 | Y8: =N8 -> 112 | Z8: =COUNTIF(L31:L53,Y8) -> 0 | AA8: =Z8/(AB4-Z11) -> 0 | AB8: =IF(AA8=0,0,(AA8*((LOG(AA8))/LOG(2)))) -> 0 | AD8: =N8 -> 112 | AE8: =COUNTIF(L54:L77,AD8) -> 2 | AF8: =AE8/(AG4-AE11) -> 0.08333333333 | AG8: =IF(AF8=0,0,(AF8*((LOG(AF8))/LOG(2)))) -> -0.2987468751 | AI8: =N8 -> 112 | AJ8: =COUNTIF(L78:L101,AI8) -> 0 | AK8: =AJ8/(AL4-AJ11) -> 0 | AL8: =IF(AK8=0,0,(AK8*((LOG(AK8))/LOG(2)))) -> 0 | AN8: =N8 -> 112 | AO8: =COUNTIF(L102:L124,AN8) -> 0 | AP8: =AO8/(AQ4-AO11) -> 0 | AQ8: =IF(AP8=0,0,(AP8*((LOG(AP8))/LOG(2)))) -> 0 | AS8: =N8 -> 112 | AT8: =COUNTIF(L125:L148,AS8) -> 0 | AU8: =AT8/(AV4-AT11) -> 0 | AV8: =IF(AU8=0,0,(AU8*((LOG(AU8))/LOG(2)))) -> 0
A9: 21 | B9: 227 | C9: 22 | D9: 231 | E9: 24 | F9: 236 | K9: 0 | L9: 222 | N9: 121 | O9: =COUNTIF($L$7:$L$500,N9) -> 0 | P9: =O9/$Q$4 -> 0 | Q9: =IF(P9=0,0,(P9*((LOG(P9))/LOG(2)))) -> 0 | T9: =N9 -> 121 | U9: =COUNTIF(L7:L30,T9) -> 0 | V9: =U9/(W4-U11) -> 0 | W9: =IF(V9=0,0,(V9*((LOG(V9))/LOG(2)))) -> 0 | Y9: =N9 -> 121 | Z9: =COUNTIF(L31:L53,Y9) -> 0 | AA9: =Z9/(AB4-Z11) -> 0 | AB9: =IF(AA9=0,0,(AA9*((LOG(AA9))/LOG(2)))) -> 0 | AD9: =N9 -> 121 | AE9: =COUNTIF(L54:L77,AD9) -> 0 | AF9: =AE9/(AG4-AE11) -> 0 | AG9: =IF(AF9=0,0,(AF9*((LOG(AF9))/LOG(2)))) -> 0 | AI9: =N9 -> 121 | AJ9: =COUNTIF(L78:L101,AI9) -> 0 | AK9: =AJ9/(AL4-AJ11) -> 0 | AL9: =IF(AK9=0,0,(AK9*((LOG(AK9))/LOG(2)))) -> 0 | AN9: =N9 -> 121 | AO9: =COUNTIF(L102:L124,AN9) -> 0 | AP9: =AO9/(AQ4-AO11) -> 0 | AQ9: =IF(AP9=0,0,(AP9*((LOG(AP9))/LOG(2)))) -> 0 | AS9: =N9 -> 121 | AT9: =COUNTIF(L125:L148,AS9) -> 0 | AU9: =AT9/(AV4-AT11) -> 0 | AV9: =IF(AU9=0,0,(AU9*((LOG(AU9))/LOG(2)))) -> 0
A10: 12 | B10: 331 | C10: 24 | D10: 336 | E10: 24 | F10: 348 | K10: 0 | L10: 122 | N10: 122 | O10: =COUNTIF($L$7:$L$500,N10) -> 61 | P10: =O10/$Q$4 -> 0.4295774648 | Q10: =IF(P10=0,0,(P10*((LOG(P10))/LOG(2)))) -> -0.5236591317 | T10: =N10 -> 122 | U10: =COUNTIF(L7:L30,T10) -> 4 | V10: =U10/(W4-U11) -> 0.1666666667 | W10: =IF(V10=0,0,(V10*((LOG(V10))/LOG(2)))) -> -0.4308270835 | Y10: =N10 -> 122 | Z10: =COUNTIF(L31:L53,Y10) -> 12 | AA10: =Z10/(AB4-Z11) -> 0.5217391304 | AB10: =IF(AA10=0,0,(AA10*((LOG(AA10))/LOG(2)))) -> -0.4897040637 | AD10: =N10 -> 122 | AE10: =COUNTIF(L54:L77,AD10) -> 12 | AF10: =AE10/(AG4-AE11) -> 0.5 | AG10: =IF(AF10=0,0,(AF10*((LOG(AF10))/LOG(2)))) -> -0.5 | AI10: =N10 -> 122 | AJ10: =COUNTIF(L78:L101,AI10) -> 9 | AK10: =AJ10/(AL4-AJ11) -> 0.375 | AL10: =IF(AK10=0,0,(AK10*((LOG(AK10))/LOG(2)))) -> -0.5306390622 | AN10: =N10 -> 122 | AO10: =COUNTIF(L102:L124,AN10) -> 8 | AP10: =AO10/(AQ4-AO11) -> 0.347826087 | AQ10: =IF(AP10=0,0,(AP10*((LOG(AP10))/LOG(2)))) -> -0.5299345934 | AS10: =N10 -> 122 | AT10: =COUNTIF(L125:L148,AS10) -> 16 | AU10: =AT10/(AV4-AT11) -> 0.6666666667 | AV10: =IF(AU10=0,0,(AU10*((LOG(AU10))/LOG(2)))) -> -0.3899750005
A11: 21 | B11: 444 | C11: 22 | D11: 457 | E11: 24 | F11: 482 | K11: 0 | L11: 222 | N11: 211 | O11: =COUNTIF($L$7:$L$500,N11) -> 0 | P11: =O11/$Q$4 -> 0 | Q11: =IF(P11=0,0,(P11*((LOG(P11))/LOG(2)))) -> 0 | T11: =N11 -> 211 | U11: =COUNTIF(L7:L30,T11) -> 0 | Y11: =N11 -> 211 | Z11: =COUNTIF(L31:L53,Y11) -> 0 | AD11: =N11 -> 211 | AE11: =COUNTIF(L54:L77,AD11) -> 0 | AI11: =N11 -> 211 | AJ11: =COUNTIF(L78:L101,AI11) -> 0 | AN11: =N11 -> 211 | AO11: =COUNTIF(L102:L124,AN11) -> 0 | AS11: =N11 -> 211 | AT11: =COUNTIF(L125:L148,AS11) -> 0
A12: 21 | B12: 593 | C12: 22 | D12: 598 | E12: 24 | F12: 605 | K12: 0 | L12: 222 | N12: 212 | O12: =COUNTIF($L$7:$L$500,N12) -> 0 | P12: =O12/$Q$4 -> 0 | Q12: =IF(P12=0,0,(P12*((LOG(P12))/LOG(2)))) -> 0 | T12: =N12 -> 212 | U12: =COUNTIF(L7:L30,T12) -> 0 | V12: =U12/(W4-U11) -> 0 | W12: =IF(V12=0,0,(V12*((LOG(V12))/LOG(2)))) -> 0 | Y12: =N12 -> 212 | Z12: =COUNTIF(L31:L53,Y12) -> 0 | AA12: =Z12/(AB4-Z11) -> 0 | AB12: =IF(AA12=0,0,(AA12*((LOG(AA12))/LOG(2)))) -> 0 | AD12: =N12 -> 212 | AE12: =COUNTIF(L54:L77,AD12) -> 0 | AF12: =AE12/(AG4-AE11) -> 0 | AG12: =IF(AF12=0,0,(AF12*((LOG(AF12))/LOG(2)))) -> 0 | AI12: =N12 -> 212 | AJ12: =COUNTIF(L78:L101,AI12) -> 0 | AK12: =AJ12/(AL4-AJ11) -> 0 | AL12: =IF(AK12=0,0,(AK12*((LOG(AK12))/LOG(2)))) -> 0 | AN12: =N12 -> 212 | AO12: =COUNTIF(L102:L124,AN12) -> 0 | AP12: =AO12/(AQ4-AO11) -> 0 | AQ12: =IF(AP12=0,0,(AP12*((LOG(AP12))/LOG(2)))) -> 0 | AS12: =N12 -> 212 | AT12: =COUNTIF(L125:L148,AS12) -> 0 | AU12: =AT12/(AV4-AT11) -> 0 | AV12: =IF(AU12=0,0,(AU12*((LOG(AU12))/LOG(2)))) -> 0
A13: 12 | B13: 698 | C13: 24 | D13: 717 | E13: 24 | F13: 722 | K13: 0 | L13: 122 | N13: 221 | O13: =COUNTIF($L$7:$L$500,N13) -> 0 | P13: =O13/$Q$4 -> 0 | Q13: =IF(P13=0,0,(P13*((LOG(P13))/LOG(2)))) -> 0 | T13: =N13 -> 221 | U13: =COUNTIF(L7:L30,T13) -> 0 | V13: =U13/(W4-U11) -> 0 | W13: =IF(V13=0,0,(V13*((LOG(V13))/LOG(2)))) -> 0 | Y13: =N13 -> 221 | Z13: =COUNTIF(L31:L53,Y13) -> 0 | AA13: =Z13/(AB4-Z11) -> 0 | AB13: =IF(AA13=0,0,(AA13*((LOG(AA13))/LOG(2)))) -> 0 | AD13: =N13 -> 221 | AE13: =COUNTIF(L54:L77,AD13) -> 0 | AF13: =AE13/(AG4-AE11) -> 0 | AG13: =IF(AF13=0,0,(AF13*((LOG(AF13))/LOG(2)))) -> 0 | AI13: =N13 -> 221 | AJ13: =COUNTIF(L78:L101,AI13) -> 0 | AK13: =AJ13/(AL4-AJ11) -> 0 | AL13: =IF(AK13=0,0,(AK13*((LOG(AK13))/LOG(2)))) -> 0 | AN13: =N13 -> 221 | AO13: =COUNTIF(L102:L124,AN13) -> 0 | AP13: =AO13/(AQ4-AO11) -> 0 | AQ13: =IF(AP13=0,0,(AP13*((LOG(AP13))/LOG(2)))) -> 0 | AS13: =N13 -> 221 | AT13: =COUNTIF(L125:L148,AS13) -> 0 | AU13: =AT13/(AV4-AT11) -> 0 | AV13: =IF(AU13=0,0,(AU13*((LOG(AU13))/LOG(2)))) -> 0
A14: 21 | B14: 836 | C14: 22 | D14: 840 | E14: 24 | F14: 843 | K14: 0 | L14: 222 | N14: 222 | O14: =COUNTIF($L$7:$L$500,N14) -> 79 | P14: =O14/$Q$4 -> 0.5563380282 | Q14: =IF(P14=0,0,(P14*((LOG(P14))/LOG(2)))) -> -0.4706432629 | T14: =N14 -> 222 | U14: =COUNTIF(L7:L30,T14) -> 20 | V14: =U14/(W4-U11) -> 0.8333333333 | W14: =IF(V14=0,0,(V14*((LOG(V14))/LOG(2)))) -> -0.2191953382 | Y14: =N14 -> 222 | Z14: =COUNTIF(L31:L53,Y14) -> 11 | AA14: =Z14/(AB4-Z11) -> 0.4782608696 | AB14: =IF(AA14=0,0,(AA14*((LOG(AA14))/LOG(2)))) -> -0.5089319005 | AD14: =N14 -> 222 | AE14: =COUNTIF(L54:L77,AD14) -> 10 | AF14: =AE14/(AG4-AE11) -> 0.4166666667 | AG14: =IF(AF14=0,0,(AF14*((LOG(AF14))/LOG(2)))) -> -0.5262643358 | AI14: =N14 -> 222 | AJ14: =COUNTIF(L78:L101,AI14) -> 15 | AK14: =AJ14/(AL4-AJ11) -> 0.625 | AL14: =IF(AK14=0,0,(AK14*((LOG(AK14))/LOG(2)))) -> -0.4237949407 | AN14: =N14 -> 222 | AO14: =COUNTIF(L102:L124,AN14) -> 15 | AP14: =AO14/(AQ4-AO11) -> 0.652173913 | AQ14: =IF(AP14=0,0,(AP14*((LOG(AP14))/LOG(2)))) -> -0.4021769742 | AS14: =N14 -> 222 | AT14: =COUNTIF(L125:L148,AS14) -> 8 | AU14: =AT14/(AV4-AT11) -> 0.3333333333 | AV14: =IF(AU14=0,0,(AU14*((LOG(AU14))/LOG(2)))) -> -0.5283208336
A15: 12 | B15: 943 | C15: 24 | D15: 954 | E15: 24 | F15: 962 | K15: 0 | L15: 122 | P15: =SUM(P7:P14) -> 1 | Q15: =-SUM(Q7:Q14) -> 1.080918551 | V15: =SUM(V7:V14) -> 1 | W15: =-SUM(W7:W14) -> 0.6500224216 | AA15: =SUM(AA7:AA14) -> 1 | AB15: =-SUM(AB7:AB14) -> 0.9986359642 | AF15: =SUM(AF7:AF14) -> 1 | AG15: =-SUM(AG7:AG14) -> 1.325011211 | AK15: =SUM(AK7:AK14) -> 1 | AL15: =-SUM(AL7:AL14) -> 0.9544340029 | AP15: =SUM(AP7:AP14) -> 1 | AQ15: =-SUM(AQ7:AQ14) -> 0.9321115676 | AU15: =SUM(AU7:AU14) -> 1 | AV15: =-SUM(AV7:AV14) -> 0.9182958341
A16: 21 | B16: 1423 | C16: 22 | D16: 1427 | E16: 24 | F16: 1435 | K16: 0 | L16: 222 | P16: U= | Q16: =Q15/(LOG(Q4)/LOG(2)) -> 0.1511827668 | V16: U1= | W16: =W15/(LOG(W4)/LOG(2)) -> 0.14177268 | AA16: U2= | AB16: =AB15/(LOG(AB4)/LOG(2)) -> 0.2207631892 | AF16: U3= | AG16: =AG15/(LOG(AG4)/LOG(2)) -> 0.288990632 | AK16: U4= | AL16: =AL15/(LOG(AL4)/LOG(2)) -> 0.2081661525 | AP16: U5= | AQ16: =AQ15/(LOG(AQ4)/LOG(2)) -> 0.2060569915 | AU16: U6= | AV16: =AV15/(LOG(AV4)/LOG(2)) -> 0.2002842627
A17: 21 | B17: 1812 | C17: 22 | D17: 1818 | E17: 24 | F17: 1824 | K17: 0 | L17: 222
A18: 21 | B18: 1930 | C18: 22 | D18: 1935 | E18: 24 | F18: 1945 | K18: 0 | L18: 222
A19: 21 | B19: 2189 | C19: 22 | D19: 2193 | E19: 24 | F19: 2199 | K19: 0 | L19: 222 | N19: Total Target Seq
A20: 21 | B20: 2301 | C20: 22 | D20: 2305 | E20: 24 | F20: 2310 | K20: 0 | L20: 222 | N20: =COUNTIF(L7:L148,G3) -> 0 | P20: 24 | Q20: 23 | R20: 24 | S20: 24 | T20: 23 | U20: 24
A21: 21 | B21: 2410 | C21: 22 | D21: 2415 | E21: 24 | F21: 2422 | K21: 0 | L21: 222 | P21: % of reinforcement given in 6 equal intervals based on number of trials
A22: 12 | B22: 2516 | C22: 24 | D22: 2523 | E22: 24 | F22: 2529 | K22: 0 | L22: 122 | P22: %_1 | Q22: %_2 | R22: %_3 | S22: %_4 | T22: %_5 | U22: %_6
A23: 21 | B23: 3121 | C23: 22 | D23: 3142 | E23: 24 | F23: 3149 | K23: 0 | L23: 222 | O23: target sequence | P23: =$G$3 -> 211 | Q23: =$G$3 -> 211 | R23: =$G$3 -> 211 | S23: =$G$3 -> 211 | T23: =$G$3 -> 211 | U23: =$G$3 -> 211
A24: 21 | B24: 3817 | C24: 22 | D24: 3833 | E24: 24 | F24: 3840 | K24: 0 | L24: 222 | O24: total reinforcement | P24: =U11 -> 0 | Q24: =Z11 -> 0 | R24: =AE11 -> 0 | S24: =AJ11 -> 0 | T24: =AO11 -> 0 | U24: =AT11 -> 0
A25: 21 | B25: 4258 | C25: 22 | D25: 4266 | E25: 24 | F25: 4273 | K25: 0 | L25: 222 | O25: % target
A26: 21 | B26: 4376 | C26: 22 | D26: 4382 | E26: 24 | F26: 4387 | K26: 0 | L26: 222 | O26: CCRF
A27: 21 | B27: 4493 | C27: 22 | D27: 4497 | E27: 24 | F27: 4503 | K27: 0 | L27: 222 | O27: % CCRf
A28: 21 | B28: 4606 | C28: 22 | D28: 4612 | E28: 24 | F28: 4617 | K28: 0 | L28: 222 | O28: average response rate | P28: =F30/P20 -> 208.5833333 | Q28: =(F53-F30)/Q20 -> 186.4782609 | R28: =(F77-F53)/R20 -> 132.75 | S28: =(F101-F77)/S20 -> 194.8333333 | T28: =(F124-F101)/T20 -> 138 | U28: =(F148-F124)/U20 -> 148.625
A29: 21 | B29: 4851 | C29: 22 | D29: 4865 | E29: 24 | F29: 4878 | K29: 0 | L29: 222
A30: 21 | B30: 4981 | C30: 22 | D30: 4998 | E30: 24 | F30: 5006 | K30: 0 | L30: 222
A31: 12 | B31: 5103 | C31: 24 | D31: 5106 | E31: 24 | F31: 5111 | K31: 0 | L31: 122
A32: 12 | B32: 5206 | C32: 24 | D32: 5214 | E32: 24 | F32: 5229 | K32: 0 | L32: 122
A33: 21 | B33: 5332 | C33: 22 | D33: 5334 | E33: 24 | F33: 5337 | K33: 0 | L33: 222
A34: 12 | B34: 5436 | C34: 24 | D34: 5444 | E34: 24 | F34: 5451 | K34: 0 | L34: 122
A35: 12 | B35: 5545 | C35: 24 | D35: 5558 | E35: 24 | F35: 5563 | K35: 0 | L35: 122
A36: 21 | B36: 5733 | C36: 22 | D36: 5754 | E36: 24 | F36: 5773 | K36: 0 | L36: 222
A37: 21 | B37: 6378 | C37: 22 | D37: 6397 | E37: 24 | F37: 6406 | K37: 0 | L37: 222
A38: 21 | B38: 6840 | C38: 22 | D38: 6846 | E38: 24 | F38: 6861 | K38: 0 | L38: 222
A39: 21 | B39: 7080 | C39: 22 | D39: 7085 | E39: 24 | F39: 7098 | K39: 0 | L39: 222
A40: 12 | B40: 7194 | C40: 24 | D40: 7206 | E40: 24 | F40: 7222 | K40: 0 | L40: 122
A41: 12 | B41: 7317 | C41: 24 | D41: 7324 | E41: 24 | F41: 7329 | K41: 0 | L41: 122
A42: 21 | B42: 7435 | C42: 22 | D42: 7441 | E42: 24 | F42: 7444 | K42: 0 | L42: 222
A43: 12 | B43: 7540 | C43: 24 | D43: 7545 | E43: 24 | F43: 7550 | K43: 0 | L43: 122
A44: 21 | B44: 7657 | C44: 22 | D44: 7666 | E44: 24 | F44: 7671 | K44: 0 | L44: 222
A45: 12 | B45: 7767 | C45: 24 | D45: 7785 | E45: 24 | F45: 7792 | K45: 0 | L45: 122
A46: 21 | B46: 7897 | C46: 22 | D46: 7904 | E46: 24 | F46: 7911 | K46: 0 | L46: 222
A47: 21 | B47: 8540 | C47: 22 | D47: 8551 | E47: 24 | F47: 8567 | K47: 0 | L47: 222
A48: 12 | B48: 8662 | C48: 24 | D48: 8674 | E48: 24 | F48: 8677 | K48: 0 | L48: 122
A49: 21 | B49: 8781 | C49: 22 | D49: 8784 | E49: 24 | F49: 8790 | K49: 0 | L49: 222
A50: 12 | B50: 8890 | C50: 24 | D50: 8894 | E50: 24 | F50: 8900 | K50: 0 | L50: 122
A51: 12 | B51: 9001 | C51: 24 | D51: 9007 | E51: 24 | F51: 9010 | K51: 0 | L51: 122
A52: 12 | B52: 9144 | C52: 24 | D52: 9158 | E52: 24 | F52: 9163 | K52: 0 | L52: 122
A53: 21 | B53: 9278 | C53: 22 | D53: 9282 | E53: 24 | F53: 9295 | K53: 0 | L53: 222
A54: 12 | B54: 9390 | C54: 24 | D54: 9416 | E54: 24 | F54: 9442 | K54: 0 | L54: 122
A55: 12 | B55: 9534 | C55: 24 | D55: 9545 | E55: 24 | F55: 9549 | K55: 0 | L55: 122
A56: 12 | B56: 9646 | C56: 13 | D56: 9650 | E56: 24 | F56: 9657 | K56: 0 | L56: 112
A57: 21 | B57: 9764 | C57: 22 | D57: 9771 | E57: 24 | F57: 9778 | K57: 0 | L57: 222
A58: 12 | B58: 9873 | C58: 24 | D58: 9884 | E58: 24 | F58: 9897 | K58: 0 | L58: 122
A59: 21 | B59: 9992 | C59: 22 | D59: 10000 | E59: 24 | F59: 10007 | K59: 0 | L59: 222
A60: 21 | B60: 10111 | C60: 22 | D60: 10115 | E60: 24 | F60: 10122 | K60: 0 | L60: 222
A61: 12 | B61: 10215 | C61: 24 | D61: 10224 | E61: 24 | F61: 10232 | K61: 0 | L61: 122
A62: 12 | B62: 10324 | C62: 13 | D62: 10329 | E62: 24 | F62: 10342 | K62: 0 | L62: 112
A63: 12 | B63: 10444 | C63: 24 | D63: 10450 | E63: 24 | F63: 10460 | K63: 0 | L63: 122
A64: 12 | B64: 10746 | C64: 24 | D64: 10758 | E64: 24 | F64: 10771 | K64: 0 | L64: 122
A65: 12 | B65: 10863 | C65: 24 | D65: 10880 | E65: 24 | F65: 10892 | K65: 0 | L65: 122
A66: 12 | B66: 10990 | C66: 24 | D66: 10995 | E66: 24 | F66: 11001 | K66: 0 | L66: 122
A67: 21 | B67: 11105 | C67: 22 | D67: 11111 | E67: 24 | F67: 11119 | K67: 0 | L67: 222
A68: 21 | B68: 11222 | C68: 22 | D68: 11227 | E68: 24 | F68: 11234 | K68: 0 | L68: 222
A69: 12 | B69: 11334 | C69: 24 | D69: 11336 | E69: 24 | F69: 11340 | K69: 0 | L69: 122
A70: 21 | B70: 11443 | C70: 22 | D70: 11453 | E70: 24 | F70: 11460 | K70: 0 | L70: 222
A71: 21 | B71: 11559 | C71: 22 | D71: 11564 | E71: 24 | F71: 11571 | K71: 0 | L71: 222
A72: 21 | B72: 11679 | C72: 22 | D72: 11688 | E72: 24 | F72: 11695 | K72: 0 | L72: 222
A73: 12 | B73: 11788 | C73: 24 | D73: 11798 | E73: 24 | F73: 11818 | K73: 0 | L73: 122
A74: 12 | B74: 11920 | C74: 24 | D74: 11923 | E74: 24 | F74: 11929 | K74: 0 | L74: 122
A75: 21 | B75: 12207 | C75: 22 | D75: 12232 | E75: 24 | F75: 12238 | K75: 0 | L75: 222
A76: 12 | B76: 12361 | C76: 24 | D76: 12365 | E76: 24 | F76: 12369 | K76: 0 | L76: 122
A77: 21 | B77: 12465 | C77: 22 | D77: 12470 | E77: 24 | F77: 12481 | K77: 0 | L77: 222
A78: 12 | B78: 12610 | C78: 24 | D78: 12621 | E78: 24 | F78: 12628 | K78: 0 | L78: 122
A79: 12 | B79: 12731 | C79: 24 | D79: 12741 | E79: 24 | F79: 12747 | K79: 0 | L79: 122
A80: 12 | B80: 12861 | C80: 24 | D80: 12868 | E80: 24 | F80: 12871 | K80: 0 | L80: 122
A81: 21 | B81: 12972 | C81: 22 | D81: 12980 | E81: 24 | F81: 12985 | K81: 0 | L81: 222
A82: 21 | B82: 13090 | C82: 22 | D82: 13094 | E82: 24 | F82: 13101 | K82: 0 | L82: 222
A83: 21 | B83: 13206 | C83: 22 | D83: 13241 | E83: 24 | F83: 13249 | K83: 0 | L83: 222
A84: 21 | B84: 13471 | C84: 22 | D84: 13476 | E84: 24 | F84: 13484 | K84: 0 | L84: 222
A85: 21 | B85: 13740 | C85: 22 | D85: 13746 | E85: 24 | F85: 13753 | K85: 0 | L85: 222
A86: 21 | B86: 13851 | C86: 22 | D86: 13860 | E86: 24 | F86: 13874 | K86: 0 | L86: 222
A87: 21 | B87: 14447 | C87: 22 | D87: 14454 | E87: 24 | F87: 14466 | K87: 0 | L87: 222
A88: 21 | B88: 14565 | C88: 22 | D88: 14578 | E88: 24 | F88: 14584 | K88: 0 | L88: 222
A89: 21 | B89: 14723 | C89: 22 | D89: 14735 | E89: 24 | F89: 14761 | K89: 0 | L89: 222
A90: 21 | B90: 15163 | C90: 22 | D90: 15178 | E90: 24 | F90: 15185 | K90: 0 | L90: 222
A91: 12 | B91: 15281 | C91: 24 | D91: 15285 | E91: 24 | F91: 15298 | K91: 0 | L91: 122
A92: 21 | B92: 15958 | C92: 22 | D92: 15967 | E92: 24 | F92: 15972 | K92: 0 | L92: 222
A93: 21 | B93: 16073 | C93: 22 | D93: 16092 | E93: 24 | F93: 16100 | K93: 0 | L93: 222
A94: 12 | B94: 16193 | C94: 24 | D94: 16203 | E94: 24 | F94: 16211 | K94: 0 | L94: 122
A95: 12 | B95: 16307 | C95: 24 | D95: 16310 | E95: 24 | F95: 16319 | K95: 0 | L95: 122
A96: 12 | B96: 16411 | C96: 24 | D96: 16425 | E96: 24 | F96: 16431 | K96: 0 | L96: 122
A97: 21 | B97: 16652 | C97: 22 | D97: 16659 | E97: 24 | F97: 16666 | K97: 0 | L97: 222
A98: 12 | B98: 16761 | C98: 24 | D98: 16769 | E98: 24 | F98: 16775 | K98: 0 | L98: 122
A99: 21 | B99: 16879 | C99: 22 | D99: 16886 | E99: 24 | F99: 16896 | K99: 0 | L99: 222
A100: 21 | B100: 16994 | C100: 22 | D100: 16999 | E100: 24 | F100: 17005 | K100: 0 | L100: 222
A101: 12 | B101: 17129 | C101: 24 | D101: 17149 | E101: 24 | F101: 17157 | K101: 0 | L101: 122
A102: 12 | B102: 17272 | C102: 24 | D102: 17278 | E102: 24 | F102: 17283 | K102: 0 | L102: 122
A103: 21 | B103: 17387 | C103: 22 | D103: 17395 | E103: 24 | F103: 17402 | K103: 0 | L103: 222
A104: 21 | B104: 17735 | C104: 22 | D104: 17741 | E104: 24 | F104: 17760 | K104: 0 | L104: 222
A105: 12 | B105: 17852 | C105: 24 | D105: 17858 | E105: 24 | F105: 17862 | K105: 0 | L105: 122
A106: 21 | B106: 17966 | C106: 22 | D106: 17970 | E106: 24 | F106: 17974 | K106: 0 | L106: 222
A107: 21 | B107: 18079 | C107: 22 | D107: 18086 | E107: 24 | F107: 18091 | K107: 0 | L107: 222
A108: 21 | B108: 18197 | C108: 22 | D108: 18208 | E108: 24 | F108: 18218 | K108: 0 | L108: 222
A109: 21 | B109: 18319 | C109: 22 | D109: 18325 | E109: 24 | F109: 18337 | K109: 0 | L109: 222
A110: 12 | B110: 18430 | C110: 24 | D110: 18440 | E110: 24 | F110: 18447 | K110: 0 | L110: 122
A111: 12 | B111: 18579 | C111: 24 | D111: 18589 | E111: 24 | F111: 18595 | K111: 0 | L111: 122
A112: 21 | B112: 18704 | C112: 22 | D112: 18713 | E112: 24 | F112: 18719 | K112: 0 | L112: 222
A113: 21 | B113: 18818 | C113: 22 | D113: 18832 | E113: 24 | F113: 18838 | K113: 0 | L113: 222
A114: 21 | B114: 18946 | C114: 22 | D114: 18952 | E114: 24 | F114: 18962 | K114: 0 | L114: 222
A115: 12 | B115: 19055 | C115: 24 | D115: 19066 | E115: 24 | F115: 19073 | K115: 0 | L115: 122
A116: 21 | B116: 19379 | C116: 22 | D116: 19388 | E116: 24 | F116: 19393 | K116: 0 | L116: 222
A117: 21 | B117: 19496 | C117: 22 | D117: 19501 | E117: 24 | F117: 19521 | K117: 0 | L117: 222
A118: 21 | B118: 19624 | C118: 22 | D118: 19636 | E118: 24 | F118: 19645 | K118: 0 | L118: 222
A119: 12 | B119: 19738 | C119: 24 | D119: 19746 | E119: 24 | F119: 19756 | K119: 0 | L119: 122
A120: 12 | B120: 19852 | C120: 24 | D120: 19857 | E120: 24 | F120: 19862 | K120: 0 | L120: 122
A121: 12 | B121: 19964 | C121: 24 | D121: 19968 | E121: 24 | F121: 19983 | K121: 0 | L121: 122
A122: 21 | B122: 20089 | C122: 22 | D122: 20095 | E122: 24 | F122: 20101 | K122: 0 | L122: 222
A123: 21 | B123: 20198 | C123: 22 | D123: 20203 | E123: 24 | F123: 20213 | K123: 0 | L123: 222
A124: 21 | B124: 20319 | C124: 22 | D124: 20326 | E124: 24 | F124: 20331 | K124: 0 | L124: 222
A125: 21 | B125: 20433 | C125: 22 | D125: 20439 | E125: 24 | F125: 20447 | K125: 0 | L125: 222
A126: 12 | B126: 20614 | C126: 24 | D126: 20624 | E126: 24 | F126: 20629 | K126: 0 | L126: 122
A127: 12 | B127: 20729 | C127: 24 | D127: 20733 | E127: 24 | F127: 20742 | K127: 0 | L127: 122
A128: 12 | B128: 20842 | C128: 24 | D128: 20848 | E128: 24 | F128: 20851 | K128: 0 | L128: 122
A129: 21 | B129: 20957 | C129: 22 | D129: 20963 | E129: 24 | F129: 20969 | K129: 0 | L129: 222
A130: 12 | B130: 21065 | C130: 24 | D130: 21070 | E130: 24 | F130: 21079 | K130: 0 | L130: 122
A131: 12 | B131: 21175 | C131: 24 | D131: 21182 | E131: 24 | F131: 21187 | K131: 0 | L131: 122
A132: 12 | B132: 21283 | C132: 24 | D132: 21292 | E132: 24 | F132: 21305 | K132: 0 | L132: 122
A133: 12 | B133: 21398 | C133: 24 | D133: 21405 | E133: 24 | F133: 21410 | K133: 0 | L133: 122
A134: 12 | B134: 21511 | C134: 24 | D134: 21517 | E134: 24 | F134: 21528 | K134: 0 | L134: 122
A135: 12 | B135: 21621 | C135: 24 | D135: 21635 | E135: 24 | F135: 21644 | K135: 0 | L135: 122
A136: 12 | B136: 21737 | C136: 24 | D136: 21752 | E136: 24 | F136: 21754 | K136: 0 | L136: 122
A137: 21 | B137: 21864 | C137: 22 | D137: 21869 | E137: 24 | F137: 21878 | K137: 0 | L137: 222
A138: 12 | B138: 22219 | C138: 24 | D138: 22224 | E138: 24 | F138: 22229 | K138: 0 | L138: 122
A139: 21 | B139: 22430 | C139: 22 | D139: 22436 | E139: 24 | F139: 22449 | K139: 0 | L139: 222
A140: 21 | B140: 22549 | C140: 22 | D140: 22559 | E140: 24 | F140: 22571 | K140: 0 | L140: 222
A141: 21 | B141: 22825 | C141: 22 | D141: 22831 | E141: 24 | F141: 22837 | K141: 0 | L141: 222
A142: 21 | B142: 22934 | C142: 22 | D142: 22942 | E142: 24 | F142: 22953 | K142: 0 | L142: 222
A143: 12 | B143: 23045 | C143: 24 | D143: 23052 | E143: 24 | F143: 23056 | K143: 0 | L143: 122
A144: 21 | B144: 23164 | C144: 22 | D144: 23174 | E144: 24 | F144: 23182 | K144: 0 | L144: 222
A145: 12 | B145: 23277 | C145: 24 | D145: 23281 | E145: 24 | F145: 23288 | K145: 0 | L145: 122
A146: 12 | B146: 23568 | C146: 24 | D146: 23578 | E146: 24 | F146: 23583 | K146: 0 | L146: 122
A147: 12 | B147: 23781 | C147: 24 | D147: 23784 | E147: 24 | F147: 23789 | K147: 0 | L147: 122
A148: 12 | B148: 23887 | C148: 24 | D148: 23891 | E148: 24 | F148: 23898 | K148: 0 | L148: 122

Sheet !M123B00.Gus
A1: Report for:!M123B00.Gus
A2: Date: | B2: <date>
A3: Hen: | B3: <hen> | F3: Correct Sequence | G3: =Start!J2 -> 211 | P3: Total Sequences in Data | Q3: =4994-COUNTBLANK(L7:L5000) -> 170 | V3: Total Sequences in Block Data | W3: =COUNTA(L7:L34) -> 28 | AA3: Total Sequences in Block Data | AB3: =COUNTA(L35:L63) -> 29 | AF3: Total Sequences in Block Data | AG3: =COUNTA(L64:L91) -> 28 | AK3: Total Sequences in Block Data | AL3: =COUNTA(L92:L119) -> 28 | AP3: Total Sequences in Block Data | AQ3: =COUNTA(L120:L148) -> 29 | AU3: Total Sequences in Block Data | AV3: =COUNTA(L149:L176) -> 28
P4: Total Sequences in Summary | Q4: =SUM(O7:O14) -> 170 | V4: Total Sequences in Block Summary | W4: =SUM(U7:U14) -> 28 | AA4: Total Sequences in Block Summary | AB4: =SUM(Z7:Z14) -> 29 | AF4: Total Sequences in Block Summary | AG4: =SUM(AE7:AE14) -> 28 | AK4: Total Sequences in Block Summary | AL4: =SUM(AJ7:AJ14) -> 28 | AP4: Total Sequences in Block Summary | AQ4: =SUM(AO7:AO14) -> 29 | AU4: Total Sequences in Block Summary | AV4: =SUM(AT7:AT14) -> 28
T5: Block 1 | Y5: Block 2 | AD5: Block 3 | AI5: Block 4 | AN5: Block 5 | AS5: Block 6
A6: Sequence Component 1 | B6: Time 1 | C6: Sequence Component 2 | D6: Time 2 | E6: Sequence Component 3 | F6: Time 3 | G6: Sequence Component 4 | H6: Time 4 | I6: Sequence Component 5 | J6: Time 5 | K6: Correct? 0=No 1=Yes | L6: Sequence | N6: Frequency | P6: Relative Frequency | Q6: Variability | T6: Frequency | V6: Relative Frequency | W6: Variability | Y6: Frequency | AA6: Relative Frequency | AB6: Variability | AD6: Frequency | AF6: Relative Frequency | AG6: Variability | AI6: Frequency | AK6: Relative Frequency | AL6: Variability | AN6: Frequency | AP6: Relative Frequency | AQ6: Variability | AS6: Frequency | AU6: Relative Frequency | AV6: Variability
A7: 21 | B7: 9 | C7: 22 | D7: 15 | E7: 24 | F7: 20 | K7: 0 | L7: 222 | N7: 111 | O7: =COUNTIF($L$7:$L$500,N7) -> 1 | P7: =O7/$Q$4 -> 0.005882352941 | Q7: =IF(P7=0,0,(P7*((LOG(P7))/LOG(2)))) -> -0.04358465257 | T7: =N7 -> 111 | U7: =COUNTIF(L7:L34,T7) -> 0 | V7: =U7/(W4-U11) -> 0 | W7: =IF(V7=0,0,(V7*((LOG(V7))/LOG(2)))) -> 0 | Y7: =N7 -> 111 | Z7: =COUNTIF(L35:L63,Y7) -> 1 | AA7: =Z7/(AB4-Z11) -> 0.03448275862 | AB7: =IF(AA7=0,0,(AA7*((LOG(AA7))/LOG(2)))) -> -0.167516586 | AD7: =N7 -> 111 | AE7: =COUNTIF(L64:L91,AD7) -> 0 | AF7: =AE7/(AG4-AE11) -> 0 | AG7: =IF(AF7=0,0,(AF7*((LOG(AF7))/LOG(2)))) -> 0 | AI7: =N7 -> 111 | AJ7: =COUNTIF(L92:L119,AI7) -> 0 | AK7: =AJ7/(AL4-AJ11) -> 0 | AL7: =IF(AK7=0,0,(AK7*((LOG(AK7))/LOG(2)))) -> 0 | AN7: =N7 -> 111 | AO7: =COUNTIF(L120:L148,AN7) -> 0 | AP7: =AO7/(AQ4-AO11) -> 0 | AQ7: =IF(AP7=0,0,(AP7*((LOG(AP7))/LOG(2)))) -> 0 | AS7: =N7 -> 111 | AT7: =COUNTIF(L149:L176,AS7) -> 0 | AU7: =AT7/(AV4-AT11) -> 0 | AV7: =IF(AU7=0,0,(AU7*((LOG(AU7))/LOG(2)))) -> 0
A8: 21 | B8: 119 | C8: 22 | D8: 125 | E8: 24 | F8: 127 | K8: 0 | L8: 222 | N8: 112 | O8: =COUNTIF($L$7:$L$500,N8) -> 6 | P8: =O8/$Q$4 -> 0.03529411765 | Q8: =IF(P8=0,0,(P8*((LOG(P8))/LOG(2)))) -> -0.1702739448 | T8: =N8 -> 112 | U8: =COUNTIF(L7:L34,T8) -> 0 | V8: =U8/(W4-U11) -> 0 | W8: =IF(V8=0,0,(V8*((LOG(V8))/LOG(2)))) -> 0 | Y8: =N8 -> 112 | Z8: =COUNTIF(L35:L63,Y8) -> 2 | AA8: =Z8/(AB4-Z11) -> 0.06896551724 | AB8: =IF(AA8=0,0,(AA8*((LOG(AA8))/LOG(2)))) -> -0.2660676548 | AD8: =N8 -> 112 | AE8: =COUNTIF(L64:L91,AD8) -> 0 | AF8: =AE8/(AG4-AE11) -> 0 | AG8: =IF(AF8=0,0,(AF8*((LOG(AF8))/LOG(2)))) -> 0 | AI8: =N8 -> 112 | AJ8: =COUNTIF(L92:L119,AI8) -> 3 | AK8: =AJ8/(AL4-AJ11) -> 0.1071428571 | AL8: =IF(AK8=0,0,(AK8*((LOG(AK8))/LOG(2)))) -> -0.3452563309 | AN8: =N8 -> 112 | AO8: =COUNTIF(L120:L148,AN8) -> 0 | AP8: =AO8/(AQ4-AO11) -> 0 | AQ8: =IF(AP8=0,0,(AP8*((LOG(AP8))/LOG(2)))) -> 0 | AS8: =N8 -> 112 | AT8: =COUNTIF(L149:L176,AS8) -> 1 | AU8: =AT8/(AV4-AT11) -> 0.03571428571 | AV8: =IF(AU8=0,0,(AU8*((LOG(AU8))/LOG(2)))) -> -0.1716912472
A9: 21 | B9: 222 | C9: 22 | D9: 227 | E9: 24 | F9: 230 | K9: 0 | L9: 222 | N9: 121 | O9: =COUNTIF($L$7:$L$500,N9) -> 0 | P9: =O9/$Q$4 -> 0 | Q9: =IF(P9=0,0,(P9*((LOG(P9))/LOG(2)))) -> 0 | T9: =N9 -> 121 | U9: =COUNTIF(L7:L34,T9) -> 0 | V9: =U9/(W4-U11) -> 0 | W9: =IF(V9=0,0,(V9*((LOG(V9))/LOG(2)))) -> 0 | Y9: =N9 -> 121 | Z9: =COUNTIF(L35:L63,Y9) -> 0 | AA9: =Z9/(AB4-Z11) -> 0 | AB9: =IF(AA9=0,0,(AA9*((LOG(AA9))/LOG(2)))) -> 0 | AD9: =N9 -> 121 | AE9: =COUNTIF(L64:L91,AD9) -> 0 | AF9: =AE9/(AG4-AE11) -> 0 | AG9: =IF(AF9=0,0,(AF9*((LOG(AF9))/LOG(2)))) -> 0 | AI9: =N9 -> 121 | AJ9: =COUNTIF(L92:L119,AI9) -> 0 | AK9: =AJ9/(AL4-AJ11) -> 0 | AL9: =IF(AK9=0,0,(AK9*((LOG(AK9))/LOG(2)))) -> 0 | AN9: =N9 -> 121 | AO9: =COUNTIF(L120:L148,AN9) -> 0 | AP9: =AO9/(AQ4-AO11) -> 0 | AQ9: =IF(AP9=0,0,(AP9*((LOG(AP9))/LOG(2)))) -> 0 | AS9: =N9 -> 121 | AT9: =COUNTIF(L149:L176,AS9) -> 0 | AU9: =AT9/(AV4-AT11) -> 0 | AV9: =IF(AU9=0,0,(AU9*((LOG(AU9))/LOG(2)))) -> 0
A10: 21 | B10: 442 | C10: 22 | D10: 450 | E10: 24 | F10: 461 | K10: 0 | L10: 222 | N10: 122 | O10: =COUNTIF($L$7:$L$500,N10) -> 73 | P10: =O10/$Q$4 -> 0.4294117647 | Q10: =IF(P10=0,0,(P10*((LOG(P10))/LOG(2)))) -> -0.5236961502 | T10: =N10 -> 122 | U10: =COUNTIF(L7:L34,T10) -> 14 | V10: =U10/(W4-U11) -> 0.5 | W10: =IF(V10=0,0,(V10*((LOG(V10))/LOG(2)))) -> -0.5 | Y10: =N10 -> 122 | Z10: =COUNTIF(L35:L63,Y10) -> 15 | AA10: =Z10/(AB4-Z11) -> 0.5172413793 | AB10: =IF(AA10=0,0,(AA10*((LOG(AA10))/LOG(2)))) -> -0.4919433101 | AD10: =N10 -> 122 | AE10: =COUNTIF(L64:L91,AD10) -> 10 | AF10: =AE10/(AG4-AE11) -> 0.3571428571 | AG10: =IF(AF10=0,0,(AF10*((LOG(AF10))/LOG(2)))) -> -0.5305095811 | AI10: =N10 -> 122 | AJ10: =COUNTIF(L92:L119,AI10) -> 12 | AK10: =AJ10/(AL4-AJ11) -> 0.4285714286 | AL10: =IF(AK10=0,0,(AK10*((LOG(AK10))/LOG(2)))) -> -0.5238824663 | AN10: =N10 -> 122 | AO10: =COUNTIF(L120:L148,AN10) -> 13 | AP10: =AO10/(AQ4-AO11) -> 0.4482758621 | AQ10: =IF(AP10=0,0,(AP10*((LOG(AP10))/LOG(2)))) -> -0.5188978138 | AS10: =N10 -> 122 | AT10: =COUNTIF(L149:L176,AS10) -> 9 | AU10: =AT10/(AV4-AT11) -> 0.3214285714 | AV10: =IF(AU10=0,0,(AU10*((LOG(AU10))/LOG(2)))) -> -0.5263167602
A11: 12 | B11: 556 | C11: 24 | D11: 559 | E11: 24 | F11: 565 | K11: 0 | L11: 122 | N11: 211 | O11: =COUNTIF($L$7:$L$500,N11) -> 0 | P11: =O11/$Q$4 -> 0 | Q11: =IF(P11=0,0,(P11*((LOG(P11))/LOG(2)))) -> 0 | T11: =N11 -> 211 | U11: =COUNTIF(L7:L34,T11) -> 0 | Y11: =N11 -> 211 | Z11: =COUNTIF(L35:L63,Y11) -> 0 | AD11: =N11 -> 211 | AE11: =COUNTIF(L64:L91,AD11) -> 0 | AI11: =N11 -> 211 | AJ11: =COUNTIF(L92:L119,AI11) -> 0 | AN11: =N11 -> 211 | AO11: =COUNTIF(L120:L148,AN11) -> 0 | AS11: =N11 -> 211 | AT11: =COUNTIF(L149:L176,AS11) -> 0
A12: 12 | B12: 661 | C12: 24 | D12: 667 | E12: 24 | F12: 668 | K12: 0 | L12: 122 | N12: 212 | O12: =COUNTIF($L$7:$L$500,N12) -> 0 | P12: =O12/$Q$4 -> 0 | Q12: =IF(P12=0,0,(P12*((LOG(P12))/LOG(2)))) -> 0 | T12: =N12 -> 212 | U12: =COUNTIF(L7:L34,T12) -> 0 | V12: =U12/(W4-U11) -> 0 | W12: =IF(V12=0,0,(V12*((LOG(V12))/LOG(2)))) -> 0 | Y12: =N12 -> 212 | Z12: =COUNTIF(L35:L63,Y12) -> 0 | AA12: =Z12/(AB4-Z11) -> 0 | AB12: =IF(AA12=0,0,(AA12*((LOG(AA12))/LOG(2)))) -> 0 | AD12: =N12 -> 212 | AE12: =COUNTIF(L64:L91,AD12) -> 0 | AF12: =AE12/(AG4-AE11) -> 0 | AG12: =IF(AF12=0,0,(AF12*((LOG(AF12))/LOG(2)))) -> 0 | AI12: =N12 -> 212 | AJ12: =COUNTIF(L92:L119,AI12) -> 0 | AK12: =AJ12/(AL4-AJ11) -> 0 | AL12: =IF(AK12=0,0,(AK12*((LOG(AK12))/LOG(2)))) -> 0 | AN12: =N12 -> 212 | AO12: =COUNTIF(L120:L148,AN12) -> 0 | AP12: =AO12/(AQ4-AO11) -> 0 | AQ12: =IF(AP12=0,0,(AP12*((LOG(AP12))/LOG(2)))) -> 0 | AS12: =N12 -> 212 | AT12: =COUNTIF(L149:L176,AS12) -> 0 | AU12: =AT12/(AV4-AT11) -> 0 | AV12: =IF(AU12=0,0,(AU12*((LOG(AU12))/LOG(2)))) -> 0
A13: 12 | B13: 764 | C13: 24 | D13: 772 | E13: 24 | F13: 776 | K13: 0 | L13: 122 | N13: 221 | O13: =COUNTIF($L$7:$L$500,N13) -> 0 | P13: =O13/$Q$4 -> 0 | Q13: =IF(P13=0,0,(P13*((LOG(P13))/LOG(2)))) -> 0 | T13: =N13 -> 221 | U13: =COUNTIF(L7:L34,T13) -> 0 | V13: =U13/(W4-U11) -> 0 | W13: =IF(V13=0,0,(V13*((LOG(V13))/LOG(2)))) -> 0 | Y13: =N13 -> 221 | Z13: =COUNTIF(L35:L63,Y13) -> 0 | AA13: =Z13/(AB4-Z11) -> 0 | AB13: =IF(AA13=0,0,(AA13*((LOG(AA13))/LOG(2)))) -> 0 | AD13: =N13 -> 221 | AE13: =COUNTIF(L64:L91,AD13) -> 0 | AF13: =AE13/(AG4-AE11) -> 0 | AG13: =IF(AF13=0,0,(AF13*((LOG(AF13))/LOG(2)))) -> 0 | AI13: =N13 -> 221 | AJ13: =COUNTIF(L92:L119,AI13) -> 0 | AK13: =AJ13/(AL4-AJ11) -> 0 | AL13: =IF(AK13=0,0,(AK13*((LOG(AK13))/LOG(2)))) -> 0 | AN13: =N13 -> 221 | AO13: =COUNTIF(L120:L148,AN13) -> 0 | AP13: =AO13/(AQ4-AO11) -> 0 | AQ13: =IF(AP13=0,0,(AP13*((LOG(AP13))/LOG(2)))) -> 0 | AS13: =N13 -> 221 | AT13: =COUNTIF(L149:L176,AS13) -> 0 | AU13: =AT13/(AV4-AT11) -> 0 | AV13: =IF(AU13=0,0,(AU13*((LOG(AU13))/LOG(2)))) -> 0
A14: 21 | B14: 884 | C14: 22 | D14: 891 | E14: 24 | F14: 898 | K14: 0 | L14: 222 | N14: 222 | O14: =COUNTIF($L$7:$L$500,N14) -> 90 | P14: =O14/$Q$4 -> 0.5294117647 | Q14: =IF(P14=0,0,(P14*((LOG(P14))/LOG(2)))) -> -0.485755327 | T14: =N14 -> 222 | U14: =COUNTIF(L7:L34,T14) -> 14 | V14: =U14/(W4-U11) -> 0.5 | W14: =IF(V14=0,0,(V14*((LOG(V14))/LOG(2)))) -> -0.5 | Y14: =N14 -> 222 | Z14: =COUNTIF(L35:L63,Y14) -> 11 | AA14: =Z14/(AB4-Z11) -> 0.3793103448 | AB14: =IF(AA14=0,0,(AA14*((LOG(AA14))/LOG(2)))) -> -0.5304842463 | AD14: =N14 -> 222 | AE14: =COUNTIF(L64:L91,AD14) -> 18 | AF14: =AE14/(AG4-AE11) -> 0.6428571429 | AG14: =IF(AF14=0,0,(AF14*((LOG(AF14))/LOG(2)))) -> -0.4097763775 | AI14: =N14 -> 222 | AJ14: =COUNTIF(L92:L119,AI14) -> 13 | AK14: =AJ14/(AL4-AJ11) -> 0.4642857143 | AL14: =IF(AK14=0,0,(AK14*((LOG(AK14))/LOG(2)))) -> -0.5139249161 | AN14: =N14 -> 222 | AO14: =COUNTIF(L120:L148,AN14) -> 16 | AP14: =AO14/(AQ4-AO11) -> 0.5517241379 | AQ14: =IF(AP14=0,0,(AP14*((LOG(AP14))/LOG(2)))) -> -0.4733688249 | AS14: =N14 -> 222 | AT14: =COUNTIF(L149:L176,AS14) -> 18 | AU14: =AT14/(AV4-AT11) -> 0.6428571429 | AV14: =IF(AU14=0,0,(AU14*((LOG(AU14))/LOG(2)))) -> -0.4097763775
A15: 12 | B15: 993 | C15: 24 | D15: 1004 | E15: 24 | F15: 1010 | K15: 0 | L15: 122 | P15: =SUM(P7:P14) -> 1 | Q15: =-SUM(Q7:Q14) -> 1.223310075 | V15: =SUM(V7:V14) -> 1 | W15: =-SUM(W7:W14) -> 1 | AA15: =SUM(AA7:AA14) -> 1 | AB15: =-SUM(AB7:AB14) -> 1.456011797 | AF15: =SUM(AF7:AF14) -> 1 | AG15: =-SUM(AG7:AG14) -> 0.9402859587 | AK15: =SUM(AK7:AK14) -> 1 | AL15: =-SUM(AL7:AL14) -> 1.383063713 | AP15: =SUM(AP7:AP14) -> 1 | AQ15: =-SUM(AQ7:AQ14) -> 0.9922666387 | AU15: =SUM(AU7:AU14) -> 1 | AV15: =-SUM(AV7:AV14) -> 1.107784385
A16: 21 | B16: 1117 | C16: 22 | D16: 1124 | E16: 24 | F16: 1130 | K16: 0 | L16: 222 | P16: U= | Q16: =Q15/(LOG(Q4)/LOG(2)) -> 0.1651026495 | V16: U1= | W16: =W15/(LOG(W4)/LOG(2)) -> 0.2080145977 | AA16: U2= | AB16: =AB15/(LOG(AB4)/LOG(2)) -> 0.2997154165 | AF16: U3= | AG16: =AG15/(LOG(AG4)/LOG(2)) -> 0.1955932054 | AK16: U4= | AL16: =AL15/(LOG(AL4)/LOG(2)) -> 0.2876974419 | AP16: U5= | AQ16: =AQ15/(LOG(AQ4)/LOG(2)) -> 0.2042549445 | AU16: U6= | AV16: =AV15/(LOG(AV4)/LOG(2)) -> 0.2304353231
A17: 12 | B17: 1292 | C17: 24 | D17: 1306 | E17: 24 | F17: 1309 | K17: 0 | L17: 122
A18: 12 | B18: 1403 | C18: 24 | D18: 1414 | E18: 24 | F18: 1436 | K18: 0 | L18: 122
A19: 21 | B19: 1538 | C19: 22 | D19: 1545 | E19: 24 | F19: 1553 | K19: 0 | L19: 222 | N19: Total Target Seq
A20: 21 | B20: 1660 | C20: 22 | D20: 1666 | E20: 24 | F20: 1673 | K20: 0 | L20: 222 | N20: =COUNTIF(L7:L176,G3) -> 0 | P20: 28 | Q20: 29 | R20: 28 | S20: 28 | T20: 29 | U20: 28
A21: 12 | B21: 1768 | C21: 24 | D21: 1783 | E21: 24 | F21: 1793 | K21: 0 | L21: 122 | P21: % of reinforcement given in 6 equal intervals based on number of trials
A22: 21 | B22: 1902 | C22: 22 | D22: 1907 | E22: 24 | F22: 1917 | K22: 0 | L22: 222 | P22: %_1 | Q22: %_2 | R22: %_3 | S22: %_4 | T22: %_5 | U22: %_6
A23: 12 | B23: 2026 | C23: 24 | D23: 2033 | E23: 24 | F23: 2037 | K23: 0 | L23: 122 | O23: target sequence | P23: =$G$3 -> 211 | Q23: =$G$3 -> 211 | R23: =$G$3 -> 211 | S23: =$G$3 -> 211 | T23: =$G$3 -> 211 | U23: =$G$3 -> 211
A24: 12 | B24: 2131 | C24: 24 | D24: 2140 | E24: 24 | F24: 2145 | K24: 0 | L24: 122 | O24: total reinforcement | P24: =U11 -> 0 | Q24: =Z11 -> 0 | R24: =AE11 -> 0 | S24: =AJ11 -> 0 | T24: =AO11 -> 0 | U24: =AT11 -> 0
A25: 12 | B25: 2280 | C25: 24 | D25: 2293 | E25: 24 | F25: 2301 | K25: 0 | L25: 122 | O25: % target
A26: 21 | B26: 2410 | C26: 22 | D26: 2420 | E26: 24 | F26: 2427 | K26: 0 | L26: 222 | O26: CCRF
A27: 21 | B27: 2531 | C27: 22 | D27: 2541 | E27: 24 | F27: 2547 | K27: 0 | L27: 222 | O27: % CCRf
A28: 21 | B28: 2656 | C28: 22 | D28: 2660 | E28: 24 | F28: 2665 | K28: 0 | L28: 222 | O28: average response rate | P28: =F34/P20 -> 122.75 | Q28: =(F63-F34)/Q20 -> 127.2413793 | R28: =(F91-F63)/R20 -> 160.5 | S28: =(F119-F91)/S20 -> 130.3571429 | T28: =(F148-F119)/T20 -> 149.9310345 | U28: =(F176-F148)/U20 -> 155.1428571
A29: 21 | B29: 2762 | C29: 22 | D29: 2766 | E29: 24 | F29: 2769 | K29: 0 | L29: 222
A30: 21 | B30: 2869 | C30: 22 | D30: 2880 | E30: 24 | F30: 2885 | K30: 0 | L30: 222
A31: 12 | B31: 2977 | C31: 24 | D31: 2994 | E31: 24 | F31: 2998 | K31: 0 | L31: 122
A32: 12 | B32: 3092 | C32: 24 | D32: 3100 | E32: 24 | F32: 3107 | K32: 0 | L32: 122
A33: 12 | B33: 3200 | C33: 24 | D33: 3213 | E33: 24 | F33: 3218 | K33: 0 | L33: 122
A34: 12 | B34: 3421 | C34: 24 | D34: 3431 | E34: 24 | F34: 3437 | K34: 0 | L34: 122
A35: 12 | B35: 3534 | C35: 24 | D35: 3544 | E35: 24 | F35: 3548 | K35: 0 | L35: 122
A36: 21 | B36: 3651 | C36: 22 | D36: 3655 | E36: 24 | F36: 3663 | K36: 0 | L36: 222
A37: 21 | B37: 3764 | C37: 22 | D37: 3768 | E37: 24 | F37: 3774 | K37: 0 | L37: 222
A38: 12 | B38: 3888 | C38: 24 | D38: 3906 | E38: 24 | F38: 3919 | K38: 0 | L38: 122
A39: 12 | B39: 4012 | C39: 24 | D39: 4022 | E39: 24 | F39: 4032 | K39: 0 | L39: 122
A40: 12 | B40: 4125 | C40: 24 | D40: 4134 | E40: 24 | F40: 4139 | K40: 0 | L40: 122
A41: 12 | B41: 4231 | C41: 24 | D41: 4243 | E41: 24 | F41: 4249 | K41: 0 | L41: 122
A42: 12 | B42: 4342 | C42: 24 | D42: 4354 | E42: 24 | F42: 4360 | K42: 0 | L42: 122
A43: 21 | B43: 4466 | C43: 22 | D43: 4469 | E43: 24 | F43: 4481 | K43: 0 | L43: 222
A44: 12 | B44: 4579 | C44: 24 | D44: 4584 | E44: 24 | F44: 4590 | K44: 0 | L44: 122
A45: 12 | B45: 4688 | C45: 24 | D45: 4694 | E45: 24 | F45: 4705 | K45: 0 | L45: 122
A46: 12 | B46: 4801 | C46: 24 | D46: 4807 | E46: 24 | F46: 4815 | K46: 0 | L46: 122
A47: 12 | B47: 4915 | C47: 24 | D47: 4921 | E47: 24 | F47: 4926 | K47: 0 | L47: 122
A48: 12 | B48: 5108 | C48: 13 | D48: 5112 | E48: 24 | F48: 5125 | K48: 0 | L48: 112
A49: 21 | B49: 5357 | C49: 22 | D49: 5362 | E49: 24 | F49: 5382 | K49: 0 | L49: 222
A50: 21 | B50: 5483 | C50: 22 | D50: 5488 | E50: 24 | F50: 5492 | K50: 0 | L50: 222
A51: 12 | B51: 5587 | C51: 24 | D51: 5595 | E51: 24 | F51: 5600 | K51: 0 | L51: 122
A52: 21 | B52: 5704 | C52: 22 | D52: 5711 | E52: 24 | F52: 5716 | K52: 0 | L52: 222
A53: 12 | B53: 5808 | C53: 13 | D53: 5812 | E53: 13 | F53: 5823 | K53: 0 | L53: 111
A54: 12 | B54: 5926 | C54: 24 | D54: 5932 | E54: 24 | F54: 5937 | K54: 0 | L54: 122
A55: 21 | B55: 6034 | C55: 22 | D55: 6038 | E55: 24 | F55: 6048 | K55: 0 | L55: 222
A56: 21 | B56: 6150 | C56: 22 | D56: 6156 | E56: 24 | F56: 6169 | K56: 0 | L56: 222
A57: 21 | B57: 6271 | C57: 22 | D57: 6275 | E57: 24 | F57: 6280 | K57: 0 | L57: 222
A58: 12 | B58: 6378 | C58: 24 | D58: 6382 | E58: 24 | F58: 6388 | K58: 0 | L58: 122
A59: 12 | B59: 6480 | C59: 13 | D59: 6488 | E59: 24 | F59: 6493 | K59: 0 | L59: 112
A60: 21 | B60: 6774 | C60: 22 | D60: 6779 | E60: 24 | F60: 6786 | K60: 0 | L60: 222
A61: 21 | B61: 6889 | C61: 22 | D61: 6899 | E61: 24 | F61: 6910 | K61: 0 | L61: 222
A62: 12 | B62: 7004 | C62: 24 | D62: 7015 | E62: 24 | F62: 7022 | K62: 0 | L62: 122
A63: 12 | B63: 7117 | C63: 24 | D63: 7122 | E63: 24 | F63: 7127 | K63: 0 | L63: 122
A64: 21 | B64: 7228 | C64: 22 | D64: 7235 | E64: 24 | F64: 7241 | K64: 0 | L64: 222
A65: 21 | B65: 7344 | C65: 22 | D65: 7350 | E65: 24 | F65: 7356 | K65: 0 | L65: 222
A66: 21 | B66: 7451 | C66: 22 | D66: 7456 | E66: 24 | F66: 7460 | K66: 0 | L66: 222
A67: 12 | B67: 7552 | C67: 24 | D67: 7564 | E67: 24 | F67: 7570 | K67: 0 | L67: 122
A68: 12 | B68: 7664 | C68: 24 | D68: 7673 | E68: 24 | F68: 7689 | K68: 0 | L68: 122
A69: 21 | B69: 7789 | C69: 22 | D69: 7797 | E69: 24 | F69: 7802 | K69: 0 | L69: 222
A70: 21 | B70: 7905 | C70: 22 | D70: 7914 | E70: 24 | F70: 7928 | K70: 0 | L70: 222
A71: 21 | B71: 8276 | C71: 22 | D71: 8299 | E71: 24 | F71: 8317 | K71: 0 | L71: 222
A72: 21 | B72: 8747 | C72: 22 | D72: 8763 | E72: 24 | F72: 8776 | K72: 0 | L72: 222
A73: 12 | B73: 8992 | C73: 24 | D73: 9003 | E73: 24 | F73: 9034 | K73: 0 | L73: 122
A74: 21 | B74: 9136 | C74: 22 | D74: 9153 | E74: 24 | F74: 9160 | K74: 0 | L74: 222
A75: 21 | B75: 9262 | C75: 22 | D75: 9268 | E75: 24 | F75: 9272 | K75: 0 | L75: 222
A76: 21 | B76: 9376 | C76: 22 | D76: 9380 | E76: 24 | F76: 9383 | K76: 0 | L76: 222
A77: 21 | B77: 9484 | C77: 22 | D77: 9492 | E77: 24 | F77: 9497 | K77: 0 | L77: 222
A78: 21 | B78: 9630 | C78: 22 | D78: 9636 | E78: 24 | F78: 9641 | K78: 0 | L78: 222
A79: 21 | B79: 9740 | C79: 22 | D79: 9746 | E79: 24 | F79: 9758 | K79: 0 | L79: 222
A80: 12 | B80: 9851 | C80: 24 | D80: 9859 | E80: 24 | F80: 9865 | K80: 0 | L80: 122
A81: 12 | B81: 9962 | C81: 24 | D81: 9966 | E81: 24 | F81: 9974 | K81: 0 | L81: 122
A82: 12 | B82: 10069 | C82: 24 | D82: 10078 | E82: 24 | F82: 10081 | K82: 0 | L82: 122
A83: 12 | B83: 10174 | C83: 24 | D83: 10186 | E83: 24 | F83: 10190 | K83: 0 | L83: 122
A84: 12 | B84: 10383 | C84: 24 | D84: 10396 | E84: 24 | F84: 10410 | K84: 0 | L84: 122
A85: 21 | B85: 10513 | C85: 22 | D85: 10518 | E85: 24 | F85: 10528 | K85: 0 | L85: 222
A86: 21 | B86: 10746 | C86: 22 | D86: 10755 | E86: 24 | F86: 10763 | K86: 0 | L86: 222
A87: 12 | B87: 10859 | C87: 24 | D87: 10863 | E87: 24 | F87: 10878 | K87: 0 | L87: 122
A88: 21 | B88: 10984 | C88: 22 | D88: 10995 | E88: 24 | F88: 11002 | K88: 0 | L88: 222
A89: 21 | B89: 11105 | C89: 22 | D89: 11109 | E89: 24 | F89: 11117 | K89: 0 | L89: 222
A90: 12 | B90: 11424 | C90: 24 | D90: 11439 | E90: 24 | F90: 11462 | K90: 0 | L90: 122
A91: 21 | B91: 11599 | C91: 22 | D91: 11605 | E91: 24 | F91: 11621 | K91: 0 | L91: 222
A92: 21 | B92: 11723 | C92: 22 | D92: 11740 | E92: 24 | F92: 11752 | K92: 0 | L92: 222
A93: 21 | B93: 11848 | C93: 22 | D93: 11854 | E93: 24 | F93: 11859 | K93: 0 | L93: 222
A94: 12 | B94: 11955 | C94: 24 | D94: 11958 | E94: 24 | F94: 11969 | K94: 0 | L94: 122
A95: 21 | B95: 12073 | C95: 22 | D95: 12075 | E95: 24 | F95: 12078 | K95: 0 | L95: 222
A96: 12 | B96: 12251 | C96: 24 | D96: 12270 | E96: 24 | F96: 12277 | K96: 0 | L96: 122
A97: 12 | B97: 12370 | C97: 24 | D97: 12382 | E97: 24 | F97: 12396 | K97: 0 | L97: 122
A98: 21 | B98: 12502 | C98: 22 | D98: 12506 | E98: 24 | F98: 12512 | K98: 0 | L98: 222
A99: 21 | B99: 12617 | C99: 22 | D99: 12625 | E99: 24 | F99: 12630 | K99: 0 | L99: 222
A100: 21 | B100: 12735 | C100: 22 | D100: 12741 | E100: 24 | F100: 12747 | K100: 0 | L100: 222
A101: 12 | B101: 12840 | C101: 24 | D101: 12851 | E101: 24 | F101: 12860 | K101: 0 | L101: 122
A102: 12 | B102: 12989 | C102: 24 | D102: 13007 | E102: 24 | F102: 13024 | K102: 0 | L102: 122
A103: 12 | B103: 13118 | C103: 24 | D103: 13125 | E103: 24 | F103: 13144 | K103: 0 | L103: 122
A104: 21 | B104: 13244 | C104: 22 | D104: 13249 | E104: 24 | F104: 13254 | K104: 0 | L104: 222
A105: 12 | B105: 13349 | C105: 13 | D105: 13353 | E105: 24 | F105: 13363 | K105: 0 | L105: 112
A106: 12 | B106: 13458 | C106: 24 | D106: 13470 | E106: 24 | F106: 13475 | K106: 0 | L106: 122
A107: 21 | B107: 13571 | C107: 22 | D107: 13575 | E107: 24 | F107: 13588 | K107: 0 | L107: 222
A108: 21 | B108: 14028 | C108: 22 | D108: 14031 | E108: 24 | F108: 14037 | K108: 0 | L108: 222
A109: 12 | B109: 14128 | C109: 24 | D109: 14140 | E109: 24 | F109: 14144 | K109: 0 | L109: 122
A110: 12 | B110: 14238 | C110: 24 | D110: 14245 | E110: 24 | F110: 14252 | K110: 0 | L110: 122
A111: 21 | B111: 14353 | C111: 22 | D111: 14359 | E111: 24 | F111: 14368 | K111: 0 | L111: 222
A112: 12 | B112: 14460 | C112: 24 | D112: 14469 | E112: 24 | F112: 14475 | K112: 0 | L112: 122
A113: 12 | B113: 14570 | C113: 13 | D113: 14575 | E113: 24 | F113: 14576 | K113: 0 | L113: 112
A114: 12 | B114: 14670 | C114: 24 | D114: 14678 | E114: 24 | F114: 14688 | K114: 0 | L114: 122
A115: 12 | B115: 14785 | C115: 13 | D115: 14787 | E115: 24 | F115: 14798 | K115: 0 | L115: 112
A116: 12 | B116: 14894 | C116: 24 | D116: 14900 | E116: 24 | F116: 14906 | K116: 0 | L116: 122
A117: 21 | B117: 15007 | C117: 22 | D117: 15017 | E117: 24 | F117: 15024 | K117: 0 | L117: 222
A118: 21 | B118: 15125 | C118: 22 | D118: 15132 | E118: 24 | F118: 15143 | K118: 0 | L118: 222
A119: 21 | B119: 15247 | C119: 22 | D119: 15254 | E119: 24 | F119: 15271 | K119: 0 | L119: 222
A120: 21 | B120: 15372 | C120: 22 | D120: 15381 | E120: 24 | F120: 15387 | K120: 0 | L120: 222
A121: 12 | B121: 15481 | C121: 24 | D121: 15491 | E121: 24 | F121: 15495 | K121: 0 | L121: 122
A122: 12 | B122: 15728 | C122: 24 | D122: 15739 | E122: 24 | F122: 15744 | K122: 0 | L122: 122
A123: 12 | B123: 15847 | C123: 24 | D123: 15857 | E123: 24 | F123: 15864 | K123: 0 | L123: 122
A124: 21 | B124: 15963 | C124: 22 | D124: 15971 | E124: 24 | F124: 15981 | K124: 0 | L124: 222
A125: 21 | B125: 16086 | C125: 22 | D125: 16092 | E125: 24 | F125: 16098 | K125: 0 | L125: 222
A126: 12 | B126: 16194 | C126: 24 | D126: 16201 | E126: 24 | F126: 16205 | K126: 0 | L126: 122
A127: 12 | B127: 16482 | C127: 24 | D127: 16496 | E127: 24 | F127: 16498 | K127: 0 | L127: 122
A128: 21 | B128: 16671 | C128: 22 | D128: 16677 | E128: 24 | F128: 16687 | K128: 0 | L128: 222
A129: 21 | B129: 16785 | C129: 22 | D129: 16791 | E129: 24 | F129: 16795 | K129: 0 | L129: 222
A130: 21 | B130: 16982 | C130: 22 | D130: 16985 | E130: 24 | F130: 16988 | K130: 0 | L130: 222
A131: 12 | B131: 17079 | C131: 24 | D131: 17086 | E131: 24 | F131: 17090 | K131: 0 | L131: 122
A132: 12 | B132: 17189 | C132: 24 | D132: 17196 | E132: 24 | F132: 17206 | K132: 0 | L132: 122
A133: 21 | B133: 17306 | C133: 22 | D133: 17312 | E133: 24 | F133: 17326 | K133: 0 | L133: 222
A134: 21 | B134: 17464 | C134: 22 | D134: 17472 | E134: 24 | F134: 17478 | K134: 0 | L134: 222
A135: 21 | B135: 17584 | C135: 22 | D135: 17587 | E135: 24 | F135: 17593 | K135: 0 | L135: 222
A136: 21 | B136: 17695 | C136: 22 | D136: 17702 | E136: 24 | F136: 17706 | K136: 0 | L136: 222
A137: 21 | B137: 17811 | C137: 22 | D137: 17815 | E137: 24 | F137: 17820 | K137: 0 | L137: 222
A138: 21 | B138: 17917 | C138: 22 | D138: 17923 | E138: 24 | F138: 17926 | K138: 0 | L138: 222
A139: 12 | B139: 18019 | C139: 24 | D139: 18030 | E139: 24 | F139: 18049 | K139: 0 | L139: 122
A140: 12 | B140: 18236 | C140: 24 | D140: 18247 | E140: 24 | F140: 18251 | K140: 0 | L140: 122
A141: 12 | B141: 18344 | C141: 24 | D141: 18357 | E141: 24 | F141: 18362 | K141: 0 | L141: 122
A142: 12 | B142: 18461 | C142: 24 | D142: 18464 | E142: 24 | F142: 18473 | K142: 0 | L142: 122
A143: 21 | B143: 18580 | C143: 22 | D143: 18587 | E143: 24 | F143: 18593 | K143: 0 | L143: 222
A144: 21 | B144: 18696 | C144: 22 | D144: 18700 | E144: 24 | F144: 18711 | K144: 0 | L144: 222
A145: 21 | B145: 18815 | C145: 22 | D145: 18823 | E145: 24 | F145: 18836 | K145: 0 | L145: 222
A146: 12 | B146: 19134 | C146: 24 | D146: 19146 | E146: 24 | F146: 19153 | K146: 0 | L146: 122
A147: 12 | B147: 19252 | C147: 24 | D147: 19260 | E147: 24 | F147: 19266 | K147: 0 | L147: 122
A148: 21 | B148: 19601 | C148: 22 | D148: 19608 | E148: 24 | F148: 19619 | K148: 0 | L148: 222
A149: 12 | B149: 19715 | C149: 24 | D149: 19718 | E149: 24 | F149: 19723 | K149: 0 | L149: 122
A150: 12 | B150: 19825 | C150: 24 | D150: 19829 | E150: 24 | F150: 19836 | K150: 0 | L150: 122
A151: 12 | B151: 19929 | C151: 24 | D151: 19940 | E151: 24 | F151: 19944 | K151: 0 | L151: 122
A152: 21 | B152: 20043 | C152: 22 | D152: 20049 | E152: 24 | F152: 20066 | K152: 0 | L152: 222
A153: 12 | B153: 20340 | C153: 24 | D153: 20366 | E153: 24 | F153: 20372 | K153: 0 | L153: 122
A154: 21 | B154: 20718 | C154: 22 | D154: 20728 | E154: 24 | F154: 20749 | K154: 0 | L154: 222
A155: 21 | B155: 20843 | C155: 22 | D155: 20848 | E155: 24 | F155: 20852 | K155: 0 | L155: 222
A156: 12 | B156: 20946 | C156: 24 | D156: 20951 | E156: 24 | F156: 20961 | K156: 0 | L156: 122
A157: 21 | B157: 21065 | C157: 22 | D157: 21070 | E157: 24 | F157: 21076 | K157: 0 | L157: 222
A158: 21 | B158: 21181 | C158: 22 | D158: 21186 | E158: 24 | F158: 21192 | K158: 0 | L158: 222
A159: 12 | B159: 21291 | C159: 24 | D159: 21300 | E159: 24 | F159: 21305 | K159: 0 | L159: 122
A160: 21 | B160: 21410 | C160: 22 | D160: 21416 | E160: 24 | F160: 21422 | K160: 0 | L160: 222
A161: 12 | B161: 21566 | C161: 24 | D161: 21576 | E161: 24 | F161: 21587 | K161: 0 | L161: 122
A162: 21 | B162: 21690 | C162: 22 | D162: 21696 | E162: 24 | F162: 21702 | K162: 0 | L162: 222
A163: 21 | B163: 21811 | C163: 22 | D163: 21816 | E163: 24 | F163: 21821 | K163: 0 | L163: 222
A164: 21 | B164: 21928 | C164: 22 | D164: 21948 | E164: 24 | F164: 21954 | K164: 0 | L164: 222
A165: 21 | B165: 22059 | C165: 22 | D165: 22065 | E165: 24 | F165: 22073 | K165: 0 | L165: 222
A166: 21 | B166: 22175 | C166: 22 | D166: 22181 | E166: 24 | F166: 22187 | K166: 0 | L166: 222
A167: 21 | B167: 22290 | C167: 22 | D167: 22299 | E167: 24 | F167: 22304 | K167: 0 | L167: 222
A168: 12 | B168: 22396 | C168: 24 | D168: 22410 | E168: 24 | F168: 22416 | K168: 0 | L168: 122
A169: 21 | B169: 22524 | C169: 22 | D169: 22534 | E169: 24 | F169: 22540 | K169: 0 | L169: 222
A170: 21 | B170: 22891 | C170: 22 | D170: 22900 | E170: 24 | F170: 22924 | K170: 0 | L170: 222
A171: 12 | B171: 23018 | C171: 13 | D171: 23023 | E171: 24 | F171: 23027 | K171: 0 | L171: 112
A172: 21 | B172: 23131 | C172: 22 | D172: 23137 | E172: 24 | F172: 23144 | K172: 0 | L172: 222
A173: 21 | B173: 23367 | C173: 22 | D173: 23372 | E173: 24 | F173: 23381 | K173: 0 | L173: 222
A174: 21 | B174: 23739 | C174: 22 | D174: 23745 | E174: 24 | F174: 23751 | K174: 0 | L174: 222
A175: 12 | B175: 23844 | C175: 24 | D175: 23855 | E175: 24 | F175: 23858 | K175: 0 | L175: 122
A176: 21 | B176: 23954 | C176: 22 | D176: 23960 | E176: 24 | F176: 23963 | K176: 1 | L176: 222

Sheet !M124B10.Gus
A1: Report for:!M124B10.Gus
A2: Date: | B2: <date>
A3: Hen: | B3: <hen> | F3: Correct Sequence | G3: =Start!J2 -> 211 | P3: Total Sequences in Data | Q3: =4994-COUNTBLANK(L7:L5000) -> 175 | V3: Total Sequences in Block Data | W3: =COUNTA(L7:L35) -> 29 | AA3: Total Sequences in Block Data | AB3: =COUNTA(L36:L64) -> 29 | AF3: Total Sequences in Block Data | AG3: =COUNTA(L65:L94) -> 30 | AK3: Total Sequences in Block Data | AL3: =COUNTA(L95:L123) -> 29 | AP3: Total Sequences in Block Data | AQ3: =COUNTA(L124:L152) -> 29 | AU3: Total Sequences in Block Data | AV3: =COUNTA(L153:L181) -> 29
P4: Total Sequences in Summary | Q4: =SUM(O7:O14) -> 175 | V4: Total Sequences in Block Summary | W4: =SUM(U7:U14) -> 29 | AA4: Total Sequences in Block Summary | AB4: =SUM(Z7:Z14) -> 29 | AF4: Total Sequences in Block Summary | AG4: =SUM(AE7:AE14) -> 30 | AK4: Total Sequences in Block Summary | AL4: =SUM(AJ7:AJ14) -> 29 | AP4: Total Sequences in Block Summary | AQ4: =SUM(AO7:AO14) -> 29 | AU4: Total Sequences in Block Summary | AV4: =SUM(AT7:AT14) -> 29
T5: Block 1 | Y5: Block 2 | AD5: Block 3 | AI5: Block 4 | AN5: Block 5 | AS5: Block 6
A6: Sequence Component 1 | B6: Time 1 | C6: Sequence Component 2 | D6: Time 2 | E6: Sequence Component 3 | F6: Time 3 | G6: Sequence Component 4 | H6: Time 4 | I6: Sequence Component 5 | J6: Time 5 | K6: Correct? 0=No 1=Yes | L6: Sequence | N6: Frequency | P6: Relative Frequency | Q6: Variability | T6: Frequency | V6: Relative Frequency | W6: Variability | Y6: Frequency | AA6: Relative Frequency | AB6: Variability | AD6: Frequency | AF6: Relative Frequency | AG6: Variability | AI6: Frequency | AK6: Relative Frequency | AL6: Variability | AN6: Frequency | AP6: Relative Frequency | AQ6: Variability | AS6: Frequency | AU6: Relative Frequency | AV6: Variability
A7: 21 | B7: 45 | C7: 22 | D7: 49 | E7: 24 | F7: 60 | K7: 0 | L7: 222 | N7: 111 | O7: =COUNTIF($L$7:$L$500,N7) -> 0 | P7: =O7/$Q$4 -> 0 | Q7: =IF(P7=0,0,(P7*((LOG(P7))/LOG(2)))) -> 0 | T7: =N7 -> 111 | U7: =COUNTIF(L7:L35,T7) -> 0 | V7: =U7/(W4-U11) -> 0 | W7: =IF(V7=0,0,(V7*((LOG(V7))/LOG(2)))) -> 0 | Y7: =N7 -> 111 | Z7: =COUNTIF(L36:L64,Y7) -> 0 | AA7: =Z7/(AB4-Z11) -> 0 | AB7: =IF(AA7=0,0,(AA7*((LOG(AA7))/LOG(2)))) -> 0 | AD7: =N7 -> 111 | AE7: =COUNTIF(L65:L94,AD7) -> 0 | AF7: =AE7/(AG4-AE11) -> 0 | AG7: =IF(AF7=0,0,(AF7*((LOG(AF7))/LOG(2)))) -> 0 | AI7: =N7 -> 111 | AJ7: =COUNTIF(L95:L123,AI7) -> 0 | AK7: =AJ7/(AL4-AJ11) -> 0 | AL7: =IF(AK7=0,0,(AK7*((LOG(AK7))/LOG(2)))) -> 0 | AN7: =N7 -> 111 | AO7: =COUNTIF(L124:L152,AN7) -> 0 | AP7: =AO7/(AQ4-AO11) -> 0 | AQ7: =IF(AP7=0,0,(AP7*((LOG(AP7))/LOG(2)))) -> 0 | AS7: =N7 -> 111 | AT7: =COUNTIF(L153:L181,AS7) -> 0 | AU7: =AT7/(AV4-AT11) -> 0 | AV7: =IF(AU7=0,0,(AU7*((LOG(AU7))/LOG(2)))) -> 0
A8: 21 | B8: 172 | C8: 22 | D8: 175 | E8: 24 | F8: 179 | K8: 0 | L8: 222 | N8: 112 | O8: =COUNTIF($L$7:$L$500,N8) -> 1 | P8: =O8/$Q$4 -> 0.005714285714 | Q8: =IF(P8=0,0,(P8*((LOG(P8))/LOG(2)))) -> -0.04257834921 | T8: =N8 -> 112 | U8: =COUNTIF(L7:L35,T8) -> 0 | V8: =U8/(W4-U11) -> 0 | W8: =IF(V8=0,0,(V8*((LOG(V8))/LOG(2)))) -> 0 | Y8: =N8 -> 112 | Z8: =COUNTIF(L36:L64,Y8) -> 1 | AA8: =Z8/(AB4-Z11) -> 0.03448275862 | AB8: =IF(AA8=0,0,(AA8*((LOG(AA8))/LOG(2)))) -> -0.167516586 | AD8: =N8 -> 112 | AE8: =COUNTIF(L65:L94,AD8) -> 0 | AF8: =AE8/(AG4-AE11) -> 0 | AG8: =IF(AF8=0,0,(AF8*((LOG(AF8))/LOG(2)))) -> 0 | AI8: =N8 -> 112 | AJ8: =COUNTIF(L95:L123,AI8) -> 0 | AK8: =AJ8/(AL4-AJ11) -> 0 | AL8: =IF(AK8=0,0,(AK8*((LOG(AK8))/LOG(2)))) -> 0 | AN8: =N8 -> 112 | AO8: =COUNTIF(L124:L152,AN8) -> 0 | AP8: =AO8/(AQ4-AO11) -> 0 | AQ8: =IF(AP8=0,0,(AP8*((LOG(AP8))/LOG(2)))) -> 0 | AS8: =N8 -> 112 | AT8: =COUNTIF(L153:L181,AS8) -> 0 | AU8: =AT8/(AV4-AT11) -> 0 | AV8: =IF(AU8=0,0,(AU8*((LOG(AU8))/LOG(2)))) -> 0
A9: 12 | B9: 276 | C9: 24 | D9: 282 | E9: 24 | F9: 286 | K9: 0 | L9: 122 | N9: 121 | O9: =COUNTIF($L$7:$L$500,N9) -> 2 | P9: =O9/$Q$4 -> 0.01142857143 | Q9: =IF(P9=0,0,(P9*((LOG(P9))/LOG(2)))) -> -0.07372812699 | T9: =N9 -> 121 | U9: =COUNTIF(L7:L35,T9) -> 0 | V9: =U9/(W4-U11) -> 0 | W9: =IF(V9=0,0,(V9*((LOG(V9))/LOG(2)))) -> 0 | Y9: =N9 -> 121 | Z9: =COUNTIF(L36:L64,Y9) -> 1 | AA9: =Z9/(AB4-Z11) -> 0.03448275862 | AB9: =IF(AA9=0,0,(AA9*((LOG(AA9))/LOG(2)))) -> -0.167516586 | AD9: =N9 -> 121 | AE9: =COUNTIF(L65:L94,AD9) -> 0 | AF9: =AE9/(AG4-AE11) -> 0 | AG9: =IF(AF9=0,0,(AF9*((LOG(AF9))/LOG(2)))) -> 0 | AI9: =N9 -> 121 | AJ9: =COUNTIF(L95:L123,AI9) -> 1 | AK9: =AJ9/(AL4-AJ11) -> 0.03448275862 | AL9: =IF(AK9=0,0,(AK9*((LOG(AK9))/LOG(2)))) -> -0.167516586 | AN9: =N9 -> 121 | AO9: =COUNTIF(L124:L152,AN9) -> 0 | AP9: =AO9/(AQ4-AO11) -> 0 | AQ9: =IF(AP9=0,0,(AP9*((LOG(AP9))/LOG(2)))) -> 0 | AS9: =N9 -> 121 | AT9: =COUNTIF(L153:L181,AS9) -> 0 | AU9: =AT9/(AV4-AT11) -> 0 | AV9: =IF(AU9=0,0,(AU9*((LOG(AU9))/LOG(2)))) -> 0
A10: 21 | B10: 517 | C10: 22 | D10: 527 | E10: 24 | F10: 535 | K10: 0 | L10: 222 | N10: 122 | O10: =COUNTIF($L$7:$L$500,N10) -> 57 | P10: =O10/$Q$4 -> 0.3257142857 | Q10: =IF(P10=0,0,(P10*((LOG(P10))/LOG(2)))) -> -0.5271103004 | T10: =N10 -> 122 | U10: =COUNTIF(L7:L35,T10) -> 7 | V10: =U10/(W4-U11) -> 0.2413793103 | W10: =IF(V10=0,0,(V10*((LOG(V10))/LOG(2)))) -> -0.4949787073 | Y10: =N10 -> 122 | Z10: =COUNTIF(L36:L64,Y10) -> 9 | AA10: =Z10/(AB4-Z11) -> 0.3103448276 | AB10: =IF(AA10=0,0,(AA10*((LOG(AA10))/LOG(2)))) -> -0.5238794463 | AD10: =N10 -> 122 | AE10: =COUNTIF(L65:L94,AD10) -> 11 | AF10: =AE10/(AG4-AE11) -> 0.3666666667 | AG10: =IF(AF10=0,0,(AF10*((LOG(AF10))/LOG(2)))) -> -0.5307349582 | AI10: =N10 -> 122 | AJ10: =COUNTIF(L95:L123,AI10) -> 16 | AK10: =AJ10/(AL4-AJ11) -> 0.5517241379 | AL10: =IF(AK10=0,0,(AK10*((LOG(AK10))/LOG(2)))) -> -0.4733688249 | AN10: =N10 -> 122 | AO10: =COUNTIF(L124:L152,AN10) -> 8 | AP10: =AO10/(AQ4-AO11) -> 0.275862069 | AQ10: =IF(AP10=0,0,(AP10*((LOG(AP10))/LOG(2)))) -> -0.5125464814 | AS10: =N10 -> 122 | AT10: =COUNTIF(L153:L181,AS10) -> 6 | AU10: =AT10/(AV4-AT11) -> 0.2068965517 | AV10: =IF(AU10=0,0,(AU10*((LOG(AU10))/LOG(2)))) -> -0.4702796885
A11: 21 | B11: 640 | C11: 22 | D11: 645 | E11: 24 | F11: 649 | K11: 0 | L11: 222 | N11: 211 | O11: =COUNTIF($L$7:$L$500,N11) -> 0 | P11: =O11/$Q$4 -> 0 | Q11: =IF(P11=0,0,(P11*((LOG(P11))/LOG(2)))) -> 0 | T11: =N11 -> 211 | U11: =COUNTIF(L7:L35,T11) -> 0 | Y11: =N11 -> 211 | Z11: =COUNTIF(L36:L64,Y11) -> 0 | AD11: =N11 -> 211 | AE11: =COUNTIF(L65:L94,AD11) -> 0 | AI11: =N11 -> 211 | AJ11: =COUNTIF(L95:L123,AI11) -> 0 | AN11: =N11 -> 211 | AO11: =COUNTIF(L124:L152,AN11) -> 0 | AS11: =N11 -> 211 | AT11: =COUNTIF(L153:L181,AS11) -> 0
A12: 21 | B12: 754 | C12: 22 | D12: 762 | E12: 24 | F12: 766 | K12: 0 | L12: 222 | N12: 212 | O12: =COUNTIF($L$7:$L$500,N12) -> 1 | P12: =O12/$Q$4 -> 0.005714285714 | Q12: =IF(P12=0,0,(P12*((LOG(P12))/LOG(2)))) -> -0.04257834921 | T12: =N12 -> 212 | U12: =COUNTIF(L7:L35,T12) -> 0 | V12: =U12/(W4-U11) -> 0 | W12: =IF(V12=0,0,(V12*((LOG(V12))/LOG(2)))) -> 0 | Y12: =N12 -> 212 | Z12: =COUNTIF(L36:L64,Y12) -> 0 | AA12: =Z12/(AB4-Z11) -> 0 | AB12: =IF(AA12=0,0,(AA12*((LOG(AA12))/LOG(2)))) -> 0 | AD12: =N12 -> 212 | AE12: =COUNTIF(L65:L94,AD12) -> 0 | AF12: =AE12/(AG4-AE11) -> 0 | AG12: =IF(AF12=0,0,(AF12*((LOG(AF12))/LOG(2)))) -> 0 | AI12: =N12 -> 212 | AJ12: =COUNTIF(L95:L123,AI12) -> 0 | AK12: =AJ12/(AL4-AJ11) -> 0 | AL12: =IF(AK12=0,0,(AK12*((LOG(AK12))/LOG(2)))) -> 0 | AN12: =N12 -> 212 | AO12: =COUNTIF(L124:L152,AN12) -> 1 | AP12: =AO12/(AQ4-AO11) -> 0.03448275862 | AQ12: =IF(AP12=0,0,(AP12*((LOG(AP12))/LOG(2)))) -> -0.167516586 | AS12: =N12 -> 212 | AT12: =COUNTIF(L153:L181,AS12) -> 0 | AU12: =AT12/(AV4-AT11) -> 0 | AV12: =IF(AU12=0,0,(AU12*((LOG(AU12))/LOG(2)))) -> 0
A13: 21 | B13: 868 | C13: 22 | D13: 873 | E13: 24 | F13: 881 | K13: 0 | L13: 222 | N13: 221 | O13: =COUNTIF($L$7:$L$500,N13) -> 0 | P13: =O13/$Q$4 -> 0 | Q13: =IF(P13=0,0,(P13*((LOG(P13))/LOG(2)))) -> 0 | T13: =N13 -> 221 | U13: =COUNTIF(L7:L35,T13) -> 0 | V13: =U13/(W4-U11) -> 0 | W13: =IF(V13=0,0,(V13*((LOG(V13))/LOG(2)))) -> 0 | Y13: =N13 -> 221 | Z13: =COUNTIF(L36:L64,Y13) -> 0 | AA13: =Z13/(AB4-Z11) -> 0 | AB13: =IF(AA13=0,0,(AA13*((LOG(AA13))/LOG(2)))) -> 0 | AD13: =N13 -> 221 | AE13: =COUNTIF(L65:L94,AD13) -> 0 | AF13: =AE13/(AG4-AE11) -> 0 | AG13: =IF(AF13=0,0,(AF13*((LOG(AF13))/LOG(2)))) -> 0 | AI13: =N13 -> 221 | AJ13: =COUNTIF(L95:L123,AI13) -> 0 | AK13: =AJ13/(AL4-AJ11) -> 0 | AL13: =IF(AK13=0,0,(AK13*((LOG(AK13))/LOG(2)))) -> 0 | AN13: =N13 -> 221 | AO13: =COUNTIF(L124:L152,AN13) -> 0 | AP13: =AO13/(AQ4-AO11) -> 0 | AQ13: =IF(AP13=0,0,(AP13*((LOG(AP13))/LOG(2)))) -> 0 | AS13: =N13 -> 221 | AT13: =COUNTIF(L153:L181,AS13) -> 0 | AU13: =AT13/(AV4-AT11) -> 0 | AV13: =IF(AU13=0,0,(AU13*((LOG(AU13))/LOG(2)))) -> 0
A14: 21 | B14: 993 | C14: 22 | D14: 999 | E14: 24 | F14: 1004 | K14: 0 | L14: 222 | N14: 222 | O14: =COUNTIF($L$7:$L$500,N14) -> 114 | P14: =O14/$Q$4 -> 0.6514285714 | Q14: =IF(P14=0,0,(P14*((LOG(P14))/LOG(2)))) -> -0.4027920293 | T14: =N14 -> 222 | U14: =COUNTIF(L7:L35,T14) -> 22 | V14: =U14/(W4-U11) -> 0.7586206897 | W14: =IF(V14=0,0,(V14*((LOG(V14))/LOG(2)))) -> -0.3023478029 | Y14: =N14 -> 222 | Z14: =COUNTIF(L36:L64,Y14) -> 18 | AA14: =Z14/(AB4-Z11) -> 0.6206896552 | AB14: =IF(AA14=0,0,(AA14*((LOG(AA14))/LOG(2)))) -> -0.4270692375 | AD14: =N14 -> 222 | AE14: =COUNTIF(L65:L94,AD14) -> 19 | AF14: =AE14/(AG4-AE11) -> 0.6333333333 | AG14: =IF(AF14=0,0,(AF14*((LOG(AF14))/LOG(2)))) -> -0.4173432854 | AI14: =N14 -> 222 | AJ14: =COUNTIF(L95:L123,AI14) -> 12 | AK14: =AJ14/(AL4-AJ11) -> 0.4137931034 | AL14: =IF(AK14=0,0,(AK14*((LOG(AK14))/LOG(2)))) -> -0.5267662735 | AN14: =N14 -> 222 | AO14: =COUNTIF(L124:L152,AN14) -> 20 | AP14: =AO14/(AQ4-AO11) -> 0.6896551724 | AQ14: =IF(AP14=0,0,(AP14*((LOG(AP14))/LOG(2)))) -> -0.3696916553 | AS14: =N14 -> 222 | AT14: =COUNTIF(L153:L181,AS14) -> 23 | AU14: =AT14/(AV4-AT11) -> 0.7931034483 | AV14: =IF(AU14=0,0,(AU14*((LOG(AU14))/LOG(2)))) -> -0.2652288931
A15: 21 | B15: 1107 | C15: 22 | D15: 1113 | E15: 24 | F15: 1117 | K15: 0 | L15: 222 | P15: =SUM(P7:P14) -> 1 | Q15: =-SUM(Q7:Q14) -> 1.088787155 | V15: =SUM(V7:V14) -> 1 | W15: =-SUM(W7:W14) -> 0.7973265101 | AA15: =SUM(AA7:AA14) -> 1 | AB15: =-SUM(AB7:AB14) -> 1.285981856 | AF15: =SUM(AF7:AF14) -> 1 | AG15: =-SUM(AG7:AG14) -> 0.9480782436 | AK15: =SUM(AK7:AK14) -> 1 | AL15: =-SUM(AL7:AL14) -> 1.167651684 | AP15: =SUM(AP7:AP14) -> 1 | AQ15: =-SUM(AQ7:AQ14) -> 1.049754723 | AU15: =SUM(AU7:AU14) -> 1 | AV15: =-SUM(AV7:AV14) -> 0.7355085816
A16: 21 | B16: 1224 | C16: 22 | D16: 1228 | E16: 24 | F16: 1234 | K16: 0 | L16: 222 | P16: U= | Q16: =Q15/(LOG(Q4)/LOG(2)) -> 0.1461221725 | V16: U1= | W16: =W15/(LOG(W4)/LOG(2)) -> 0.1641271366 | AA16: U2= | AB16: =AB15/(LOG(AB4)/LOG(2)) -> 0.2647152916 | AF16: U3= | AG16: =AG15/(LOG(AG4)/LOG(2)) -> 0.1932136503 | AK16: U4= | AL16: =AL15/(LOG(AL4)/LOG(2)) -> 0.2403574007 | AP16: U5= | AQ16: =AQ15/(LOG(AQ4)/LOG(2)) -> 0.2160886845 | AU16: U6= | AV16: =AV15/(LOG(AV4)/LOG(2)) -> 0.1514021118
A17: 21 | B17: 1336 | C17: 22 | D17: 1341 | E17: 24 | F17: 1344 | K17: 0 | L17: 222
A18: 21 | B18: 1528 | C18: 22 | D18: 1536 | E18: 24 | F18: 1542 | K18: 0 | L18: 222
A19: 21 | B19: 1647 | C19: 22 | D19: 1660 | E19: 24 | F19: 1667 | K19: 0 | L19: 222 | N19: Total Target Seq
A20: 21 | B20: 1769 | C20: 22 | D20: 1782 | E20: 24 | F20: 1786 | K20: 0 | L20: 222 | N20: =COUNTIF(L7:L181,G3) -> 0 | P20: 29 | Q20: 29 | R20: 30 | S20: 29 | T20: 29 | U20: 29
A21: 21 | B21: 1895 | C21: 22 | D21: 1902 | E21: 24 | F21: 1908 | K21: 0 | L21: 222 | P21: % of reinforcement given in 6 equal intervals based on number of trials
A22: 12 | B22: 2002 | C22: 24 | D22: 2010 | E22: 24 | F22: 2015 | K22: 0 | L22: 122 | P22: %_1 | Q22: %_2 | R22: %_3 | S22: %_4 | T22: %_5 | U22: %_6
A23: 12 | B23: 2108 | C23: 24 | D23: 2123 | E23: 24 | F23: 2127 | K23: 0 | L23: 122 | O23: target sequence | P23: =$G$3 -> 211 | Q23: =$G$3 -> 211 | R23: =$G$3 -> 211 | S23: =$G$3 -> 211 | T23: =$G$3 -> 211 | U23: =$G$3 -> 211
A24: 21 | B24: 2224 | C24: 22 | D24: 2229 | E24: 24 | F24: 2237 | K24: 0 | L24: 222 | O24: total reinforcement | P24: =U11 -> 0 | Q24: =Z11 -> 0 | R24: =AE11 -> 0 | S24: =AJ11 -> 0 | T24: =AO11 -> 0 | U24: =AT11 -> 0
A25: 21 | B25: 2340 | C25: 22 | D25: 2346 | E25: 24 | F25: 2352 | K25: 0 | L25: 222 | O25: % target
A26: 12 | B26: 2446 | C26: 24 | D26: 2454 | E26: 24 | F26: 2462 | K26: 0 | L26: 122 | O26: CCRF
A27: 21 | B27: 2694 | C27: 22 | D27: 2702 | E27: 24 | F27: 2709 | K27: 0 | L27: 222 | O27: % CCRf
A28: 12 | B28: 2802 | C28: 24 | D28: 2823 | E28: 24 | F28: 2828 | K28: 0 | L28: 122 | O28: average response rate | P28: =F35/P20 -> 129.9655172 | Q28: =(F64-F35)/Q20 -> 146.3103448 | R28: =(F94-F64)/R20 -> 136.3666667 | S28: =(F123-F94)/S20 -> 137.4137931 | T28: =(F152-F123)/T20 -> 130.0689655 | U28: =(F181-F152)/U20 -> 139.9655172
A29: 12 | B29: 2922 | C29: 24 | D29: 2930 | E29: 24 | F29: 2935 | K29: 0 | L29: 122
A30: 12 | B30: 3029 | C30: 24 | D30: 3034 | E30: 24 | F30: 3038 | K30: 0 | L30: 122
A31: 21 | B31: 3217 | C31: 22 | D31: 3220 | E31: 24 | F31: 3225 | K31: 0 | L31: 222
A32: 21 | B32: 3392 | C32: 22 | D32: 3405 | E32: 24 | F32: 3415 | K32: 0 | L32: 222
A33: 21 | B33: 3516 | C33: 22 | D33: 3524 | E33: 24 | F33: 3531 | K33: 0 | L33: 222
A34: 21 | B34: 3632 | C34: 22 | D34: 3638 | E34: 24 | F34: 3644 | K34: 0 | L34: 222
A35: 21 | B35: 3748 | C35: 22 | D35: 3760 | E35: 24 | F35: 3769 | K35: 0 | L35: 222
A36: 12 | B36: 4035 | C36: 24 | D36: 4050 | E36: 24 | F36: 4057 | K36: 0 | L36: 122
A37: 21 | B37: 4178 | C37: 22 | D37: 4184 | E37: 24 | F37: 4198 | K37: 0 | L37: 222
A38: 21 | B38: 4299 | C38: 22 | D38: 4306 | E38: 24 | F38: 4312 | K38: 0 | L38: 222
A39: 21 | B39: 4413 | C39: 22 | D39: 4419 | E39: 24 | F39: 4425 | K39: 0 | L39: 222
A40: 12 | B40: 4573 | C40: 24 | D40: 4589 | E40: 24 | F40: 4610 | K40: 0 | L40: 122
A41: 21 | B41: 4721 | C41: 22 | D41: 4727 | E41: 24 | F41: 4734 | K41: 0 | L41: 222
A42: 12 | B42: 4826 | C42: 24 | D42: 4840 | E42: 24 | F42: 4845 | K42: 0 | L42: 122
A43: 12 | B43: 4939 | C43: 24 | D43: 4958 | E43: 24 | F43: 4963 | K43: 0 | L43: 122
A44: 21 | B44: 5073 | C44: 22 | D44: 5082 | E44: 24 | F44: 5089 | K44: 0 | L44: 222
A45: 12 | B45: 5182 | C45: 13 | D45: 5185 | E45: 24 | F45: 5192 | K45: 0 | L45: 112
A46: 21 | B46: 5390 | C46: 22 | D46: 5396 | E46: 24 | F46: 5402 | K46: 0 | L46: 222
A47: 12 | B47: 5498 | C47: 24 | D47: 5501 | E47: 24 | F47: 5505 | K47: 0 | L47: 122
A48: 21 | B48: 5611 | C48: 22 | D48: 5616 | E48: 24 | F48: 5622 | K48: 0 | L48: 222
A49: 21 | B49: 5723 | C49: 22 | D49: 5729 | E49: 24 | F49: 5736 | K49: 0 | L49: 222
A50: 12 | B50: 5834 | C50: 24 | D50: 5846 | E50: 13 | F50: 5851 | K50: 0 | L50: 121
A51: 21 | B51: 5951 | C51: 22 | D51: 5958 | E51: 24 | F51: 5969 | K51: 0 | L51: 222
A52: 21 | B52: 6225 | C52: 22 | D52: 6236 | E52: 24 | F52: 6247 | K52: 0 | L52: 222
A53: 21 | B53: 6346 | C53: 22 | D53: 6354 | E53: 24 | F53: 6360 | K53: 0 | L53: 222
A54: 21 | B54: 6466 | C54: 22 | D54: 6470 | E54: 24 | F54: 6475 | K54: 0 | L54: 222
A55: 21 | B55: 6575 | C55: 22 | D55: 6581 | E55: 24 | F55: 6586 | K55: 0 | L55: 222
A56: 12 | B56: 6681 | C56: 24 | D56: 6686 | E56: 24 | F56: 6693 | K56: 0 | L56: 122
A57: 12 | B57: 6794 | C57: 24 | D57: 6801 | E57: 24 | F57: 6807 | K57: 0 | L57: 122
A58: 21 | B58: 6911 | C58: 22 | D58: 6918 | E58: 24 | F58: 6925 | K58: 0 | L58: 222
A59: 21 | B59: 7027 | C59: 22 | D59: 7034 | E59: 24 | F59: 7040 | K59: 0 | L59: 222
A60: 21 | B60: 7141 | C60: 22 | D60: 7147 | E60: 24 | F60: 7153 | K60: 0 | L60: 222
A61: 12 | B61: 7246 | C61: 24 | D61: 7254 | E61: 24 | F61: 7266 | K61: 0 | L61: 122
A62: 21 | B62: 7369 | C62: 22 | D62: 7373 | E62: 24 | F62: 7379 | K62: 0 | L62: 222
A63: 12 | B63: 7625 | C63: 24 | D63: 7639 | E63: 24 | F63: 7646 | K63: 0 | L63: 122
A64: 21 | B64: 8000 | C64: 22 | D64: 8006 | E64: 24 | F64: 8012 | K64: 0 | L64: 222
A65: 21 | B65: 8104 | C65: 22 | D65: 8114 | E65: 24 | F65: 8118 | K65: 0 | L65: 222
A66: 21 | B66: 8227 | C66: 22 | D66: 8233 | E66: 24 | F66: 8239 | K66: 0 | L66: 222
A67: 21 | B67: 8430 | C67: 22 | D67: 8449 | E67: 24 | F67: 8458 | K67: 0 | L67: 222
A68: 12 | B68: 8674 | C68: 24 | D68: 8685 | E68: 24 | F68: 8695 | K68: 0 | L68: 122
A69: 21 | B69: 8796 | C69: 22 | D69: 8805 | E69: 24 | F69: 8811 | K69: 0 | L69: 222
A70: 21 | B70: 8931 | C70: 22 | D70: 8937 | E70: 24 | F70: 8943 | K70: 0 | L70: 222
A71: 21 | B71: 9073 | C71: 22 | D71: 9079 | E71: 24 | F71: 9094 | K71: 0 | L71: 222
A72: 21 | B72: 9196 | C72: 22 | D72: 9201 | E72: 24 | F72: 9208 | K72: 0 | L72: 222
A73: 21 | B73: 9309 | C73: 22 | D73: 9317 | E73: 24 | F73: 9323 | K73: 0 | L73: 222
A74: 12 | B74: 9416 | C74: 24 | D74: 9429 | E74: 24 | F74: 9433 | K74: 0 | L74: 122
A75: 21 | B75: 9535 | C75: 22 | D75: 9542 | E75: 24 | F75: 9550 | K75: 0 | L75: 222
A76: 21 | B76: 9645 | C76: 22 | D76: 9651 | E76: 24 | F76: 9653 | K76: 0 | L76: 222
A77: 12 | B77: 9750 | C77: 24 | D77: 9755 | E77: 24 | F77: 9762 | K77: 0 | L77: 122
A78: 12 | B78: 9858 | C78: 24 | D78: 9861 | E78: 24 | F78: 9867 | K78: 0 | L78: 122
A79: 21 | B79: 9971 | C79: 22 | D79: 9977 | E79: 24 | F79: 9983 | K79: 0 | L79: 222
A80: 21 | B80: 10122 | C80: 22 | D80: 10128 | E80: 24 | F80: 10133 | K80: 0 | L80: 222
A81: 21 | B81: 10243 | C81: 22 | D81: 10249 | E81: 24 | F81: 10254 | K81: 0 | L81: 222
A82: 21 | B82: 10357 | C82: 22 | D82: 10362 | E82: 24 | F82: 10368 | K82: 0 | L82: 222
A83: 12 | B83: 10712 | C83: 24 | D83: 10721 | E83: 24 | F83: 10731 | K83: 0 | L83: 122
A84: 12 | B84: 10825 | C84: 24 | D84: 10837 | E84: 24 | F84: 10843 | K84: 0 | L84: 122
A85: 21 | B85: 10943 | C85: 22 | D85: 10951 | E85: 24 | F85: 10958 | K85: 0 | L85: 222
A86: 12 | B86: 11051 | C86: 24 | D86: 11060 | E86: 24 | F86: 11064 | K86: 0 | L86: 122
A87: 21 | B87: 11169 | C87: 22 | D87: 11175 | E87: 24 | F87: 11180 | K87: 0 | L87: 222
A88: 12 | B88: 11282 | C88: 24 | D88: 11284 | E88: 24 | F88: 11299 | K88: 0 | L88: 122
A89: 12 | B89: 11390 | C89: 24 | D89: 11403 | E89: 24 | F89: 11408 | K89: 0 | L89: 122
A90: 12 | B90: 11501 | C90: 24 | D90: 11511 | E90: 24 | F90: 11513 | K90: 0 | L90: 122
A91: 21 | B91: 11615 | C91: 22 | D91: 11621 | E91: 24 | F91: 11629 | K91: 0 | L91: 222
A92: 21 | B92: 11733 | C92: 22 | D92: 11737 | E92: 24 | F92: 11740 | K92: 0 | L92: 222
A93: 12 | B93: 11831 | C93: 24 | D93: 11843 | E93: 24 | F93: 11855 | K93: 0 | L93: 122
A94: 21 | B94: 12074 | C94: 22 | D94: 12095 | E94: 24 | F94: 12103 | K94: 0 | L94: 222
A95: 12 | B95: 12198 | C95: 24 | D95: 12201 | E95: 24 | F95: 12207 | K95: 0 | L95: 122
A96: 12 | B96: 12302 | C96: 24 | D96: 12308 | E96: 24 | F96: 12310 | K96: 0 | L96: 122
A97: 12 | B97: 12405 | C97: 24 | D97: 12421 | E97: 24 | F97: 12433 | K97: 0 | L97: 122
A98: 12 | B98: 12529 | C98: 24 | D98: 12532 | E98: 24 | F98: 12538 | K98: 0 | L98: 122
A99: 21 | B99: 12637 | C99: 22 | D99: 12642 | E99: 24 | F99: 12648 | K99: 0 | L99: 222
A100: 21 | B100: 12753 | C100: 22 | D100: 12770 | E100: 24 | F100: 12777 | K100: 0 | L100: 222
A101: 12 | B101: 12933 | C101: 24 | D101: 12944 | E101: 24 | F101: 12950 | K101: 0 | L101: 122
A102: 12 | B102: 13042 | C102: 24 | D102: 13045 | E102: 24 | F102: 13050 | K102: 0 | L102: 122
A103: 12 | B103: 13143 | C103: 24 | D103: 13150 | E103: 24 | F103: 13156 | K103: 0 | L103: 122
A104: 21 | B104: 13335 | C104: 22 | D104: 13346 | E104: 24 | F104: 13358 | K104: 0 | L104: 222
A105: 12 | B105: 13460 | C105: 24 | D105: 13464 | E105: 24 | F105: 13468 | K105: 0 | L105: 122
A106: 21 | B106: 13571 | C106: 22 | D106: 13582 | E106: 24 | F106: 13589 | K106: 0 | L106: 222
A107: 12 | B107: 13687 | C107: 24 | D107: 13692 | E107: 24 | F107: 13696 | K107: 0 | L107: 122
A108: 12 | B108: 13789 | C108: 24 | D108: 13798 | E108: 24 | F108: 13808 | K108: 0 | L108: 122
A109: 12 | B109: 13901 | C109: 24 | D109: 13910 | E109: 24 | F109: 13915 | K109: 0 | L109: 122
A110: 21 | B110: 14141 | C110: 22 | D110: 14147 | E110: 24 | F110: 14153 | K110: 0 | L110: 222
A111: 21 | B111: 14248 | C111: 22 | D111: 14252 | E111: 24 | F111: 14264 | K111: 0 | L111: 222
A112: 12 | B112: 14365 | C112: 24 | D112: 14366 | E112: 24 | F112: 14371 | K112: 0 | L112: 122
A113: 12 | B113: 14464 | C113: 24 | D113: 14471 | E113: 24 | F113: 14476 | K113: 0 | L113: 122
A114: 12 | B114: 14570 | C114: 24 | D114: 14576 | E114: 24 | F114: 14581 | K114: 0 | L114: 122
A115: 12 | B115: 14673 | C115: 24 | D115: 14687 | E115: 24 | F115: 14690 | K115: 0 | L115: 122
A116: 21 | B116: 14979 | C116: 22 | D116: 14994 | E116: 24 | F116: 15000 | K116: 0 | L116: 222
A117: 12 | B117: 15092 | C117: 24 | D117: 15105 | E117: 13 | F117: 15112 | K117: 0 | L117: 121
A118: 21 | B118: 15216 | C118: 22 | D118: 15220 | E118: 24 | F118: 15225 | K118: 0 | L118: 222
A119: 21 | B119: 15385 | C119: 22 | D119: 15389 | E119: 24 | F119: 15396 | K119: 0 | L119: 222
A120: 21 | B120: 15649 | C120: 22 | D120: 15668 | E120: 24 | F120: 15681 | K120: 0 | L120: 222
A121: 12 | B121: 15832 | C121: 24 | D121: 15842 | E121: 24 | F121: 15847 | K121: 0 | L121: 122
A122: 21 | B122: 15955 | C122: 22 | D122: 15960 | E122: 24 | F122: 15976 | K122: 0 | L122: 222
A123: 21 | B123: 16078 | C123: 22 | D123: 16082 | E123: 24 | F123: 16088 | K123: 0 | L123: 222
A124: 21 | B124: 16191 | C124: 22 | D124: 16195 | E124: 24 | F124: 16201 | K124: 0 | L124: 222
A125: 12 | B125: 16296 | C125: 24 | D125: 16304 | E125: 24 | F125: 16309 | K125: 0 | L125: 122
A126: 21 | B126: 16410 | C126: 22 | D126: 16413 | E126: 24 | F126: 16419 | K126: 0 | L126: 222
A127: 21 | B127: 16581 | C127: 22 | D127: 16587 | E127: 24 | F127: 16592 | K127: 0 | L127: 222
A128: 21 | B128: 16704 | C128: 22 | D128: 16710 | E128: 24 | F128: 16715 | K128: 0 | L128: 222
A129: 21 | B129: 16818 | C129: 22 | D129: 16821 | E129: 24 | F129: 16827 | K129: 0 | L129: 222
A130: 21 | B130: 16984 | C130: 22 | D130: 16993 | E130: 24 | F130: 17003 | K130: 0 | L130: 222
A131: 12 | B131: 17135 | C131: 24 | D131: 17138 | E131: 24 | F131: 17146 | K131: 0 | L131: 122
A132: 21 | B132: 17247 | C132: 22 | D132: 17253 | E132: 24 | F132: 17261 | K132: 0 | L132: 222
A133: 21 | B133: 17364 | C133: 22 | D133: 17373 | E133: 24 | F133: 17388 | K133: 0 | L133: 222
A134: 21 | B134: 17549 | C134: 22 | D134: 17555 | E134: 24 | F134: 17579 | K134: 0 | L134: 222
A135: 21 | B135: 17864 | C135: 22 | D135: 17868 | E135: 24 | F135: 17880 | K135: 0 | L135: 222
A136: 21 | B136: 17982 | C136: 22 | D136: 17991 | E136: 24 | F136: 17997 | K136: 0 | L136: 222
A137: 21 | B137: 18099 | C137: 22 | D137: 18104 | E137: 24 | F137: 18109 | K137: 0 | L137: 222
A138: 21 | B138: 18299 | C138: 22 | D138: 18303 | E138: 24 | F138: 18309 | K138: 0 | L138: 222
A139: 12 | B139: 18402 | C139: 24 | D139: 18409 | E139: 24 | F139: 18417 | K139: 0 | L139: 122
A140: 21 | B140: 18516 | C140: 22 | D140: 18520 | E140: 24 | F140: 18525 | K140: 0 | L140: 222
A141: 21 | B141: 18628 | C141: 22 | D141: 18633 | E141: 24 | F141: 18639 | K141: 0 | L141: 222
A142: 21 | B142: 18732 | C142: 11 | D142: 18736 | E142: 22 | F142: 18744 | K142: 0 | L142: 212
A143: 21 | B143: 18765 | C143: 22 | D143: 18772 | E143: 24 | F143: 18795 | K143: 0 | L143: 222
A144: 12 | B144: 18888 | C144: 24 | D144: 18901 | E144: 24 | F144: 18904 | K144: 0 | L144: 122
A145: 12 | B145: 19015 | C145: 24 | D145: 19025 | E145: 24 | F145: 19030 | K145: 0 | L145: 122
A146: 21 | B146: 19144 | C146: 22 | D146: 19158 | E146: 24 | F146: 19166 | K146: 0 | L146: 222
A147: 21 | B147: 19269 | C147: 22 | D147: 19276 | E147: 24 | F147: 19283 | K147: 0 | L147: 222
A148: 21 | B148: 19394 | C148: 22 | D148: 19403 | E148: 24 | F148: 19408 | K148: 0 | L148: 222
A149: 12 | B149: 19496 | C149: 24 | D149: 19507 | E149: 24 | F149: 19513 | K149: 0 | L149: 122
A150: 21 | B150: 19608 | C150: 22 | D150: 19614 | E150: 24 | F150: 19623 | K150: 0 | L150: 222
A151: 12 | B151: 19717 | C151: 24 | D151: 19727 | E151: 24 | F151: 19739 | K151: 0 | L151: 122
A152: 12 | B152: 19840 | C152: 24 | D152: 19847 | E152: 24 | F152: 19860 | K152: 0 | L152: 122
A153: 21 | B153: 19965 | C153: 22 | D153: 19973 | E153: 24 | F153: 19980 | K153: 0 | L153: 222
A154: 21 | B154: 20087 | C154: 22 | D154: 20091 | E154: 24 | F154: 20098 | K154: 0 | L154: 222
A155: 21 | B155: 20203 | C155: 22 | D155: 20207 | E155: 24 | F155: 20212 | K155: 0 | L155: 222
A156: 21 | B156: 20307 | C156: 22 | D156: 20320 | E156: 24 | F156: 20327 | K156: 0 | L156: 222
A157: 21 | B157: 20432 | C157: 22 | D157: 20441 | E157: 24 | F157: 20450 | K157: 0 | L157: 222
A158: 21 | B158: 20574 | C158: 22 | D158: 20585 | E158: 24 | F158: 20593 | K158: 0 | L158: 222
A159: 12 | B159: 20697 | C159: 24 | D159: 20702 | E159: 24 | F159: 20709 | K159: 0 | L159: 122
A160: 21 | B160: 20815 | C160: 22 | D160: 20825 | E160: 24 | F160: 20830 | K160: 0 | L160: 222
A161: 21 | B161: 21141 | C161: 22 | D161: 21146 | E161: 24 | F161: 21160 | K161: 0 | L161: 222
A162: 21 | B162: 21261 | C162: 22 | D162: 21267 | E162: 24 | F162: 21280 | K162: 0 | L162: 222
A163: 21 | B163: 21382 | C163: 22 | D163: 21389 | E163: 24 | F163: 21396 | K163: 0 | L163: 222
A164: 12 | B164: 21489 | C164: 24 | D164: 21501 | E164: 24 | F164: 21505 | K164: 0 | L164: 122
A165: 12 | B165: 21596 | C165: 24 | D165: 21604 | E165: 24 | F165: 21610 | K165: 0 | L165: 122
A166: 21 | B166: 21710 | C166: 22 | D166: 21718 | E166: 24 | F166: 21723 | K166: 0 | L166: 222
A167: 21 | B167: 21944 | C167: 22 | D167: 21951 | E167: 24 | F167: 21980 | K167: 0 | L167: 222
A168: 21 | B168: 22103 | C168: 22 | D168: 22113 | E168: 24 | F168: 22142 | K168: 0 | L168: 222
A169: 12 | B169: 22234 | C169: 24 | D169: 22248 | E169: 24 | F169: 22254 | K169: 0 | L169: 122
A170: 21 | B170: 22348 | C170: 22 | D170: 22352 | E170: 24 | F170: 22363 | K170: 0 | L170: 222
A171: 21 | B171: 22463 | C171: 22 | D171: 22468 | E171: 24 | F171: 22473 | K171: 0 | L171: 222
A172: 21 | B172: 22577 | C172: 22 | D172: 22586 | E172: 24 | F172: 22592 | K172: 0 | L172: 222
A173: 21 | B173: 22691 | C173: 22 | D173: 22695 | E173: 24 | F173: 22699 | K173: 0 | L173: 222
A174: 21 | B174: 22882 | C174: 22 | D174: 22884 | E174: 24 | F174: 22887 | K174: 0 | L174: 222
A175: 12 | B175: 23241 | C175: 24 | D175: 23250 | E175: 24 | F175: 23254 | K175: 0 | L175: 122
A176: 12 | B176: 23347 | C176: 24 | D176: 23354 | E176: 24 | F176: 23360 | K176: 0 | L176: 122
A177: 21 | B177: 23464 | C177: 22 | D177: 23466 | E177: 24 | F177: 23470 | K177: 0 | L177: 222
A178: 21 | B178: 23572 | C178: 22 | D178: 23576 | E178: 24 | F178: 23582 | K178: 0 | L178: 222
A179: 21 | B179: 23682 | C179: 22 | D179: 23686 | E179: 24 | F179: 23694 | K179: 0 | L179: 222
A180: 21 | B180: 23795 | C180: 22 | D180: 23798 | E180: 24 | F180: 23805 | K180: 0 | L180: 222
A181: 21 | B181: 23907 | C181: 22 | D181: 23912 | E181: 24 | F181: 23919 | L181: 222

Sheet !M125B00.Gus
A1: Report for:!M125B00.Gus
A2: Date: | B2: <date>
A3: Hen: | B3: <hen> | F3: Correct Sequence | G3: =Start!J2 -> 211 | P3: Total Sequences in Data | Q3: =4994-COUNTBLANK(L7:L5000) -> 163 | V3: Total Sequences in Block Data | W3: =COUNTA(L7:L33) -> 27 | AA3: Total Sequences in Block Data | AB3: =COUNTA(L34:L60) -> 27 | AF3: Total Sequences in Block Data | AG3: =COUNTA(L61:L88) -> 28 | AK3: Total Sequences in Block Data | AL3: =COUNTA(L89:L115) -> 27 | AP3: Total Sequences in Block Data | AQ3: =COUNTA(L116:L142) -> 27 | AU3: Total Sequences in Block Data | AV3: =COUNTA(L143:L169) -> 27
P4: Total Sequences in Summary | Q4: =SUM(O7:O14) -> 163 | V4: Total Sequences in Block Summary | W4: =SUM(U7:U14) -> 27 | AA4: Total Sequences in Block Summary | AB4: =SUM(Z7:Z14) -> 27 | AF4: Total Sequences in Block Summary | AG4: =SUM(AE7:AE14) -> 28 | AK4: Total Sequences in Block Summary | AL4: =SUM(AJ7:AJ14) -> 27 | AP4: Total Sequences in Block Summary | AQ4: =SUM(AO7:AO14) -> 27 | AU4: Total Sequences in Block Summary | AV4: =SUM(AT7:AT14) -> 27
T5: Block 1 | Y5: Block 2 | AD5: Block 3 | AI5: Block 4 | AN5: Block 5 | AS5: Block 6
A6: Sequence Component 1 | B6: Time 1 | C6: Sequence Component 2 | D6: Time 2 | E6: Sequence Component 3 | F6: Time 3 | G6: Sequence Component 4 | H6: Time 4 | I6: Sequence Component 5 | J6: Time 5 | K6: Correct? 0=No 1=Yes | L6: Sequence | N6: Frequency | P6: Relative Frequency | Q6: Variability | T6: Frequency | V6: Relative Frequency | W6: Variability | Y6: Frequency | AA6: Relative Frequency | AB6: Variability | AD6: Frequency | AF6: Relative Frequency | AG6: Variability | AI6: Frequency | AK6: Relative Frequency | AL6: Variability | AN6: Frequency | AP6: Relative Frequency | AQ6: Variability | AS6: Frequency | AU6: Relative Frequency | AV6: Variability
A7: 21 | B7: 18 | C7: 22 | D7: 23 | E7: 24 | F7: 30 | K7: 0 | L7: 222 | N7: 111 | O7: =COUNTIF($L$7:$L$500,N7) -> 0 | P7: =O7/$Q$4 -> 0 | Q7: =IF(P7=0,0,(P7*((LOG(P7))/LOG(2)))) -> 0 | T7: =N7 -> 111 | U7: =COUNTIF(L7:L33,T7) -> 0 | V7: =U7/(W4-U11) -> 0 | W7: =IF(V7=0,0,(V7*((LOG(V7))/LOG(2)))) -> 0 | Y7: =N7 -> 111 | Z7: =COUNTIF(L34:L60,Y7) -> 0 | AA7: =Z7/(AB4-Z11) -> 0 | AB7: =IF(AA7=0,0,(AA7*((LOG(AA7))/LOG(2)))) -> 0 | AD7: =N7 -> 111 | AE7: =COUNTIF(L61:L88,AD7) -> 0 | AF7: =AE7/(AG4-AE11) -> 0 | AG7: =IF(AF7=0,0,(AF7*((LOG(AF7))/LOG(2)))) -> 0 | AI7: =N7 -> 111 | AJ7: =COUNTIF(L89:L115,AI7) -> 0 | AK7: =AJ7/(AL4-AJ11) -> 0 | AL7: =IF(AK7=0,0,(AK7*((LOG(AK7))/LOG(2)))) -> 0 | AN7: =N7 -> 111 | AO7: =COUNTIF(L116:L142,AN7) -> 0 | AP7: =AO7/(AQ4-AO11) -> 0 | AQ7: =IF(AP7=0,0,(AP7*((LOG(AP7))/LOG(2)))) -> 0 | AS7: =N7 -> 111 | AT7: =COUNTIF(L143:L169,AS7) -> 0 | AU7: =AT7/(AV4-AT11) -> 0 | AV7: =IF(AU7=0,0,(AU7*((LOG(AU7))/LOG(2)))) -> 0
A8: 21 | B8: 129 | C8: 22 | D8: 136 | E8: 24 | F8: 140 | K8: 0 | L8: 222 | N8: 112 | O8: =COUNTIF($L$7:$L$500,N8) -> 4 | P8: =O8/$Q$4 -> 0.0245398773 | Q8: =IF(P8=0,0,(P8*((LOG(P8))/LOG(2)))) -> -0.1312571326 | T8: =N8 -> 112 | U8: =COUNTIF(L7:L33,T8) -> 1 | V8: =U8/(W4-U11) -> 0.03703703704 | W8: =IF(V8=0,0,(V8*((LOG(V8))/LOG(2)))) -> -0.1761069445 | Y8: =N8 -> 112 | Z8: =COUNTIF(L34:L60,Y8) -> 1 | AA8: =Z8/(AB4-Z11) -> 0.03703703704 | AB8: =IF(AA8=0,0,(AA8*((LOG(AA8))/LOG(2)))) -> -0.1761069445 | AD8: =N8 -> 112 | AE8: =COUNTIF(L61:L88,AD8) -> 0 | AF8: =AE8/(AG4-AE11) -> 0 | AG8: =IF(AF8=0,0,(AF8*((LOG(AF8))/LOG(2)))) -> 0 | AI8: =N8 -> 112 | AJ8: =COUNTIF(L89:L115,AI8) -> 0 | AK8: =AJ8/(AL4-AJ11) -> 0 | AL8: =IF(AK8=0,0,(AK8*((LOG(AK8))/LOG(2)))) -> 0 | AN8: =N8 -> 112 | AO8: =COUNTIF(L116:L142,AN8) -> 2 | AP8: =AO8/(AQ4-AO11) -> 0.07407407407 | AQ8: =IF(AP8=0,0,(AP8*((LOG(AP8))/LOG(2)))) -> -0.278139815 | AS8: =N8 -> 112 | AT8: =COUNTIF(L143:L169,AS8) -> 0 | AU8: =AT8/(AV4-AT11) -> 0 | AV8: =IF(AU8=0,0,(AU8*((LOG(AU8))/LOG(2)))) -> 0
A9: 21 | B9: 234 | C9: 22 | D9: 238 | E9: 24 | F9: 243 | K9: 0 | L9: 222 | N9: 121 | O9: =COUNTIF($L$7:$L$500,N9) -> 0 | P9: =O9/$Q$4 -> 0 | Q9: =IF(P9=0,0,(P9*((LOG(P9))/LOG(2)))) -> 0 | T9: =N9 -> 121 | U9: =COUNTIF(L7:L33,T9) -> 0 | V9: =U9/(W4-U11) -> 0 | W9: =IF(V9=0,0,(V9*((LOG(V9))/LOG(2)))) -> 0 | Y9: =N9 -> 121 | Z9: =COUNTIF(L34:L60,Y9) -> 0 | AA9: =Z9/(AB4-Z11) -> 0 | AB9: =IF(AA9=0,0,(AA9*((LOG(AA9))/LOG(2)))) -> 0 | AD9: =N9 -> 121 | AE9: =COUNTIF(L61:L88,AD9) -> 0 | AF9: =AE9/(AG4-AE11) -> 0 | AG9: =IF(AF9=0,0,(AF9*((LOG(AF9))/LOG(2)))) -> 0 | AI9: =N9 -> 121 | AJ9: =COUNTIF(L89:L115,AI9) -> 0 | AK9: =AJ9/(AL4-AJ11) -> 0 | AL9: =IF(AK9=0,0,(AK9*((LOG(AK9))/LOG(2)))) -> 0 | AN9: =N9 -> 121 | AO9: =COUNTIF(L116:L142,AN9) -> 0 | AP9: =AO9/(AQ4-AO11) -> 0 | AQ9: =IF(AP9=0,0,(AP9*((LOG(AP9))/LOG(2)))) -> 0 | AS9: =N9 -> 121 | AT9: =COUNTIF(L143:L169,AS9) -> 0 | AU9: =AT9/(AV4-AT11) -> 0 | AV9: =IF(AU9=0,0,(AU9*((LOG(AU9))/LOG(2)))) -> 0
A10: 21 | B10: 742 | C10: 22 | D10: 750 | E10: 24 | F10: 753 | K10: 0 | L10: 222 | N10: 122 | O10: =COUNTIF($L$7:$L$500,N10) -> 61 | P10: =O10/$Q$4 -> 0.3742331288 | Q10: =IF(P10=0,0,(P10*((LOG(P10))/LOG(2)))) -> -0.53065914 | T10: =N10 -> 122 | U10: =COUNTIF(L7:L33,T10) -> 4 | V10: =U10/(W4-U11) -> 0.1481481481 | W10: =IF(V10=0,0,(V10*((LOG(V10))/LOG(2)))) -> -0.4081314818 | Y10: =N10 -> 122 | Z10: =COUNTIF(L34:L60,Y10) -> 9 | AA10: =Z10/(AB4-Z11) -> 0.3333333333 | AB10: =IF(AA10=0,0,(AA10*((LOG(AA10))/LOG(2)))) -> -0.5283208336 | AD10: =N10 -> 122 | AE10: =COUNTIF(L61:L88,AD10) -> 12 | AF10: =AE10/(AG4-AE11) -> 0.4285714286 | AG10: =IF(AF10=0,0,(AF10*((LOG(AF10))/LOG(2)))) -> -0.5238824663 | AI10: =N10 -> 122 | AJ10: =COUNTIF(L89:L115,AI10) -> 9 | AK10: =AJ10/(AL4-AJ11) -> 0.3333333333 | AL10: =IF(AK10=0,0,(AK10*((LOG(AK10))/LOG(2)))) -> -0.5283208336 | AN10: =N10 -> 122 | AO10: =COUNTIF(L116:L142,AN10) -> 15 | AP10: =AO10/(AQ4-AO11) -> 0.5555555556 | AQ10: =IF(AP10=0,0,(AP10*((LOG(AP10))/LOG(2)))) -> -0.4711093925 | AS10: =N10 -> 122 | AT10: =COUNTIF(L143:L169,AS10) -> 12 | AU10: =AT10/(AV4-AT11) -> 0.4444444444 | AV10: =IF(AU10=0,0,(AU10*((LOG(AU10))/LOG(2)))) -> -0.5199666673
A11: 21 | B11: 941 | C11: 22 | D11: 947 | E11: 24 | F11: 954 | K11: 0 | L11: 222 | N11: 211 | O11: =COUNTIF($L$7:$L$500,N11) -> 0 | P11: =O11/$Q$4 -> 0 | Q11: =IF(P11=0,0,(P11*((LOG(P11))/LOG(2)))) -> 0 | T11: =N11 -> 211 | U11: =COUNTIF(L7:L33,T11) -> 0 | Y11: =N11 -> 211 | Z11: =COUNTIF(L34:L60,Y11) -> 0 | AD11: =N11 -> 211 | AE11: =COUNTIF(L61:L88,AD11) -> 0 | AI11: =N11 -> 211 | AJ11: =COUNTIF(L89:L115,AI11) -> 0 | AN11: =N11 -> 211 | AO11: =COUNTIF(L116:L142,AN11) -> 0 | AS11: =N11 -> 211 | AT11: =COUNTIF(L143:L169,AS11) -> 0
A12: 21 | B12: 1059 | C12: 22 | D12: 1074 | E12: 24 | F12: 1080 | K12: 0 | L12: 222 | N12: 212 | O12: =COUNTIF($L$7:$L$500,N12) -> 1 | P12: =O12/$Q$4 -> 0.006134969325 | Q12: =IF(P12=0,0,(P12*((LOG(P12))/LOG(2)))) -> -0.04508422181 | T12: =N12 -> 212 | U12: =COUNTIF(L7:L33,T12) -> 0 | V12: =U12/(W4-U11) -> 0 | W12: =IF(V12=0,0,(V12*((LOG(V12))/LOG(2)))) -> 0 | Y12: =N12 -> 212 | Z12: =COUNTIF(L34:L60,Y12) -> 0 | AA12: =Z12/(AB4-Z11) -> 0 | AB12: =IF(AA12=0,0,(AA12*((LOG(AA12))/LOG(2)))) -> 0 | AD12: =N12 -> 212 | AE12: =COUNTIF(L61:L88,AD12) -> 0 | AF12: =AE12/(AG4-AE11) -> 0 | AG12: =IF(AF12=0,0,(AF12*((LOG(AF12))/LOG(2)))) -> 0 | AI12: =N12 -> 212 | AJ12: =COUNTIF(L89:L115,AI12) -> 0 | AK12: =AJ12/(AL4-AJ11) -> 0 | AL12: =IF(AK12=0,0,(AK12*((LOG(AK12))/LOG(2)))) -> 0 | AN12: =N12 -> 212 | AO12: =COUNTIF(L116:L142,AN12) -> 0 | AP12: =AO12/(AQ4-AO11) -> 0 | AQ12: =IF(AP12=0,0,(AP12*((LOG(AP12))/LOG(2)))) -> 0 | AS12: =N12 -> 212 | AT12: =COUNTIF(L143:L169,AS12) -> 1 | AU12: =AT12/(AV4-AT11) -> 0.03703703704 | AV12: =IF(AU12=0,0,(AU12*((LOG(AU12))/LOG(2)))) -> -0.1761069445
A13: 21 | B13: 1186 | C13: 22 | D13: 1193 | E13: 24 | F13: 1199 | K13: 0 | L13: 222 | N13: 221 | O13: =COUNTIF($L$7:$L$500,N13) -> 0 | P13: =O13/$Q$4 -> 0 | Q13: =IF(P13=0,0,(P13*((LOG(P13))/LOG(2)))) -> 0 | T13: =N13 -> 221 | U13: =COUNTIF(L7:L33,T13) -> 0 | V13: =U13/(W4-U11) -> 0 | W13: =IF(V13=0,0,(V13*((LOG(V13))/LOG(2)))) -> 0 | Y13: =N13 -> 221 | Z13: =COUNTIF(L34:L60,Y13) -> 0 | AA13: =Z13/(AB4-Z11) -> 0 | AB13: =IF(AA13=0,0,(AA13*((LOG(AA13))/LOG(2)))) -> 0 | AD13: =N13 -> 221 | AE13: =COUNTIF(L61:L88,AD13) -> 0 | AF13: =AE13/(AG4-AE11) -> 0 | AG13: =IF(AF13=0,0,(AF13*((LOG(AF13))/LOG(2)))) -> 0 | AI13: =N13 -> 221 | AJ13: =COUNTIF(L89:L115,AI13) -> 0 | AK13: =AJ13/(AL4-AJ11) -> 0 | AL13: =IF(AK13=0,0,(AK13*((LOG(AK13))/LOG(2)))) -> 0 | AN13: =N13 -> 221 | AO13: =COUNTIF(L116:L142,AN13) -> 0 | AP13: =AO13/(AQ4-AO11) -> 0 | AQ13: =IF(AP13=0,0,(AP13*((LOG(AP13))/LOG(2)))) -> 0 | AS13: =N13 -> 221 | AT13: =COUNTIF(L143:L169,AS13) -> 0 | AU13: =AT13/(AV4-AT11) -> 0 | AV13: =IF(AU13=0,0,(AU13*((LOG(AU13))/LOG(2)))) -> 0
A14: 21 | B14: 1301 | C14: 22 | D14: 1308 | E14: 24 | F14: 1316 | K14: 0 | L14: 222 | N14: 222 | O14: =COUNTIF($L$7:$L$500,N14) -> 97 | P14: =O14/$Q$4 -> 0.5950920245 | Q14: =IF(P14=0,0,(P14*((LOG(P14))/LOG(2)))) -> -0.4456140201 | T14: =N14 -> 222 | U14: =COUNTIF(L7:L33,T14) -> 22 | V14: =U14/(W4-U11) -> 0.8148148148 | W14: =IF(V14=0,0,(V14*((LOG(V14))/LOG(2)))) -> -0.240741831 | Y14: =N14 -> 222 | Z14: =COUNTIF(L34:L60,Y14) -> 17 | AA14: =Z14/(AB4-Z11) -> 0.6296296296 | AB14: =IF(AA14=0,0,(AA14*((LOG(AA14))/LOG(2)))) -> -0.4202303421 | AD14: =N14 -> 222 | AE14: =COUNTIF(L61:L88,AD14) -> 16 | AF14: =AE14/(AG4-AE11) -> 0.5714285714 | AG14: =IF(AF14=0,0,(AF14*((LOG(AF14))/LOG(2)))) -> -0.4613456697 | AI14: =N14 -> 222 | AJ14: =COUNTIF(L89:L115,AI14) -> 18 | AK14: =AJ14/(AL4-AJ11) -> 0.6666666667 | AL14: =IF(AK14=0,0,(AK14*((LOG(AK14))/LOG(2)))) -> -0.3899750005 | AN14: =N14 -> 222 | AO14: =COUNTIF(L116:L142,AN14) -> 10 | AP14: =AO14/(AQ4-AO11) -> 0.3703703704 | AQ14: =IF(AP14=0,0,(AP14*((LOG(AP14))/LOG(2)))) -> -0.5307257064 | AS14: =N14 -> 222 | AT14: =COUNTIF(L143:L169,AS14) -> 14 | AU14: =AT14/(AV4-AT11) -> 0.5185185185 | AV14: =IF(AU14=0,0,(AU14*((LOG(AU14))/LOG(2)))) -> -0.4913131897
A15: 12 | B15: 1409 | C15: 24 | D15: 1416 | E15: 24 | F15: 1422 | K15: 0 | L15: 122 | P15: =SUM(P7:P14) -> 1 | Q15: =-SUM(Q7:Q14) -> 1.152614514 | V15: =SUM(V7:V14) -> 1 | W15: =-SUM(W7:W14) -> 0.8249802573 | AA15: =SUM(AA7:AA14) -> 1 | AB15: =-SUM(AB7:AB14) -> 1.12465812 | AF15: =SUM(AF7:AF14) -> 1 | AG15: =-SUM(AG7:AG14) -> 0.985228136 | AK15: =SUM(AK7:AK14) -> 1 | AL15: =-SUM(AL7:AL14) -> 0.9182958341 | AP15: =SUM(AP7:AP14) -> 1 | AQ15: =-SUM(AQ7:AQ14) -> 1.279974914 | AU15: =SUM(AU7:AU14) -> 1 | AV15: =-SUM(AV7:AV14) -> 1.187386802
A16: 21 | B16: 1680 | C16: 22 | D16: 1687 | E16: 24 | F16: 1719 | K16: 0 | L16: 222 | P16: U= | Q16: =Q15/(LOG(Q4)/LOG(2)) -> 0.1568454419 | V16: U1= | W16: =W15/(LOG(W4)/LOG(2)) -> 0.1735015302 | AA16: U2= | AB16: =AB15/(LOG(AB4)/LOG(2)) -> 0.2365267569 | AF16: U3= | AG16: =AG15/(LOG(AG4)/LOG(2)) -> 0.2049418343 | AK16: U4= | AL16: =AL15/(LOG(AL4)/LOG(2)) -> 0.1931267214 | AP16: U5= | AQ16: =AQ15/(LOG(AQ4)/LOG(2)) -> 0.269191419 | AU16: U6= | AV16: =AV15/(LOG(AV4)/LOG(2)) -> 0.2497192207
A17: 12 | B17: 1813 | C17: 24 | D17: 1826 | E17: 24 | F17: 1829 | K17: 0 | L17: 122
A18: 12 | B18: 1923 | C18: 24 | D18: 1930 | E18: 24 | F18: 1940 | K18: 0 | L18: 122
A19: 21 | B19: 2224 | C19: 22 | D19: 2232 | E19: 24 | F19: 2260 | K19: 0 | L19: 222 | N19: Total Target Seq
A20: 21 | B20: 2363 | C20: 22 | D20: 2368 | E20: 24 | F20: 2374 | K20: 0 | L20: 222 | N20: =COUNTIF(L7:L169,G3) -> 0 | P20: 27 | Q20: 27 | R20: 28 | S20: 27 | T20: 27 | U20: 27
A21: 21 | B21: 2489 | C21: 22 | D21: 2494 | E21: 24 | F21: 2501 | K21: 0 | L21: 222 | P21: % of reinforcement given in 6 equal intervals based on number of trials
A22: 21 | B22: 2742 | C22: 22 | D22: 2748 | E22: 24 | F22: 2771 | K22: 0 | L22: 222 | P22: %_1 | Q22: %_2 | R22: %_3 | S22: %_4 | T22: %_5 | U22: %_6
A23: 21 | B23: 2871 | C23: 22 | D23: 2875 | E23: 24 | F23: 2880 | K23: 0 | L23: 222 | O23: target sequence | P23: =$G$3 -> 211 | Q23: =$G$3 -> 211 | R23: =$G$3 -> 211 | S23: =$G$3 -> 211 | T23: =$G$3 -> 211 | U23: =$G$3 -> 211
A24: 21 | B24: 2982 | C24: 22 | D24: 2989 | E24: 24 | F24: 2994 | K24: 0 | L24: 222 | O24: total reinforcement | P24: =U11 -> 0 | Q24: =Z11 -> 0 | R24: =AE11 -> 0 | S24: =AJ11 -> 0 | T24: =AO11 -> 0 | U24: =AT11 -> 0
A25: 21 | B25: 3102 | C25: 22 | D25: 3104 | E25: 24 | F25: 3108 | K25: 0 | L25: 222 | O25: % target
A26: 21 | B26: 3215 | C26: 22 | D26: 3222 | E26: 24 | F26: 3229 | K26: 0 | L26: 222 | O26: CCRF
A27: 21 | B27: 3451 | C27: 22 | D27: 3460 | E27: 24 | F27: 3466 | K27: 0 | L27: 222 | O27: % CCRf
A28: 21 | B28: 3568 | C28: 22 | D28: 3576 | E28: 24 | F28: 3588 | K28: 0 | L28: 222 | O28: average response rate | P28: =F33/P20 -> 153.7037037 | Q28: =(F60-F33)/Q20 -> 161.5555556 | R28: =(F88-F60)/R20 -> 122.5357143 | S28: =(F115-F88)/S20 -> 162.7407407 | T28: =(F142-F115)/T20 -> 143.3703704 | U28: =(F169-F142)/U20 -> 137.5925926
A29: 21 | B29: 3693 | C29: 22 | D29: 3696 | E29: 24 | F29: 3700 | K29: 0 | L29: 222
A30: 21 | B30: 3800 | C30: 22 | D30: 3805 | E30: 24 | F30: 3811 | K30: 0 | L30: 222
A31: 21 | B31: 3920 | C31: 22 | D31: 3923 | E31: 24 | F31: 3927 | K31: 0 | L31: 222
A32: 12 | B32: 4019 | C32: 13 | D32: 4027 | E32: 24 | F32: 4034 | K32: 0 | L32: 112
A33: 12 | B33: 4127 | C33: 24 | D33: 4139 | E33: 24 | F33: 4150 | K33: 0 | L33: 122
A34: 21 | B34: 4721 | C34: 22 | D34: 4729 | E34: 24 | F34: 4736 | K34: 0 | L34: 222
A35: 21 | B35: 4996 | C35: 22 | D35: 5007 | E35: 24 | F35: 5025 | K35: 0 | L35: 222
A36: 21 | B36: 5128 | C36: 22 | D36: 5132 | E36: 24 | F36: 5136 | K36: 0 | L36: 222
A37: 21 | B37: 5237 | C37: 22 | D37: 5243 | E37: 24 | F37: 5249 | K37: 0 | L37: 222
A38: 12 | B38: 5343 | C38: 13 | D38: 5345 | E38: 24 | F38: 5349 | K38: 0 | L38: 112
A39: 21 | B39: 5448 | C39: 22 | D39: 5458 | E39: 24 | F39: 5464 | K39: 0 | L39: 222
A40: 12 | B40: 5557 | C40: 24 | D40: 5564 | E40: 24 | F40: 5578 | K40: 0 | L40: 122
A41: 21 | B41: 5683 | C41: 22 | D41: 5689 | E41: 24 | F41: 5694 | K41: 0 | L41: 222
A42: 21 | B42: 5958 | C42: 22 | D42: 6006 | E42: 24 | F42: 6013 | K42: 0 | L42: 222
A43: 12 | B43: 6111 | C43: 24 | D43: 6120 | E43: 24 | F43: 6128 | K43: 0 | L43: 122
A44: 12 | B44: 6223 | C44: 24 | D44: 6228 | E44: 24 | F44: 6232 | K44: 0 | L44: 122
A45: 12 | B45: 6326 | C45: 24 | D45: 6335 | E45: 24 | F45: 6338 | K45: 0 | L45: 122
A46: 21 | B46: 6441 | C46: 22 | D46: 6445 | E46: 24 | F46: 6449 | K46: 0 | L46: 222
A47: 12 | B47: 6547 | C47: 24 | D47: 6549 | E47: 24 | F47: 6555 | K47: 0 | L47: 122
A48: 21 | B48: 6658 | C48: 22 | D48: 6663 | E48: 24 | F48: 6668 | K48: 0 | L48: 222
A49: 21 | B49: 6770 | C49: 22 | D49: 6776 | E49: 24 | F49: 6784 | K49: 0 | L49: 222
A50: 21 | B50: 7130 | C50: 22 | D50: 7139 | E50: 24 | F50: 7145 | K50: 0 | L50: 222
A51: 12 | B51: 7240 | C51: 24 | D51: 7243 | E51: 24 | F51: 7253 | K51: 0 | L51: 122
A52: 12 | B52: 7348 | C52: 24 | D52: 7354 | E52: 24 | F52: 7364 | K52: 0 | L52: 122
A53: 21 | B53: 7463 | C53: 22 | D53: 7472 | E53: 24 | F53: 7479 | K53: 0 | L53: 222
A54: 21 | B54: 7581 | C54: 22 | D54: 7586 | E54: 24 | F54: 7592 | K54: 0 | L54: 222
A55: 12 | B55: 7733 | C55: 24 | D55: 7746 | E55: 24 | F55: 7753 | K55: 0 | L55: 122
A56: 21 | B56: 7856 | C56: 22 | D56: 7860 | E56: 24 | F56: 7868 | K56: 0 | L56: 222
A57: 21 | B57: 8107 | C57: 22 | D57: 8118 | E57: 24 | F57: 8124 | K57: 0 | L57: 222
A58: 12 | B58: 8216 | C58: 24 | D58: 8225 | E58: 24 | F58: 8233 | K58: 0 | L58: 122
A59: 21 | B59: 8387 | C59: 22 | D59: 8392 | E59: 24 | F59: 8402 | K59: 0 | L59: 222
A60: 21 | B60: 8504 | C60: 22 | D60: 8507 | E60: 24 | F60: 8512 | K60: 0 | L60: 222
A61: 21 | B61: 8615 | C61: 22 | D61: 8618 | E61: 24 | F61: 8623 | K61: 0 | L61: 222
A62: 12 | B62: 8717 | C62: 24 | D62: 8725 | E62: 24 | F62: 8736 | K62: 0 | L62: 122
A63: 21 | B63: 8842 | C63: 22 | D63: 8853 | E63: 24 | F63: 8859 | K63: 0 | L63: 222
A64: 21 | B64: 8964 | C64: 22 | D64: 8968 | E64: 24 | F64: 8977 | K64: 0 | L64: 222
A65: 21 | B65: 9080 | C65: 22 | D65: 9084 | E65: 24 | F65: 9092 | K65: 0 | L65: 222
A66: 21 | B66: 9192 | C66: 22 | D66: 9199 | E66: 24 | F66: 9203 | K66: 0 | L66: 222
A67: 21 | B67: 9297 | C67: 22 | D67: 9304 | E67: 24 | F67: 9311 | K67: 0 | L67: 222
A68: 12 | B68: 9403 | C68: 24 | D68: 9416 | E68: 24 | F68: 9426 | K68: 0 | L68: 122
A69: 12 | B69: 9520 | C69: 24 | D69: 9530 | E69: 24 | F69: 9534 | K69: 0 | L69: 122
A70: 21 | B70: 9637 | C70: 22 | D70: 9648 | E70: 24 | F70: 9655 | K70: 0 | L70: 222
A71: 21 | B71: 9760 | C71: 22 | D71: 9765 | E71: 24 | F71: 9773 | K71: 0 | L71: 222
A72: 12 | B72: 9875 | C72: 24 | D72: 9883 | E72: 24 | F72: 9887 | K72: 0 | L72: 122
A73: 21 | B73: 9990 | C73: 22 | D73: 9994 | E73: 24 | F73: 9999 | K73: 0 | L73: 222
A74: 12 | B74: 10097 | C74: 24 | D74: 10100 | E74: 24 | F74: 10104 | K74: 0 | L74: 122
A75: 12 | B75: 10200 | C75: 24 | D75: 10208 | E75: 24 | F75: 10210 | K75: 0 | L75: 122
A76: 12 | B76: 10304 | C76: 24 | D76: 10313 | E76: 24 | F76: 10318 | K76: 0 | L76: 122
A77: 21 | B77: 10426 | C77: 22 | D77: 10432 | E77: 24 | F77: 10439 | K77: 0 | L77: 222
A78: 12 | B78: 10596 | C78: 24 | D78: 10622 | E78: 24 | F78: 10627 | K78: 0 | L78: 122
A79: 21 | B79: 10912 | C79: 22 | D79: 10920 | E79: 24 | F79: 10926 | K79: 0 | L79: 222
A80: 21 | B80: 11027 | C80: 22 | D80: 11033 | E80: 24 | F80: 11039 | K80: 0 | L80: 222
A81: 21 | B81: 11143 | C81: 22 | D81: 11149 | E81: 24 | F81: 11157 | K81: 0 | L81: 222
A82: 21 | B82: 11260 | C82: 22 | D82: 11268 | E82: 24 | F82: 11272 | K82: 0 | L82: 222
A83: 12 | B83: 11364 | C83: 24 | D83: 11379 | E83: 24 | F83: 11387 | K83: 0 | L83: 122
A84: 21 | B84: 11484 | C84: 22 | D84: 11486 | E84: 24 | F84: 11490 | K84: 0 | L84: 222
A85: 12 | B85: 11583 | C85: 24 | D85: 11591 | E85: 24 | F85: 11608 | K85: 0 | L85: 122
A86: 12 | B86: 11702 | C86: 24 | D86: 11712 | E86: 24 | F86: 11717 | K86: 0 | L86: 122
A87: 12 | B87: 11817 | C87: 24 | D87: 11821 | E87: 24 | F87: 11826 | K87: 0 | L87: 122
A88: 21 | B88: 11931 | C88: 22 | D88: 11935 | E88: 24 | F88: 11943 | K88: 0 | L88: 222
A89: 21 | B89: 12041 | C89: 22 | D89: 12045 | E89: 24 | F89: 12052 | K89: 0 | L89: 222
A90: 12 | B90: 12149 | C90: 24 | D90: 12155 | E90: 24 | F90: 12157 | K90: 0 | L90: 122
A91: 21 | B91: 12526 | C91: 22 | D91: 12532 | E91: 24 | F91: 12538 | K91: 0 | L91: 222
A92: 21 | B92: 12668 | C92: 22 | D92: 12674 | E92: 24 | F92: 12689 | K92: 0 | L92: 222
A93: 21 | B93: 12790 | C93: 22 | D93: 12798 | E93: 24 | F93: 12804 | K93: 0 | L93: 222
A94: 12 | B94: 12905 | C94: 24 | D94: 12909 | E94: 24 | F94: 12922 | K94: 0 | L94: 122
A95: 21 | B95: 13024 | C95: 22 | D95: 13030 | E95: 24 | F95: 13036 | K95: 0 | L95: 222
A96: 12 | B96: 13128 | C96: 24 | D96: 13136 | E96: 24 | F96: 13148 | K96: 0 | L96: 122
A97: 21 | B97: 13249 | C97: 22 | D97: 13254 | E97: 24 | F97: 13259 | K97: 0 | L97: 222
A98: 21 | B98: 13620 | C98: 22 | D98: 13627 | E98: 24 | F98: 13634 | K98: 0 | L98: 222
A99: 12 | B99: 13726 | C99: 24 | D99: 13731 | E99: 24 | F99: 13740 | K99: 0 | L99: 122
A100: 21 | B100: 13845 | C100: 22 | D100: 13849 | E100: 24 | F100: 13853 | K100: 0 | L100: 222
A101: 21 | B101: 13956 | C101: 22 | D101: 13961 | E101: 24 | F101: 13967 | K101: 0 | L101: 222
A102: 21 | B102: 14338 | C102: 22 | D102: 14344 | E102: 24 | F102: 14355 | K102: 0 | L102: 222
A103: 21 | B103: 14471 | C103: 22 | D103: 14479 | E103: 24 | F103: 14488 | K103: 0 | L103: 222
A104: 21 | B104: 14592 | C104: 22 | D104: 14596 | E104: 24 | F104: 14599 | K104: 0 | L104: 222
A105: 21 | B105: 14702 | C105: 22 | D105: 14713 | E105: 24 | F105: 14728 | K105: 0 | L105: 222
A106: 21 | B106: 14827 | C106: 22 | D106: 14837 | E106: 24 | F106: 14843 | K106: 0 | L106: 222
A107: 21 | B107: 14946 | C107: 22 | D107: 14950 | E107: 24 | F107: 14959 | K107: 0 | L107: 222
A108: 21 | B108: 15062 | C108: 22 | D108: 15068 | E108: 24 | F108: 15074 | K108: 0 | L108: 222
A109: 21 | B109: 15326 | C109: 22 | D109: 15332 | E109: 24 | F109: 15342 | K109: 0 | L109: 222
A110: 12 | B110: 15437 | C110: 24 | D110: 15452 | E110: 24 | F110: 15463 | K110: 0 | L110: 122
A111: 12 | B111: 15636 | C111: 24 | D111: 15654 | E111: 24 | F111: 15659 | K111: 0 | L111: 122
A112: 21 | B112: 15761 | C112: 22 | D112: 15776 | E112: 24 | F112: 15782 | K112: 0 | L112: 222
A113: 12 | B113: 15879 | C113: 24 | D113: 15884 | E113: 24 | F113: 15888 | K113: 0 | L113: 122
A114: 12 | B114: 15984 | C114: 24 | D114: 15998 | E114: 24 | F114: 16003 | K114: 0 | L114: 122
A115: 12 | B115: 16313 | C115: 24 | D115: 16323 | E115: 24 | F115: 16337 | K115: 0 | L115: 122
A116: 21 | B116: 16434 | C116: 22 | D116: 16440 | E116: 24 | F116: 16447 | K116: 0 | L116: 222
A117: 21 | B117: 16553 | C117: 22 | D117: 16559 | E117: 24 | F117: 16565 | K117: 0 | L117: 222
A118: 21 | B118: 16668 | C118: 22 | D118: 16674 | E118: 24 | F118: 16679 | K118: 0 | L118: 222
A119: 21 | B119: 16892 | C119: 22 | D119: 16894 | E119: 24 | F119: 16900 | K119: 0 | L119: 222
A120: 12 | B120: 16994 | C120: 24 | D120: 17002 | E120: 24 | F120: 17006 | K120: 0 | L120: 122
A121: 21 | B121: 17108 | C121: 22 | D121: 17113 | E121: 24 | F121: 17119 | K121: 0 | L121: 222
A122: 12 | B122: 17211 | C122: 24 | D122: 17224 | E122: 24 | F122: 17235 | K122: 0 | L122: 122
A123: 12 | B123: 17329 | C123: 24 | D123: 17343 | E123: 24 | F123: 17351 | K123: 0 | L123: 122
A124: 12 | B124: 17445 | C124: 24 | D124: 17461 | E124: 24 | F124: 17489 | K124: 0 | L124: 122
A125: 12 | B125: 17581 | C125: 13 | D125: 17584 | E125: 24 | F125: 17591 | K125: 0 | L125: 112
A126: 12 | B126: 17686 | C126: 24 | D126: 17694 | E126: 24 | F126: 17701 | K126: 0 | L126: 122
A127: 21 | B127: 18074 | C127: 22 | D127: 18077 | E127: 24 | F127: 18081 | K127: 0 | L127: 222
A128: 12 | B128: 18174 | C128: 24 | D128: 18181 | E128: 24 | F128: 18197 | K128: 0 | L128: 122
A129: 12 | B129: 18290 | C129: 24 | D129: 18298 | E129: 24 | F129: 18311 | K129: 0 | L129: 122
A130: 12 | B130: 18411 | C130: 24 | D130: 18419 | E130: 24 | F130: 18423 | K130: 0 | L130: 122
A131: 12 | B131: 18517 | C131: 24 | D131: 18522 | E131: 24 | F131: 18527 | K131: 0 | L131: 122
A132: 12 | B132: 18623 | C132: 24 | D132: 18630 | E132: 24 | F132: 18638 | K132: 0 | L132: 122
A133: 21 | B133: 18740 | C133: 22 | D133: 18748 | E133: 24 | F133: 18754 | K133: 0 | L133: 222
A134: 12 | B134: 18846 | C134: 13 | D134: 18857 | E134: 24 | F134: 18860 | K134: 0 | L134: 112
A135: 21 | B135: 19112 | C135: 22 | D135: 19120 | E135: 24 | F135: 19126 | K135: 0 | L135: 222
A136: 12 | B136: 19423 | C136: 24 | D136: 19433 | E136: 24 | F136: 19435 | K136: 0 | L136: 122
A137: 21 | B137: 19532 | C137: 22 | D137: 19536 | E137: 24 | F137: 19555 | K137: 0 | L137: 222
A138: 12 | B138: 19653 | C138: 24 | D138: 19662 | E138: 24 | F138: 19668 | K138: 0 | L138: 122
A139: 12 | B139: 19761 | C139: 24 | D139: 19770 | E139: 24 | F139: 19773 | K139: 0 | L139: 122
A140: 21 | B140: 19976 | C140: 22 | D140: 19985 | E140: 24 | F140: 19990 | K140: 0 | L140: 222
A141: 12 | B141: 20083 | C141: 24 | D141: 20093 | E141: 24 | F141: 20098 | K141: 0 | L141: 122
A142: 12 | B142: 20192 | C142: 24 | D142: 20202 | E142: 24 | F142: 20208 | K142: 0 | L142: 122
A143: 21 | B143: 20313 | C143: 22 | D143: 20319 | E143: 24 | F143: 20326 | K143: 0 | L143: 222
A144: 12 | B144: 20427 | C144: 24 | D144: 20432 | E144: 24 | F144: 20441 | K144: 0 | L144: 122
A145: 12 | B145: 20543 | C145: 24 | D145: 20548 | E145: 24 | F145: 20554 | K145: 0 | L145: 122
A146: 21 | B146: 20646 | C146: 11 | D146: 20649 | E146: 22 | F146: 20661 | K146: 0 | L146: 212
A147: 21 | B147: 20682 | C147: 22 | D147: 20688 | E147: 24 | F147: 20696 | K147: 0 | L147: 222
A148: 12 | B148: 20791 | C148: 24 | D148: 20798 | E148: 24 | F148: 20804 | K148: 0 | L148: 122
A149: 21 | B149: 20901 | C149: 22 | D149: 20927 | E149: 24 | F149: 20935 | K149: 0 | L149: 222
A150: 21 | B150: 21042 | C150: 22 | D150: 21050 | E150: 24 | F150: 21057 | K150: 0 | L150: 222
A151: 21 | B151: 21162 | C151: 22 | D151: 21167 | E151: 24 | F151: 21170 | K151: 0 | L151: 222
A152: 21 | B152: 21347 | C152: 22 | D152: 21353 | E152: 24 | F152: 21359 | K152: 0 | L152: 222
A153: 21 | B153: 21461 | C153: 22 | D153: 21464 | E153: 24 | F153: 21470 | K153: 0 | L153: 222
A154: 21 | B154: 21568 | C154: 22 | D154: 21578 | E154: 24 | F154: 21582 | K154: 0 | L154: 222
A155: 12 | B155: 21678 | C155: 24 | D155: 21692 | E155: 24 | F155: 21710 | K155: 0 | L155: 122
A156: 12 | B156: 21811 | C156: 24 | D156: 21822 | E156: 24 | F156: 21824 | K156: 0 | L156: 122
A157: 12 | B157: 21922 | C157: 24 | D157: 21935 | E157: 24 | F157: 21941 | K157: 0 | L157: 122
A158: 21 | B158: 22311 | C158: 22 | D158: 22316 | E158: 24 | F158: 22323 | K158: 0 | L158: 222
A159: 12 | B159: 22616 | C159: 24 | D159: 22627 | E159: 24 | F159: 22631 | K159: 0 | L159: 122
A160: 21 | B160: 22728 | C160: 22 | D160: 22735 | E160: 24 | F160: 22740 | K160: 0 | L160: 222
A161: 12 | B161: 22833 | C161: 24 | D161: 22845 | E161: 24 | F161: 22851 | K161: 0 | L161: 122
A162: 12 | B162: 22973 | C162: 24 | D162: 22987 | E162: 24 | F162: 22992 | K162: 0 | L162: 122
A163: 12 | B163: 23101 | C163: 24 | D163: 23113 | E163: 24 | F163: 23120 | K163: 0 | L163: 122
A164: 12 | B164: 23213 | C164: 24 | D164: 23221 | E164: 24 | F164: 23228 | K164: 0 | L164: 122
A165: 12 | B165: 23325 | C165: 24 | D165: 23330 | E165: 24 | F165: 23339 | K165: 0 | L165: 122
A166: 21 | B166: 23442 | C166: 22 | D166: 23444 | E166: 24 | F166: 23448 | K166: 0 | L166: 222
A167: 21 | B167: 23553 | C167: 22 | D167: 23555 | E167: 24 | F167: 23560 | K167: 0 | L167: 222
A168: 21 | B168: 23776 | C168: 22 | D168: 23782 | E168: 24 | F168: 23795 | K168: 0 | L168: 222
A169: 21 | B169: 23900 | C169: 22 | D169: 23909 | E169: 24 | F169: 23923 | L169: 222

Sheet !M126A30.Gus
A1: Report for:!M126A30.Gus
A2: Date: | B2: <date>
A3: Hen: | B3: <hen> | F3: Correct Sequence | G3: =Start!J2 -> 211 | P3: Total Sequences in Data | Q3: =4994-COUNTBLANK(L7:L5000) -> 116 | V3: Total Sequences in Block Data | W3: =COUNTA(L7:L25) -> 19 | AA3: Total Sequences in Block Data | AB3: =COUNTA(L26:L45) -> 20 | AF3: Total Sequences in Block Data | AG3: =COUNTA(L46:L64) -> 19 | AK3: Total Sequences in Block Data | AL3: =COUNTA(L65:L83) -> 19 | AP3: Total Sequences in Block Data | AQ3: =COUNTA(L84:L103) -> 20 | AU3: Total Sequences in Block Data | AV3: =COUNTA(L104:L122) -> 19
P4: Total Sequences in Summary | Q4: =SUM(O7:O14) -> 116 | V4: Total Sequences in Block Summary | W4: =SUM(U7:U14) -> 19 | AA4: Total Sequences in Block Summary | AB4: =SUM(Z7:Z14) -> 20 | AF4: Total Sequences in Block Summary | AG4: =SUM(AE7:AE14) -> 19 | AK4: Total Sequences in Block Summary | AL4: =SUM(AJ7:AJ14) -> 19 | AP4: Total Sequences in Block Summary | AQ4: =SUM(AO7:AO14) -> 20 | AU4: Total Sequences in Block Summary | AV4: =SUM(AT7:AT14) -> 19
T5: Block 1 | Y5: Block 2 | AD5: Block 3 | AI5: Block 4 | AN5: Block 5 | AS5: Block 6
A6: Sequence Component 1 | B6: Time 1 | C6: Sequence Component 2 | D6: Time 2 | E6: Sequence Component 3 | F6: Time 3 | G6: Sequence Component 4 | H6: Time 4 | I6: Sequence Component 5 | J6: Time 5 | K6: Correct? 0=No 1=Yes | L6: Sequence | N6: Frequency | P6: Relative Frequency | Q6: Variability | T6: Frequency | V6: Relative Frequency | W6: Variability | Y6: Frequency | AA6: Relative Frequency | AB6: Variability | AD6: Frequency | AF6: Relative Frequency | AG6: Variability | AI6: Frequency | AK6: Relative Frequency | AL6: Variability | AN6: Frequency | AP6: Relative Frequency | AQ6: Variability | AS6: Frequency | AU6: Relative Frequency | AV6: Variability
A7: 21 | B7: 76 | C7: 22 | D7: 81 | E7: 24 | F7: 107 | K7: 0 | L7: 222 | N7: 111 | O7: =COUNTIF($L$7:$L$500,N7) -> 0 | P7: =O7/$Q$4 -> 0 | Q7: =IF(P7=0,0,(P7*((LOG(P7))/LOG(2)))) -> 0 | T7: =N7 -> 111 | U7: =COUNTIF(L7:L25,T7) -> 0 | V7: =U7/(W4-U11) -> 0 | W7: =IF(V7=0,0,(V7*((LOG(V7))/LOG(2)))) -> 0 | Y7: =N7 -> 111 | Z7: =COUNTIF(L26:L45,Y7) -> 0 | AA7: =Z7/(AB4-Z11) -> 0 | AB7: =IF(AA7=0,0,(AA7*((LOG(AA7))/LOG(2)))) -> 0 | AD7: =N7 -> 111 | AE7: =COUNTIF(L46:L64,AD7) -> 0 | AF7: =AE7/(AG4-AE11) -> 0 | AG7: =IF(AF7=0,0,(AF7*((LOG(AF7))/LOG(2)))) -> 0 | AI7: =N7 -> 111 | AJ7: =COUNTIF(L65:L83,AI7) -> 0 | AK7: =AJ7/(AL4-AJ11) -> 0 | AL7: =IF(AK7=0,0,(AK7*((LOG(AK7))/LOG(2)))) -> 0 | AN7: =N7 -> 111 | AO7: =COUNTIF(L84:L103,AN7) -> 0 | AP7: =AO7/(AQ4-AO11) -> 0 | AQ7: =IF(AP7=0,0,(AP7*((LOG(AP7))/LOG(2)))) -> 0 | AS7: =N7 -> 111 | AT7: =COUNTIF(L104:L122,AS7) -> 0 | AU7: =AT7/(AV4-AT11) -> 0 | AV7: =IF(AU7=0,0,(AU7*((LOG(AU7))/LOG(2)))) -> 0
A8: 21 | B8: 232 | C8: 22 | D8: 250 | E8: 24 | F8: 257 | K8: 0 | L8: 222 | N8: 112 | O8: =COUNTIF($L$7:$L$500,N8) -> 4 | P8: =O8/$Q$4 -> 0.03448275862 | Q8: =IF(P8=0,0,(P8*((LOG(P8))/LOG(2)))) -> -0.167516586 | T8: =N8 -> 112 | U8: =COUNTIF(L7:L25,T8) -> 0 | V8: =U8/(W4-U11) -> 0 | W8: =IF(V8=0,0,(V8*((LOG(V8))/LOG(2)))) -> 0 | Y8: =N8 -> 112 | Z8: =COUNTIF(L26:L45,Y8) -> 0 | AA8: =Z8/(AB4-Z11) -> 0 | AB8: =IF(AA8=0,0,(AA8*((LOG(AA8))/LOG(2)))) -> 0 | AD8: =N8 -> 112 | AE8: =COUNTIF(L46:L64,AD8) -> 1 | AF8: =AE8/(AG4-AE11) -> 0.05263157895 | AG8: =IF(AF8=0,0,(AF8*((LOG(AF8))/LOG(2)))) -> -0.2235751323 | AI8: =N8 -> 112 | AJ8: =COUNTIF(L65:L83,AI8) -> 0 | AK8: =AJ8/(AL4-AJ11) -> 0 | AL8: =IF(AK8=0,0,(AK8*((LOG(AK8))/LOG(2)))) -> 0 | AN8: =N8 -> 112 | AO8: =COUNTIF(L84:L103,AN8) -> 2 | AP8: =AO8/(AQ4-AO11) -> 0.1 | AQ8: =IF(AP8=0,0,(AP8*((LOG(AP8))/LOG(2)))) -> -0.3321928095 | AS8: =N8 -> 112 | AT8: =COUNTIF(L104:L122,AS8) -> 1 | AU8: =AT8/(AV4-AT11) -> 0.05263157895 | AV8: =IF(AU8=0,0,(AU8*((LOG(AU8))/LOG(2)))) -> -0.2235751323
A9: 21 | B9: 364 | C9: 22 | D9: 368 | E9: 24 | F9: 390 | K9: 0 | L9: 222 | N9: 121 | O9: =COUNTIF($L$7:$L$500,N9) -> 0 | P9: =O9/$Q$4 -> 0 | Q9: =IF(P9=0,0,(P9*((LOG(P9))/LOG(2)))) -> 0 | T9: =N9 -> 121 | U9: =COUNTIF(L7:L25,T9) -> 0 | V9: =U9/(W4-U11) -> 0 | W9: =IF(V9=0,0,(V9*((LOG(V9))/LOG(2)))) -> 0 | Y9: =N9 -> 121 | Z9: =COUNTIF(L26:L45,Y9) -> 0 | AA9: =Z9/(AB4-Z11) -> 0 | AB9: =IF(AA9=0,0,(AA9*((LOG(AA9))/LOG(2)))) -> 0 | AD9: =N9 -> 121 | AE9: =COUNTIF(L46:L64,AD9) -> 0 | AF9: =AE9/(AG4-AE11) -> 0 | AG9: =IF(AF9=0,0,(AF9*((LOG(AF9))/LOG(2)))) -> 0 | AI9: =N9 -> 121 | AJ9: =COUNTIF(L65:L83,AI9) -> 0 | AK9: =AJ9/(AL4-AJ11) -> 0 | AL9: =IF(AK9=0,0,(AK9*((LOG(AK9))/LOG(2)))) -> 0 | AN9: =N9 -> 121 | AO9: =COUNTIF(L84:L103,AN9) -> 0 | AP9: =AO9/(AQ4-AO11) -> 0 | AQ9: =IF(AP9=0,0,(AP9*((LOG(AP9))/LOG(2)))) -> 0 | AS9: =N9 -> 121 | AT9: =COUNTIF(L104:L122,AS9) -> 0 | AU9: =AT9/(AV4-AT11) -> 0 | AV9: =IF(AU9=0,0,(AU9*((LOG(AU9))/LOG(2)))) -> 0
A10: 12 | B10: 484 | C10: 24 | D10: 501 | E10: 24 | F10: 510 | K10: 0 | L10: 122 | N10: 122 | O10: =COUNTIF($L$7:$L$500,N10) -> 46 | P10: =O10/$Q$4 -> 0.3965517241 | Q10: =IF(P10=0,0,(P10*((LOG(P10))/LOG(2)))) -> -0.5291661707 | T10: =N10 -> 122 | U10: =COUNTIF(L7:L25,T10) -> 8 | V10: =U10/(W4-U11) -> 0.4210526316 | W10: =IF(V10=0,0,(V10*((LOG(V10))/LOG(2)))) -> -0.5254431636 | Y10: =N10 -> 122 | Z10: =COUNTIF(L26:L45,Y10) -> 8 | AA10: =Z10/(AB4-Z11) -> 0.4 | AB10: =IF(AA10=0,0,(AA10*((LOG(AA10))/LOG(2)))) -> -0.528771238 | AD10: =N10 -> 122 | AE10: =COUNTIF(L46:L64,AD10) -> 10 | AF10: =AE10/(AG4-AE11) -> 0.5263157895 | AG10: =IF(AF10=0,0,(AF10*((LOG(AF10))/LOG(2)))) -> -0.487368115 | AI10: =N10 -> 122 | AJ10: =COUNTIF(L65:L83,AI10) -> 7 | AK10: =AJ10/(AL4-AJ11) -> 0.3684210526 | AL10: =IF(AK10=0,0,(AK10*((LOG(AK10))/LOG(2)))) -> -0.5307372705 | AN10: =N10 -> 122 | AO10: =COUNTIF(L84:L103,AN10) -> 6 | AP10: =AO10/(AQ4-AO11) -> 0.3 | AQ10: =IF(AP10=0,0,(AP10*((LOG(AP10))/LOG(2)))) -> -0.5210896782 | AS10: =N10 -> 122 | AT10: =COUNTIF(L104:L122,AS10) -> 7 | AU10: =AT10/(AV4-AT11) -> 0.3684210526 | AV10: =IF(AU10=0,0,(AU10*((LOG(AU10))/LOG(2)))) -> -0.5307372705
A11: 12 | B11: 680 | C11: 24 | D11: 693 | E11: 24 | F11: 705 | K11: 0 | L11: 122 | N11: 211 | O11: =COUNTIF($L$7:$L$500,N11) -> 0 | P11: =O11/$Q$4 -> 0 | Q11: =IF(P11=0,0,(P11*((LOG(P11))/LOG(2)))) -> 0 | T11: =N11 -> 211 | U11: =COUNTIF(L7:L25,T11) -> 0 | Y11: =N11 -> 211 | Z11: =COUNTIF(L26:L45,Y11) -> 0 | AD11: =N11 -> 211 | AE11: =COUNTIF(L46:L64,AD11) -> 0 | AI11: =N11 -> 211 | AJ11: =COUNTIF(L65:L83,AI11) -> 0 | AN11: =N11 -> 211 | AO11: =COUNTIF(L84:L103,AN11) -> 0 | AS11: =N11 -> 211 | AT11: =COUNTIF(L104:L122,AS11) -> 0
A12: 21 | B12: 1130 | C12: 22 | D12: 1139 | E12: 24 | F12: 1148 | K12: 0 | L12: 222 | N12: 212 | O12: =COUNTIF($L$7:$L$500,N12) -> 0 | P12: =O12/$Q$4 -> 0 | Q12: =IF(P12=0,0,(P12*((LOG(P12))/LOG(2)))) -> 0 | T12: =N12 -> 212 | U12: =COUNTIF(L7:L25,T12) -> 0 | V12: =U12/(W4-U11) -> 0 | W12: =IF(V12=0,0,(V12*((LOG(V12))/LOG(2)))) -> 0 | Y12: =N12 -> 212 | Z12: =COUNTIF(L26:L45,Y12) -> 0 | AA12: =Z12/(AB4-Z11) -> 0 | AB12: =IF(AA12=0,0,(AA12*((LOG(AA12))/LOG(2)))) -> 0 | AD12: =N12 -> 212 | AE12: =COUNTIF(L46:L64,AD12) -> 0 | AF12: =AE12/(AG4-AE11) -> 0 | AG12: =IF(AF12=0,0,(AF12*((LOG(AF12))/LOG(2)))) -> 0 | AI12: =N12 -> 212 | AJ12: =COUNTIF(L65:L83,AI12) -> 0 | AK12: =AJ12/(AL4-AJ11) -> 0 | AL12: =IF(AK12=0,0,(AK12*((LOG(AK12))/LOG(2)))) -> 0 | AN12: =N12 -> 212 | AO12: =COUNTIF(L84:L103,AN12) -> 0 | AP12: =AO12/(AQ4-AO11) -> 0 | AQ12: =IF(AP12=0,0,(AP12*((LOG(AP12))/LOG(2)))) -> 0 | AS12: =N12 -> 212 | AT12: =COUNTIF(L104:L122,AS12) -> 0 | AU12: =AT12/(AV4-AT11) -> 0 | AV12: =IF(AU12=0,0,(AU12*((LOG(AU12))/LOG(2)))) -> 0
A13: 12 | B13: 1591 | C13: 24 | D13: 1604 | E13: 24 | F13: 1618 | K13: 0 | L13: 122 | N13: 221 | O13: =COUNTIF($L$7:$L$500,N13) -> 0 | P13: =O13/$Q$4 -> 0 | Q13: =IF(P13=0,0,(P13*((LOG(P13))/LOG(2)))) -> 0 | T13: =N13 -> 221 | U13: =COUNTIF(L7:L25,T13) -> 0 | V13: =U13/(W4-U11) -> 0 | W13: =IF(V13=0,0,(V13*((LOG(V13))/LOG(2)))) -> 0 | Y13: =N13 -> 221 | Z13: =COUNTIF(L26:L45,Y13) -> 0 | AA13: =Z13/(AB4-Z11) -> 0 | AB13: =IF(AA13=0,0,(AA13*((LOG(AA13))/LOG(2)))) -> 0 | AD13: =N13 -> 221 | AE13: =COUNTIF(L46:L64,AD13) -> 0 | AF13: =AE13/(AG4-AE11) -> 0 | AG13: =IF(AF13=0,0,(AF13*((LOG(AF13))/LOG(2)))) -> 0 | AI13: =N13 -> 221 | AJ13: =COUNTIF(L65:L83,AI13) -> 0 | AK13: =AJ13/(AL4-AJ11) -> 0 | AL13: =IF(AK13=0,0,(AK13*((LOG(AK13))/LOG(2)))) -> 0 | AN13: =N13 -> 221 | AO13: =COUNTIF(L84:L103,AN13) -> 0 | AP13: =AO13/(AQ4-AO11) -> 0 | AQ13: =IF(AP13=0,0,(AP13*((LOG(AP13))/LOG(2)))) -> 0 | AS13: =N13 -> 221 | AT13: =COUNTIF(L104:L122,AS13) -> 0 | AU13: =AT13/(AV4-AT11) -> 0 | AV13: =IF(AU13=0,0,(AU13*((LOG(AU13))/LOG(2)))) -> 0
A14: 21 | B14: 1778 | C14: 22 | D14: 1784 | E14: 24 | F14: 1793 | K14: 0 | L14: 222 | N14: 222 | O14: =COUNTIF($L$7:$L$500,N14) -> 66 | P14: =O14/$Q$4 -> 0.5689655172 | Q14: =IF(P14=0,0,(P14*((LOG(P14))/LOG(2)))) -> -0.4629028776 | T14: =N14 -> 222 | U14: =COUNTIF(L7:L25,T14) -> 11 | V14: =U14/(W4-U11) -> 0.5789473684 | W14: =IF(V14=0,0,(V14*((LOG(V14))/LOG(2)))) -> -0.4564976233 | Y14: =N14 -> 222 | Z14: =COUNTIF(L26:L45,Y14) -> 12 | AA14: =Z14/(AB4-Z11) -> 0.6 | AB14: =IF(AA14=0,0,(AA14*((LOG(AA14))/LOG(2)))) -> -0.4421793565 | AD14: =N14 -> 222 | AE14: =COUNTIF(L46:L64,AD14) -> 8 | AF14: =AE14/(AG4-AE11) -> 0.4210526316 | AG14: =IF(AF14=0,0,(AF14*((LOG(AF14))/LOG(2)))) -> -0.5254431636 | AI14: =N14 -> 222 | AJ14: =COUNTIF(L65:L83,AI14) -> 12 | AK14: =AJ14/(AL4-AJ11) -> 0.6315789474 | AL14: =IF(AK14=0,0,(AK14*((LOG(AK14))/LOG(2)))) -> -0.4187147449 | AN14: =N14 -> 222 | AO14: =COUNTIF(L84:L103,AN14) -> 12 | AP14: =AO14/(AQ4-AO11) -> 0.6 | AQ14: =IF(AP14=0,0,(AP14*((LOG(AP14))/LOG(2)))) -> -0.4421793565 | AS14: =N14 -> 222 | AT14: =COUNTIF(L104:L122,AS14) -> 11 | AU14: =AT14/(AV4-AT11) -> 0.5789473684 | AV14: =IF(AU14=0,0,(AU14*((LOG(AU14))/LOG(2)))) -> -0.4564976233
A15: 12 | B15: 1944 | C15: 24 | D15: 1986 | E15: 24 | F15: 1991 | K15: 0 | L15: 122 | P15: =SUM(P7:P14) -> 1 | Q15: =-SUM(Q7:Q14) -> 1.159585634 | V15: =SUM(V7:V14) -> 1 | W15: =-SUM(W7:W14) -> 0.9819407869 | AA15: =SUM(AA7:AA14) -> 1 | AB15: =-SUM(AB7:AB14) -> 0.9709505945 | AF15: =SUM(AF7:AF14) -> 1 | AG15: =-SUM(AG7:AG14) -> 1.236386411 | AK15: =SUM(AK7:AK14) -> 1 | AL15: =-SUM(AL7:AL14) -> 0.9494520154 | AP15: =SUM(AP7:AP14) -> 1 | AQ15: =-SUM(AQ7:AQ14) -> 1.295461844 | AU15: =SUM(AU7:AU14) -> 1 | AV15: =-SUM(AV7:AV14) -> 1.210810026
A16: 21 | B16: 2097 | C16: 22 | D16: 2112 | E16: 24 | F16: 2119 | K16: 0 | L16: 222 | P16: U= | Q16: =Q15/(LOG(Q4)/LOG(2)) -> 0.1690855713 | V16: U1= | W16: =W15/(LOG(W4)/LOG(2)) -> 0.2311576136 | AA16: U2= | AB16: =AB15/(LOG(AB4)/LOG(2)) -> 0.2246568136 | AF16: U3= | AG16: =AG15/(LOG(AG4)/LOG(2)) -> 0.2910563815 | AK16: U4= | AL16: =AL15/(LOG(AL4)/LOG(2)) -> 0.2235094672 | AP16: U5= | AQ16: =AQ15/(LOG(AQ4)/LOG(2)) -> 0.2997416467 | AU16: U6= | AV16: =AV15/(LOG(AV4)/LOG(2)) -> 0.2850354725
A17: 21 | B17: 2225 | C17: 22 | D17: 2229 | E17: 24 | F17: 2236 | K17: 0 | L17: 222
A18: 12 | B18: 2334 | C18: 24 | D18: 2336 | E18: 24 | F18: 2339 | K18: 0 | L18: 122
A19: 12 | B19: 2437 | C19: 24 | D19: 2442 | E19: 24 | F19: 2448 | K19: 0 | L19: 122 | N19: Total Target Seq
A20: 21 | B20: 2549 | C20: 22 | D20: 2555 | E20: 24 | F20: 2560 | K20: 0 | L20: 222 | N20: =COUNTIF(L7:L122,G3) -> 0 | P20: 19 | Q20: 20 | R20: 19 | S20: 19 | T20: 20 | U20: 19
A21: 21 | B21: 2664 | C21: 22 | D21: 2668 | E21: 24 | F21: 2675 | K21: 0 | L21: 222 | P21: % of reinforcement given in 6 equal intervals based on number of trials
A22: 12 | B22: 2854 | C22: 24 | D22: 2865 | E22: 24 | F22: 2870 | K22: 0 | L22: 122 | P22: %_1 | Q22: %_2 | R22: %_3 | S22: %_4 | T22: %_5 | U22: %_6
A23: 21 | B23: 3027 | C23: 22 | D23: 3032 | E23: 24 | F23: 3039 | K23: 0 | L23: 222 | O23: target sequence | P23: =$G$3 -> 211 | Q23: =$G$3 -> 211 | R23: =$G$3 -> 211 | S23: =$G$3 -> 211 | T23: =$G$3 -> 211 | U23: =$G$3 -> 211
A24: 12 | B24: 3130 | C24: 24 | D24: 3151 | E24: 24 | F24: 3157 | K24: 0 | L24: 122 | O24: total reinforcement | P24: =U11 -> 0 | Q24: =Z11 -> 0 | R24: =AE11 -> 0 | S24: =AJ11 -> 0 | T24: =AO11 -> 0 | U24: =AT11 -> 0
A25: 21 | B25: 3260 | C25: 22 | D25: 3266 | E25: 24 | F25: 3273 | K25: 0 | L25: 222 | O25: % target
A26: 21 | B26: 3377 | C26: 22 | D26: 3383 | E26: 24 | F26: 3389 | K26: 0 | L26: 222 | O26: CCRF
A27: 12 | B27: 3482 | C27: 24 | D27: 3487 | E27: 24 | F27: 3495 | K27: 0 | L27: 122 | O27: % CCRf
A28: 21 | B28: 3641 | C28: 22 | D28: 3644 | E28: 24 | F28: 3650 | K28: 0 | L28: 222 | O28: average response rate | P28: =F25/P20 -> 172.2631579 | Q28: =(F45-F25)/Q20 -> 134.6 | R28: =(F64-F45)/R20 -> 131.9473684 | S28: =(F83-F64)/S20 -> 154.5263158 | T28: =(F103-F83)/T20 -> 139.5 | U28: =(F122-F103)/U20 -> 121.3684211
A29: 21 | B29: 3759 | C29: 22 | D29: 3767 | E29: 24 | F29: 3773 | K29: 0 | L29: 222
A30: 21 | B30: 3879 | C30: 22 | D30: 3881 | E30: 24 | F30: 3888 | K30: 0 | L30: 222
A31: 21 | B31: 3993 | C31: 22 | D31: 4005 | E31: 24 | F31: 4011 | K31: 0 | L31: 222
A32: 12 | B32: 4112 | C32: 24 | D32: 4117 | E32: 24 | F32: 4121 | K32: 0 | L32: 122
A33: 21 | B33: 4349 | C33: 22 | D33: 4355 | E33: 24 | F33: 4362 | K33: 0 | L33: 222
A34: 12 | B34: 4561 | C34: 24 | D34: 4596 | E34: 24 | F34: 4603 | K34: 0 | L34: 122
A35: 21 | B35: 4702 | C35: 22 | D35: 4713 | E35: 24 | F35: 4726 | K35: 0 | L35: 222
A36: 21 | B36: 4828 | C36: 22 | D36: 4832 | E36: 24 | F36: 4839 | K36: 0 | L36: 222
A37: 21 | B37: 4942 | C37: 22 | D37: 4949 | E37: 24 | F37: 4954 | K37: 0 | L37: 222
A38: 12 | B38: 5046 | C38: 24 | D38: 5062 | E38: 24 | F38: 5070 | K38: 0 | L38: 122
A39: 21 | B39: 5172 | C39: 22 | D39: 5178 | E39: 24 | F39: 5201 | K39: 0 | L39: 222
A40: 12 | B40: 5297 | C40: 24 | D40: 5302 | E40: 24 | F40: 5314 | K40: 0 | L40: 122
A41: 21 | B41: 5411 | C41: 22 | D41: 5417 | E41: 24 | F41: 5423 | K41: 0 | L41: 222
A42: 12 | B42: 5515 | C42: 24 | D42: 5530 | E42: 24 | F42: 5536 | K42: 0 | L42: 122
A43: 21 | B43: 5719 | C43: 22 | D43: 5728 | E43: 24 | F43: 5739 | K43: 0 | L43: 222
A44: 12 | B44: 5831 | C44: 24 | D44: 5849 | E44: 24 | F44: 5854 | K44: 0 | L44: 122
A45: 12 | B45: 5948 | C45: 24 | D45: 5958 | E45: 24 | F45: 5965 | K45: 0 | L45: 122
A46: 12 | B46: 6062 | C46: 24 | D46: 6068 | E46: 24 | F46: 6077 | K46: 0 | L46: 122
A47: 21 | B47: 6343 | C47: 22 | D47: 6368 | E47: 24 | F47: 6390 | K47: 0 | L47: 222
A48: 12 | B48: 6486 | C48: 24 | D48: 6494 | E48: 24 | F48: 6497 | K48: 0 | L48: 122
A49: 12 | B49: 6592 | C49: 24 | D49: 6607 | E49: 24 | F49: 6613 | K49: 0 | L49: 122
A50: 12 | B50: 6705 | C50: 24 | D50: 6720 | E50: 24 | F50: 6729 | K50: 0 | L50: 122
A51: 12 | B51: 6824 | C51: 24 | D51: 6839 | E51: 24 | F51: 6845 | K51: 0 | L51: 122
A52: 21 | B52: 6995 | C52: 22 | D52: 7020 | E52: 24 | F52: 7027 | K52: 0 | L52: 222
A53: 12 | B53: 7125 | C53: 24 | D53: 7130 | E53: 24 | F53: 7137 | K53: 0 | L53: 122
A54: 12 | B54: 7233 | C54: 24 | D54: 7237 | E54: 24 | F54: 7245 | K54: 0 | L54: 122
A55: 21 | B55: 7346 | C55: 22 | D55: 7360 | E55: 24 | F55: 7377 | K55: 0 | L55: 222
A56: 21 | B56: 7473 | C56: 22 | D56: 7476 | E56: 24 | F56: 7485 | K56: 0 | L56: 222
A57: 21 | B57: 7602 | C57: 22 | D57: 7606 | E57: 24 | F57: 7625 | K57: 0 | L57: 222
A58: 12 | B58: 7742 | C58: 24 | D58: 7773 | E58: 24 | F58: 7779 | K58: 0 | L58: 122
A59: 12 | B59: 7873 | C59: 13 | D59: 7878 | E59: 24 | F59: 7883 | K59: 0 | L59: 112
A60: 21 | B60: 7981 | C60: 22 | D60: 7993 | E60: 24 | F60: 8000 | K60: 0 | L60: 222
A61: 12 | B61: 8094 | C61: 24 | D61: 8103 | E61: 24 | F61: 8110 | K61: 0 | L61: 122
A62: 21 | B62: 8212 | C62: 22 | D62: 8217 | E62: 24 | F62: 8224 | K62: 0 | L62: 222
A63: 21 | B63: 8319 | C63: 22 | D63: 8331 | E63: 24 | F63: 8340 | K63: 0 | L63: 222
A64: 12 | B64: 8434 | C64: 24 | D64: 8447 | E64: 24 | F64: 8472 | K64: 0 | L64: 122
A65: 12 | B65: 8685 | C65: 24 | D65: 8707 | E65: 24 | F65: 8713 | K65: 0 | L65: 122
A66: 21 | B66: 8806 | C66: 22 | D66: 8812 | E66: 24 | F66: 8819 | K66: 0 | L66: 222
A67: 21 | B67: 8917 | C67: 22 | D67: 8923 | E67: 24 | F67: 8930 | K67: 0 | L67: 222
A68: 21 | B68: 9037 | C68: 22 | D68: 9058 | E68: 24 | F68: 9065 | K68: 0 | L68: 222
A69: 21 | B69: 9244 | C69: 22 | D69: 9269 | E69: 24 | F69: 9277 | K69: 0 | L69: 222
A70: 21 | B70: 9377 | C70: 22 | D70: 9383 | E70: 24 | F70: 9392 | K70: 0 | L70: 222
A71: 21 | B71: 9493 | C71: 22 | D71: 9500 | E71: 24 | F71: 9506 | K71: 0 | L71: 222
A72: 12 | B72: 9673 | C72: 24 | D72: 9689 | E72: 24 | F72: 9695 | K72: 0 | L72: 122
A73: 21 | B73: 9916 | C73: 22 | D73: 9928 | E73: 24 | F73: 9934 | K73: 0 | L73: 222
A74: 12 | B74: 10028 | C74: 24 | D74: 10034 | E74: 24 | F74: 10047 | K74: 0 | L74: 122
A75: 21 | B75: 10152 | C75: 22 | D75: 10157 | E75: 24 | F75: 10162 | K75: 0 | L75: 222
A76: 12 | B76: 10257 | C76: 24 | D76: 10265 | E76: 24 | F76: 10270 | K76: 0 | L76: 122
A77: 12 | B77: 10365 | C77: 24 | D77: 10373 | E77: 24 | F77: 10396 | K77: 0 | L77: 122
A78: 12 | B78: 10490 | C78: 24 | D78: 10499 | E78: 24 | F78: 10506 | K78: 0 | L78: 122
A79: 21 | B79: 10606 | C79: 22 | D79: 10621 | E79: 24 | F79: 10628 | K79: 0 | L79: 222
A80: 21 | B80: 10737 | C80: 22 | D80: 10742 | E80: 24 | F80: 10761 | K80: 0 | L80: 222
A81: 12 | B81: 10856 | C81: 24 | D81: 10868 | E81: 24 | F81: 10874 | K81: 0 | L81: 122
A82: 21 | B82: 11253 | C82: 22 | D82: 11258 | E82: 24 | F82: 11269 | K82: 0 | L82: 222
A83: 21 | B83: 11381 | C83: 22 | D83: 11387 | E83: 24 | F83: 11408 | K83: 0 | L83: 222
A84: 21 | B84: 11513 | C84: 22 | D84: 11526 | E84: 24 | F84: 11532 | K84: 0 | L84: 222
A85: 21 | B85: 11640 | C85: 22 | D85: 11646 | E85: 24 | F85: 11653 | K85: 0 | L85: 222
A86: 21 | B86: 11758 | C86: 22 | D86: 11762 | E86: 24 | F86: 11768 | K86: 0 | L86: 222
A87: 21 | B87: 11868 | C87: 22 | D87: 11875 | E87: 24 | F87: 11907 | K87: 0 | L87: 222
A88: 12 | B88: 11999 | C88: 13 | D88: 12002 | E88: 24 | F88: 12008 | K88: 0 | L88: 112
A89: 12 | B89: 12100 | C89: 13 | D89: 12113 | E89: 24 | F89: 12115 | K89: 0 | L89: 112
A90: 21 | B90: 12225 | C90: 22 | D90: 12233 | E90: 24 | F90: 12240 | K90: 0 | L90: 222
A91: 21 | B91: 12338 | C91: 22 | D91: 12344 | E91: 24 | F91: 12349 | K91: 0 | L91: 222
A92: 12 | B92: 12626 | C92: 24 | D92: 12640 | E92: 24 | F92: 12646 | K92: 0 | L92: 122
A93: 21 | B93: 12833 | C93: 22 | D93: 12840 | E93: 24 | F93: 12845 | K93: 0 | L93: 222
A94: 21 | B94: 12981 | C94: 22 | D94: 12992 | E94: 24 | F94: 12998 | K94: 0 | L94: 222
A95: 12 | B95: 13092 | C95: 24 | D95: 13096 | E95: 24 | F95: 13101 | K95: 0 | L95: 122
A96: 12 | B96: 13226 | C96: 24 | D96: 13238 | E96: 24 | F96: 13243 | K96: 0 | L96: 122
A97: 12 | B97: 13442 | C97: 24 | D97: 13447 | E97: 24 | F97: 13454 | K97: 0 | L97: 122
A98: 21 | B98: 13552 | C98: 22 | D98: 13558 | E98: 24 | F98: 13560 | K98: 0 | L98: 222
A99: 21 | B99: 13660 | C99: 22 | D99: 13668 | E99: 24 | F99: 13676 | K99: 0 | L99: 222
A100: 21 | B100: 13778 | C100: 22 | D100: 13783 | E100: 24 | F100: 13789 | K100: 0 | L100: 222
A101: 21 | B101: 13887 | C101: 22 | D101: 13895 | E101: 24 | F101: 13901 | K101: 0 | L101: 222
A102: 12 | B102: 13993 | C102: 24 | D102: 13999 | E102: 24 | F102: 14010 | K102: 0 | L102: 122
A103: 12 | B103: 14151 | C103: 24 | D103: 14192 | E103: 24 | F103: 14198 | K103: 0 | L103: 122
A104: 21 | B104: 14301 | C104: 22 | D104: 14316 | E104: 24 | F104: 14327 | K104: 0 | L104: 222
A105: 21 | B105: 14449 | C105: 22 | D105: 14454 | E105: 24 | F105: 14469 | K105: 0 | L105: 222
A106: 21 | B106: 14580 | C106: 22 | D106: 14585 | E106: 24 | F106: 14590 | K106: 0 | L106: 222
A107: 12 | B107: 14688 | C107: 24 | D107: 14694 | E107: 24 | F107: 14702 | K107: 0 | L107: 122
A108: 21 | B108: 14800 | C108: 22 | D108: 14805 | E108: 24 | F108: 14810 | K108: 0 | L108: 222
A109: 21 | B109: 14915 | C109: 22 | D109: 14920 | E109: 24 | F109: 14923 | K109: 0 | L109: 222
A110: 21 | B110: 15028 | C110: 22 | D110: 15030 | E110: 24 | F110: 15042 | K110: 0 | L110: 222
A111: 12 | B111: 15138 | C111: 13 | D111: 15142 | E111: 24 | F111: 15151 | K111: 0 | L111: 112
A112: 12 | B112: 15250 | C112: 24 | D112: 15254 | E112: 24 | F112: 15260 | K112: 0 | L112: 122
A113: 12 | B113: 15356 | C113: 24 | D113: 15361 | E113: 24 | F113: 15371 | K113: 0 | L113: 122
A114: 21 | B114: 15474 | C114: 22 | D114: 15481 | E114: 24 | F114: 15487 | K114: 0 | L114: 222
A115: 12 | B115: 15583 | C115: 24 | D115: 15587 | E115: 24 | F115: 15592 | K115: 0 | L115: 122
A116: 12 | B116: 15698 | C116: 24 | D116: 15703 | E116: 24 | F116: 15710 | K116: 0 | L116: 122
A117: 21 | B117: 15899 | C117: 22 | D117: 15906 | E117: 24 | F117: 15912 | K117: 0 | L117: 222
A118: 21 | B118: 16016 | C118: 22 | D118: 16028 | E118: 24 | F118: 16035 | K118: 0 | L118: 222
A119: 12 | B119: 16135 | C119: 24 | D119: 16138 | E119: 24 | F119: 16143 | K119: 0 | L119: 122
A120: 12 | B120: 16238 | C120: 24 | D120: 16242 | E120: 24 | F120: 16260 | K120: 0 | L120: 122
A121: 21 | B121: 16364 | C121: 22 | D121: 16368 | E121: 24 | F121: 16381 | K121: 0 | L121: 222
A122: 21 | B122: 16485 | C122: 22 | D122: 16490 | E122: 24 | F122: 16504 | K122: 0 | L122: 222

Sheet !M127950.Gus
A1: Report for:!M127950.Gus
A2: Date: | B2: <date>
A3: Hen: | B3: <hen> | F3: Correct Sequence | G3: =Start!J2 -> 211 | P3: Total Sequences in Data | Q3: =4994-COUNTBLANK(L7:L5000) -> 141 | V3: Total Sequences in Block Data | W3: =COUNTA(L7:L30) -> 24 | AA3: Total Sequences in Block Data | AB3: =COUNTA(L31:L53) -> 23 | AF3: Total Sequences in Block Data | AG3: =COUNTA(L54:L77) -> 24 | AK3: Total Sequences in Block Data | AL3: =COUNTA(L78:L100) -> 23 | AP3: Total Sequences in Block Data | AQ3: =COUNTA(L101:L124) -> 24 | AU3: Total Sequences in Block Data | AV3: =COUNTA(L125:L147) -> 23
P4: Total Sequences in Summary | Q4: =SUM(O7:O14) -> 141 | V4: Total Sequences in Block Summary | W4: =SUM(U7:U14) -> 24 | AA4: Total Sequences in Block Summary | AB4: =SUM(Z7:Z14) -> 23 | AF4: Total Sequences in Block Summary | AG4: =SUM(AE7:AE14) -> 24 | AK4: Total Sequences in Block Summary | AL4: =SUM(AJ7:AJ14) -> 23 | AP4: Total Sequences in Block Summary | AQ4: =SUM(AO7:AO14) -> 24 | AU4: Total Sequences in Block Summary | AV4: =SUM(AT7:AT14) -> 23
T5: Block 1 | Y5: Block 2 | AD5: Block 3 | AI5: Block 4 | AN5: Block 5 | AS5: Block 6
A6: Sequence Component 1 | B6: Time 1 | C6: Sequence Component 2 | D6: Time 2 | E6: Sequence Component 3 | F6: Time 3 | G6: Sequence Component 4 | H6: Time 4 | I6: Sequence Component 5 | J6: Time 5 | K6: Correct? 0=No 1=Yes | L6: Sequence | N6: Frequency | P6: Relative Frequency | Q6: Variability | T6: Frequency | V6: Relative Frequency | W6: Variability | Y6: Frequency | AA6: Relative Frequency | AB6: Variability | AD6: Frequency | AF6: Relative Frequency | AG6: Variability | AI6: Frequency | AK6: Relative Frequency | AL6: Variability | AN6: Frequency | AP6: Relative Frequency | AQ6: Variability | AS6: Frequency | AU6: Relative Frequency | AV6: Variability
A7: 21 | B7: 242 | C7: 22 | D7: 249 | E7: 24 | F7: 256 | K7: 0 | L7: 222 | N7: 111 | O7: =COUNTIF($L$7:$L$500,N7) -> 0 | P7: =O7/$Q$4 -> 0 | Q7: =IF(P7=0,0,(P7*((LOG(P7))/LOG(2)))) -> 0 | T7: =N7 -> 111 | U7: =COUNTIF(L7:L30,T7) -> 0 | V7: =U7/(W4-U11) -> 0 | W7: =IF(V7=0,0,(V7*((LOG(V7))/LOG(2)))) -> 0 | Y7: =N7 -> 111 | Z7: =COUNTIF(L31:L53,Y7) -> 0 | AA7: =Z7/(AB4-Z11) -> 0 | AB7: =IF(AA7=0,0,(AA7*((LOG(AA7))/LOG(2)))) -> 0 | AD7: =N7 -> 111 | AE7: =COUNTIF(L54:L77,AD7) -> 0 | AF7: =AE7/(AG4-AE11) -> 0 | AG7: =IF(AF7=0,0,(AF7*((LOG(AF7))/LOG(2)))) -> 0 | AI7: =N7 -> 111 | AJ7: =COUNTIF(L78:L100,AI7) -> 0 | AK7: =AJ7/(AL4-AJ11) -> 0 | AL7: =IF(AK7=0,0,(AK7*((LOG(AK7))/LOG(2)))) -> 0 | AN7: =N7 -> 111 | AO7: =COUNTIF(L101:L124,AN7) -> 0 | AP7: =AO7/(AQ4-AO11) -> 0 | AQ7: =IF(AP7=0,0,(AP7*((LOG(AP7))/LOG(2)))) -> 0 | AS7: =N7 -> 111 | AT7: =COUNTIF(L125:L147,AS7) -> 0 | AU7: =AT7/(AV4-AT11) -> 0 | AV7: =IF(AU7=0,0,(AU7*((LOG(AU7))/LOG(2)))) -> 0
A8: 21 | B8: 496 | C8: 22 | D8: 499 | E8: 24 | F8: 506 | K8: 0 | L8: 222 | N8: 112 | O8: =COUNTIF($L$7:$L$500,N8) -> 4 | P8: =O8/$Q$4 -> 0.02836879433 | Q8: =IF(P8=0,0,(P8*((LOG(P8))/LOG(2)))) -> -0.1458028752 | T8: =N8 -> 112 | U8: =COUNTIF(L7:L30,T8) -> 1 | V8: =U8/(W4-U11) -> 0.04166666667 | W8: =IF(V8=0,0,(V8*((LOG(V8))/LOG(2)))) -> -0.1910401042 | Y8: =N8 -> 112 | Z8: =COUNTIF(L31:L53,Y8) -> 3 | AA8: =Z8/(AB4-Z11) -> 0.1304347826 | AB8: =IF(AA8=0,0,(AA8*((LOG(AA8))/LOG(2)))) -> -0.3832955811 | AD8: =N8 -> 112 | AE8: =COUNTIF(L54:L77,AD8) -> 0 | AF8: =AE8/(AG4-AE11) -> 0 | AG8: =IF(AF8=0,0,(AF8*((LOG(AF8))/LOG(2)))) -> 0 | AI8: =N8 -> 112 | AJ8: =COUNTIF(L78:L100,AI8) -> 0 | AK8: =AJ8/(AL4-AJ11) -> 0 | AL8: =IF(AK8=0,0,(AK8*((LOG(AK8))/LOG(2)))) -> 0 | AN8: =N8 -> 112 | AO8: =COUNTIF(L101:L124,AN8) -> 0 | AP8: =AO8/(AQ4-AO11) -> 0 | AQ8: =IF(AP8=0,0,(AP8*((LOG(AP8))/LOG(2)))) -> 0 | AS8: =N8 -> 112 | AT8: =COUNTIF(L125:L147,AS8) -> 0 | AU8: =AT8/(AV4-AT11) -> 0 | AV8: =IF(AU8=0,0,(AU8*((LOG(AU8))/LOG(2)))) -> 0
A9: 21 | B9: 636 | C9: 22 | D9: 647 | E9: 24 | F9: 655 | K9: 0 | L9: 222 | N9: 121 | O9: =COUNTIF($L$7:$L$500,N9) -> 2 | P9: =O9/$Q$4 -> 0.01418439716 | Q9: =IF(P9=0,0,(P9*((LOG(P9))/LOG(2)))) -> -0.08708583479 | T9: =N9 -> 121 | U9: =COUNTIF(L7:L30,T9) -> 1 | V9: =U9/(W4-U11) -> 0.04166666667 | W9: =IF(V9=0,0,(V9*((LOG(V9))/LOG(2)))) -> -0.1910401042 | Y9: =N9 -> 121 | Z9: =COUNTIF(L31:L53,Y9) -> 1 | AA9: =Z9/(AB4-Z11) -> 0.04347826087 | AB9: =IF(AA9=0,0,(AA9*((LOG(AA9))/LOG(2)))) -> -0.1966766068 | AD9: =N9 -> 121 | AE9: =COUNTIF(L54:L77,AD9) -> 0 | AF9: =AE9/(AG4-AE11) -> 0 | AG9: =IF(AF9=0,0,(AF9*((LOG(AF9))/LOG(2)))) -> 0 | AI9: =N9 -> 121 | AJ9: =COUNTIF(L78:L100,AI9) -> 0 | AK9: =AJ9/(AL4-AJ11) -> 0 | AL9: =IF(AK9=0,0,(AK9*((LOG(AK9))/LOG(2)))) -> 0 | AN9: =N9 -> 121 | AO9: =COUNTIF(L101:L124,AN9) -> 0 | AP9: =AO9/(AQ4-AO11) -> 0 | AQ9: =IF(AP9=0,0,(AP9*((LOG(AP9))/LOG(2)))) -> 0 | AS9: =N9 -> 121 | AT9: =COUNTIF(L125:L147,AS9) -> 0 | AU9: =AT9/(AV4-AT11) -> 0 | AV9: =IF(AU9=0,0,(AU9*((LOG(AU9))/LOG(2)))) -> 0
A10: 21 | B10: 764 | C10: 22 | D10: 778 | E10: 24 | F10: 786 | K10: 0 | L10: 222 | N10: 122 | O10: =COUNTIF($L$7:$L$500,N10) -> 53 | P10: =O10/$Q$4 -> 0.3758865248 | Q10: =IF(P10=0,0,(P10*((LOG(P10))/LOG(2)))) -> -0.5306130325 | T10: =N10 -> 122 | U10: =COUNTIF(L7:L30,T10) -> 8 | V10: =U10/(W4-U11) -> 0.3333333333 | W10: =IF(V10=0,0,(V10*((LOG(V10))/LOG(2)))) -> -0.5283208336 | Y10: =N10 -> 122 | Z10: =COUNTIF(L31:L53,Y10) -> 9 | AA10: =Z10/(AB4-Z11) -> 0.3913043478 | AB10: =IF(AA10=0,0,(AA10*((LOG(AA10))/LOG(2)))) -> -0.5296840257 | AD10: =N10 -> 122 | AE10: =COUNTIF(L54:L77,AD10) -> 12 | AF10: =AE10/(AG4-AE11) -> 0.5 | AG10: =IF(AF10=0,0,(AF10*((LOG(AF10))/LOG(2)))) -> -0.5 | AI10: =N10 -> 122 | AJ10: =COUNTIF(L78:L100,AI10) -> 7 | AK10: =AJ10/(AL4-AJ11) -> 0.3043478261 | AL10: =IF(AK10=0,0,(AK10*((LOG(AK10))/LOG(2)))) -> -0.5223238799 | AN10: =N10 -> 122 | AO10: =COUNTIF(L101:L124,AN10) -> 9 | AP10: =AO10/(AQ4-AO11) -> 0.375 | AQ10: =IF(AP10=0,0,(AP10*((LOG(AP10))/LOG(2)))) -> -0.5306390622 | AS10: =N10 -> 122 | AT10: =COUNTIF(L125:L147,AS10) -> 8 | AU10: =AT10/(AV4-AT11) -> 0.347826087 | AV10: =IF(AU10=0,0,(AU10*((LOG(AU10))/LOG(2)))) -> -0.5299345934
A11: 12 | B11: 881 | C11: 24 | D11: 889 | E11: 24 | F11: 903 | K11: 0 | L11: 122 | N11: 211 | O11: =COUNTIF($L$7:$L$500,N11) -> 0 | P11: =O11/$Q$4 -> 0 | Q11: =IF(P11=0,0,(P11*((LOG(P11))/LOG(2)))) -> 0 | T11: =N11 -> 211 | U11: =COUNTIF(L7:L30,T11) -> 0 | Y11: =N11 -> 211 | Z11: =COUNTIF(L31:L53,Y11) -> 0 | AD11: =N11 -> 211 | AE11: =COUNTIF(L54:L77,AD11) -> 0 | AI11: =N11 -> 211 | AJ11: =COUNTIF(L78:L100,AI11) -> 0 | AN11: =N11 -> 211 | AO11: =COUNTIF(L101:L124,AN11) -> 0 | AS11: =N11 -> 211 | AT11: =COUNTIF(L125:L147,AS11) -> 0
A12: 21 | B12: 1007 | C12: 22 | D12: 1019 | E12: 24 | F12: 1026 | K12: 0 | L12: 222 | N12: 212 | O12: =COUNTIF($L$7:$L$500,N12) -> 0 | P12: =O12/$Q$4 -> 0 | Q12: =IF(P12=0,0,(P12*((LOG(P12))/LOG(2)))) -> 0 | T12: =N12 -> 212 | U12: =COUNTIF(L7:L30,T12) -> 0 | V12: =U12/(W4-U11) -> 0 | W12: =IF(V12=0,0,(V12*((LOG(V12))/LOG(2)))) -> 0 | Y12: =N12 -> 212 | Z12: =COUNTIF(L31:L53,Y12) -> 0 | AA12: =Z12/(AB4-Z11) -> 0 | AB12: =IF(AA12=0,0,(AA12*((LOG(AA12))/LOG(2)))) -> 0 | AD12: =N12 -> 212 | AE12: =COUNTIF(L54:L77,AD12) -> 0 | AF12: =AE12/(AG4-AE11) -> 0 | AG12: =IF(AF12=0,0,(AF12*((LOG(AF12))/LOG(2)))) -> 0 | AI12: =N12 -> 212 | AJ12: =COUNTIF(L78:L100,AI12) -> 0 | AK12: =AJ12/(AL4-AJ11) -> 0 | AL12: =IF(AK12=0,0,(AK12*((LOG(AK12))/LOG(2)))) -> 0 | AN12: =N12 -> 212 | AO12: =COUNTIF(L101:L124,AN12) -> 0 | AP12: =AO12/(AQ4-AO11) -> 0 | AQ12: =IF(AP12=0,0,(AP12*((LOG(AP12))/LOG(2)))) -> 0 | AS12: =N12 -> 212 | AT12: =COUNTIF(L125:L147,AS12) -> 0 | AU12: =AT12/(AV4-AT11) -> 0 | AV12: =IF(AU12=0,0,(AU12*((LOG(AU12))/LOG(2)))) -> 0
A13: 21 | B13: 1141 | C13: 22 | D13: 1146 | E13: 24 | F13: 1152 | K13: 0 | L13: 222 | N13: 221 | O13: =COUNTIF($L$7:$L$500,N13) -> 0 | P13: =O13/$Q$4 -> 0 | Q13: =IF(P13=0,0,(P13*((LOG(P13))/LOG(2)))) -> 0 | T13: =N13 -> 221 | U13: =COUNTIF(L7:L30,T13) -> 0 | V13: =U13/(W4-U11) -> 0 | W13: =IF(V13=0,0,(V13*((LOG(V13))/LOG(2)))) -> 0 | Y13: =N13 -> 221 | Z13: =COUNTIF(L31:L53,Y13) -> 0 | AA13: =Z13/(AB4-Z11) -> 0 | AB13: =IF(AA13=0,0,(AA13*((LOG(AA13))/LOG(2)))) -> 0 | AD13: =N13 -> 221 | AE13: =COUNTIF(L54:L77,AD13) -> 0 | AF13: =AE13/(AG4-AE11) -> 0 | AG13: =IF(AF13=0,0,(AF13*((LOG(AF13))/LOG(2)))) -> 0 | AI13: =N13 -> 221 | AJ13: =COUNTIF(L78:L100,AI13) -> 0 | AK13: =AJ13/(AL4-AJ11) -> 0 | AL13: =IF(AK13=0,0,(AK13*((LOG(AK13))/LOG(2)))) -> 0 | AN13: =N13 -> 221 | AO13: =COUNTIF(L101:L124,AN13) -> 0 | AP13: =AO13/(AQ4-AO11) -> 0 | AQ13: =IF(AP13=0,0,(AP13*((LOG(AP13))/LOG(2)))) -> 0 | AS13: =N13 -> 221 | AT13: =COUNTIF(L125:L147,AS13) -> 0 | AU13: =AT13/(AV4-AT11) -> 0 | AV13: =IF(AU13=0,0,(AU13*((LOG(AU13))/LOG(2)))) -> 0
A14: 21 | B14: 1257 | C14: 22 | D14: 1268 | E14: 24 | F14: 1275 | K14: 0 | L14: 222 | N14: 222 | O14: =COUNTIF($L$7:$L$500,N14) -> 82 | P14: =O14/$Q$4 -> 0.5815602837 | Q14: =IF(P14=0,0,(P14*((LOG(P14))/LOG(2)))) -> -0.4547797625 | T14: =N14 -> 222 | U14: =COUNTIF(L7:L30,T14) -> 14 | V14: =U14/(W4-U11) -> 0.5833333333 | W14: =IF(V14=0,0,(V14*((LOG(V14))/LOG(2)))) -> -0.4536044209 | Y14: =N14 -> 222 | Z14: =COUNTIF(L31:L53,Y14) -> 10 | AA14: =Z14/(AB4-Z11) -> 0.4347826087 | AB14: =IF(AA14=0,0,(AA14*((LOG(AA14))/LOG(2)))) -> -0.5224495049 | AD14: =N14 -> 222 | AE14: =COUNTIF(L54:L77,AD14) -> 12 | AF14: =AE14/(AG4-AE11) -> 0.5 | AG14: =IF(AF14=0,0,(AF14*((LOG(AF14))/LOG(2)))) -> -0.5 | AI14: =N14 -> 222 | AJ14: =COUNTIF(L78:L100,AI14) -> 16 | AK14: =AJ14/(AL4-AJ11) -> 0.6956521739 | AL14: =IF(AK14=0,0,(AK14*((LOG(AK14))/LOG(2)))) -> -0.3642170129 | AN14: =N14 -> 222 | AO14: =COUNTIF(L101:L124,AN14) -> 15 | AP14: =AO14/(AQ4-AO11) -> 0.625 | AQ14: =IF(AP14=0,0,(AP14*((LOG(AP14))/LOG(2)))) -> -0.4237949407 | AS14: =N14 -> 222 | AT14: =COUNTIF(L125:L147,AS14) -> 15 | AU14: =AT14/(AV4-AT11) -> 0.652173913 | AV14: =IF(AU14=0,0,(AU14*((LOG(AU14))/LOG(2)))) -> -0.4021769742
A15: 12 | B15: 1395 | C15: 24 | D15: 1410 | E15: 24 | F15: 1424 | K15: 0 | L15: 122 | P15: =SUM(P7:P14) -> 1 | Q15: =-SUM(Q7:Q14) -> 1.218281505 | V15: =SUM(V7:V14) -> 1 | W15: =-SUM(W7:W14) -> 1.364005463 | AA15: =SUM(AA7:AA14) -> 1 | AB15: =-SUM(AB7:AB14) -> 1.632105718 | AF15: =SUM(AF7:AF14) -> 1 | AG15: =-SUM(AG7:AG14) -> 1 | AK15: =SUM(AK7:AK14) -> 1 | AL15: =-SUM(AL7:AL14) -> 0.8865408928 | AP15: =SUM(AP7:AP14) -> 1 | AQ15: =-SUM(AQ7:AQ14) -> 0.9544340029 | AU15: =SUM(AU7:AU14) -> 1 | AV15: =-SUM(AV7:AV14) -> 0.9321115676
A16: 12 | B16: 1520 | C16: 24 | D16: 1532 | E16: 24 | F16: 1538 | K16: 0 | L16: 122 | P16: U= | Q16: =Q15/(LOG(Q4)/LOG(2)) -> 0.170638384 | V16: U1= | W16: =W15/(LOG(W4)/LOG(2)) -> 0.2974954457 | AA16: U2= | AB16: =AB15/(LOG(AB4)/LOG(2)) -> 0.3608010091 | AF16: U3= | AG16: =AG15/(LOG(AG4)/LOG(2)) -> 0.218104292 | AK16: U4= | AL16: =AL15/(LOG(AL4)/LOG(2)) -> 0.1959829226 | AP16: U5= | AQ16: =AQ15/(LOG(AQ4)/LOG(2)) -> 0.2081661525 | AU16: U6= | AV16: =AV15/(LOG(AV4)/LOG(2)) -> 0.2060569915
A17: 21 | B17: 1640 | C17: 22 | D17: 1643 | E17: 24 | F17: 1649 | K17: 0 | L17: 222
A18: 12 | B18: 1755 | C18: 24 | D18: 1760 | E18: 24 | F18: 1765 | K18: 0 | L18: 122
A19: 21 | B19: 1868 | C19: 22 | D19: 1881 | E19: 24 | F19: 1887 | K19: 0 | L19: 222 | N19: Total Target Seq
A20: 21 | B20: 1991 | C20: 22 | D20: 1997 | E20: 24 | F20: 2001 | K20: 0 | L20: 222 | N20: =COUNTIF(L7:L147,G3) -> 0 | P20: 24 | Q20: 23 | R20: 24 | S20: 23 | T20: 24 | U20: 23
A21: 12 | B21: 2158 | C21: 24 | D21: 2172 | E21: 24 | F21: 2177 | K21: 0 | L21: 122 | P21: % of reinforcement given in 6 equal intervals based on number of trials
A22: 12 | B22: 2298 | C22: 24 | D22: 2308 | E22: 24 | F22: 2315 | K22: 0 | L22: 122 | P22: %_1 | Q22: %_2 | R22: %_3 | S22: %_4 | T22: %_5 | U22: %_6
A23: 21 | B23: 2418 | C23: 22 | D23: 2426 | E23: 24 | F23: 2433 | K23: 0 | L23: 222 | O23: target sequence | P23: =$G$3 -> 211 | Q23: =$G$3 -> 211 | R23: =$G$3 -> 211 | S23: =$G$3 -> 211 | T23: =$G$3 -> 211 | U23: =$G$3 -> 211
A24: 21 | B24: 2537 | C24: 22 | D24: 2545 | E24: 24 | F24: 2552 | K24: 0 | L24: 222 | O24: total reinforcement | P24: =U11 -> 0 | Q24: =Z11 -> 0 | R24: =AE11 -> 0 | S24: =AJ11 -> 0 | T24: =AO11 -> 0 | U24: =AT11 -> 0
A25: 12 | B25: 2646 | C25: 24 | D25: 2655 | E25: 24 | F25: 2660 | K25: 0 | L25: 122 | O25: % target
A26: 21 | B26: 2767 | C26: 22 | D26: 2772 | E26: 24 | F26: 2779 | K26: 0 | L26: 222 | O26: CCRF
A27: 12 | B27: 2872 | C27: 24 | D27: 2882 | E27: 13 | F27: 2891 | K27: 0 | L27: 121 | O27: % CCRf
A28: 12 | B28: 3059 | C28: 13 | D28: 3080 | E28: 24 | F28: 3094 | K28: 0 | L28: 112 | O28: average response rate | P28: =F30/P20 -> 139.1666667 | Q28: =(F53-F30)/Q20 -> 137.3043478 | R28: =(F77-F53)/R20 -> 170.125 | S28: =(F100-F77)/S20 -> 212.173913 | T28: =(F124-F100)/T20 -> 184.2916667 | U28: =(F147-F124)/U20 -> 178.4782609
A29: 12 | B29: 3197 | C29: 24 | D29: 3212 | E29: 24 | F29: 3219 | K29: 0 | L29: 122
A30: 21 | B30: 3323 | C30: 22 | D30: 3327 | E30: 24 | F30: 3340 | K30: 0 | L30: 222
A31: 12 | B31: 3435 | C31: 24 | D31: 3440 | E31: 13 | F31: 3445 | K31: 0 | L31: 121
A32: 12 | B32: 3542 | C32: 13 | D32: 3548 | E32: 24 | F32: 3559 | K32: 0 | L32: 112
A33: 21 | B33: 3668 | C33: 22 | D33: 3673 | E33: 24 | F33: 3680 | K33: 0 | L33: 222
A34: 21 | B34: 3785 | C34: 22 | D34: 3789 | E34: 24 | F34: 3794 | K34: 0 | L34: 222
A35: 21 | B35: 3896 | C35: 22 | D35: 3900 | E35: 24 | F35: 3907 | K35: 0 | L35: 222
A36: 12 | B36: 4087 | C36: 24 | D36: 4097 | E36: 24 | F36: 4102 | K36: 0 | L36: 122
A37: 12 | B37: 4196 | C37: 13 | D37: 4199 | E37: 24 | F37: 4203 | K37: 0 | L37: 112
A38: 12 | B38: 4299 | C38: 24 | D38: 4306 | E38: 24 | F38: 4313 | K38: 0 | L38: 122
A39: 12 | B39: 4408 | C39: 13 | D39: 4416 | E39: 24 | F39: 4426 | K39: 0 | L39: 112
A40: 21 | B40: 4527 | C40: 22 | D40: 4533 | E40: 24 | F40: 4538 | K40: 0 | L40: 222
A41: 12 | B41: 4638 | C41: 24 | D41: 4643 | E41: 24 | F41: 4651 | K41: 0 | L41: 122
A42: 21 | B42: 5031 | C42: 22 | D42: 5039 | E42: 24 | F42: 5051 | K42: 0 | L42: 222
A43: 21 | B43: 5157 | C43: 22 | D43: 5162 | E43: 24 | F43: 5168 | K43: 0 | L43: 222
A44: 21 | B44: 5278 | C44: 22 | D44: 5284 | E44: 24 | F44: 5290 | K44: 0 | L44: 222
A45: 21 | B45: 5391 | C45: 22 | D45: 5399 | E45: 24 | F45: 5403 | K45: 0 | L45: 222
A46: 12 | B46: 5499 | C46: 24 | D46: 5505 | E46: 24 | F46: 5511 | K46: 0 | L46: 122
A47: 12 | B47: 5607 | C47: 24 | D47: 5620 | E47: 24 | F47: 5628 | K47: 0 | L47: 122
A48: 12 | B48: 5727 | C48: 24 | D48: 5734 | E48: 24 | F48: 5737 | K48: 0 | L48: 122
A49: 21 | B49: 6021 | C49: 22 | D49: 6035 | E49: 24 | F49: 6044 | K49: 0 | L49: 222
A50: 12 | B50: 6150 | C50: 24 | D50: 6160 | E50: 24 | F50: 6171 | K50: 0 | L50: 122
A51: 12 | B51: 6265 | C51: 24 | D51: 6275 | E51: 24 | F51: 6278 | K51: 0 | L51: 122
A52: 12 | B52: 6371 | C52: 24 | D52: 6379 | E52: 24 | F52: 6385 | K52: 0 | L52: 122
A53: 21 | B53: 6488 | C53: 22 | D53: 6492 | E53: 24 | F53: 6498 | K53: 0 | L53: 222
A54: 21 | B54: 6603 | C54: 22 | D54: 6610 | E54: 24 | F54: 6622 | K54: 0 | L54: 222
A55: 12 | B55: 6715 | C55: 24 | D55: 6729 | E55: 24 | F55: 6736 | K55: 0 | L55: 122
A56: 12 | B56: 6828 | C56: 24 | D56: 6840 | E56: 24 | F56: 6849 | K56: 0 | L56: 122
A57: 12 | B57: 6947 | C57: 24 | D57: 6951 | E57: 24 | F57: 6958 | K57: 0 | L57: 122
A58: 21 | B58: 7066 | C58: 22 | D58: 7076 | E58: 24 | F58: 7082 | K58: 0 | L58: 222
A59: 12 | B59: 7178 | C59: 24 | D59: 7187 | E59: 24 | F59: 7192 | K59: 0 | L59: 122
A60: 21 | B60: 7573 | C60: 22 | D60: 7592 | E60: 24 | F60: 7620 | K60: 0 | L60: 222
A61: 12 | B61: 7714 | C61: 24 | D61: 7723 | E61: 24 | F61: 7726 | K61: 0 | L61: 122
A62: 21 | B62: 7824 | C62: 22 | D62: 7829 | E62: 24 | F62: 7835 | K62: 0 | L62: 222
A63: 12 | B63: 7931 | C63: 24 | D63: 7941 | E63: 24 | F63: 7951 | K63: 0 | L63: 122
A64: 12 | B64: 8050 | C64: 24 | D64: 8055 | E64: 24 | F64: 8064 | K64: 0 | L64: 122
A65: 21 | B65: 8168 | C65: 22 | D65: 8184 | E65: 24 | F65: 8190 | K65: 0 | L65: 222
A66: 12 | B66: 8286 | C66: 24 | D66: 8294 | E66: 24 | F66: 8301 | K66: 0 | L66: 122
A67: 12 | B67: 8393 | C67: 24 | D67: 8406 | E67: 24 | F67: 8425 | K67: 0 | L67: 122
A68: 21 | B68: 8524 | C68: 22 | D68: 8528 | E68: 24 | F68: 8535 | K68: 0 | L68: 222
A69: 12 | B69: 8630 | C69: 24 | D69: 8635 | E69: 24 | F69: 8646 | K69: 0 | L69: 122
A70: 21 | B70: 9179 | C70: 22 | D70: 9183 | E70: 24 | F70: 9194 | K70: 0 | L70: 222
A71: 21 | B71: 9623 | C71: 22 | D71: 9627 | E71: 24 | F71: 9633 | K71: 0 | L71: 222
A72: 21 | B72: 9740 | C72: 22 | D72: 9743 | E72: 24 | F72: 9748 | K72: 0 | L72: 222
A73: 21 | B73: 9853 | C73: 22 | D73: 9864 | E73: 24 | F73: 9867 | K73: 0 | L73: 222
A74: 21 | B74: 9967 | C74: 22 | D74: 9973 | E74: 24 | F74: 9977 | K74: 0 | L74: 222
A75: 12 | B75: 10071 | C75: 24 | D75: 10080 | E75: 24 | F75: 10090 | K75: 0 | L75: 122
A76: 12 | B76: 10186 | C76: 24 | D76: 10191 | E76: 24 | F76: 10195 | K76: 0 | L76: 122
A77: 21 | B77: 10570 | C77: 22 | D77: 10575 | E77: 24 | F77: 10581 | K77: 0 | L77: 222
A78: 21 | B78: 11227 | C78: 22 | D78: 11249 | E78: 24 | F78: 11256 | K78: 0 | L78: 222
A79: 12 | B79: 11388 | C79: 24 | D79: 11401 | E79: 24 | F79: 11406 | K79: 0 | L79: 122
A80: 21 | B80: 11511 | C80: 22 | D80: 11525 | E80: 24 | F80: 11532 | K80: 0 | L80: 222
A81: 21 | B81: 11639 | C81: 22 | D81: 11644 | E81: 24 | F81: 11649 | K81: 0 | L81: 222
A82: 21 | B82: 11770 | C82: 22 | D82: 11773 | E82: 24 | F82: 11778 | K82: 0 | L82: 222
A83: 21 | B83: 11885 | C83: 22 | D83: 11896 | E83: 24 | F83: 11903 | K83: 0 | L83: 222
A84: 12 | B84: 12202 | C84: 24 | D84: 12213 | E84: 24 | F84: 12219 | K84: 0 | L84: 122
A85: 21 | B85: 12328 | C85: 22 | D85: 12340 | E85: 24 | F85: 12346 | K85: 0 | L85: 222
A86: 21 | B86: 12448 | C86: 22 | D86: 12462 | E86: 24 | F86: 12468 | K86: 0 | L86: 222
A87: 21 | B87: 12817 | C87: 22 | D87: 12821 | E87: 24 | F87: 12831 | K87: 0 | L87: 222
A88: 12 | B88: 12926 | C88: 24 | D88: 12933 | E88: 24 | F88: 12943 | K88: 0 | L88: 122
A89: 21 | B89: 13274 | C89: 22 | D89: 13277 | E89: 24 | F89: 13285 | K89: 0 | L89: 222
A90: 21 | B90: 13386 | C90: 22 | D90: 13400 | E90: 24 | F90: 13406 | K90: 0 | L90: 222
A91: 12 | B91: 13500 | C91: 24 | D91: 13506 | E91: 24 | F91: 13515 | K91: 0 | L91: 122
A92: 21 | B92: 13817 | C92: 22 | D92: 13822 | E92: 24 | F92: 13827 | K92: 0 | L92: 222
A93: 21 | B93: 13928 | C93: 22 | D93: 13936 | E93: 24 | F93: 13941 | K93: 0 | L93: 222
A94: 21 | B94: 14047 | C94: 22 | D94: 14052 | E94: 24 | F94: 14057 | K94: 0 | L94: 222
A95: 12 | B95: 14157 | C95: 24 | D95: 14163 | E95: 24 | F95: 14169 | K95: 0 | L95: 122
A96: 21 | B96: 14926 | C96: 22 | D96: 14930 | E96: 24 | F96: 14937 | K96: 0 | L96: 222
A97: 12 | B97: 15083 | C97: 24 | D97: 15094 | E97: 24 | F97: 15096 | K97: 0 | L97: 122
A98: 12 | B98: 15196 | C98: 24 | D98: 15206 | E98: 24 | F98: 15212 | K98: 0 | L98: 122
A99: 21 | B99: 15316 | C99: 22 | D99: 15323 | E99: 24 | F99: 15329 | K99: 0 | L99: 222
A100: 21 | B100: 15433 | C100: 22 | D100: 15450 | E100: 24 | F100: 15461 | K100: 0 | L100: 222
A101: 21 | B101: 15562 | C101: 22 | D101: 15571 | E101: 24 | F101: 15575 | K101: 0 | L101: 222
A102: 12 | B102: 15667 | C102: 24 | D102: 15680 | E102: 24 | F102: 15690 | K102: 0 | L102: 122
A103: 12 | B103: 16165 | C103: 24 | D103: 16178 | E103: 24 | F103: 16186 | K103: 0 | L103: 122
A104: 12 | B104: 16282 | C104: 24 | D104: 16293 | E104: 24 | F104: 16304 | K104: 0 | L104: 122
A105: 21 | B105: 16409 | C105: 22 | D105: 16421 | E105: 24 | F105: 16430 | K105: 0 | L105: 222
A106: 21 | B106: 16854 | C106: 22 | D106: 16860 | E106: 24 | F106: 16875 | K106: 0 | L106: 222
A107: 21 | B107: 17124 | C107: 22 | D107: 17129 | E107: 24 | F107: 17135 | K107: 0 | L107: 222
A108: 12 | B108: 17373 | C108: 24 | D108: 17388 | E108: 24 | F108: 17399 | K108: 0 | L108: 122
A109: 21 | B109: 17682 | C109: 22 | D109: 17695 | E109: 24 | F109: 17707 | K109: 0 | L109: 222
A110: 21 | B110: 17813 | C110: 22 | D110: 17831 | E110: 24 | F110: 17838 | K110: 0 | L110: 222
A111: 12 | B111: 17932 | C111: 24 | D111: 17939 | E111: 24 | F111: 17946 | K111: 0 | L111: 122
A112: 21 | B112: 18049 | C112: 22 | D112: 18056 | E112: 24 | F112: 18058 | K112: 0 | L112: 222
A113: 21 | B113: 18159 | C113: 22 | D113: 18163 | E113: 24 | F113: 18169 | K113: 0 | L113: 222
A114: 12 | B114: 18502 | C114: 24 | D114: 18526 | E114: 24 | F114: 18533 | K114: 0 | L114: 122
A115: 21 | B115: 18637 | C115: 22 | D115: 18645 | E115: 24 | F115: 18652 | K115: 0 | L115: 222
A116: 12 | B116: 18744 | C116: 24 | D116: 18757 | E116: 24 | F116: 18771 | K116: 0 | L116: 122
A117: 12 | B117: 18865 | C117: 24 | D117: 18872 | E117: 24 | F117: 18877 | K117: 0 | L117: 122
A118: 21 | B118: 18978 | C118: 22 | D118: 18984 | E118: 24 | F118: 18990 | K118: 0 | L118: 222
A119: 21 | B119: 19102 | C119: 22 | D119: 19109 | E119: 24 | F119: 19120 | K119: 0 | L119: 222
A120: 12 | B120: 19369 | C120: 24 | D120: 19385 | E120: 24 | F120: 19394 | K120: 0 | L120: 122
A121: 21 | B121: 19497 | C121: 22 | D121: 19512 | E121: 24 | F121: 19518 | K121: 0 | L121: 222
A122: 21 | B122: 19624 | C122: 22 | D122: 19644 | E122: 24 | F122: 19650 | K122: 0 | L122: 222
A123: 21 | B123: 19752 | C123: 22 | D123: 19764 | E123: 24 | F123: 19770 | K123: 0 | L123: 222
A124: 21 | B124: 19870 | C124: 22 | D124: 19877 | E124: 24 | F124: 19884 | K124: 0 | L124: 222
A125: 12 | B125: 19979 | C125: 24 | D125: 19988 | E125: 24 | F125: 19995 | K125: 0 | L125: 122
A126: 21 | B126: 20092 | C126: 22 | D126: 20097 | E126: 24 | F126: 20106 | K126: 0 | L126: 222
A127: 21 | B127: 20206 | C127: 22 | D127: 20212 | E127: 24 | F127: 20215 | K127: 0 | L127: 222
A128: 12 | B128: 20308 | C128: 24 | D128: 20315 | E128: 24 | F128: 20324 | K128: 0 | L128: 122
A129: 21 | B129: 20427 | C129: 22 | D129: 20436 | E129: 24 | F129: 20444 | K129: 0 | L129: 222
A130: 21 | B130: 20549 | C130: 22 | D130: 20554 | E130: 24 | F130: 20564 | K130: 0 | L130: 222
A131: 21 | B131: 21375 | C131: 22 | D131: 21386 | E131: 24 | F131: 21392 | K131: 0 | L131: 222
A132: 12 | B132: 21541 | C132: 24 | D132: 21570 | E132: 24 | F132: 21576 | K132: 0 | L132: 122
A133: 21 | B133: 21744 | C133: 22 | D133: 21757 | E133: 24 | F133: 21763 | K133: 0 | L133: 222
A134: 12 | B134: 21855 | C134: 24 | D134: 21868 | E134: 24 | F134: 21875 | K134: 0 | L134: 122
A135: 12 | B135: 21969 | C135: 24 | D135: 21977 | E135: 24 | F135: 21986 | K135: 0 | L135: 122
A136: 21 | B136: 22088 | C136: 22 | D136: 22092 | E136: 24 | F136: 22098 | K136: 0 | L136: 222
A137: 12 | B137: 22193 | C137: 24 | D137: 22202 | E137: 24 | F137: 22212 | K137: 0 | L137: 122
A138: 21 | B138: 22317 | C138: 22 | D138: 22327 | E138: 24 | F138: 22334 | K138: 0 | L138: 222
A139: 12 | B139: 22427 | C139: 24 | D139: 22438 | E139: 24 | F139: 22446 | K139: 0 | L139: 122
A140: 21 | B140: 22551 | C140: 22 | D140: 22555 | E140: 24 | F140: 22561 | K140: 0 | L140: 222
A141: 21 | B141: 23082 | C141: 22 | D141: 23084 | E141: 24 | F141: 23108 | K141: 0 | L141: 222
A142: 21 | B142: 23211 | C142: 22 | D142: 23215 | E142: 24 | F142: 23222 | K142: 0 | L142: 222
A143: 21 | B143: 23326 | C143: 22 | D143: 23333 | E143: 24 | F143: 23338 | K143: 0 | L143: 222
A144: 21 | B144: 23440 | C144: 22 | D144: 23452 | E144: 24 | F144: 23459 | K144: 0 | L144: 222
A145: 12 | B145: 23552 | C145: 24 | D145: 23561 | E145: 24 | F145: 23576 | K145: 0 | L145: 122
A146: 21 | B146: 23682 | C146: 22 | D146: 23694 | E146: 24 | F146: 23705 | K146: 0 | L146: 222
A147: 21 | B147: 23972 | C147: 22 | D147: 23981 | E147: 24 | F147: 23989 | L147: 222

Sheet !M128B20.Gus
A1: Report for:!M128B20.Gus
A2: Date: | B2: <date>
A3: Hen: | B3: <hen> | F3: Correct Sequence | G3: =Start!J2 -> 211 | P3: Total Sequences in Data | Q3: =4994-COUNTBLANK(L7:L5000) -> 182 | V3: Total Sequences in Block Data | W3: =COUNTA(L7:L36) -> 30 | AA3: Total Sequences in Block Data | AB3: =COUNTA(L37:L67) -> 31 | AF3: Total Sequences in Block Data | AG3: =COUNTA(L68:L97) -> 30 | AK3: Total Sequences in Block Data | AL3: =COUNTA(L98:L127) -> 30 | AP3: Total Sequences in Block Data | AQ3: =COUNTA(L128:L158) -> 31 | AU3: Total Sequences in Block Data | AV3: =COUNTA(L159:L188) -> 30
P4: Total Sequences in Summary | Q4: =SUM(O7:O14) -> 181 | V4: Total Sequences in Block Summary | W4: =SUM(U7:U14) -> 30 | AA4: Total Sequences in Block Summary | AB4: =SUM(Z7:Z14) -> 31 | AF4: Total Sequences in Block Summary | AG4: =SUM(AE7:AE14) -> 30 | AK4: Total Sequences in Block Summary | AL4: =SUM(AJ7:AJ14) -> 30 | AP4: Total Sequences in Block Summary | AQ4: =SUM(AO7:AO14) -> 31 | AU4: Total Sequences in Block Summary | AV4: =SUM(AT7:AT14) -> 29
T5: Block 1 | Y5: Block 2 | AD5: Block 3 | AI5: Block 4 | AN5: Block 5 | AS5: Block 6
A6: Sequence Component 1 | B6: Time 1 | C6: Sequence Component 2 | D6: Time 2 | E6: Sequence Component 3 | F6: Time 3 | G6: Sequence Component 4 | H6: Time 4 | I6: Sequence Component 5 | J6: Time 5 | K6: Correct? 0=No 1=Yes | L6: Sequence | N6: Frequency | P6: Relative Frequency | Q6: Variability | T6: Frequency | V6: Relative Frequency | W6: Variability | Y6: Frequency | AA6: Relative Frequency | AB6: Variability | AD6: Frequency | AF6: Relative Frequency | AG6: Variability | AI6: Frequency | AK6: Relative Frequency | AL6: Variability | AN6: Frequency | AP6: Relative Frequency | AQ6: Variability | AS6: Frequency | AU6: Relative Frequency | AV6: Variability
A7: 21 | B7: 22 | C7: 22 | D7: 26 | E7: 24 | F7: 31 | K7: 0 | L7: 222 | N7: 111 | O7: =COUNTIF($L$7:$L$500,N7) -> 1 | P7: =O7/$Q$4 -> 0.005524861878 | Q7: =IF(P7=0,0,(P7*((LOG(P7))/LOG(2)))) -> -0.04143561264 | T7: =N7 -> 111 | U7: =COUNTIF(L7:L36,T7) -> 0 | V7: =U7/(W4-U11) -> 0 | W7: =IF(V7=0,0,(V7*((LOG(V7))/LOG(2)))) -> 0 | Y7: =N7 -> 111 | Z7: =COUNTIF(L37:L67,Y7) -> 0 | AA7: =Z7/(AB4-Z11) -> 0 | AB7: =IF(AA7=0,0,(AA7*((LOG(AA7))/LOG(2)))) -> 0 | AD7: =N7 -> 111 | AE7: =COUNTIF(L68:L97,AD7) -> 0 | AF7: =AE7/(AG4-AE11) -> 0 | AG7: =IF(AF7=0,0,(AF7*((LOG(AF7))/LOG(2)))) -> 0 | AI7: =N7 -> 111 | AJ7: =COUNTIF(L98:L127,AI7) -> 0 | AK7: =AJ7/(AL4-AJ11) -> 0 | AL7: =IF(AK7=0,0,(AK7*((LOG(AK7))/LOG(2)))) -> 0 | AN7: =N7 -> 111 | AO7: =COUNTIF(L128:L158,AN7) -> 0 | AP7: =AO7/(AQ4-AO11) -> 0 | AQ7: =IF(AP7=0,0,(AP7*((LOG(AP7))/LOG(2)))) -> 0 | AS7: =N7 -> 111 | AT7: =COUNTIF(L159:L188,AS7) -> 1 | AU7: =AT7/(AV4-AT11) -> 0.03448275862 | AV7: =IF(AU7=0,0,(AU7*((LOG(AU7))/LOG(2)))) -> -0.167516586
A8: 12 | B8: 148 | C8: 24 | D8: 154 | E8: 24 | F8: 160 | K8: 0 | L8: 122 | N8: 112 | O8: =COUNTIF($L$7:$L$500,N8) -> 11 | P8: =O8/$Q$4 -> 0.06077348066 | Q8: =IF(P8=0,0,(P8*((LOG(P8))/LOG(2)))) -> -0.2455500384 | T8: =N8 -> 112 | U8: =COUNTIF(L7:L36,T8) -> 3 | V8: =U8/(W4-U11) -> 0.1 | W8: =IF(V8=0,0,(V8*((LOG(V8))/LOG(2)))) -> -0.3321928095 | Y8: =N8 -> 112 | Z8: =COUNTIF(L37:L67,Y8) -> 2 | AA8: =Z8/(AB4-Z11) -> 0.06451612903 | AB8: =IF(AA8=0,0,(AA8*((LOG(AA8))/LOG(2)))) -> -0.2551094394 | AD8: =N8 -> 112 | AE8: =COUNTIF(L68:L97,AD8) -> 2 | AF8: =AE8/(AG4-AE11) -> 0.06666666667 | AG8: =IF(AF8=0,0,(AF8*((LOG(AF8))/LOG(2)))) -> -0.260459373 | AI8: =N8 -> 112 | AJ8: =COUNTIF(L98:L127,AI8) -> 1 | AK8: =AJ8/(AL4-AJ11) -> 0.03333333333 | AL8: =IF(AK8=0,0,(AK8*((LOG(AK8))/LOG(2)))) -> -0.1635630199 | AN8: =N8 -> 112 | AO8: =COUNTIF(L128:L158,AN8) -> 0 | AP8: =AO8/(AQ4-AO11) -> 0 | AQ8: =IF(AP8=0,0,(AP8*((LOG(AP8))/LOG(2)))) -> 0 | AS8: =N8 -> 112 | AT8: =COUNTIF(L159:L188,AS8) -> 3 | AU8: =AT8/(AV4-AT11) -> 0.1034482759 | AV8: =IF(AU8=0,0,(AU8*((LOG(AU8))/LOG(2)))) -> -0.3385881201
A9: 21 | B9: 262 | C9: 22 | D9: 267 | E9: 24 | F9: 273 | K9: 0 | L9: 222 | N9: 121 | O9: =COUNTIF($L$7:$L$500,N9) -> 0 | P9: =O9/$Q$4 -> 0 | Q9: =IF(P9=0,0,(P9*((LOG(P9))/LOG(2)))) -> 0 | T9: =N9 -> 121 | U9: =COUNTIF(L7:L36,T9) -> 0 | V9: =U9/(W4-U11) -> 0 | W9: =IF(V9=0,0,(V9*((LOG(V9))/LOG(2)))) -> 0 | Y9: =N9 -> 121 | Z9: =COUNTIF(L37:L67,Y9) -> 0 | AA9: =Z9/(AB4-Z11) -> 0 | AB9: =IF(AA9=0,0,(AA9*((LOG(AA9))/LOG(2)))) -> 0 | AD9: =N9 -> 121 | AE9: =COUNTIF(L68:L97,AD9) -> 0 | AF9: =AE9/(AG4-AE11) -> 0 | AG9: =IF(AF9=0,0,(AF9*((LOG(AF9))/LOG(2)))) -> 0 | AI9: =N9 -> 121 | AJ9: =COUNTIF(L98:L127,AI9) -> 0 | AK9: =AJ9/(AL4-AJ11) -> 0 | AL9: =IF(AK9=0,0,(AK9*((LOG(AK9))/LOG(2)))) -> 0 | AN9: =N9 -> 121 | AO9: =COUNTIF(L128:L158,AN9) -> 0 | AP9: =AO9/(AQ4-AO11) -> 0 | AQ9: =IF(AP9=0,0,(AP9*((LOG(AP9))/LOG(2)))) -> 0 | AS9: =N9 -> 121 | AT9: =COUNTIF(L159:L188,AS9) -> 0 | AU9: =AT9/(AV4-AT11) -> 0 | AV9: =IF(AU9=0,0,(AU9*((LOG(AU9))/LOG(2)))) -> 0
A10: 21 | B10: 375 | C10: 22 | D10: 381 | E10: 24 | F10: 388 | K10: 0 | L10: 222 | N10: 122 | O10: =COUNTIF($L$7:$L$500,N10) -> 67 | P10: =O10/$Q$4 -> 0.3701657459 | Q10: =IF(P10=0,0,(P10*((LOG(P10))/LOG(2)))) -> -0.530727617 | T10: =N10 -> 122 | U10: =COUNTIF(L7:L36,T10) -> 11 | V10: =U10/(W4-U11) -> 0.3666666667 | W10: =IF(V10=0,0,(V10*((LOG(V10))/LOG(2)))) -> -0.5307349582 | Y10: =N10 -> 122 | Z10: =COUNTIF(L37:L67,Y10) -> 12 | AA10: =Z10/(AB4-Z11) -> 0.3870967742 | AB10: =IF(AA10=0,0,(AA10*((LOG(AA10))/LOG(2)))) -> -0.5300259908 | AD10: =N10 -> 122 | AE10: =COUNTIF(L68:L97,AD10) -> 6 | AF10: =AE10/(AG4-AE11) -> 0.2 | AG10: =IF(AF10=0,0,(AF10*((LOG(AF10))/LOG(2)))) -> -0.464385619 | AI10: =N10 -> 122 | AJ10: =COUNTIF(L98:L127,AI10) -> 15 | AK10: =AJ10/(AL4-AJ11) -> 0.5 | AL10: =IF(AK10=0,0,(AK10*((LOG(AK10))/LOG(2)))) -> -0.5 | AN10: =N10 -> 122 | AO10: =COUNTIF(L128:L158,AN10) -> 13 | AP10: =AO10/(AQ4-AO11) -> 0.4193548387 | AQ10: =IF(AP10=0,0,(AP10*((LOG(AP10))/LOG(2)))) -> -0.5257688935 | AS10: =N10 -> 122 | AT10: =COUNTIF(L159:L188,AS10) -> 10 | AU10: =AT10/(AV4-AT11) -> 0.3448275862 | AV10: =IF(AU10=0,0,(AU10*((LOG(AU10))/LOG(2)))) -> -0.5296734139
A11: 12 | B11: 519 | C11: 13 | D11: 524 | E11: 24 | F11: 537 | K11: 0 | L11: 112 | N11: 211 | O11: =COUNTIF($L$7:$L$500,N11) -> 0 | P11: =O11/$Q$4 -> 0 | Q11: =IF(P11=0,0,(P11*((LOG(P11))/LOG(2)))) -> 0 | T11: =N11 -> 211 | U11: =COUNTIF(L7:L36,T11) -> 0 | Y11: =N11 -> 211 | Z11: =COUNTIF(L37:L67,Y11) -> 0 | AD11: =N11 -> 211 | AE11: =COUNTIF(L68:L97,AD11) -> 0 | AI11: =N11 -> 211 | AJ11: =COUNTIF(L98:L127,AI11) -> 0 | AN11: =N11 -> 211 | AO11: =COUNTIF(L128:L158,AN11) -> 0 | AS11: =N11 -> 211 | AT11: =COUNTIF(L159:L188,AS11) -> 0
A12: 12 | B12: 638 | C12: 24 | D12: 644 | E12: 24 | F12: 650 | K12: 0 | L12: 122 | N12: 212 | O12: =COUNTIF($L$7:$L$500,N12) -> 0 | P12: =O12/$Q$4 -> 0 | Q12: =IF(P12=0,0,(P12*((LOG(P12))/LOG(2)))) -> 0 | T12: =N12 -> 212 | U12: =COUNTIF(L7:L36,T12) -> 0 | V12: =U12/(W4-U11) -> 0 | W12: =IF(V12=0,0,(V12*((LOG(V12))/LOG(2)))) -> 0 | Y12: =N12 -> 212 | Z12: =COUNTIF(L37:L67,Y12) -> 0 | AA12: =Z12/(AB4-Z11) -> 0 | AB12: =IF(AA12=0,0,(AA12*((LOG(AA12))/LOG(2)))) -> 0 | AD12: =N12 -> 212 | AE12: =COUNTIF(L68:L97,AD12) -> 0 | AF12: =AE12/(AG4-AE11) -> 0 | AG12: =IF(AF12=0,0,(AF12*((LOG(AF12))/LOG(2)))) -> 0 | AI12: =N12 -> 212 | AJ12: =COUNTIF(L98:L127,AI12) -> 0 | AK12: =AJ12/(AL4-AJ11) -> 0 | AL12: =IF(AK12=0,0,(AK12*((LOG(AK12))/LOG(2)))) -> 0 | AN12: =N12 -> 212 | AO12: =COUNTIF(L128:L158,AN12) -> 0 | AP12: =AO12/(AQ4-AO11) -> 0 | AQ12: =IF(AP12=0,0,(AP12*((LOG(AP12))/LOG(2)))) -> 0 | AS12: =N12 -> 212 | AT12: =COUNTIF(L159:L188,AS12) -> 0 | AU12: =AT12/(AV4-AT11) -> 0 | AV12: =IF(AU12=0,0,(AU12*((LOG(AU12))/LOG(2)))) -> 0
A13: 21 | B13: 752 | C13: 22 | D13: 758 | E13: 24 | F13: 770 | K13: 0 | L13: 222 | N13: 221 | O13: =COUNTIF($L$7:$L$500,N13) -> 0 | P13: =O13/$Q$4 -> 0 | Q13: =IF(P13=0,0,(P13*((LOG(P13))/LOG(2)))) -> 0 | T13: =N13 -> 221 | U13: =COUNTIF(L7:L36,T13) -> 0 | V13: =U13/(W4-U11) -> 0 | W13: =IF(V13=0,0,(V13*((LOG(V13))/LOG(2)))) -> 0 | Y13: =N13 -> 221 | Z13: =COUNTIF(L37:L67,Y13) -> 0 | AA13: =Z13/(AB4-Z11) -> 0 | AB13: =IF(AA13=0,0,(AA13*((LOG(AA13))/LOG(2)))) -> 0 | AD13: =N13 -> 221 | AE13: =COUNTIF(L68:L97,AD13) -> 0 | AF13: =AE13/(AG4-AE11) -> 0 | AG13: =IF(AF13=0,0,(AF13*((LOG(AF13))/LOG(2)))) -> 0 | AI13: =N13 -> 221 | AJ13: =COUNTIF(L98:L127,AI13) -> 0 | AK13: =AJ13/(AL4-AJ11) -> 0 | AL13: =IF(AK13=0,0,(AK13*((LOG(AK13))/LOG(2)))) -> 0 | AN13: =N13 -> 221 | AO13: =COUNTIF(L128:L158,AN13) -> 0 | AP13: =AO13/(AQ4-AO11) -> 0 | AQ13: =IF(AP13=0,0,(AP13*((LOG(AP13))/LOG(2)))) -> 0 | AS13: =N13 -> 221 | AT13: =COUNTIF(L159:L188,AS13) -> 0 | AU13: =AT13/(AV4-AT11) -> 0 | AV13: =IF(AU13=0,0,(AU13*((LOG(AU13))/LOG(2)))) -> 0
A14: 21 | B14: 975 | C14: 22 | D14: 984 | E14: 24 | F14: 1013 | K14: 0 | L14: 222 | N14: 222 | O14: =COUNTIF($L$7:$L$500,N14) -> 102 | P14: =O14/$Q$4 -> 0.5635359116 | Q14: =IF(P14=0,0,(P14*((LOG(P14))/LOG(2)))) -> -0.4662811912 | T14: =N14 -> 222 | U14: =COUNTIF(L7:L36,T14) -> 16 | V14: =U14/(W4-U11) -> 0.5333333333 | W14: =IF(V14=0,0,(V14*((LOG(V14))/LOG(2)))) -> -0.4836749843 | Y14: =N14 -> 222 | Z14: =COUNTIF(L37:L67,Y14) -> 17 | AA14: =Z14/(AB4-Z11) -> 0.5483870968 | AB14: =IF(AA14=0,0,(AA14*((LOG(AA14))/LOG(2)))) -> -0.4753054508 | AD14: =N14 -> 222 | AE14: =COUNTIF(L68:L97,AD14) -> 22 | AF14: =AE14/(AG4-AE11) -> 0.7333333333 | AG14: =IF(AF14=0,0,(AF14*((LOG(AF14))/LOG(2)))) -> -0.3281365831 | AI14: =N14 -> 222 | AJ14: =COUNTIF(L98:L127,AI14) -> 14 | AK14: =AJ14/(AL4-AJ11) -> 0.4666666667 | AL14: =IF(AK14=0,0,(AK14*((LOG(AK14))/LOG(2)))) -> -0.5131166477 | AN14: =N14 -> 222 | AO14: =COUNTIF(L128:L158,AN14) -> 18 | AP14: =AO14/(AQ4-AO11) -> 0.5806451613 | AQ14: =IF(AP14=0,0,(AP14*((LOG(AP14))/LOG(2)))) -> -0.4553833407 | AS14: =N14 -> 222 | AT14: =COUNTIF(L159:L188,AS14) -> 15 | AU14: =AT14/(AV4-AT11) -> 0.5172413793 | AV14: =IF(AU14=0,0,(AU14*((LOG(AU14))/LOG(2)))) -> -0.4919433101
A15: 21 | B15: 1132 | C15: 22 | D15: 1138 | E15: 24 | F15: 1143 | K15: 0 | L15: 222 | P15: =SUM(P7:P14) -> 1 | Q15: =-SUM(Q7:Q14) -> 1.283994459 | V15: =SUM(V7:V14) -> 1 | W15: =-SUM(W7:W14) -> 1.346602752 | AA15: =SUM(AA7:AA14) -> 1 | AB15: =-SUM(AB7:AB14) -> 1.260440881 | AF15: =SUM(AF7:AF14) -> 1 | AG15: =-SUM(AG7:AG14) -> 1.052981575 | AK15: =SUM(AK7:AK14) -> 1 | AL15: =-SUM(AL7:AL14) -> 1.176679668 | AP15: =SUM(AP7:AP14) -> 1 | AQ15: =-SUM(AQ7:AQ14) -> 0.9811522342 | AU15: =SUM(AU7:AU14) -> 1 | AV15: =-SUM(AV7:AV14) -> 1.52772143
A16: 21 | B16: 1251 | C16: 22 | D16: 1260 | E16: 24 | F16: 1279 | K16: 0 | L16: 222 | P16: U= | Q16: =Q15/(LOG(Q4)/LOG(2)) -> 0.1712027792 | V16: U1= | W16: =W15/(LOG(W4)/LOG(2)) -> 0.2744309713 | AA16: U2= | AB16: =AB15/(LOG(AB4)/LOG(2)) -> 0.2544188405 | AF16: U3= | AG16: =AG15/(LOG(AG4)/LOG(2)) -> 0.2145924297 | AK16: U4= | AL16: =AL15/(LOG(AL4)/LOG(2)) -> 0.2398014883 | AP16: U5= | AQ16: =AQ15/(LOG(AQ4)/LOG(2)) -> 0.1980446823 | AU16: U6= | AV16: =AV15/(LOG(AV4)/LOG(2)) -> 0.3144766173
A17: 12 | B17: 1371 | C17: 24 | D17: 1384 | E17: 24 | F17: 1392 | K17: 0 | L17: 122
A18: 12 | B18: 1508 | C18: 24 | D18: 1521 | E18: 24 | F18: 1534 | K18: 0 | L18: 122
A19: 21 | B19: 1634 | C19: 22 | D19: 1643 | E19: 24 | F19: 1649 | K19: 0 | L19: 222 | N19: Total Target Seq
A20: 21 | B20: 1751 | C20: 22 | D20: 1759 | E20: 24 | F20: 1765 | K20: 0 | L20: 222 | N20: =COUNTIF(L7:L188,G3) -> 0 | P20: 30 | Q20: 31 | R20: 30 | S20: 30 | T20: 31 | U20: 30
A21: 21 | B21: 1863 | C21: 22 | D21: 1868 | E21: 24 | F21: 1874 | K21: 0 | L21: 222 | P21: % of reinforcement given in 6 equal intervals based on number of trials
A22: 12 | B22: 1968 | C22: 24 | D22: 1971 | E22: 24 | F22: 1975 | K22: 0 | L22: 122 | P22: %_1 | Q22: %_2 | R22: %_3 | S22: %_4 | T22: %_5 | U22: %_6
A23: 21 | B23: 2103 | C23: 22 | D23: 2128 | E23: 24 | F23: 2136 | K23: 0 | L23: 222 | O23: target sequence | P23: =$G$3 -> 211 | Q23: =$G$3 -> 211 | R23: =$G$3 -> 211 | S23: =$G$3 -> 211 | T23: =$G$3 -> 211 | U23: =$G$3 -> 211
A24: 21 | B24: 2238 | C24: 22 | D24: 2243 | E24: 24 | F24: 2251 | K24: 0 | L24: 222 | O24: total reinforcement | P24: =U11 -> 0 | Q24: =Z11 -> 0 | R24: =AE11 -> 0 | S24: =AJ11 -> 0 | T24: =AO11 -> 0 | U24: =AT11 -> 0
A25: 12 | B25: 2419 | C25: 24 | D25: 2430 | E25: 24 | F25: 2437 | K25: 0 | L25: 122 | O25: % target
A26: 21 | B26: 2540 | C26: 22 | D26: 2548 | E26: 24 | F26: 2554 | K26: 0 | L26: 222 | O26: CCRF
A27: 21 | B27: 2656 | C27: 22 | D27: 2659 | E27: 24 | F27: 2668 | K27: 0 | L27: 222 | O27: % CCRf
A28: 12 | B28: 2760 | C28: 24 | D28: 2771 | E28: 24 | F28: 2775 | K28: 0 | L28: 122 | O28: average response rate | P28: =F36/P20 -> 133.9666667 | Q28: =(F67-F36)/Q20 -> 122.0322581 | R28: =(F97-F67)/R20 -> 126.8666667 | S28: =(F127-F97)/S20 -> 131.2 | T28: =(F158-F127)/T20 -> 130.6129032 | U28: =(F188-F158)/U20 -> -653.1
A29: 12 | B29: 2868 | C29: 24 | D29: 2879 | E29: 24 | F29: 2887 | K29: 0 | L29: 122
A30: 12 | B30: 2981 | C30: 24 | D30: 2986 | E30: 24 | F30: 2989 | K30: 0 | L30: 122
A31: 12 | B31: 3083 | C31: 24 | D31: 3095 | E31: 24 | F31: 3104 | K31: 0 | L31: 122
A32: 21 | B32: 3205 | C32: 22 | D32: 3213 | E32: 24 | F32: 3218 | K32: 0 | L32: 222
A33: 12 | B33: 3313 | C33: 24 | D33: 3323 | E33: 24 | F33: 3328 | K33: 0 | L33: 122
A34: 21 | B34: 3512 | C34: 22 | D34: 3522 | E34: 24 | F34: 3537 | K34: 0 | L34: 222
A35: 12 | B35: 3773 | C35: 13 | D35: 3787 | E35: 24 | F35: 3809 | K35: 0 | L35: 112
A36: 12 | B36: 3996 | C36: 13 | D36: 4004 | E36: 24 | F36: 4019 | K36: 0 | L36: 112
A37: 12 | B37: 4114 | C37: 24 | D37: 4124 | E37: 24 | F37: 4128 | K37: 0 | L37: 122
A38: 12 | B38: 4221 | C38: 24 | D38: 4229 | E38: 24 | F38: 4231 | K38: 0 | L38: 122
A39: 21 | B39: 4332 | C39: 22 | D39: 4341 | E39: 24 | F39: 4347 | K39: 0 | L39: 222
A40: 21 | B40: 4448 | C40: 22 | D40: 4451 | E40: 24 | F40: 4456 | K40: 0 | L40: 222
A41: 12 | B41: 4567 | C41: 24 | D41: 4595 | E41: 24 | F41: 4606 | K41: 0 | L41: 122
A42: 21 | B42: 4711 | C42: 22 | D42: 4714 | E42: 24 | F42: 4717 | K42: 0 | L42: 222
A43: 12 | B43: 4814 | C43: 24 | D43: 4817 | E43: 24 | F43: 4823 | K43: 0 | L43: 122
A44: 12 | B44: 4916 | C44: 24 | D44: 4927 | E44: 24 | F44: 4932 | K44: 0 | L44: 122
A45: 12 | B45: 5055 | C45: 24 | D45: 5068 | E45: 24 | F45: 5075 | K45: 0 | L45: 122
A46: 21 | B46: 5176 | C46: 22 | D46: 5185 | E46: 24 | F46: 5191 | K46: 0 | L46: 222
A47: 21 | B47: 5293 | C47: 22 | D47: 5296 | E47: 24 | F47: 5304 | K47: 0 | L47: 222
A48: 21 | B48: 5403 | C48: 22 | D48: 5408 | E48: 24 | F48: 5412 | K48: 0 | L48: 222
A49: 12 | B49: 5504 | C49: 13 | D49: 5513 | E49: 24 | F49: 5518 | K49: 0 | L49: 112
A50: 12 | B50: 5629 | C50: 24 | D50: 5641 | E50: 24 | F50: 5649 | K50: 0 | L50: 122
A51: 21 | B51: 5750 | C51: 22 | D51: 5764 | E51: 24 | F51: 5770 | K51: 0 | L51: 222
A52: 21 | B52: 5874 | C52: 22 | D52: 5880 | E52: 24 | F52: 5887 | K52: 0 | L52: 222
A53: 21 | B53: 5993 | C53: 22 | D53: 5997 | E53: 24 | F53: 6004 | K53: 0 | L53: 222
A54: 12 | B54: 6098 | C54: 24 | D54: 6107 | E54: 24 | F54: 6112 | K54: 0 | L54: 122
A55: 21 | B55: 6217 | C55: 22 | D55: 6222 | E55: 24 | F55: 6228 | K55: 0 | L55: 222
A56: 21 | B56: 6332 | C56: 22 | D56: 6338 | E56: 24 | F56: 6344 | K56: 0 | L56: 222
A57: 21 | B57: 6449 | C57: 22 | D57: 6454 | E57: 24 | F57: 6460 | K57: 0 | L57: 222
A58: 12 | B58: 6675 | C58: 24 | D58: 6694 | E58: 24 | F58: 6702 | K58: 0 | L58: 122
A59: 21 | B59: 6802 | C59: 22 | D59: 6808 | E59: 24 | F59: 6815 | K59: 0 | L59: 222
A60: 12 | B60: 6906 | C60: 24 | D60: 6920 | E60: 24 | F60: 6925 | K60: 0 | L60: 122
A61: 21 | B61: 7025 | C61: 22 | D61: 7029 | E61: 24 | F61: 7035 | K61: 0 | L61: 222
A62: 21 | B62: 7142 | C62: 22 | D62: 7145 | E62: 24 | F62: 7151 | K62: 0 | L62: 222
A63: 12 | B63: 7310 | C63: 24 | D63: 7325 | E63: 24 | F63: 7340 | K63: 0 | L63: 122
A64: 12 | B64: 7435 | C64: 13 | D64: 7438 | E64: 24 | F64: 7446 | K64: 0 | L64: 112
A65: 21 | B65: 7555 | C65: 22 | D65: 7561 | E65: 24 | F65: 7566 | K65: 0 | L65: 222
A66: 21 | B66: 7672 | C66: 22 | D66: 7688 | E66: 24 | F66: 7695 | K66: 0 | L66: 222
A67: 12 | B67: 7790 | C67: 24 | D67: 7795 | E67: 24 | F67: 7802 | K67: 0 | L67: 122
A68: 12 | B68: 7896 | C68: 24 | D68: 7909 | E68: 24 | F68: 7914 | K68: 0 | L68: 122
A69: 12 | B69: 8055 | C69: 13 | D69: 8057 | E69: 24 | F69: 8069 | K69: 0 | L69: 112
A70: 21 | B70: 8174 | C70: 22 | D70: 8185 | E70: 24 | F70: 8191 | K70: 0 | L70: 222
A71: 21 | B71: 8391 | C71: 22 | D71: 8397 | E71: 24 | F71: 8404 | K71: 0 | L71: 222
A72: 21 | B72: 8507 | C72: 22 | D72: 8512 | E72: 24 | F72: 8518 | K72: 0 | L72: 222
A73: 21 | B73: 8619 | C73: 22 | D73: 8623 | E73: 24 | F73: 8626 | K73: 0 | L73: 222
A74: 21 | B74: 8733 | C74: 22 | D74: 8736 | E74: 24 | F74: 8742 | K74: 0 | L74: 222
A75: 12 | B75: 8868 | C75: 24 | D75: 8891 | E75: 24 | F75: 8898 | K75: 0 | L75: 122
A76: 21 | B76: 9007 | C76: 22 | D76: 9014 | E76: 24 | F76: 9019 | K76: 0 | L76: 222
A77: 21 | B77: 9121 | C77: 22 | D77: 9128 | E77: 24 | F77: 9134 | K77: 0 | L77: 222
A78: 21 | B78: 9234 | C78: 22 | D78: 9239 | E78: 24 | F78: 9250 | K78: 0 | L78: 222
A79: 12 | B79: 9344 | C79: 24 | D79: 9352 | E79: 24 | F79: 9357 | K79: 0 | L79: 122
A80: 21 | B80: 9460 | C80: 22 | D80: 9472 | E80: 24 | F80: 9479 | K80: 0 | L80: 222
A81: 12 | B81: 9677 | C81: 24 | D81: 9691 | E81: 24 | F81: 9702 | K81: 0 | L81: 122
A82: 21 | B82: 9803 | C82: 22 | D82: 9817 | E82: 24 | F82: 9822 | K82: 0 | L82: 222
A83: 21 | B83: 9926 | C83: 22 | D83: 9936 | E83: 24 | F83: 9952 | K83: 0 | L83: 222
A84: 21 | B84: 10055 | C84: 22 | D84: 10063 | E84: 24 | F84: 10069 | K84: 0 | L84: 222
A85: 21 | B85: 10172 | C85: 22 | D85: 10174 | E85: 24 | F85: 10180 | K85: 0 | L85: 222
A86: 21 | B86: 10285 | C86: 22 | D86: 10291 | E86: 24 | F86: 10297 | K86: 0 | L86: 222
A87: 21 | B87: 10395 | C87: 22 | D87: 10406 | E87: 24 | F87: 10412 | K87: 0 | L87: 222
A88: 12 | B88: 10511 | C88: 24 | D88: 10518 | E88: 24 | F88: 10523 | K88: 0 | L88: 122
A89: 12 | B89: 10662 | C89: 24 | D89: 10677 | E89: 24 | F89: 10683 | K89: 0 | L89: 122
A90: 12 | B90: 10777 | C90: 13 | D90: 10785 | E90: 24 | F90: 10788 | K90: 0 | L90: 112
A91: 21 | B91: 10896 | C91: 22 | D91: 10901 | E91: 24 | F91: 10916 | K91: 0 | L91: 222
A92: 21 | B92: 11020 | C92: 22 | D92: 11023 | E92: 24 | F92: 11029 | K92: 0 | L92: 222
A93: 21 | B93: 11127 | C93: 22 | D93: 11136 | E93: 24 | F93: 11142 | K93: 0 | L93: 222
A94: 21 | B94: 11244 | C94: 22 | D94: 11249 | E94: 24 | F94: 11255 | K94: 0 | L94: 222
A95: 21 | B95: 11356 | C95: 22 | D95: 11361 | E95: 24 | F95: 11372 | K95: 0 | L95: 222
A96: 21 | B96: 11476 | C96: 22 | D96: 11484 | E96: 24 | F96: 11489 | K96: 0 | L96: 222
A97: 21 | B97: 11597 | C97: 22 | D97: 11601 | E97: 24 | F97: 11608 | K97: 0 | L97: 222
A98: 21 | B98: 11708 | C98: 22 | D98: 11714 | E98: 24 | F98: 11720 | K98: 0 | L98: 222
A99: 12 | B99: 11816 | C99: 24 | D99: 11827 | E99: 24 | F99: 11832 | K99: 0 | L99: 122
A100: 21 | B100: 11936 | C100: 22 | D100: 11941 | E100: 24 | F100: 11946 | K100: 0 | L100: 222
A101: 12 | B101: 12181 | C101: 24 | D101: 12199 | E101: 24 | F101: 12205 | K101: 0 | L101: 122
A102: 12 | B102: 12299 | C102: 24 | D102: 12317 | E102: 24 | F102: 12325 | K102: 0 | L102: 122
A103: 21 | B103: 12434 | C103: 22 | D103: 12439 | E103: 24 | F103: 12445 | K103: 0 | L103: 222
A104: 12 | B104: 12537 | C104: 24 | D104: 12551 | E104: 24 | F104: 12558 | K104: 0 | L104: 122
A105: 12 | B105: 12649 | C105: 24 | D105: 12664 | E105: 24 | F105: 12670 | K105: 0 | L105: 122
A106: 12 | B106: 12766 | C106: 24 | D106: 12770 | E106: 24 | F106: 12776 | K106: 0 | L106: 122
A107: 21 | B107: 12868 | C107: 22 | D107: 12873 | E107: 24 | F107: 12875 | K107: 0 | L107: 222
A108: 21 | B108: 12986 | C108: 22 | D108: 13001 | E108: 24 | F108: 13007 | K108: 0 | L108: 222
A109: 21 | B109: 13106 | C109: 22 | D109: 13113 | E109: 24 | F109: 13119 | K109: 0 | L109: 222
A110: 21 | B110: 13245 | C110: 22 | D110: 13253 | E110: 24 | F110: 13266 | K110: 0 | L110: 222
A111: 12 | B111: 13358 | C111: 24 | D111: 13364 | E111: 24 | F111: 13370 | K111: 0 | L111: 122
A112: 12 | B112: 13461 | C112: 24 | D112: 13476 | E112: 24 | F112: 13480 | K112: 0 | L112: 122
A113: 12 | B113: 13715 | C113: 24 | D113: 13728 | E113: 24 | F113: 13733 | K113: 0 | L113: 122
A114: 12 | B114: 13826 | C114: 24 | D114: 13836 | E114: 24 | F114: 13843 | K114: 0 | L114: 122
A115: 12 | B115: 13992 | C115: 24 | D115: 14010 | E115: 24 | F115: 14015 | K115: 0 | L115: 122
A116: 21 | B116: 14117 | C116: 22 | D116: 14122 | E116: 24 | F116: 14127 | K116: 0 | L116: 222
A117: 21 | B117: 14228 | C117: 22 | D117: 14238 | E117: 24 | F117: 14244 | K117: 0 | L117: 222
A118: 12 | B118: 14341 | C118: 24 | D118: 14345 | E118: 24 | F118: 14348 | K118: 0 | L118: 122
A119: 21 | B119: 14488 | C119: 22 | D119: 14494 | E119: 24 | F119: 14504 | K119: 0 | L119: 222
A120: 12 | B120: 14597 | C120: 24 | D120: 14603 | E120: 24 | F120: 14609 | K120: 0 | L120: 122
A121: 12 | B121: 14705 | C121: 24 | D121: 14720 | E121: 24 | F121: 14732 | K121: 0 | L121: 122
A122: 12 | B122: 14899 | C122: 24 | D122: 14916 | E122: 24 | F122: 14922 | K122: 0 | L122: 122
A123: 21 | B123: 15026 | C123: 22 | D123: 15031 | E123: 24 | F123: 15038 | K123: 0 | L123: 222
A124: 12 | B124: 15159 | C124: 13 | D124: 15163 | E124: 24 | F124: 15183 | K124: 0 | L124: 112
A125: 21 | B125: 15286 | C125: 22 | D125: 15303 | E125: 24 | F125: 15310 | K125: 0 | L125: 222
A126: 21 | B126: 15416 | C126: 22 | D126: 15427 | E126: 24 | F126: 15433 | K126: 0 | L126: 222
A127: 21 | B127: 15536 | C127: 22 | D127: 15538 | E127: 24 | F127: 15544 | K127: 0 | L127: 222
A128: 12 | B128: 15636 | C128: 24 | D128: 15648 | E128: 24 | F128: 15656 | K128: 0 | L128: 122
A129: 21 | B129: 15760 | C129: 22 | D129: 15770 | E129: 24 | F129: 15776 | K129: 0 | L129: 222
A130: 12 | B130: 16053 | C130: 24 | D130: 16068 | E130: 24 | F130: 16083 | K130: 0 | L130: 122
A131: 21 | B131: 16186 | C131: 22 | D131: 16189 | E131: 24 | F131: 16194 | K131: 0 | L131: 222
A132: 12 | B132: 16287 | C132: 24 | D132: 16294 | E132: 24 | F132: 16308 | K132: 0 | L132: 122
A133: 21 | B133: 16412 | C133: 22 | D133: 16418 | E133: 24 | F133: 16422 | K133: 0 | L133: 222
A134: 21 | B134: 16527 | C134: 22 | D134: 16533 | E134: 24 | F134: 16538 | K134: 0 | L134: 222
A135: 12 | B135: 16694 | C135: 24 | D135: 16723 | E135: 24 | F135: 16729 | K135: 0 | L135: 122
A136: 12 | B136: 16827 | C136: 24 | D136: 16838 | E136: 24 | F136: 16841 | K136: 0 | L136: 122
A137: 21 | B137: 16945 | C137: 22 | D137: 16950 | E137: 24 | F137: 16962 | K137: 0 | L137: 222
A138: 21 | B138: 17053 | C138: 22 | D138: 17062 | E138: 24 | F138: 17068 | K138: 0 | L138: 222
A139: 21 | B139: 17174 | C139: 22 | D139: 17182 | E139: 24 | F139: 17189 | K139: 0 | L139: 222
A140: 12 | B140: 17426 | C140: 24 | D140: 17436 | E140: 24 | F140: 17440 | K140: 0 | L140: 122
A141: 21 | B141: 17544 | C141: 22 | D141: 17549 | E141: 24 | F141: 17560 | K141: 0 | L141: 222
A142: 21 | B142: 17661 | C142: 22 | D142: 17667 | E142: 24 | F142: 17673 | K142: 0 | L142: 222
A143: 21 | B143: 17779 | C143: 22 | D143: 17786 | E143: 24 | F143: 17793 | K143: 0 | L143: 222
A144: 21 | B144: 17896 | C144: 22 | D144: 17906 | E144: 24 | F144: 17914 | K144: 0 | L144: 222
A145: 21 | B145: 18088 | C145: 22 | D145: 18093 | E145: 24 | F145: 18099 | K145: 0 | L145: 222
A146: 21 | B146: 18217 | C146: 22 | D146: 18224 | E146: 24 | F146: 18240 | K146: 0 | L146: 222
A147: 21 | B147: 18343 | C147: 22 | D147: 18346 | E147: 24 | F147: 18350 | K147: 0 | L147: 222
A148: 12 | B148: 18442 | C148: 24 | D148: 18451 | E148: 24 | F148: 18462 | K148: 0 | L148: 122
A149: 21 | B149: 18565 | C149: 22 | D149: 18571 | E149: 24 | F149: 18583 | K149: 0 | L149: 222
A150: 12 | B150: 18676 | C150: 24 | D150: 18688 | E150: 24 | F150: 18696 | K150: 0 | L150: 122
A151: 21 | B151: 18800 | C151: 22 | D151: 18806 | E151: 24 | F151: 18811 | K151: 0 | L151: 222
A152: 12 | B152: 18904 | C152: 24 | D152: 18918 | E152: 24 | F152: 18924 | K152: 0 | L152: 122
A153: 12 | B153: 19016 | C153: 24 | D153: 19022 | E153: 24 | F153: 19028 | K153: 0 | L153: 122
A154: 21 | B154: 19135 | C154: 22 | D154: 19141 | E154: 24 | F154: 19147 | K154: 0 | L154: 222
A155: 12 | B155: 19241 | C155: 24 | D155: 19249 | E155: 24 | F155: 19253 | K155: 0 | L155: 122
A156: 21 | B156: 19357 | C156: 22 | D156: 19361 | E156: 24 | F156: 19366 | K156: 0 | L156: 222
A157: 12 | B157: 19472 | C157: 24 | D157: 19482 | E157: 24 | F157: 19487 | K157: 0 | L157: 122
A158: 12 | B158: 19581 | C158: 24 | D158: 19588 | E158: 24 | F158: 19593 | K158: 0 | L158: 122
A159: 12 | B159: 19690 | C159: 13 | D159: 19697 | E159: 13 | F159: 19702 | K159: 0 | L159: 111
A160: 12 | B160: 19795 | C160: 13 | D160: 19798 | E160: 24 | F160: 19806 | K160: 0 | L160: 112
A161: 21 | B161: 19912 | C161: 22 | D161: 19924 | E161: 24 | F161: 19929 | K161: 0 | L161: 222
A162: 12 | B162: 20025 | C162: 24 | D162: 20032 | E162: 24 | F162: 20036 | K162: 0 | L162: 122
A163: 21 | B163: 20151 | C163: 22 | D163: 20164 | E163: 24 | F163: 20183 | K163: 0 | L163: 222
A164: 12 | B164: 20330 | C164: 24 | D164: 20341 | E164: 24 | F164: 20347 | K164: 0 | L164: 122
A165: 12 | B165: 20490 | C165: 13 | D165: 20496 | E165: 24 | F165: 20518 | K165: 0 | L165: 112
A166: 21 | B166: 20623 | C166: 22 | D166: 20628 | E166: 24 | F166: 20634 | K166: 0 | L166: 222
A167: 12 | B167: 20725 | C167: 24 | D167: 20736 | E167: 24 | F167: 20743 | K167: 0 | L167: 122
A168: 21 | B168: 20845 | C168: 22 | D168: 20852 | E168: 24 | F168: 20858 | K168: 0 | L168: 222
A169: 21 | B169: 20962 | C169: 22 | D169: 20964 | E169: 24 | F169: 20970 | K169: 0 | L169: 222
A170: 12 | B170: 21069 | C170: 24 | D170: 21077 | E170: 24 | F170: 21083 | K170: 0 | L170: 122
A171: 21 | B171: 21187 | C171: 22 | D171: 21198 | E171: 24 | F171: 21205 | K171: 0 | L171: 222
A172: 21 | B172: 21312 | C172: 22 | D172: 21319 | E172: 24 | F172: 21324 | K172: 0 | L172: 222
A173: 12 | B173: 21421 | C173: 24 | D173: 21435 | E173: 24 | F173: 21439 | K173: 0 | L173: 122
A174: 12 | B174: 21745 | C174: 24 | D174: 21763 | E174: 24 | F174: 21769 | K174: 0 | L174: 122
A175: 12 | B175: 21863 | C175: 24 | D175: 21871 | E175: 24 | F175: 21877 | K175: 0 | L175: 122
A176: 12 | B176: 21971 | C176: 24 | D176: 21980 | E176: 24 | F176: 21985 | K176: 0 | L176: 122
A177: 12 | B177: 22274 | C177: 24 | D177: 22285 | E177: 24 | F177: 22291 | K177: 0 | L177: 122
A178: 21 | B178: 22458 | C178: 22 | D178: 22464 | E178: 24 | F178: 22470 | K178: 0 | L178: 222
A179: 12 | B179: 22564 | C179: 24 | D179: 22571 | E179: 24 | F179: 22577 | K179: 0 | L179: 122
A180: 21 | B180: 22685 | C180: 22 | D180: 22688 | E180: 24 | F180: 22696 | K180: 0 | L180: 222
A181: 21 | B181: 22992 | C181: 22 | D181: 22996 | E181: 24 | F181: 23001 | K181: 0 | L181: 222
A182: 21 | B182: 23107 | C182: 22 | D182: 23110 | E182: 24 | F182: 23116 | K182: 0 | L182: 222
A183: 21 | B183: 23217 | C183: 22 | D183: 23222 | E183: 24 | F183: 23237 | K183: 0 | L183: 222
A184: 21 | B184: 23330 | C184: 22 | D184: 23338 | E184: 24 | F184: 23343 | K184: 0 | L184: 222
A185: 21 | B185: 23442 | C185: 22 | D185: 23451 | E185: 24 | F185: 23459 | K185: 0 | L185: 222
A186: 12 | B186: 23553 | C186: 13 | D186: 23557 | E186: 24 | F186: 23561 | K186: 0 | L186: 112
A187: 21 | B187: 23668 | C187: 22 | D187: 23674 | E187: 24 | F187: 23680 | K187: 0 | L187: 222
A188: 12 | B188: 23995 | L188: 1

Sheet !M129B10.Gus
A1: Report for:!M129B10.Gus
A2: Date: | B2: <date>
A3: Hen: | B3: <hen> | F3: Correct Sequence | G3: =Start!J2 -> 211 | P3: Total Sequences in Data | Q3: =4994-COUNTBLANK(L7:L5000) -> 173 | V3: Total Sequences in Block Data | W3: =COUNTA(L7:L35) -> 29 | AA3: Total Sequences in Block Data | AB3: =COUNTA(L36:L64) -> 29 | AF3: Total Sequences in Block Data | AG3: =COUNTA(L65:L92) -> 28 | AK3: Total Sequences in Block Data | AL3: =COUNTA(L93:L121) -> 29 | AP3: Total Sequences in Block Data | AQ3: =COUNTA(L122:L150) -> 29 | AU3: Total Sequences in Block Data | AV3: =COUNTA(L151:L179) -> 29
P4: Total Sequences in Summary | Q4: =SUM(O7:O14) -> 173 | V4: Total Sequences in Block Summary | W4: =SUM(U7:U14) -> 29 | AA4: Total Sequences in Block Summary | AB4: =SUM(Z7:Z14) -> 29 | AF4: Total Sequences in Block Summary | AG4: =SUM(AE7:AE14) -> 28 | AK4: Total Sequences in Block Summary | AL4: =SUM(AJ7:AJ14) -> 29 | AP4: Total Sequences in Block Summary | AQ4: =SUM(AO7:AO14) -> 29 | AU4: Total Sequences in Block Summary | AV4: =SUM(AT7:AT14) -> 29
T5: Block 1 | Y5: Block 2 | AD5: Block 3 | AI5: Block 4 | AN5: Block 5 | AS5: Block 6
A6: Sequence Component 1 | B6: Time 1 | C6: Sequence Component 2 | D6: Time 2 | E6: Sequence Component 3 | F6: Time 3 | G6: Sequence Component 4 | H6: Time 4 | I6: Sequence Component 5 | J6: Time 5 | K6: Correct? 0=No 1=Yes | L6: Sequence | N6: Frequency | P6: Relative Frequency | Q6: Variability | T6: Frequency | V6: Relative Frequency | W6: Variability | Y6: Frequency | AA6: Relative Frequency | AB6: Variability | AD6: Frequency | AF6: Relative Frequency | AG6: Variability | AI6: Frequency | AK6: Relative Frequency | AL6: Variability | AN6: Frequency | AP6: Relative Frequency | AQ6: Variability | AS6: Frequency | AU6: Relative Frequency | AV6: Variability
A7: 21 | B7: 9 | C7: 22 | D7: 15 | E7: 24 | F7: 21 | K7: 0 | L7: 222 | N7: 111 | O7: =COUNTIF($L$7:$L$500,N7) -> 1 | P7: =O7/$Q$4 -> 0.005780346821 | Q7: =IF(P7=0,0,(P7*((LOG(P7))/LOG(2)))) -> -0.04297472964 | T7: =N7 -> 111 | U7: =COUNTIF(L7:L35,T7) -> 1 | V7: =U7/(W4-U11) -> 0.03448275862 | W7: =IF(V7=0,0,(V7*((LOG(V7))/LOG(2)))) -> -0.167516586 | Y7: =N7 -> 111 | Z7: =COUNTIF(L36:L64,Y7) -> 0 | AA7: =Z7/(AB4-Z11) -> 0 | AB7: =IF(AA7=0,0,(AA7*((LOG(AA7))/LOG(2)))) -> 0 | AD7: =N7 -> 111 | AE7: =COUNTIF(L65:L92,AD7) -> 0 | AF7: =AE7/(AG4-AE11) -> 0 | AG7: =IF(AF7=0,0,(AF7*((LOG(AF7))/LOG(2)))) -> 0 | AI7: =N7 -> 111 | AJ7: =COUNTIF(L93:L121,AI7) -> 0 | AK7: =AJ7/(AL4-AJ11) -> 0 | AL7: =IF(AK7=0,0,(AK7*((LOG(AK7))/LOG(2)))) -> 0 | AN7: =N7 -> 111 | AO7: =COUNTIF(L122:L150,AN7) -> 0 | AP7: =AO7/(AQ4-AO11) -> 0 | AQ7: =IF(AP7=0,0,(AP7*((LOG(AP7))/LOG(2)))) -> 0 | AS7: =N7 -> 111 | AT7: =COUNTIF(L151:L179,AS7) -> 0 | AU7: =AT7/(AV4-AT11) -> 0 | AV7: =IF(AU7=0,0,(AU7*((LOG(AU7))/LOG(2)))) -> 0
A8: 21 | B8: 116 | C8: 22 | D8: 121 | E8: 24 | F8: 126 | K8: 0 | L8: 222 | N8: 112 | O8: =COUNTIF($L$7:$L$500,N8) -> 9 | P8: =O8/$Q$4 -> 0.05202312139 | Q8: =IF(P8=0,0,(P8*((LOG(P8))/LOG(2)))) -> -0.2218631736 | T8: =N8 -> 112 | U8: =COUNTIF(L7:L35,T8) -> 0 | V8: =U8/(W4-U11) -> 0 | W8: =IF(V8=0,0,(V8*((LOG(V8))/LOG(2)))) -> 0 | Y8: =N8 -> 112 | Z8: =COUNTIF(L36:L64,Y8) -> 3 | AA8: =Z8/(AB4-Z11) -> 0.1034482759 | AB8: =IF(AA8=0,0,(AA8*((LOG(AA8))/LOG(2)))) -> -0.3385881201 | AD8: =N8 -> 112 | AE8: =COUNTIF(L65:L92,AD8) -> 1 | AF8: =AE8/(AG4-AE11) -> 0.03571428571 | AG8: =IF(AF8=0,0,(AF8*((LOG(AF8))/LOG(2)))) -> -0.1716912472 | AI8: =N8 -> 112 | AJ8: =COUNTIF(L93:L121,AI8) -> 2 | AK8: =AJ8/(AL4-AJ11) -> 0.06896551724 | AL8: =IF(AK8=0,0,(AK8*((LOG(AK8))/LOG(2)))) -> -0.2660676548 | AN8: =N8 -> 112 | AO8: =COUNTIF(L122:L150,AN8) -> 1 | AP8: =AO8/(AQ4-AO11) -> 0.03448275862 | AQ8: =IF(AP8=0,0,(AP8*((LOG(AP8))/LOG(2)))) -> -0.167516586 | AS8: =N8 -> 112 | AT8: =COUNTIF(L151:L179,AS8) -> 2 | AU8: =AT8/(AV4-AT11) -> 0.06896551724 | AV8: =IF(AU8=0,0,(AU8*((LOG(AU8))/LOG(2)))) -> -0.2660676548
